Workbook

Sheet Cover
B3: Unlocking Clean Energy in Greater Manchester
B5: This tool has been created to support renewable energy project developers as well as large energy consumers willing to procure renewable energy to assess the economic sustainability of installations solar photovoltaics. This model has been developed using funding and information provided by the Unlocking Clean Energy in Greater Manchester (UCEGM) project. It draws from information first prepared in 2018 and has been subsequently updated where indicated.
B9: Version | C9: 28.1
B15: Follow these steps to get started
B56: Sheets Index
B59: Input Sheets
B60: Add New Site | C60: This sheet enables the user to add a new project/site sheet. By clicking the button at the bottom of the page a new sheet will be created named as the given "Project Name". Compulsory fields are marked.
B61: Input Settings | C61: This sheet enables the user to select settings for the calculations, including information such as: - site for which the simulation should be run - revenue model - financing source (e.g. Annuity loan, EIP loan, Salix, Maturity loan) - source for energy price (e.g. user curve, Green Book)
B62: User Curve | C62: This sheet gives the user the possibility to provide customised curves for: - three future retail electrcity price scenarios (Low, Central, High) - price paid for exported electricity - Consumer Price Inflation Index (used to take inflation into account)
B63: Green Book Tables | C63: Greenbook values for future electrcity prices (Table 4) and GHG emissions from the grid (Table 1). Table 1 is used to calculate CO2 savings where self-consumption occurs displacing grid electricity.
B64: Sites-> | C64: This page is used as a placeholder to mark the beginning of the list for the sites' input data. To be listed in the sites' list, the input sheet for your site, added through the page "Add new site", should be placed after this sheet. This is done automatically, unless an error has occurred. This sheet is also use to delete existing sites, if necessary.
B65: Sheets "Site's name" | C65: This sheet contains the data for a specific site. Once created the user can modify the site's data from this page.
B67: Output Sheets
B68: Dashboard | C68: This sheet provides a summary of the key results from the model, for the given "Input settings". At the bottom of the sheet, two buttons enable quick export of results as pdf or as Excel file.
B69: Sensitivity Analysis Results | C69: This sheet provides the results of the sensitivity analysis testing CAPEX variation, different level of expected self-consumption, and different future electricity price scenarios.
B70: Result Tables | C70: This sheet provides the results in a tabular form, for the given "Input settings".
B71: Results Legend | C71: This sheet provides an explanation of each variable contained in the ouput tables (Results Tables).
B73: Hidden Calculation Sheets
B74: Energy Calculations | C74: Calculation sheet for project energy flows, emissions, costs and revenues, Provides estimate of energy on an annualised basis over lifetime of projects, expected reveune based on offsetting power and estimated emissions savings. The different revenue models are modelled here.
B75: Financing Calculations | C75: Calculation sheet for project financing options. Provides estimate of finanical flows on an annualised basis over lifetime of project. The different financing options are modelled here.
B76: Sensitivity Calculations | C76: Calculation sheet for sensitivity analysis. There are no actual calculations here, the sheet is used only as an intermediate step.
B78: Hidden Technical Sheets
B79: Lists | C79: This sheet contains the controls for the dropdown menus shown in "input settings". The VBA macros are heavily linked to the numbers in the first row.
B80: Data Value | C80: This sheet is used to capture the data from the "site's name" sheets and pass them to the calcuation sheets.
B81: Print Input | C81: This sheet is used to create the input page to be exported in the xlsx file
B83: VBA code/ Macros
B84: Update_Energy_Values | C84: This macro updates the values in the "Energy Calculations" sheet when the input settings are changes (including a selection of a different site).
B85: SolveforPPA | C85: This macro finds the target generator component of the PPA price to meet the target IRR for the generator
B86: Sensitivity_ScenarioPrices | C86: This macro runs the calculations for the sensitivity analysis
B87: Dashboard_and_tables | C87: This macro prints the results on the sheet "Dashboard" and "Result Tables" based on the revenue model and financing option selected.
B88: Run_Calculations | C88: This macro is connected to the button on the page "Input Settings" and simply runs the macros: "Update_Energy_Values", "Sensitivity_ScenarioPrices", "Dashboard_and_tables".
B89: Print_Dashboard_PDF | C89: This macro exports the "Dashboard" sheet and the "Sensitivity Analysis Results" sheet into a pdf. Each sheet is fitted into one page to avoid breaking tables and graphs. The user can select where to save the file and how to name it.
B90: Export_Results_XLSX | C90: This macro creates a new Excel file (*.xlsx), containing the input sheet for the selected site,as well as the sheets "Result Tables", "Sensitivity Analysis Results", and "Results Legend".
B91: Delete_site | C91: This macro delete the selected (for sheet "Site->") site input page and updates sites' list in sheet "List".
B92: DropDown11_Change | C92: This Macro controls the option of showing additional input settings based on revenue model selected
B93: Lock_Unlock | C93: This macro enables to lock and unlock all sheets and workbook.
B94: Add_new_site | C94: This macro creates a new sheet, copy the data from the original form in sheet "Add new site", updates the sheets names in the sheet "List", and it empties the original form.
B96: Password | C96: ESC23

Sheet Add new site
C2: Add New Site
A3: To add a new site, fill in the table below.
A4: To upload data press the button "Add New Site".
A5: A new sheet will be created named as the given "Project Name".
A6: The yellow cells represent inputs required from the user. The grey cells are automatically calculated, thus, the user is not required to insert anything.
A7: ONCE THE SHEET HAS BEEN CREATED, IT WILL BE POSSIBLE TO MODIFY THE INPUT DATA DIRECTLY FROM THE NEW SHEET.
A8: This page will be used every time that the user wants to add a new site
A9: N.B. The cells marked with * are compulsory fields
A12: General
A13: Item | B13: Text | D13: Legend
A14: Project Name* | D14: A new sheet will be created with this name and it will contain the site's data. The project name can consist of a maximum of 27 characters long. Longer names will be automatically shortened to 27 characters.
A15: Description
A16: Stage
A17: Date last updated
A19: System
A20: Item | B20: Value | C20: Unit | D20: Legend
A21: Size / capacity* | C21: kWp
A22: Specific yield* | C22: kWh/year/kWp
A23: Forecast curtailment index* | C23: % | D23: Due to limits in distribution or transmission network capacity, the generation asset will be disconnected in periods when the local node is congested. The grid offer letter will typically contain a forecast curtailment index. This means that a part of the energy generated will be lost. If the user does not have this value yet, 2.5% can be used.
A24: Specific yield (curtailment included) | B24: =B22*(1-B23) -> 0 | C24: kWh/year/kWp
A25: Rated load factor (curtailment included) | B25: =B22/8760 -> 0 | D25: Check against the UK average of 10.4% (based on Feed-in Tariff data)
A26: Rated annual production (curtailment included) | B26: =B21*B25*365*24 -> 0 | C26: kWh/year
A27: PV performance degradation (Year 1) | C27: % per year | D27: In case the user does not have this value, a conservative value of 1.5% can be used for the first year
A28: PV performance degradation (Year 2 and beyond) | C28: % per year | D28: In case the user does not have this value, an average value of 0.5% can be used for year 2 and beyond
A29: Economic Life* | C29: years | D29: The allowed maximum length of the economic life is 30 years
A30: Invertor replacements required* | D30: The number of invertor replacements required over the lifetime of the project. In case data is not available, consider at least 2 invertor replacements over 25 years.
A32: Preperation Costs
A33: Element | B33: Value | D33: Legend
A34: Feasibility studies | C34: £
A35: Detailed Design | C35: £
A36: Development expenditure | C36: £
A37: Preperation Costs Total | C37: £ | D37: This cost can be excluded from calculations. Option available on the page "Input Settings"
A39: Capital Costs
A40: Element | B40: Value | D40: Legend
A41: Site preparation and access | C41: £
A42: Civil works | C42: £
A43: Solar PV modules | C43: £
A44: Inverters | C44: £
A45: Mounting systems | C45: £
A46: Electrical systems - transformer | C46: £
A47: Electrical systems - balance of plant | C47: £
A48: Security systems | C48: £
A49: Installation | C49: £
A50: Controls package | C50: £
A51: Grid connection | C51: £
A52: Spares | C52: £
A53: Management and supervision | C53: £
A54: Technical support | C54: £
A55: Contractor's survey and design | C55: £
A56: Private wire | C56: £
A57: Contingency | C57: £
A58: Capital Costs Total* | C58: £ | D58: Only the total capital cost is used in calculations, which must be provided (its breakdown into the items above is optional)
A59: Cost per kWp | B59: =IFERROR(B58/B21,0) -> 0 | C59: £/kWp
A61: Ongoing costs
A62: Item | B62: Value | C62: Unit | D62: Legend
A63: Replacement inverter cost* | C63: £/kWp/inverter | D63: Based on the data collected through the UCEGM project (2020 -2022) this value could vary between 45 and 90 £/kWp/inverter, depending on the size of the installation and technology installed. However, this is only an indicative range and where possible the user should use quotes from a feasibility study.
A64: Maintenance cost (Capacity based)* | C64: £/kWp/year | D64: Based on the data collected through the UCEGM project (2020 -2022) this value could vary between 5.5 and 18 £/kWp/inverter, depending on the size of the installation and technology installed. However, this is only an indicative range and where possible the user should use quotes from a feasibility study.
A66: Energy Revenue
A67: Item | B67: Value | C67: Unit | D67: Legend
A68: Electricity self-consumed or exported through PPA* | C68: % | D68: This is the anticipated percentage of electricity self-consumed (or exported through PPA) out of the total production of the installation. In the case of Sleeved PPA or Private Wire, this % multiplied by the "Rated annual production" corresponds to the amount of electricity sold to the off-taker. Provide a number as a percentage of total energy yield. In the next steps, the user will be asked to provide other values for "Electricity self-consumed" to perform a sensitivity analysis on this parameter.
A69: Electricity Exported to the grid (e.g. SEG) | B69: =1-B68 -> 1 | C69: % | D69: This is the % of electricity exported to the grid at the price defined in the sheet "User Curve" or "30% of Retail Electricity Price of the Green Book value". For any installation below 5MW, this is equivalent to the Smart Export Guarantee (SEG) price. The user can decide which value to use in the sheet "Input settings". If the site is being added for the first time, this will be the next step.
A70: Commodity component PPA price | C70: £/kWh | D70: This is the component of the PPA price paid to the generator. In the next step, the user will have the option to ask the tool to calculate this value based either on a target Internal Rate of Return (e.g. 5%) for the generator, or a minimum NPV for the offtaker, rather than the fixed price provided on this sheet. This is the preferred option where the generator has the opportunity to set the comodity component of the PPA price (e.g. a local authority sleeving power to its own buildings, selling to a private site not energy retailer). In case the user prefers to use a fixed price (e.g. selling to an electricity supplier), typical values range from 0.06-0.1£/kWh (updated Nov. 2022).
A71: Export Imbalance fees | C71: £/kWh | D71: In the case of PPAs, generators will be charged these fees by suppliers to cover the cost of the mismatch between forecasted and real generation. Typically 2-3% of Commodity component PPA price (updated Nov. 2022).
A72: Sleeving fee | C72: £/kWh | D72: In the case of Sleeved PPAs, suppliers will charge this fee for the facilitation of sleeving energy from one party to another. Typically between 0.0005 - 0.003 £/kWh.
A73: Management fee off-taker | C73: £/kWh | D73: In the case of PPAs, off-takers will be charged administration fees by suppliers for account management. Typically 1.5-2.5% of PPA Commodity component PPA price (updated Nov. 2022)
A74: Management fee generator | C74: £/kWh | D74: In the case of PPAs, generators will be charged administration fees by suppliers for account management. Typically 1.5-2.5% of PPA Commodity component PPA price (updated Nov. 2022)
A75: Policy Costs | C75: £/kWh | D75: In the case of PPAs, off-takers will be charged policy costs. These will vary based on government subsidies and other social and environmental obligations. As of November 2022, the policy costs consisted of Renewables Obligation, Feed-in Tariffs, Contracts for Difference, Capacity Market, and Climate Change Levy. For the financial year 2022-23 policy costs are expected to be 0.0365 £/kWh. It is expected that they will increase to up to 0.0470 £/kWh in the next 5 years.
A76: Network Costs | C76: £/kWh | D76: In the case of PPAs, off-takers will be charged network costs. These will vary based on the geographical area in which the off-taker is located. As of November 2022, the network costs consisted of Transmission network costs, Distribution network costs, System balancing (BSUoS), and Assistance for Areas with High Electricity Distribution Costs (AAHEDC). For the financial year 2022-23, the average network costs are expected to be 0.03£/kWh. It is expected that in the next 5 years network costs will increase to up to 0.045 - 0.05£/kWh in the most congested regions. N.B. Network costs should not be confused with Connection costs. The latter refers to the cost of connecting assets to the network, while "Network costs" refers to the network's operational costs paid by all end-users.
A77: REGO Price | C77: £/kWh | D77: Renewable Energy Guarantees of Origin issued by OFGEM for every 1MWh of renewable power produced by a generator. Roughly 0.004 £/kWh (updated Nov. 2022). The tool assumes that REGOs are sold to the off-taker. In cases where the generator and off-taker are the same entity (e.g. a local authority sleeving power to its own buildings), the REGO price is not relevant.
A79: Funding
A80: Item | B80: Value | C80: Unit | D80: Legend
A81: Grant* | C81: % | D81: Provide a number as a percentage of total CAPEX. The tool will assume that the grant is provided as a lump sum in year 0.
A82: Discount rate* | C82: per year | D82: Default value from treasury Green Book (3.5%) - last accessed on 03/10/2022
A83: Interest rate - Annuity Loan | C83: per year | D83: If this value has not been provided, the calculations will assume a 0% interest rate for this financing option. Interest rates for PWLB are accessible here: https://www.dmo.gov.uk/responsibilities/local-authority-lending/current-interest-rates/
A84: Interest rate - Equal Installments of Principal (EIP) Loan | C84: per year | D84: If this value has not been provided, the calculations will assume a 0% interest rate for this financing option. Interest rates for PWLB are accessible here: https://www.dmo.gov.uk/responsibilities/local-authority-lending/current-interest-rates/
A85: Interest rate - Maturity loan | C85: per year | D85: If this value has not been provided, the calculations will assume a 0% interest rate for this financing option. Interest rates for PWLB are accessible here: https://www.dmo.gov.uk/responsibilities/local-authority-lending/current-interest-rates/
A86: Interest rate - Salix 5 years + Annuity loan | C86: per year | D86: If this value has not been provided, the calculations will assume a 0% interest rate for this financing option. Interest rates for PWLB are accessible here: https://www.dmo.gov.uk/responsibilities/local-authority-lending/current-interest-rates/
A87: Loan term | C87: years | D87: The loan term should not be longer than the economic life which is constrained to maximum of 30 years

Sheet Input settings
B2: Input Settings
B4: On this page the user can select which data sources should be used and which analysis should be run
B9: Basic | BL9: 0
B10: Site reference | F10: Select a site from the drop-down menu. The site will have the same name as the sheet in which data is contained | BL10: 0
B11: Revenue Model | F11: Select the ownership model for the given site | BJ11: 0 | BK11: 0 | BL11: 0 | BM11: 0
B12: Which is the initial year 0 for the project? | F12: This corresponds to the reference year, "Year 0". Year 0 is when the system is built and paid for. The tool assumes that electricity will start being produced in year 1. | BJ12: 0 | BK12: 0 | BL12: 0 | BM12: 0
B13: Data source for electricity import price | F13: Select: "Green Book" to use inflation-adjusted values from Green Book tables; "User Curve" to use a user-defined curve (Sheet "User Curve")
B14: Data source for electricity export price | F14: Select: "30% of Green Book retail price" to set the export price equal to 30% of the inflation-adjusted retail electricity price given in the Green Book tables; "User Curve" to use a user-defined curve (Sheet "User Curve"). NB: For a matter of consistency, it is advised to use the same source for import and export prices
B16: Project Financing
B17: Include Grant? | F17: Calculations can be performed without taking into account the grant defined in the input sheets
B18: How to fund CAPEX not covered by the grant? | F18: Select the source of finance for the project costs not covered by the grant (interest rates are provided in input sheets).
B19: Include feasibility study costs in project CAPEX? | F19: Calculations can be performed without taking into account the cost for the feasibility study (value provided in input sheet)
B21: Additional PPA settings
B22: Which stakeholder do you represent? | F22: This toggle is relevant only for Revenue models "Sleeved PPAs" and "Private wire". The user has to select which financial position that should be modelled. The Dashboard, Sensitivity Analyses Results, and financial option will display results for the selected stakeholder.
B23: Calculate the commodity component of the PPA maximising Off-taker's savings, while ensuring the minimum IRR for the generator? | F23: This toggle is relevant only for Revenue models "Sleeved PPAs" and "Private wire". The user can decide if to calculate the component of the PPA paid to the asset owner/generator based on a minimum IRR for the generator. The code will maximise Off-taker's savings by respecting the minimum IRR for the generator. If "No" is selected, the tool will use the default rate value set in the site's input sheet.
B24: Minimum IRR for generator | C24: 0.05 | F24: Minimum IRR for the generator is used only if the previous toggle is set to "yes".
B25: Calculate the commodity component of the PPA maximising IRR for the generator, while ensuring the minimum NPV for the off-taker? | F25: This toggle is relevant only for Revenue models "Sleeved PPAs" and "Private wire". The user can decide if to calculate the component of the PPA paid to the asset owner/generator based on a minimum NPV for the off-taker. The code will maximise the IRR for the generator by respecting the minimum NPV for the off-taker. If "No" is selected, the tool will use the default rate value set in the site's input sheet.
B26: Minimum NPV for the off-taker | C26: 700000 | F26: Minimum NPV for the off-taker is used only if the previous toggle is set to "yes"
B29: If you want to set customised values for electricity prices and inflation rate forecasts, click on the arrow or go to the "User Curve" sheet. Then, return to this sheet.
B30: To review the Green Book data tables click on the shortcut on the side or go to the "Green Book Tables" sheet. Then return to this sheet.
B32: Input Sensitivity Analyses
B33: The tool performs two sensitivity analyses.
B34: The first tests several CAPEX variations to assess the impact of higher costs compared to the original feasibility study.
B35: The second tests different levels of self-consumption. In the case of "Sleeved PPA", self-consumption refers to the electricity sleeved to the off-taker. In any case, electricity that is not self-consumed or sleeved is considered "exported".
B36: Both analyses are performed three times using different electricity price scenarios (low, central, high)
B37: For the electricity price scenarios (low, central, high), If Green Book has been selected as the data source, the sensitivity analyses will use Green Book values. Otherwise, "User Curve" values are used.
B39: CAPEX Sensitivity Analysis | H39: Self-consumption Sensitivity Analysis
B40: Please, provide 5 values for testing the impact of a change in CAPEX on the key investment parameters | H40: Please Provide 4 values for testing the impact of a change in self-consumption on the key investment parameters
B41: For clarity of results provide the numbers in increasing or decreasing order. | H41: For clarity of results provide the numbers in increasing or decreasing order.
B42: The values need to be provided as a % increase or decrease to be applied to the baseline CAPEX. | H42: The values need to be provided as a % of the total expected annual yield.
B43: For instance, if the baseline CAPEX is £600,000, a scenario "-50%" will assume a CAPEX of £300,000. | H43: For instance, 80% = 80% of the energy produced will be self-consumed and 20% exported
B44: On the other hand a scenario "50%" will assume a CAPEX of £900,000.
B45: The CAPEX sensitivity calculation code always assumes that no grant is provided, even if the previous toogle "Include Grant?" is set to "Yes" | H45: If the setting "Include Grant" is set to "Yes", the self-consumption sensitivity analysis assumes that x% of CAPEX is covered by a grant as provided in the site's input sheet.
B46: Therefore, to simulate the effect of different grant levels, the user can provide several negative CAPEX variations. | H46: If in the site's input sheet a grant covers 0% of the project, the results of the self-consumption sensitivity analysis will not include any grant.
B47: For instance, running an analysis with a grant of 45% is equivalent to a scenario "-45%". | H47: If the setting "Include Grant" is set to "No", the results of the self-consumption sensitivity analysis will not include any grant.
B48: The values £/kWp are calculated automatically.
B49: If the user has set "Which stakeholder do you represent?" to "off-taker" CAPEX sensitivity will not be performed
B51: =IF(Lists_role=2,"CAPEX Sensitivity is not relevant for the selected stakeholder","CAPEX Sensitivity") -> CAPEX Sensitivity | H51: Self-consumption sensitivity
C52: CAPEX Variation | D52: =IF(Lists_role=2,"","Equivalent specific price per kWp (£/kWp)") -> Equivalent specific price per kWp (£/kWp) | I52: =IF(Lists_revenue=1, "% of energy used for self-consumption",IF(Lists_role=2," Electricity procured through PPA (baseline 100%)","Electricity exported through PPA")) -> % of energy used for self-consumption
B53: Value 1 | C53: -0.46 | D53: =IF(Lists_role=2,"",Lists!$Q$4*(1+C53)) -> 640.2857143 | H53: Value 1 | I53: 0.9
B54: Value 2 | C54: -0.2 | D54: =IF(Lists_role=2,"",Lists!$Q$4*(1+C54)) -> 948.5714286 | H54: Value 2 | I54: 0.8
B55: Value 3 | C55: 0 | D55: =IF(Lists_role=2,"",Lists!$Q$4*(1+C55)) -> 1185.714286 | H55: Value 3 | I55: 0.7
B56: Value 4 | C56: 0.2 | D56: =IF(Lists_role=2,"",Lists!$Q$4*(1+C56)) -> 1422.857143 | H56: Value 4 | I56: 0.6
B57: Value 5 | C57: 0.5 | D57: =IF(Lists_role=2,"",Lists!$Q$4*(1+C57)) -> 1778.571429
B62: NB: if the component of the PPA paid to the generator is calculated by the tool based on a target IRR, the user should expect a running time between 30 seconds and 1.5 minutes

Sheet User Curve
E2: Input: User-defined electricity price scenarios and inflation rates
B3: What can you do on this sheet?
B4: On this sheet, the user can provide forecasts for electricity price curves and inflation rates.
B5: Reference sources for pre-filled values are available at the bottom of this page.
B6: Remember that to use the price values provided in this sheet, the data source in "Input Settings" (previous sheet) will have to be set on "User Curve"
B8: Retail Electricity Price - Low/Baseline/High
B9: The columns "Retail Electricity Price - Low/Baseline/High" contain forecasts for the retail electricity price (paid for the electricity consumed).
B10: The headings "Retail Electricity Price - Low/Baseline/High" refer to 3 different forecast scenarios ranging from low to high prices.
B11: Modify the values in the columns: "Retail Electricity Price - Low/Baseline/High" to provide new electricity price forecasts.
B13: Price for electricity exported or resold...
B14: The columns with the heading "Price for electricity exported or resold..." contain forecasts for the price paid for excess electricity exported to the grid.
B15: By default, the export electricity prices are assumed to be 30% of the Retail Electricity Price.
B16: This assumption is used for both user-defined curves and Green Book curves, depending on the user's selection in the previous page
B17: The column "Price for electricity exported or resold based on user-defined curve " can be modified with whatever values the user wants to use for the calculations.
B19: The column: "CPI yearly Inflation" can be modified to provide new inflation rates.
B21: More information on the assumptions of default data is provided at the bottom of this table.
B22: Track your assumptions at the bottom of the table, by editing the cells. These will be automatically printed in the Dashboard.
B23: To run the calculations, return to "Input Settings".
M26: Green Book Values for Sensitivity Analysis
B27: Year | C27: Retail Electricity Price - Low [1] | D27: Retail Electricity Price - Baseline [2] | E27: Retail Electricity Price - High [1] | F27: Price for electricity exported or resold based on user-defined curve [3] | G27: Price for electrcity exported or resold using Green Book as reference [4] | H27: CPI yearly Infaltion [5] | I27: Comulative inflation rate 2022=1 | J27: Cumulative inflation rate Reference year=1 | M27: ='Green Book Tables'!P15 -> Low | N27: ='Green Book Tables'!S15 -> Central | O27: ='Green Book Tables'!V15 -> High
C28: p/kWh | D28: p/kWh | E28: p/kWh | F28: p/kWh | G28: p/kWh | H28: % | M28: p/kWh | N28: p/kWh | O28: p/kWh
B29: 2010 | C29: 9.551991582 | D29: 9.551991582 | E29: 9.551991582 | F29: =D29*0.3 -> 2.865597475 | G29: =N29*0.3 -> 3.024373167 | H29: 0.033 | M29: =INDEX('Green Book Tables'!$Q$17:$Q$107,MATCH('User Curve'!$B29,'Green Book Tables'!$O$17:$O$107,0)) -> 10.08124389 | N29: =INDEX('Green Book Tables'!$T$17:$T$107,MATCH('User Curve'!$B29,'Green Book Tables'!$O$17:$O$107,0)) -> 10.08124389 | O29: =INDEX('Green Book Tables'!$W$17:$W$107,MATCH('User Curve'!$B29,'Green Book Tables'!$O$17:$O$107,0)) -> 10.08124389 | BK29: 0
B30: 2011 | C30: 9.809447361 | D30: 9.809447361 | E30: 9.809447361 | F30: =D30*0.3 -> 2.942834208 | G30: =N30*0.3 -> 3.157183002 | H30: 0.0446 | M30: =INDEX('Green Book Tables'!$Q$17:$Q$107,MATCH('User Curve'!$B30,'Green Book Tables'!$O$17:$O$107,0)) -> 10.52394334 | N30: =INDEX('Green Book Tables'!$T$17:$T$107,MATCH('User Curve'!$B30,'Green Book Tables'!$O$17:$O$107,0)) -> 10.52394334 | O30: =INDEX('Green Book Tables'!$W$17:$W$107,MATCH('User Curve'!$B30,'Green Book Tables'!$O$17:$O$107,0)) -> 10.52394334 | BK30: 0
B31: 2012 | C31: 10.48624595 | D31: 10.48624595 | E31: 10.48624595 | F31: 3.145873786 | G31: 3.355528368 | H31: 0.0283 | M31: =INDEX('Green Book Tables'!$Q$17:$Q$107,MATCH('User Curve'!$B31,'Green Book Tables'!$O$17:$O$107,0)) -> 11.18509456 | N31: =INDEX('Green Book Tables'!$T$17:$T$107,MATCH('User Curve'!$B31,'Green Book Tables'!$O$17:$O$107,0)) -> 11.18509456 | O31: =INDEX('Green Book Tables'!$W$17:$W$107,MATCH('User Curve'!$B31,'Green Book Tables'!$O$17:$O$107,0)) -> 11.18509456
B32: 2013 | C32: 11.05407061 | D32: 11.05407061 | E32: 11.05407061 | F32: 3.316221184 | G32: 3.509411414 | H32: 0.0257 | M32: =INDEX('Green Book Tables'!$Q$17:$Q$107,MATCH('User Curve'!$B32,'Green Book Tables'!$O$17:$O$107,0)) -> 11.69803805 | N32: =INDEX('Green Book Tables'!$T$17:$T$107,MATCH('User Curve'!$B32,'Green Book Tables'!$O$17:$O$107,0)) -> 11.69803805 | O32: =INDEX('Green Book Tables'!$W$17:$W$107,MATCH('User Curve'!$B32,'Green Book Tables'!$O$17:$O$107,0)) -> 11.69803805
B33: 2014 | C33: 11.42736493 | D33: 11.42736493 | E33: 11.42736493 | F33: 3.42820948 | G33: 3.676346471 | H33: 0.0146 | M33: =INDEX('Green Book Tables'!$Q$17:$Q$107,MATCH('User Curve'!$B33,'Green Book Tables'!$O$17:$O$107,0)) -> 12.25448824 | N33: =INDEX('Green Book Tables'!$T$17:$T$107,MATCH('User Curve'!$B33,'Green Book Tables'!$O$17:$O$107,0)) -> 12.25448824 | O33: =INDEX('Green Book Tables'!$W$17:$W$107,MATCH('User Curve'!$B33,'Green Book Tables'!$O$17:$O$107,0)) -> 12.25448824
B34: 2015 | C34: 11.82127988 | D34: 11.82127988 | E34: 11.82127988 | F34: 3.546383963 | G34: 3.802904528 | H34: 0.0004 | M34: =INDEX('Green Book Tables'!$Q$17:$Q$107,MATCH('User Curve'!$B34,'Green Book Tables'!$O$17:$O$107,0)) -> 12.67634843 | N34: =INDEX('Green Book Tables'!$T$17:$T$107,MATCH('User Curve'!$B34,'Green Book Tables'!$O$17:$O$107,0)) -> 12.67634843 | O34: =INDEX('Green Book Tables'!$W$17:$W$107,MATCH('User Curve'!$B34,'Green Book Tables'!$O$17:$O$107,0)) -> 12.67634843
B35: 2016 | C35: 11.38421734 | D35: 11.38421734 | E35: 11.38421734 | F35: 3.415265202 | G35: 3.656363371 | H35: 0.0066 | M35: =INDEX('Green Book Tables'!$Q$17:$Q$107,MATCH('User Curve'!$B35,'Green Book Tables'!$O$17:$O$107,0)) -> 12.1878779 | N35: =INDEX('Green Book Tables'!$T$17:$T$107,MATCH('User Curve'!$B35,'Green Book Tables'!$O$17:$O$107,0)) -> 12.1878779 | O35: =INDEX('Green Book Tables'!$W$17:$W$107,MATCH('User Curve'!$B35,'Green Book Tables'!$O$17:$O$107,0)) -> 12.1878779
B36: 2017 | C36: 11.74318004 | D36: 11.74318004 | E36: 11.74318004 | F36: 3.522954012 | G36: 3.73423357 | H36: 0.0268 | M36: =INDEX('Green Book Tables'!$Q$17:$Q$107,MATCH('User Curve'!$B36,'Green Book Tables'!$O$17:$O$107,0)) -> 12.44744523 | N36: =INDEX('Green Book Tables'!$T$17:$T$107,MATCH('User Curve'!$B36,'Green Book Tables'!$O$17:$O$107,0)) -> 12.44744523 | O36: =INDEX('Green Book Tables'!$W$17:$W$107,MATCH('User Curve'!$B36,'Green Book Tables'!$O$17:$O$107,0)) -> 12.44744523
B37: 2018 | C37: 12.64973823 | D37: 12.64973823 | E37: 12.64973823 | F37: 3.79492147 | G37: 3.971592182 | H37: 0.0248 | M37: =INDEX('Green Book Tables'!$Q$17:$Q$107,MATCH('User Curve'!$B37,'Green Book Tables'!$O$17:$O$107,0)) -> 13.23864061 | N37: =INDEX('Green Book Tables'!$T$17:$T$107,MATCH('User Curve'!$B37,'Green Book Tables'!$O$17:$O$107,0)) -> 13.23864061 | O37: =INDEX('Green Book Tables'!$W$17:$W$107,MATCH('User Curve'!$B37,'Green Book Tables'!$O$17:$O$107,0)) -> 13.23864061
B38: 2019 | C38: 13.43367164 | D38: 13.43367164 | E38: 13.43367164 | F38: 4.030101491 | G38: 4.057458318 | H38: 0.0179 | M38: =INDEX('Green Book Tables'!$Q$17:$Q$107,MATCH('User Curve'!$B38,'Green Book Tables'!$O$17:$O$107,0)) -> 13.52486106 | N38: =INDEX('Green Book Tables'!$T$17:$T$107,MATCH('User Curve'!$B38,'Green Book Tables'!$O$17:$O$107,0)) -> 13.52486106 | O38: =INDEX('Green Book Tables'!$W$17:$W$107,MATCH('User Curve'!$B38,'Green Book Tables'!$O$17:$O$107,0)) -> 13.52486106
B39: 2020 | C39: 14.5102403 | D39: 14.5102403 | E39: 14.5102403 | F39: 4.353072089 | G39: 4.001738859 | H39: 0.0085 | M39: =INDEX('Green Book Tables'!$Q$17:$Q$107,MATCH('User Curve'!$B39,'Green Book Tables'!$O$17:$O$107,0)) -> 13.33912953 | N39: =INDEX('Green Book Tables'!$T$17:$T$107,MATCH('User Curve'!$B39,'Green Book Tables'!$O$17:$O$107,0)) -> 13.33912953 | O39: =INDEX('Green Book Tables'!$W$17:$W$107,MATCH('User Curve'!$B39,'Green Book Tables'!$O$17:$O$107,0)) -> 13.33912953
B40: 2021 | C40: 15.01746712 | D40: 15.01746712 | E40: 15.01746712 | F40: 4.505240135 | G40: 4.314699131 | H40: 0.0259 | M40: =INDEX('Green Book Tables'!$Q$17:$Q$107,MATCH('User Curve'!$B40,'Green Book Tables'!$O$17:$O$107,0)) -> 14.38233044 | N40: =INDEX('Green Book Tables'!$T$17:$T$107,MATCH('User Curve'!$B40,'Green Book Tables'!$O$17:$O$107,0)) -> 14.38233044 | O40: =INDEX('Green Book Tables'!$W$17:$W$107,MATCH('User Curve'!$B40,'Green Book Tables'!$O$17:$O$107,0)) -> 14.38233044
B41: 2022 | C41: 35.13461085 | D41: 36.34519346 | E41: 37.19324472 | F41: 10.90355804 | G41: 7.99020782 | H41: 0.105 | I41: 1 | J41: =I41/INDEX(I$29:I$119,MATCH('Energy Calculations'!$F$6,'User Curve'!$B$29:$B$119,0)) -> 0.885026241 | M41: =INDEX('Green Book Tables'!$Q$17:$Q$107,MATCH('User Curve'!$B41,'Green Book Tables'!$O$17:$O$107,0))*$J41 -> 19.26765292 | N41: =INDEX('Green Book Tables'!$T$17:$T$107,MATCH('User Curve'!$B41,'Green Book Tables'!$O$17:$O$107,0))*J41 -> 26.63402607 | O41: =INDEX('Green Book Tables'!$W$17:$W$107,MATCH('User Curve'!$B41,'Green Book Tables'!$O$17:$O$107,0))*J41 -> 46.33422089
B42: 2023 | C42: 49.07974166 | D42: 52.47036268 | E42: 57.41793507 | F42: 15.74110881 | G42: 8.439719754 | H42: 0.097 | I42: =I41*(1+H42) -> 1.097 | J42: =J41*(1+H42) -> 0.9708737864 | M42: =INDEX('Green Book Tables'!$Q$17:$Q$107,MATCH('User Curve'!$B42,'Green Book Tables'!$O$17:$O$107,0))*$J42 -> 14.6827021 | N42: =INDEX('Green Book Tables'!$T$17:$T$107,MATCH('User Curve'!$B42,'Green Book Tables'!$O$17:$O$107,0))*J42 -> 28.13239918 | O42: =INDEX('Green Book Tables'!$W$17:$W$107,MATCH('User Curve'!$B42,'Green Book Tables'!$O$17:$O$107,0))*J42 -> 67.83980165
B43: 2024 | C43: 41.35232945 | D43: 44.8954535 | E43: 50.07561602 | F43: 13.46863605 | G43: 6.908608473 | H43: 0.03 | I43: =I42*(1+H43) -> 1.12991 | J43: =J42*(1+H43) -> 1 | M43: =INDEX('Green Book Tables'!$Q$17:$Q$107,MATCH('User Curve'!$B43,'Green Book Tables'!$O$17:$O$107,0))*$J43 -> 13.46142919 | N43: =INDEX('Green Book Tables'!$T$17:$T$107,MATCH('User Curve'!$B43,'Green Book Tables'!$O$17:$O$107,0))*J43 -> 23.02869491 | O43: =INDEX('Green Book Tables'!$W$17:$W$107,MATCH('User Curve'!$B43,'Green Book Tables'!$O$17:$O$107,0))*J43 -> 52.09193387
B44: 2025 | C44: 32.31735026 | D44: 36.1951295 | E44: 40.27727131 | F44: 10.85853885 | G44: 4.156785213 | H44: 0.004 | I44: 1.13442964 | J44: =J43*(1+H44) -> 1.004 | M44: =INDEX('Green Book Tables'!$Q$17:$Q$107,MATCH('User Curve'!$B44,'Green Book Tables'!$O$17:$O$107,0))*$J44 -> 12.46270801 | N44: =INDEX('Green Book Tables'!$T$17:$T$107,MATCH('User Curve'!$B44,'Green Book Tables'!$O$17:$O$107,0))*J44 -> 13.85595071 | O44: =INDEX('Green Book Tables'!$W$17:$W$107,MATCH('User Curve'!$B44,'Green Book Tables'!$O$17:$O$107,0))*J44 -> 16.91856215
B45: 2026 | C45: 27.92274831 | D45: 31.82315298 | E45: 35.03280927 | F45: 9.546945893 | G45: 4.05790638 | H45: 0.02 | I45: 1.157118233 | J45: =J44*(1+H45) -> 1.02408 | M45: =INDEX('Green Book Tables'!$Q$17:$Q$107,MATCH('User Curve'!$B45,'Green Book Tables'!$O$17:$O$107,0))*$J45 -> 12.75589381 | N45: =INDEX('Green Book Tables'!$T$17:$T$107,MATCH('User Curve'!$B45,'Green Book Tables'!$O$17:$O$107,0))*J45 -> 13.5263546 | O45: =INDEX('Green Book Tables'!$W$17:$W$107,MATCH('User Curve'!$B45,'Green Book Tables'!$O$17:$O$107,0))*J45 -> 14.66292431
B46: 2027 | C46: 25.3658895 | D46: 29.01253757 | E46: 32.4627241 | F46: 8.703761272 | G46: 4.074566146 | H46: 0.02 | I46: 1.180260597 | J46: =J45*(1+H46) -> 1.0445616 | M46: =INDEX('Green Book Tables'!$Q$17:$Q$107,MATCH('User Curve'!$B46,'Green Book Tables'!$O$17:$O$107,0))*$J46 -> 12.9017553 | N46: =INDEX('Green Book Tables'!$T$17:$T$107,MATCH('User Curve'!$B46,'Green Book Tables'!$O$17:$O$107,0))*J46 -> 13.58188715 | O46: =INDEX('Green Book Tables'!$W$17:$W$107,MATCH('User Curve'!$B46,'Green Book Tables'!$O$17:$O$107,0))*J46 -> 14.644677
B47: 2028 | C47: 24.31527759 | D47: 27.96027642 | E47: 32.25051154 | F47: 8.388082925 | G47: 4.052222448 | H47: 0.02 | I47: 1.203865809 | J47: 1.065452832 | M47: =INDEX('Green Book Tables'!$Q$17:$Q$107,MATCH('User Curve'!$B47,'Green Book Tables'!$O$17:$O$107,0))*$J47 -> 12.93883513 | N47: =INDEX('Green Book Tables'!$T$17:$T$107,MATCH('User Curve'!$B47,'Green Book Tables'!$O$17:$O$107,0))*J47 -> 13.50740816 | O47: =INDEX('Green Book Tables'!$W$17:$W$107,MATCH('User Curve'!$B47,'Green Book Tables'!$O$17:$O$107,0))*J47 -> 14.56436999
B48: 2029 | C48: 24.33024211 | D48: 27.73375613 | E48: 32.56999953 | F48: 8.320126838 | G48: 4.171140008 | H48: 0.02 | I48: 1.227943126 | J48: 1.086761889 | M48: =INDEX('Green Book Tables'!$Q$17:$Q$107,MATCH('User Curve'!$B48,'Green Book Tables'!$O$17:$O$107,0))*$J48 -> 13.3185415 | N48: =INDEX('Green Book Tables'!$T$17:$T$107,MATCH('User Curve'!$B48,'Green Book Tables'!$O$17:$O$107,0))*J48 -> 13.90380003 | O48: =INDEX('Green Book Tables'!$W$17:$W$107,MATCH('User Curve'!$B48,'Green Book Tables'!$O$17:$O$107,0))*J48 -> 14.99177973
B49: 2030 | C49: 23.29420652 | D49: 27.24887922 | E49: 32.27372497 | F49: 8.174663765 | G49: 4.23360425 | H49: 0.02 | I49: 1.252501988 | J49: 1.108497126 | M49: =INDEX('Green Book Tables'!$Q$17:$Q$107,MATCH('User Curve'!$B49,'Green Book Tables'!$O$17:$O$107,0))*$J49 -> 13.5179912 | N49: =INDEX('Green Book Tables'!$T$17:$T$107,MATCH('User Curve'!$B49,'Green Book Tables'!$O$17:$O$107,0))*J49 -> 14.11201417 | O49: =INDEX('Green Book Tables'!$W$17:$W$107,MATCH('User Curve'!$B49,'Green Book Tables'!$O$17:$O$107,0))*J49 -> 15.21628673
B50: 2031 | C50: 22.95807194 | D50: 27.7036581 | E50: 32.54902084 | F50: 8.311097431 | G50: 4.306481909 | H50: 0.02 | I50: 1.277552028 | J50: 1.130667069 | M50: =INDEX('Green Book Tables'!$Q$17:$Q$107,MATCH('User Curve'!$B50,'Green Book Tables'!$O$17:$O$107,0))*$J50 -> 13.75069116 | N50: =INDEX('Green Book Tables'!$T$17:$T$107,MATCH('User Curve'!$B50,'Green Book Tables'!$O$17:$O$107,0))*J50 -> 14.3549397 | O50: =INDEX('Green Book Tables'!$W$17:$W$107,MATCH('User Curve'!$B50,'Green Book Tables'!$O$17:$O$107,0))*J50 -> 15.47822131
B51: 2032 | C51: 23.41723338 | D51: 28.25773126 | E51: 33.20000126 | F51: 8.477319379 | G51: 4.353095971 | H51: 0.02 | I51: 1.303103068 | J51: 1.15328041 | M51: =INDEX('Green Book Tables'!$Q$17:$Q$107,MATCH('User Curve'!$B51,'Green Book Tables'!$O$17:$O$107,0))*$J51 -> 13.89953089 | N51: =INDEX('Green Book Tables'!$T$17:$T$107,MATCH('User Curve'!$B51,'Green Book Tables'!$O$17:$O$107,0))*J51 -> 14.5103199 | O51: =INDEX('Green Book Tables'!$W$17:$W$107,MATCH('User Curve'!$B51,'Green Book Tables'!$O$17:$O$107,0))*J51 -> 15.6457601
B52: 2033 | C52: 23.88557804 | D52: 28.82288589 | E52: 33.86400128 | F52: 8.646865767 | G52: 4.45236216 | H52: 0.02 | I52: 1.32916513 | J52: 1.176346019 | M52: =INDEX('Green Book Tables'!$Q$17:$Q$107,MATCH('User Curve'!$B52,'Green Book Tables'!$O$17:$O$107,0))*$J52 -> 14.21649 | N52: =INDEX('Green Book Tables'!$T$17:$T$107,MATCH('User Curve'!$B52,'Green Book Tables'!$O$17:$O$107,0))*J52 -> 14.8412072 | O52: =INDEX('Green Book Tables'!$W$17:$W$107,MATCH('User Curve'!$B52,'Green Book Tables'!$O$17:$O$107,0))*J52 -> 16.0025395
B53: 2034 | C53: 24.36328961 | D53: 29.39934361 | E53: 34.54128131 | F53: 8.819803082 | G53: 4.682991799 | H53: 0.02 | I53: 1.355748432 | J53: 1.199872939 | M53: =INDEX('Green Book Tables'!$Q$17:$Q$107,MATCH('User Curve'!$B53,'Green Book Tables'!$O$17:$O$107,0))*$J53 -> 14.9528955 | N53: =INDEX('Green Book Tables'!$T$17:$T$107,MATCH('User Curve'!$B53,'Green Book Tables'!$O$17:$O$107,0))*J53 -> 15.60997266 | O53: =INDEX('Green Book Tables'!$W$17:$W$107,MATCH('User Curve'!$B53,'Green Book Tables'!$O$17:$O$107,0))*J53 -> 16.83146127
B54: 2035 | C54: 24.8505554 | D54: 29.98733048 | E54: 35.23210693 | F54: 8.996199144 | G54: 4.799638736 | H54: 0.02 | I54: 1.382863401 | J54: 1.223870398 | M54: =INDEX('Green Book Tables'!$Q$17:$Q$107,MATCH('User Curve'!$B54,'Green Book Tables'!$O$17:$O$107,0))*$J54 -> 15.32535172 | N54: =INDEX('Green Book Tables'!$T$17:$T$107,MATCH('User Curve'!$B54,'Green Book Tables'!$O$17:$O$107,0))*J54 -> 15.99879579 | O54: =INDEX('Green Book Tables'!$W$17:$W$107,MATCH('User Curve'!$B54,'Green Book Tables'!$O$17:$O$107,0))*J54 -> 17.25071001
B55: 2036 | C55: 25.34756651 | D55: 30.58707709 | E55: 35.93674907 | F55: 9.176123127 | G55: 4.904773827 | H55: 0.02 | I55: 1.410520669 | J55: 1.248347806 | M55: =INDEX('Green Book Tables'!$Q$17:$Q$107,MATCH('User Curve'!$B55,'Green Book Tables'!$O$17:$O$107,0))*$J55 -> 15.66105037 | N55: =INDEX('Green Book Tables'!$T$17:$T$107,MATCH('User Curve'!$B55,'Green Book Tables'!$O$17:$O$107,0))*J55 -> 16.34924609 | O55: =INDEX('Green Book Tables'!$W$17:$W$107,MATCH('User Curve'!$B55,'Green Book Tables'!$O$17:$O$107,0))*J55 -> 17.62858323
B56: 2037 | C56: 25.85451784 | D56: 31.19881863 | E56: 36.65548405 | F56: 9.359645589 | G56: 4.938843859 | H56: 0.02 | I56: 1.438731082 | J56: 1.273314762 | M56: =INDEX('Green Book Tables'!$Q$17:$Q$107,MATCH('User Curve'!$B56,'Green Book Tables'!$O$17:$O$107,0))*$J56 -> 15.76983673 | N56: =INDEX('Green Book Tables'!$T$17:$T$107,MATCH('User Curve'!$B56,'Green Book Tables'!$O$17:$O$107,0))*J56 -> 16.46281286 | O56: =INDEX('Green Book Tables'!$W$17:$W$107,MATCH('User Curve'!$B56,'Green Book Tables'!$O$17:$O$107,0))*J56 -> 17.75103667
B57: 2038 | C57: 26.37160819 | D57: 31.822795 | E57: 37.38859373 | F57: 9.546838501 | G57: 5.078868645 | H57: 0.02 | I57: 1.467505704 | J57: 1.298781057 | M57: =INDEX('Green Book Tables'!$Q$17:$Q$107,MATCH('User Curve'!$B57,'Green Book Tables'!$O$17:$O$107,0))*$J57 -> 16.21693895 | N57: =INDEX('Green Book Tables'!$T$17:$T$107,MATCH('User Curve'!$B57,'Green Book Tables'!$O$17:$O$107,0))*J57 -> 16.92956215 | O57: =INDEX('Green Book Tables'!$W$17:$W$107,MATCH('User Curve'!$B57,'Green Book Tables'!$O$17:$O$107,0))*J57 -> 18.25430934
B58: 2039 | C58: 26.89904036 | D58: 32.4592509 | E58: 38.13636561 | F58: 9.737775271 | G58: 5.168147786 | H58: 0.02 | I58: 1.496855818 | J58: 1.324756678 | M58: =INDEX('Green Book Tables'!$Q$17:$Q$107,MATCH('User Curve'!$B58,'Green Book Tables'!$O$17:$O$107,0))*$J58 -> 16.5020092 | N58: =INDEX('Green Book Tables'!$T$17:$T$107,MATCH('User Curve'!$B58,'Green Book Tables'!$O$17:$O$107,0))*J58 -> 17.22715929 | O58: =INDEX('Green Book Tables'!$W$17:$W$107,MATCH('User Curve'!$B58,'Green Book Tables'!$O$17:$O$107,0))*J58 -> 18.57519361
B59: 2040 | C59: 27.43702116 | D59: 33.10843592 | E59: 38.89909292 | F59: 9.932530776 | G59: 5.393361431 | H59: 0.02 | I59: 1.526792935 | J59: 1.351251812 | M59: =INDEX('Green Book Tables'!$Q$17:$Q$107,MATCH('User Curve'!$B59,'Green Book Tables'!$O$17:$O$107,0))*$J59 -> 17.22112131 | N59: =INDEX('Green Book Tables'!$T$17:$T$107,MATCH('User Curve'!$B59,'Green Book Tables'!$O$17:$O$107,0))*J59 -> 17.97787144 | O59: =INDEX('Green Book Tables'!$W$17:$W$107,MATCH('User Curve'!$B59,'Green Book Tables'!$O$17:$O$107,0))*J59 -> 19.38464938
B60: 2041 | C60: 27.98576159 | D60: 33.77060464 | E60: 39.67707478 | F60: 10.13118139 | G60: 5.410116917 | H60: 0.02 | I60: 1.557328793 | J60: 1.378276848 | M60: =INDEX('Green Book Tables'!$Q$17:$Q$107,MATCH('User Curve'!$B60,'Green Book Tables'!$O$17:$O$107,0))*$J60 -> 17.27462194 | N60: =INDEX('Green Book Tables'!$T$17:$T$107,MATCH('User Curve'!$B60,'Green Book Tables'!$O$17:$O$107,0))*J60 -> 18.03372306 | O60: =INDEX('Green Book Tables'!$W$17:$W$107,MATCH('User Curve'!$B60,'Green Book Tables'!$O$17:$O$107,0))*J60 -> 19.44487142
B61: 2042 | C61: 28.54547682 | D61: 34.44601673 | E61: 40.47061628 | F61: 10.33380502 | G61: 5.510211018 | H61: 0.02 | I61: 1.588475369 | J61: 1.405842385 | M61: =INDEX('Green Book Tables'!$Q$17:$Q$107,MATCH('User Curve'!$B61,'Green Book Tables'!$O$17:$O$107,0))*$J61 -> 17.5942246 | N61: =INDEX('Green Book Tables'!$T$17:$T$107,MATCH('User Curve'!$B61,'Green Book Tables'!$O$17:$O$107,0))*J61 -> 18.36737006 | O61: =INDEX('Green Book Tables'!$W$17:$W$107,MATCH('User Curve'!$B61,'Green Book Tables'!$O$17:$O$107,0))*J61 -> 19.80462647
B62: 2043 | C62: 29.11638635 | D62: 35.13493707 | E62: 41.2800286 | F62: 10.54048112 | G62: 5.669004042 | H62: 0.02 | I62: 1.620244876 | J62: 1.433959233 | M62: =INDEX('Green Book Tables'!$Q$17:$Q$107,MATCH('User Curve'!$B62,'Green Book Tables'!$O$17:$O$107,0))*$J62 -> 18.10125421 | N62: =INDEX('Green Book Tables'!$T$17:$T$107,MATCH('User Curve'!$B62,'Green Book Tables'!$O$17:$O$107,0))*J62 -> 18.89668014 | O62: =INDEX('Green Book Tables'!$W$17:$W$107,MATCH('User Curve'!$B62,'Green Book Tables'!$O$17:$O$107,0))*J62 -> 20.37535535
B63: 2044 | C63: 29.69871408 | D63: 35.83763581 | E63: 42.10562917 | F63: 10.75129074 | G63: 5.840913788 | H63: 0.02 | I63: 1.652649774 | J63: 1.462638417 | M63: =INDEX('Green Book Tables'!$Q$17:$Q$107,MATCH('User Curve'!$B63,'Green Book Tables'!$O$17:$O$107,0))*$J63 -> 18.6501658 | N63: =INDEX('Green Book Tables'!$T$17:$T$107,MATCH('User Curve'!$B63,'Green Book Tables'!$O$17:$O$107,0))*J63 -> 19.46971263 | O63: =INDEX('Green Book Tables'!$W$17:$W$107,MATCH('User Curve'!$B63,'Green Book Tables'!$O$17:$O$107,0))*J63 -> 20.99322793
B64: 2045 | C64: 30.29268836 | D64: 36.55438852 | E64: 42.94774176 | F64: 10.96631656 | G64: 5.938672101 | H64: 0.02 | I64: 1.685702769 | J64: 1.491891186 | M64: =INDEX('Green Book Tables'!$Q$17:$Q$107,MATCH('User Curve'!$B64,'Green Book Tables'!$O$17:$O$107,0))*$J64 -> 18.96231023 | N64: =INDEX('Green Book Tables'!$T$17:$T$107,MATCH('User Curve'!$B64,'Green Book Tables'!$O$17:$O$107,0))*J64 -> 19.79557367 | O64: =INDEX('Green Book Tables'!$W$17:$W$107,MATCH('User Curve'!$B64,'Green Book Tables'!$O$17:$O$107,0))*J64 -> 21.34458777
B65: 2046 | C65: 30.89854213 | D65: 37.2854763 | E65: 43.80669659 | F65: 11.18564289 | G65: 6.080362899 | H65: 0.02 | I65: 1.719416825 | J65: 1.521729009 | M65: =INDEX('Green Book Tables'!$Q$17:$Q$107,MATCH('User Curve'!$B65,'Green Book Tables'!$O$17:$O$107,0))*$J65 -> 19.41473206 | N65: =INDEX('Green Book Tables'!$T$17:$T$107,MATCH('User Curve'!$B65,'Green Book Tables'!$O$17:$O$107,0))*J65 -> 20.26787633 | O65: =INDEX('Green Book Tables'!$W$17:$W$107,MATCH('User Curve'!$B65,'Green Book Tables'!$O$17:$O$107,0))*J65 -> 21.85384836
B66: 2047 | C66: 31.51651297 | D66: 38.03118582 | E66: 44.68283052 | F66: 11.40935575 | G66: 6.168991948 | H66: 0.02 | I66: 1.753805161 | J66: 1.552163589 | M66: =INDEX('Green Book Tables'!$Q$17:$Q$107,MATCH('User Curve'!$B66,'Green Book Tables'!$O$17:$O$107,0))*$J66 -> 19.69772656 | N66: =INDEX('Green Book Tables'!$T$17:$T$107,MATCH('User Curve'!$B66,'Green Book Tables'!$O$17:$O$107,0))*J66 -> 20.56330649 | O66: =INDEX('Green Book Tables'!$W$17:$W$107,MATCH('User Curve'!$B66,'Green Book Tables'!$O$17:$O$107,0))*J66 -> 22.17239609
B67: 2048 | C67: 32.14684323 | D67: 38.79180954 | E67: 45.57648713 | F67: 11.63754286 | G67: 6.234480055 | H67: 0.02 | I67: 1.788881265 | J67: 1.583206861 | M67: =INDEX('Green Book Tables'!$Q$17:$Q$107,MATCH('User Curve'!$B67,'Green Book Tables'!$O$17:$O$107,0))*$J67 -> 19.90683152 | N67: =INDEX('Green Book Tables'!$T$17:$T$107,MATCH('User Curve'!$B67,'Green Book Tables'!$O$17:$O$107,0))*J67 -> 20.78160018 | O67: =INDEX('Green Book Tables'!$W$17:$W$107,MATCH('User Curve'!$B67,'Green Book Tables'!$O$17:$O$107,0))*J67 -> 22.40777138
B68: 2049 | C68: 32.7897801 | D68: 39.56764573 | E68: 46.48801688 | F68: 11.87029372 | G68: 6.307499634 | H68: 0.02 | I68: 1.82465889 | J68: 1.614870998 | M68: =INDEX('Green Book Tables'!$Q$17:$Q$107,MATCH('User Curve'!$B68,'Green Book Tables'!$O$17:$O$107,0))*$J68 -> 20.13998463 | N68: =INDEX('Green Book Tables'!$T$17:$T$107,MATCH('User Curve'!$B68,'Green Book Tables'!$O$17:$O$107,0))*J68 -> 21.02499878 | O68: =INDEX('Green Book Tables'!$W$17:$W$107,MATCH('User Curve'!$B68,'Green Book Tables'!$O$17:$O$107,0))*J68 -> 22.67021604
B69: 2050 | C69: 33.4455757 | D69: 40.35899864 | E69: 47.41777721 | F69: 12.10769959 | G69: 6.438101578 | H69: 0.02 | I69: 1.861152068 | J69: 1.647168418 | M69: =INDEX('Green Book Tables'!$Q$17:$Q$107,MATCH('User Curve'!$B69,'Green Book Tables'!$O$17:$O$107,0))*$J69 -> 20.5569995 | N69: =INDEX('Green Book Tables'!$T$17:$T$107,MATCH('User Curve'!$B69,'Green Book Tables'!$O$17:$O$107,0))*J69 -> 21.46033859 | O69: =INDEX('Green Book Tables'!$W$17:$W$107,MATCH('User Curve'!$B69,'Green Book Tables'!$O$17:$O$107,0))*J69 -> 23.13962143
B70: 2051 | C70: 34.11448721 | D70: 41.16617862 | E70: 48.36613276 | F70: 12.34985358 | G70: 6.566863609 | H70: 0.02 | I70: 1.898375109 | J70: 1.680111787 | M70: =INDEX('Green Book Tables'!$Q$17:$Q$107,MATCH('User Curve'!$B70,'Green Book Tables'!$O$17:$O$107,0))*$J70 -> 20.96813949 | N70: =INDEX('Green Book Tables'!$T$17:$T$107,MATCH('User Curve'!$B70,'Green Book Tables'!$O$17:$O$107,0))*J70 -> 21.88954536 | O70: =INDEX('Green Book Tables'!$W$17:$W$107,MATCH('User Curve'!$B70,'Green Book Tables'!$O$17:$O$107,0))*J70 -> 23.60241386
B71: 2052 | C71: 34.79677696 | D71: 41.98950219 | E71: 49.33345541 | F71: 12.59685066 | G71: 6.698200881 | H71: 0.02 | I71: 1.936342611 | J71: 1.713714023 | M71: =INDEX('Green Book Tables'!$Q$17:$Q$107,MATCH('User Curve'!$B71,'Green Book Tables'!$O$17:$O$107,0))*$J71 -> 21.38750228 | N71: =INDEX('Green Book Tables'!$T$17:$T$107,MATCH('User Curve'!$B71,'Green Book Tables'!$O$17:$O$107,0))*J71 -> 22.32733627 | O71: =INDEX('Green Book Tables'!$W$17:$W$107,MATCH('User Curve'!$B71,'Green Book Tables'!$O$17:$O$107,0))*J71 -> 24.07446213
B72: 2053 | C72: 35.4927125 | D72: 42.82929223 | E72: 50.32012452 | F72: 12.84878767 | G72: 6.832164899 | H72: 0.02 | I72: 1.975069463 | J72: 1.747988303 | M72: =INDEX('Green Book Tables'!$Q$17:$Q$107,MATCH('User Curve'!$B72,'Green Book Tables'!$O$17:$O$107,0))*$J72 -> 21.81525233 | N72: =INDEX('Green Book Tables'!$T$17:$T$107,MATCH('User Curve'!$B72,'Green Book Tables'!$O$17:$O$107,0))*J72 -> 22.773883 | O72: =INDEX('Green Book Tables'!$W$17:$W$107,MATCH('User Curve'!$B72,'Green Book Tables'!$O$17:$O$107,0))*J72 -> 24.55595137
B73: 2054 | C73: 36.20256675 | D73: 43.68587808 | E73: 51.32652701 | F73: 13.10576342 | G73: 6.968808197 | H73: 0.02 | I73: 2.014570853 | J73: 1.782948069 | M73: =INDEX('Green Book Tables'!$Q$17:$Q$107,MATCH('User Curve'!$B73,'Green Book Tables'!$O$17:$O$107,0))*$J73 -> 22.25155738 | N73: =INDEX('Green Book Tables'!$T$17:$T$107,MATCH('User Curve'!$B73,'Green Book Tables'!$O$17:$O$107,0))*J73 -> 23.22936066 | O73: =INDEX('Green Book Tables'!$W$17:$W$107,MATCH('User Curve'!$B73,'Green Book Tables'!$O$17:$O$107,0))*J73 -> 25.0470704
B74: 2055 | C74: 36.92661808 | D74: 44.55959564 | E74: 52.35305755 | F74: 13.36787869 | G74: 7.108184361 | H74: 0.02 | I74: 2.05486227 | J74: 1.81860703 | M74: =INDEX('Green Book Tables'!$Q$17:$Q$107,MATCH('User Curve'!$B74,'Green Book Tables'!$O$17:$O$107,0))*$J74 -> 22.69658852 | N74: =INDEX('Green Book Tables'!$T$17:$T$107,MATCH('User Curve'!$B74,'Green Book Tables'!$O$17:$O$107,0))*J74 -> 23.69394787 | O74: =INDEX('Green Book Tables'!$W$17:$W$107,MATCH('User Curve'!$B74,'Green Book Tables'!$O$17:$O$107,0))*J74 -> 25.54801181
B75: 2056 | C75: 37.66515044 | D75: 45.45078755 | E75: 53.4001187 | F75: 13.63523627 | G75: 7.250348048 | H75: 0.02 | I75: 2.095959515 | J75: 1.854979171 | M75: =INDEX('Green Book Tables'!$Q$17:$Q$107,MATCH('User Curve'!$B75,'Green Book Tables'!$O$17:$O$107,0))*$J75 -> 23.15052029 | N75: =INDEX('Green Book Tables'!$T$17:$T$107,MATCH('User Curve'!$B75,'Green Book Tables'!$O$17:$O$107,0))*J75 -> 24.16782683 | O75: =INDEX('Green Book Tables'!$W$17:$W$107,MATCH('User Curve'!$B75,'Green Book Tables'!$O$17:$O$107,0))*J75 -> 26.05897205
B76: 2057 | C76: 38.41845345 | D76: 46.3598033 | E76: 54.46812108 | F76: 13.90794099 | G76: 7.395355009 | H76: 0.02 | I76: 2.137878705 | J76: 1.892078754 | M76: =INDEX('Green Book Tables'!$Q$17:$Q$107,MATCH('User Curve'!$B76,'Green Book Tables'!$O$17:$O$107,0))*$J76 -> 23.6135307 | N76: =INDEX('Green Book Tables'!$T$17:$T$107,MATCH('User Curve'!$B76,'Green Book Tables'!$O$17:$O$107,0))*J76 -> 24.65118336 | O76: =INDEX('Green Book Tables'!$W$17:$W$107,MATCH('User Curve'!$B76,'Green Book Tables'!$O$17:$O$107,0))*J76 -> 26.58015149
B77: 2058 | C77: 39.18682252 | D77: 47.28699937 | E77: 55.5574835 | F77: 14.18609981 | G77: 7.543262109 | H77: 0.02 | I77: 2.18063628 | J77: 1.92992033 | M77: =INDEX('Green Book Tables'!$Q$17:$Q$107,MATCH('User Curve'!$B77,'Green Book Tables'!$O$17:$O$107,0))*$J77 -> 24.08580131 | N77: =INDEX('Green Book Tables'!$T$17:$T$107,MATCH('User Curve'!$B77,'Green Book Tables'!$O$17:$O$107,0))*J77 -> 25.14420703 | O77: =INDEX('Green Book Tables'!$W$17:$W$107,MATCH('User Curve'!$B77,'Green Book Tables'!$O$17:$O$107,0))*J77 -> 27.11175452
B78: 2059 | C78: 39.97055897 | D78: 48.23273935 | E78: 56.66863317 | F78: 14.46982181 | G78: 7.694127351 | H78: 0.02 | I78: 2.224249005 | J78: 1.968518736 | M78: =INDEX('Green Book Tables'!$Q$17:$Q$107,MATCH('User Curve'!$B78,'Green Book Tables'!$O$17:$O$107,0))*$J78 -> 24.56751734 | N78: =INDEX('Green Book Tables'!$T$17:$T$107,MATCH('User Curve'!$B78,'Green Book Tables'!$O$17:$O$107,0))*J78 -> 25.64709117 | O78: =INDEX('Green Book Tables'!$W$17:$W$107,MATCH('User Curve'!$B78,'Green Book Tables'!$O$17:$O$107,0))*J78 -> 27.65398961
B79: 2060 | C79: 40.76997015 | D79: 49.19739414 | E79: 57.80200583 | F79: 14.75921824 | G79: 7.848009898 | H79: 0.02 | I79: 2.268733985 | J79: 2.007889111 | M79: =INDEX('Green Book Tables'!$Q$17:$Q$107,MATCH('User Curve'!$B79,'Green Book Tables'!$O$17:$O$107,0))*$J79 -> 25.05886769 | N79: =INDEX('Green Book Tables'!$T$17:$T$107,MATCH('User Curve'!$B79,'Green Book Tables'!$O$17:$O$107,0))*J79 -> 26.16003299 | O79: =INDEX('Green Book Tables'!$W$17:$W$107,MATCH('User Curve'!$B79,'Green Book Tables'!$O$17:$O$107,0))*J79 -> 28.2070694
B80: 2061 | C80: 41.58536955 | D80: 50.18134202 | E80: 58.95804595 | F80: 15.05440261 | G80: 8.004970096 | H80: 0.02 | I80: 2.314108665 | J80: 2.048046893 | M80: =INDEX('Green Book Tables'!$Q$17:$Q$107,MATCH('User Curve'!$B80,'Green Book Tables'!$O$17:$O$107,0))*$J80 -> 25.56004504 | N80: =INDEX('Green Book Tables'!$T$17:$T$107,MATCH('User Curve'!$B80,'Green Book Tables'!$O$17:$O$107,0))*J80 -> 26.68323365 | O80: =INDEX('Green Book Tables'!$W$17:$W$107,MATCH('User Curve'!$B80,'Green Book Tables'!$O$17:$O$107,0))*J80 -> 28.77121079
B81: 2062 | C81: 42.41707694 | D81: 51.18496887 | E81: 60.13720687 | F81: 15.35549066 | G81: 8.165069498 | H81: 0.02 | I81: 2.360390838 | J81: 2.089007831 | M81: =INDEX('Green Book Tables'!$Q$17:$Q$107,MATCH('User Curve'!$B81,'Green Book Tables'!$O$17:$O$107,0))*$J81 -> 26.07124594 | N81: =INDEX('Green Book Tables'!$T$17:$T$107,MATCH('User Curve'!$B81,'Green Book Tables'!$O$17:$O$107,0))*J81 -> 27.21689833 | O81: =INDEX('Green Book Tables'!$W$17:$W$107,MATCH('User Curve'!$B81,'Green Book Tables'!$O$17:$O$107,0))*J81 -> 29.346635
B82: 2063 | C82: 43.26541848 | D82: 52.20866824 | E82: 61.33995101 | F82: 15.66260047 | G82: 8.328370888 | H82: 0.02 | I82: 2.407598655 | J82: 2.130787988 | M82: =INDEX('Green Book Tables'!$Q$17:$Q$107,MATCH('User Curve'!$B82,'Green Book Tables'!$O$17:$O$107,0))*$J82 -> 26.59267086 | N82: =INDEX('Green Book Tables'!$T$17:$T$107,MATCH('User Curve'!$B82,'Green Book Tables'!$O$17:$O$107,0))*J82 -> 27.76123629 | O82: =INDEX('Green Book Tables'!$W$17:$W$107,MATCH('User Curve'!$B82,'Green Book Tables'!$O$17:$O$107,0))*J82 -> 29.9335677
B83: 2064 | C83: 44.13072685 | D83: 53.25284161 | E83: 62.56675003 | F83: 15.97585248 | G83: 8.494938306 | H83: 0.02 | I83: 2.455750628 | J83: 2.173403747 | M83: =INDEX('Green Book Tables'!$Q$17:$Q$107,MATCH('User Curve'!$B83,'Green Book Tables'!$O$17:$O$107,0))*$J83 -> 27.12452428 | N83: =INDEX('Green Book Tables'!$T$17:$T$107,MATCH('User Curve'!$B83,'Green Book Tables'!$O$17:$O$107,0))*J83 -> 28.31646102 | O83: =INDEX('Green Book Tables'!$W$17:$W$107,MATCH('User Curve'!$B83,'Green Book Tables'!$O$17:$O$107,0))*J83 -> 30.53223906
B84: 2065 | C84: 45.01334139 | D84: 54.31789844 | E84: 63.81808503 | F84: 16.29536953 | G84: 8.664837072 | H84: 0.02 | I84: 2.504865641 | J84: 2.216871822 | M84: =INDEX('Green Book Tables'!$Q$17:$Q$107,MATCH('User Curve'!$B84,'Green Book Tables'!$O$17:$O$107,0))*$J84 -> 27.66701476 | N84: =INDEX('Green Book Tables'!$T$17:$T$107,MATCH('User Curve'!$B84,'Green Book Tables'!$O$17:$O$107,0))*J84 -> 28.88279024 | O84: =INDEX('Green Book Tables'!$W$17:$W$107,MATCH('User Curve'!$B84,'Green Book Tables'!$O$17:$O$107,0))*J84 -> 31.14288384
B85: 2066 | C85: 45.91360822 | D85: 55.40425641 | E85: 65.09444673 | F85: 16.62127692 | G85: 8.838133814 | H85: 0.02 | I85: 2.554962954 | J85: 2.261209259 | M85: =INDEX('Green Book Tables'!$Q$17:$Q$107,MATCH('User Curve'!$B85,'Green Book Tables'!$O$17:$O$107,0))*$J85 -> 28.22035506 | N85: =INDEX('Green Book Tables'!$T$17:$T$107,MATCH('User Curve'!$B85,'Green Book Tables'!$O$17:$O$107,0))*J85 -> 29.46044605 | O85: =INDEX('Green Book Tables'!$W$17:$W$107,MATCH('User Curve'!$B85,'Green Book Tables'!$O$17:$O$107,0))*J85 -> 31.76574152
B86: 2067 | C86: 46.83188038 | D86: 56.51234154 | E86: 66.39633566 | F86: 16.95370246 | G86: 9.01489649 | H86: 0.02 | I86: 2.606062213 | J86: 2.306433444 | M86: =INDEX('Green Book Tables'!$Q$17:$Q$107,MATCH('User Curve'!$B86,'Green Book Tables'!$O$17:$O$107,0))*$J86 -> 28.78476216 | N86: =INDEX('Green Book Tables'!$T$17:$T$107,MATCH('User Curve'!$B86,'Green Book Tables'!$O$17:$O$107,0))*J86 -> 30.04965497 | O86: =INDEX('Green Book Tables'!$W$17:$W$107,MATCH('User Curve'!$B86,'Green Book Tables'!$O$17:$O$107,0))*J86 -> 32.40105635
B87: 2068 | C87: 47.76851799 | D87: 57.64258837 | E87: 67.72426237 | F87: 17.29277651 | G87: 9.19519442 | H87: 0.02 | I87: 2.658183457 | J87: 2.352562113 | M87: =INDEX('Green Book Tables'!$Q$17:$Q$107,MATCH('User Curve'!$B87,'Green Book Tables'!$O$17:$O$107,0))*$J87 -> 29.3604574 | N87: =INDEX('Green Book Tables'!$T$17:$T$107,MATCH('User Curve'!$B87,'Green Book Tables'!$O$17:$O$107,0))*J87 -> 30.65064807 | O87: =INDEX('Green Book Tables'!$W$17:$W$107,MATCH('User Curve'!$B87,'Green Book Tables'!$O$17:$O$107,0))*J87 -> 33.04907747
B88: 2069 | C88: 48.72388835 | D88: 58.79544013 | E88: 69.07874762 | F88: 17.63863204 | G88: 9.379098308 | H88: 0.02 | I88: 2.711347126 | J88: 2.399613355 | M88: =INDEX('Green Book Tables'!$Q$17:$Q$107,MATCH('User Curve'!$B88,'Green Book Tables'!$O$17:$O$107,0))*$J88 -> 29.94766655 | N88: =INDEX('Green Book Tables'!$T$17:$T$107,MATCH('User Curve'!$B88,'Green Book Tables'!$O$17:$O$107,0))*J88 -> 31.26366103 | O88: =INDEX('Green Book Tables'!$W$17:$W$107,MATCH('User Curve'!$B88,'Green Book Tables'!$O$17:$O$107,0))*J88 -> 33.71005902
B89: 2070 | C89: 49.69836612 | D89: 59.97134894 | E89: 70.46032257 | F89: 17.99140468 | G89: 9.566680274 | H89: 0.02 | I89: 2.765574068 | J89: 2.447605622 | M89: =INDEX('Green Book Tables'!$Q$17:$Q$107,MATCH('User Curve'!$B89,'Green Book Tables'!$O$17:$O$107,0))*$J89 -> 30.54661988 | N89: =INDEX('Green Book Tables'!$T$17:$T$107,MATCH('User Curve'!$B89,'Green Book Tables'!$O$17:$O$107,0))*J89 -> 31.88893425 | O89: =INDEX('Green Book Tables'!$W$17:$W$107,MATCH('User Curve'!$B89,'Green Book Tables'!$O$17:$O$107,0))*J89 -> 34.3842602
B90: 2071 | C90: 50.69233344 | D90: 61.17077592 | E90: 71.86952903 | F90: 18.35123277 | G90: 9.75801388 | H90: 0.02 | I90: 2.82088555 | J90: 2.496557735 | M90: =INDEX('Green Book Tables'!$Q$17:$Q$107,MATCH('User Curve'!$B90,'Green Book Tables'!$O$17:$O$107,0))*$J90 -> 31.15755228 | N90: =INDEX('Green Book Tables'!$T$17:$T$107,MATCH('User Curve'!$B90,'Green Book Tables'!$O$17:$O$107,0))*J90 -> 32.52671293 | O90: =INDEX('Green Book Tables'!$W$17:$W$107,MATCH('User Curve'!$B90,'Green Book Tables'!$O$17:$O$107,0))*J90 -> 35.07194541
B91: 2072 | C91: 51.70618011 | D91: 62.39419143 | E91: 73.30691961 | F91: 18.71825743 | G91: 9.953174157 | H91: 0.02 | I91: 2.877303261 | J91: 2.546488889 | M91: =INDEX('Green Book Tables'!$Q$17:$Q$107,MATCH('User Curve'!$B91,'Green Book Tables'!$O$17:$O$107,0))*$J91 -> 31.78070332 | N91: =INDEX('Green Book Tables'!$T$17:$T$107,MATCH('User Curve'!$B91,'Green Book Tables'!$O$17:$O$107,0))*J91 -> 33.17724719 | O91: =INDEX('Green Book Tables'!$W$17:$W$107,MATCH('User Curve'!$B91,'Green Book Tables'!$O$17:$O$107,0))*J91 -> 35.77338431
B92: 2073 | C92: 52.74030371 | D92: 63.64207526 | E92: 74.773058 | F92: 19.09262258 | G92: 10.15223764 | H92: 0.02 | I92: 2.934849326 | J92: 2.597418667 | M92: =INDEX('Green Book Tables'!$Q$17:$Q$107,MATCH('User Curve'!$B92,'Green Book Tables'!$O$17:$O$107,0))*$J92 -> 32.41631739 | N92: =INDEX('Green Book Tables'!$T$17:$T$107,MATCH('User Curve'!$B92,'Green Book Tables'!$O$17:$O$107,0))*J92 -> 33.84079213 | O92: =INDEX('Green Book Tables'!$W$17:$W$107,MATCH('User Curve'!$B92,'Green Book Tables'!$O$17:$O$107,0))*J92 -> 36.488852
B93: 2074 | C93: 53.79510978 | D93: 64.91491677 | E93: 76.26851916 | F93: 19.47447503 | G93: 10.35528239 | H93: 0.02 | I93: 2.993546313 | J93: 2.64936704 | M93: =INDEX('Green Book Tables'!$Q$17:$Q$107,MATCH('User Curve'!$B93,'Green Book Tables'!$O$17:$O$107,0))*$J93 -> 33.06464374 | N93: =INDEX('Green Book Tables'!$T$17:$T$107,MATCH('User Curve'!$B93,'Green Book Tables'!$O$17:$O$107,0))*J93 -> 34.51760798 | O93: =INDEX('Green Book Tables'!$W$17:$W$107,MATCH('User Curve'!$B93,'Green Book Tables'!$O$17:$O$107,0))*J93 -> 37.21862904
B94: 2075 | C94: 54.87101198 | D94: 66.2132151 | E94: 77.79388954 | F94: =D94*0.3 -> 19.86396453 | G94: =N94*0.3 -> 10.56238804 | H94: 0.02 | I94: 3.053417239 | J94: 2.702354381 | M94: =INDEX('Green Book Tables'!$Q$17:$Q$107,MATCH('User Curve'!$B94,'Green Book Tables'!$O$17:$O$107,0))*$J94 -> 33.72593661 | N94: =INDEX('Green Book Tables'!$T$17:$T$107,MATCH('User Curve'!$B94,'Green Book Tables'!$O$17:$O$107,0))*J94 -> 35.20796014 | O94: =INDEX('Green Book Tables'!$W$17:$W$107,MATCH('User Curve'!$B94,'Green Book Tables'!$O$17:$O$107,0))*J94 -> 37.96300162
B95: 2076 | C95: 55.96843222 | D95: 67.53747941 | E95: 79.34976733 | F95: 20.26124382 | G95: 10.7736358 | H95: 0.02 | I95: 3.114485584 | J95: 2.756401469 | M95: =INDEX('Green Book Tables'!$Q$17:$Q$107,MATCH('User Curve'!$B95,'Green Book Tables'!$O$17:$O$107,0))*$J95 -> 34.40045535 | N95: =INDEX('Green Book Tables'!$T$17:$T$107,MATCH('User Curve'!$B95,'Green Book Tables'!$O$17:$O$107,0))*J95 -> 35.91211934 | O95: =INDEX('Green Book Tables'!$W$17:$W$107,MATCH('User Curve'!$B95,'Green Book Tables'!$O$17:$O$107,0))*J95 -> 38.72226165
B96: 2077 | C96: 57.08780086 | D96: 68.88822899 | E96: 80.93676268 | F96: 20.6664687 | G96: 10.98910852 | H96: 0.02 | I96: 3.176775295 | J96: 2.811529498 | M96: =INDEX('Green Book Tables'!$Q$17:$Q$107,MATCH('User Curve'!$B96,'Green Book Tables'!$O$17:$O$107,0))*$J96 -> 35.08846445 | N96: =INDEX('Green Book Tables'!$T$17:$T$107,MATCH('User Curve'!$B96,'Green Book Tables'!$O$17:$O$107,0))*J96 -> 36.63036173 | O96: =INDEX('Green Book Tables'!$W$17:$W$107,MATCH('User Curve'!$B96,'Green Book Tables'!$O$17:$O$107,0))*J96 -> 39.49670689
B97: 2078 | C97: 58.22955688 | D97: 70.26599357 | E97: 82.55549793 | F97: 21.07979807 | G97: 11.20889069 | H97: 0.02 | I97: 3.240310801 | J97: 2.867760088 | M97: =INDEX('Green Book Tables'!$Q$17:$Q$107,MATCH('User Curve'!$B97,'Green Book Tables'!$O$17:$O$107,0))*$J97 -> 35.79023374 | N97: =INDEX('Green Book Tables'!$T$17:$T$107,MATCH('User Curve'!$B97,'Green Book Tables'!$O$17:$O$107,0))*J97 -> 37.36296896 | O97: =INDEX('Green Book Tables'!$W$17:$W$107,MATCH('User Curve'!$B97,'Green Book Tables'!$O$17:$O$107,0))*J97 -> 40.28664103
B98: 2079 | C98: 59.39414802 | D98: 71.67131345 | E98: 84.20660789 | F98: 21.50139403 | G98: 11.4330685 | H98: 0.02 | I98: 3.305117017 | J98: 2.92511529 | M98: =INDEX('Green Book Tables'!$Q$17:$Q$107,MATCH('User Curve'!$B98,'Green Book Tables'!$O$17:$O$107,0))*$J98 -> 36.50603842 | N98: =INDEX('Green Book Tables'!$T$17:$T$107,MATCH('User Curve'!$B98,'Green Book Tables'!$O$17:$O$107,0))*J98 -> 38.11022834 | O98: =INDEX('Green Book Tables'!$W$17:$W$107,MATCH('User Curve'!$B98,'Green Book Tables'!$O$17:$O$107,0))*J98 -> 41.09237385
B99: 2080 | C99: 60.58203098 | D99: 73.10473971 | E99: 85.89074005 | F99: 21.93142191 | G99: 11.66172987 | H99: 0.02 | I99: 3.371219358 | J99: 2.983617596 | M99: =INDEX('Green Book Tables'!$Q$17:$Q$107,MATCH('User Curve'!$B99,'Green Book Tables'!$O$17:$O$107,0))*$J99 -> 37.23615918 | N99: =INDEX('Green Book Tables'!$T$17:$T$107,MATCH('User Curve'!$B99,'Green Book Tables'!$O$17:$O$107,0))*J99 -> 38.87243291 | O99: =INDEX('Green Book Tables'!$W$17:$W$107,MATCH('User Curve'!$B99,'Green Book Tables'!$O$17:$O$107,0))*J99 -> 41.91422132
B100: 2081 | C100: 61.7936716 | D100: 74.56683451 | E100: 87.60855485 | F100: 22.37005035 | G100: 11.89496447 | H100: 0.02 | I100: 3.438643745 | J100: 3.043289948 | M100: =INDEX('Green Book Tables'!$Q$17:$Q$107,MATCH('User Curve'!$B100,'Green Book Tables'!$O$17:$O$107,0))*$J100 -> 37.98088237 | N100: =INDEX('Green Book Tables'!$T$17:$T$107,MATCH('User Curve'!$B100,'Green Book Tables'!$O$17:$O$107,0))*J100 -> 39.64988157 | O100: =INDEX('Green Book Tables'!$W$17:$W$107,MATCH('User Curve'!$B100,'Green Book Tables'!$O$17:$O$107,0))*J100 -> 42.75250575
B101: 2082 | C101: 63.02954503 | D101: 76.0581712 | E101: 89.36072595 | F101: 22.81745136 | G101: 12.13286376 | H101: 0.02 | I101: 3.50741662 | J101: 3.104155747 | M101: =INDEX('Green Book Tables'!$Q$17:$Q$107,MATCH('User Curve'!$B101,'Green Book Tables'!$O$17:$O$107,0))*$J101 -> 38.74050002 | N101: =INDEX('Green Book Tables'!$T$17:$T$107,MATCH('User Curve'!$B101,'Green Book Tables'!$O$17:$O$107,0))*J101 -> 40.4428792 | O101: =INDEX('Green Book Tables'!$W$17:$W$107,MATCH('User Curve'!$B101,'Green Book Tables'!$O$17:$O$107,0))*J101 -> 43.60755586
B102: 2083 | C102: 64.29013593 | D102: 77.57933462 | E102: 91.14794047 | F102: 23.27380039 | G102: 12.37552103 | H102: 0.02 | I102: 3.577564952 | J102: 3.166238862 | M102: =INDEX('Green Book Tables'!$Q$17:$Q$107,MATCH('User Curve'!$B102,'Green Book Tables'!$O$17:$O$107,0))*$J102 -> 39.51531002 | N102: =INDEX('Green Book Tables'!$T$17:$T$107,MATCH('User Curve'!$B102,'Green Book Tables'!$O$17:$O$107,0))*J102 -> 41.25173678 | O102: =INDEX('Green Book Tables'!$W$17:$W$107,MATCH('User Curve'!$B102,'Green Book Tables'!$O$17:$O$107,0))*J102 -> 44.47970698
B103: 2084 | C103: 65.57593865 | D103: 79.13092132 | E103: 92.97089928 | F103: 23.73927639 | G103: 12.62303145 | H103: 0.02 | I103: 3.649116251 | J103: 3.229563639 | M103: =INDEX('Green Book Tables'!$Q$17:$Q$107,MATCH('User Curve'!$B103,'Green Book Tables'!$O$17:$O$107,0))*$J103 -> 40.30561622 | N103: =INDEX('Green Book Tables'!$T$17:$T$107,MATCH('User Curve'!$B103,'Green Book Tables'!$O$17:$O$107,0))*J103 -> 42.07677152 | O103: =INDEX('Green Book Tables'!$W$17:$W$107,MATCH('User Curve'!$B103,'Green Book Tables'!$O$17:$O$107,0))*J103 -> 45.36930112
B104: 2085 | C104: 66.88745742 | D104: 80.71353974 | E104: 94.83031726 | F104: 24.21406192 | G104: 12.87549208 | H104: 0.02 | I104: 3.722098576 | J104: 3.294154912 | M104: =INDEX('Green Book Tables'!$Q$17:$Q$107,MATCH('User Curve'!$B104,'Green Book Tables'!$O$17:$O$107,0))*$J104 -> 41.11172854 | N104: =INDEX('Green Book Tables'!$T$17:$T$107,MATCH('User Curve'!$B104,'Green Book Tables'!$O$17:$O$107,0))*J104 -> 42.91830695 | O104: =INDEX('Green Book Tables'!$W$17:$W$107,MATCH('User Curve'!$B104,'Green Book Tables'!$O$17:$O$107,0))*J104 -> 46.27668714
B105: 2086 | C105: 68.22520657 | D105: 82.32781054 | E105: 96.72692361 | F105: 24.69834316 | G105: 13.13300193 | H105: 0.02 | I105: 3.796540548 | J105: 3.36003801 | M105: =INDEX('Green Book Tables'!$Q$17:$Q$107,MATCH('User Curve'!$B105,'Green Book Tables'!$O$17:$O$107,0))*$J105 -> 41.93396311 | N105: =INDEX('Green Book Tables'!$T$17:$T$107,MATCH('User Curve'!$B105,'Green Book Tables'!$O$17:$O$107,0))*J105 -> 43.77667309 | O105: =INDEX('Green Book Tables'!$W$17:$W$107,MATCH('User Curve'!$B105,'Green Book Tables'!$O$17:$O$107,0))*J105 -> 47.20222089
B106: 2087 | C106: 69.5897107 | D106: 83.97436675 | E106: 98.66146208 | F106: 25.19231002 | G106: 13.39566196 | H106: 0.02 | I106: 3.872471359 | J106: 3.42723877 | M106: =INDEX('Green Book Tables'!$Q$17:$Q$107,MATCH('User Curve'!$B106,'Green Book Tables'!$O$17:$O$107,0))*$J106 -> 42.77264237 | N106: =INDEX('Green Book Tables'!$T$17:$T$107,MATCH('User Curve'!$B106,'Green Book Tables'!$O$17:$O$107,0))*J106 -> 44.65220655 | O106: =INDEX('Green Book Tables'!$W$17:$W$107,MATCH('User Curve'!$B106,'Green Book Tables'!$O$17:$O$107,0))*J106 -> 48.1462653
B107: 2088 | C107: 70.98150492 | D107: 85.65385408 | E107: 100.6346913 | F107: 25.69615622 | G107: 13.6635752 | H107: 0.02 | I107: =I106*(1+H107) -> 3.949920786 | J107: 3.495783545 | M107: =INDEX('Green Book Tables'!$Q$17:$Q$107,MATCH('User Curve'!$B107,'Green Book Tables'!$O$17:$O$107,0))*$J107 -> 43.62809522 | N107: =INDEX('Green Book Tables'!$T$17:$T$107,MATCH('User Curve'!$B107,'Green Book Tables'!$O$17:$O$107,0))*J107 -> 45.54525068 | O107: =INDEX('Green Book Tables'!$W$17:$W$107,MATCH('User Curve'!$B107,'Green Book Tables'!$O$17:$O$107,0))*J107 -> 49.10919061
B108: 2089 | C108: 72.40113502 | D108: 87.36693116 | E108: 102.6473851 | F108: 26.21007935 | G108: 13.93684671 | H108: 0.02 | I108: 4.028919201 | J108: 3.565699216 | M108: =INDEX('Green Book Tables'!$Q$17:$Q$107,MATCH('User Curve'!$B108,'Green Book Tables'!$O$17:$O$107,0))*$J108 -> 44.50065713 | N108: =INDEX('Green Book Tables'!$T$17:$T$107,MATCH('User Curve'!$B108,'Green Book Tables'!$O$17:$O$107,0))*J108 -> 46.45615569 | O108: =INDEX('Green Book Tables'!$W$17:$W$107,MATCH('User Curve'!$B108,'Green Book Tables'!$O$17:$O$107,0))*J108 -> 50.09137442
B109: 2090 | C109: 73.84915772 | D109: 89.11426979 | E109: 104.7003329 | F109: 26.73428094 | G109: 14.21558364 | H109: 0.02 | I109: 4.109497585 | J109: =J108*(1+H109) -> 3.637013201 | M109: =INDEX('Green Book Tables'!$Q$17:$Q$107,MATCH('User Curve'!$B109,'Green Book Tables'!$O$17:$O$107,0))*$J109 -> 45.39067027 | N109: =INDEX('Green Book Tables'!$T$17:$T$107,MATCH('User Curve'!$B109,'Green Book Tables'!$O$17:$O$107,0))*J109 -> 47.38527881 | O109: =INDEX('Green Book Tables'!$W$17:$W$107,MATCH('User Curve'!$B109,'Green Book Tables'!$O$17:$O$107,0))*J109 -> 51.09320191
B110: 2091 | C110: 75.32614087 | D110: 90.89655518 | E110: 106.7943395 | F110: 27.26896655 | G110: 14.49989531 | H110: 0.02 | I110: 4.191687537 | J110: 3.709753465 | M110: =INDEX('Green Book Tables'!$Q$17:$Q$107,MATCH('User Curve'!$B110,'Green Book Tables'!$O$17:$O$107,0))*$J110 -> 46.29848367 | N110: =INDEX('Green Book Tables'!$T$17:$T$107,MATCH('User Curve'!$B110,'Green Book Tables'!$O$17:$O$107,0))*J110 -> 48.33298438 | O110: =INDEX('Green Book Tables'!$W$17:$W$107,MATCH('User Curve'!$B110,'Green Book Tables'!$O$17:$O$107,0))*J110 -> 52.11506595
B111: 2092 | C111: 76.83266369 | D111: 92.71448629 | E111: 108.9302263 | F111: 27.81434589 | G111: 14.78989322 | H111: 0.02 | I111: 4.275521288 | J111: 3.783948534 | M111: =INDEX('Green Book Tables'!$Q$17:$Q$107,MATCH('User Curve'!$B111,'Green Book Tables'!$O$17:$O$107,0))*$J111 -> 47.22445335 | N111: =INDEX('Green Book Tables'!$T$17:$T$107,MATCH('User Curve'!$B111,'Green Book Tables'!$O$17:$O$107,0))*J111 -> 49.29964407 | O111: =INDEX('Green Book Tables'!$W$17:$W$107,MATCH('User Curve'!$B111,'Green Book Tables'!$O$17:$O$107,0))*J111 -> 53.15736727
B112: 2093 | C112: 78.36931696 | D112: 94.56877601 | E112: 111.1088308 | F112: 28.3706328 | G112: 15.08569109 | H112: 0.02 | I112: 4.361031714 | J112: 3.859627505 | M112: =INDEX('Green Book Tables'!$Q$17:$Q$107,MATCH('User Curve'!$B112,'Green Book Tables'!$O$17:$O$107,0))*$J112 -> 48.16894241 | N112: =INDEX('Green Book Tables'!$T$17:$T$107,MATCH('User Curve'!$B112,'Green Book Tables'!$O$17:$O$107,0))*J112 -> 50.28563695 | O112: =INDEX('Green Book Tables'!$W$17:$W$107,MATCH('User Curve'!$B112,'Green Book Tables'!$O$17:$O$107,0))*J112 -> 54.22051461
B113: 2094 | C113: 79.9367033 | D113: 96.46015153 | E113: 113.3310074 | F113: 28.93804546 | G113: 15.38740491 | H113: 0.02 | I113: 4.448252348 | J113: 3.936820055 | M113: =INDEX('Green Book Tables'!$Q$17:$Q$107,MATCH('User Curve'!$B113,'Green Book Tables'!$O$17:$O$107,0))*$J113 -> 49.13232126 | N113: =INDEX('Green Book Tables'!$T$17:$T$107,MATCH('User Curve'!$B113,'Green Book Tables'!$O$17:$O$107,0))*J113 -> 51.29134969 | O113: =INDEX('Green Book Tables'!$W$17:$W$107,MATCH('User Curve'!$B113,'Green Book Tables'!$O$17:$O$107,0))*J113 -> 55.30492491
B114: 2095 | C114: 81.53543737 | D114: 98.38935456 | E114: 115.5976276 | F114: 29.51680637 | G114: 15.69515301 | H114: 0.02 | I114: 4.537217395 | J114: 4.015556456 | M114: =INDEX('Green Book Tables'!$Q$17:$Q$107,MATCH('User Curve'!$B114,'Green Book Tables'!$O$17:$O$107,0))*$J114 -> 50.11496769 | N114: =INDEX('Green Book Tables'!$T$17:$T$107,MATCH('User Curve'!$B114,'Green Book Tables'!$O$17:$O$107,0))*J114 -> 52.31717668 | O114: =INDEX('Green Book Tables'!$W$17:$W$107,MATCH('User Curve'!$B114,'Green Book Tables'!$O$17:$O$107,0))*J114 -> 56.4110234
B115: 2096 | C115: 83.16614611 | D115: 100.3571417 | E115: 117.9095801 | F115: 30.1071425 | G115: 16.00905607 | H115: 0.02 | I115: 4.627961743 | J115: 4.095867585 | M115: =INDEX('Green Book Tables'!$Q$17:$Q$107,MATCH('User Curve'!$B115,'Green Book Tables'!$O$17:$O$107,0))*$J115 -> 51.11726704 | N115: =INDEX('Green Book Tables'!$T$17:$T$107,MATCH('User Curve'!$B115,'Green Book Tables'!$O$17:$O$107,0))*J115 -> 53.36352022 | O115: =INDEX('Green Book Tables'!$W$17:$W$107,MATCH('User Curve'!$B115,'Green Book Tables'!$O$17:$O$107,0))*J115 -> 57.53924387
B116: 2097 | C116: 84.82946904 | D116: 102.3642845 | E116: 120.2677717 | F116: 30.70928535 | G116: 16.32923719 | H116: 0.02 | I116: 4.720520978 | J116: 4.177784937 | M116: =INDEX('Green Book Tables'!$Q$17:$Q$107,MATCH('User Curve'!$B116,'Green Book Tables'!$O$17:$O$107,0))*$J116 -> 52.13961238 | N116: =INDEX('Green Book Tables'!$T$17:$T$107,MATCH('User Curve'!$B116,'Green Book Tables'!$O$17:$O$107,0))*J116 -> 54.43079062 | O116: =INDEX('Green Book Tables'!$W$17:$W$107,MATCH('User Curve'!$B116,'Green Book Tables'!$O$17:$O$107,0))*J116 -> 58.69002875
B117: 2098 | C117: 86.52605842 | D117: 104.4115702 | E117: 122.6731272 | F117: 31.32347105 | G117: 16.65582193 | H117: 0.02 | I117: 4.814931397 | J117: 4.261340635 | M117: =INDEX('Green Book Tables'!$Q$17:$Q$107,MATCH('User Curve'!$B117,'Green Book Tables'!$O$17:$O$107,0))*$J117 -> 53.18240463 | N117: =INDEX('Green Book Tables'!$T$17:$T$107,MATCH('User Curve'!$B117,'Green Book Tables'!$O$17:$O$107,0))*J117 -> 55.51940643 | O117: =INDEX('Green Book Tables'!$W$17:$W$107,MATCH('User Curve'!$B117,'Green Book Tables'!$O$17:$O$107,0))*J117 -> 59.86382932
B118: 2099 | C118: 88.25657959 | D118: 106.4998016 | E118: 125.1265897 | F118: 31.94994047 | G118: 16.98893837 | H118: 0.02 | I118: 4.911230025 | J118: 4.346567448 | M118: =INDEX('Green Book Tables'!$Q$17:$Q$107,MATCH('User Curve'!$B118,'Green Book Tables'!$O$17:$O$107,0))*$J118 -> 54.24605272 | N118: =INDEX('Green Book Tables'!$T$17:$T$107,MATCH('User Curve'!$B118,'Green Book Tables'!$O$17:$O$107,0))*J118 -> 56.62979456 | O118: =INDEX('Green Book Tables'!$W$17:$W$107,MATCH('User Curve'!$B118,'Green Book Tables'!$O$17:$O$107,0))*J118 -> 61.06110591
B119: 2100 | C119: 90.02171118 | D119: 108.6297976 | E119: 127.6291215 | F119: 32.58893928 | G119: 17.32871714 | H119: 0.02 | I119: 5.009454626 | J119: 4.433498797 | M119: =INDEX('Green Book Tables'!$Q$17:$Q$107,MATCH('User Curve'!$B119,'Green Book Tables'!$O$17:$O$107,0))*$J119 -> 55.33097378 | N119: =INDEX('Green Book Tables'!$T$17:$T$107,MATCH('User Curve'!$B119,'Green Book Tables'!$O$17:$O$107,0))*J119 -> 57.76239045 | O119: =INDEX('Green Book Tables'!$W$17:$W$107,MATCH('User Curve'!$B119,'Green Book Tables'!$O$17:$O$107,0))*J119 -> 62.28232803
B121: Note: Non-domestic prices should be inclusive of Climate Change Levy
B123: Please, edit the following cells with your own assumptions
A125: [1] | B125: Assumptions on user-defined baseline electricity price curves
B126: From the year 2022 to 2031, this price forecast has been provided by Cornwall Insight (updated November 2022). This represents the central scenario of a retail electricity price forecast, specific for the North West. The retail electricity price forecast takes into account Wholesale Electricity Price (based on Cornwall Insight's Benchmark Power Curve), network costs (calculated for the North West), renewables and capacity fees, Climate Change Levy (CCL), and supplier fees. Prices have been adjusted by CPI inflation projection based on the Bank of England. From 2031 onwards, electricity prices have been considered constant and only adjusted by inflation. If better data is available, the user should replace the default data.
A128: [2] | B128: Assumptions on user-defined low and high electricity price curves
B129: From the year 2022 to 2031, this price forecast has been provided by Cornwall Insight (updated November 2022). These curves are based on low and high scenarios of a retail electricity price forecast, specific for the North West. The retail electricity price forecast takes into account Wholesale Electricity Price (based on Cornwall Insight's Benchmark Power Curve), network costs (calculated for the North West), renewables and capacity fees, Climate Change Levy (CCL), and supplier fees. Prices have been adjusted by CPI inflation projection based on the Bank of England. The Wholesale Electricity Price is the only component that varies between Low, Central, and High scenarios, the forecasted cost of the other retail electricity price components is the same for each scenario. From 2031 onwards, electricity prices in each scenario have been considered constant and only adjusted by inflation. If better data is available, the user should replace the default data.
A131: [3] | B131: Price for electrcity exported or resold based on user-defined curve
B132: The price for electricity exported or resold is assumed to be 30% of the retail electricity price defined in the other columns. This approximation is based on a simple analysis of historical data for the Smart Export Guarantee tariff, offered by some of the main electricity suppliers. If better data is available, the user should replace the default data.
A134: [4] | B134: Price for electricity exported or resold using Green Book as reference
B135: The price for electricity exported or resold is assumed to be 30% of the retail electricity price defined in the Green Book central scenario. This approximation is based on a simple analysis of historical data for the Smart Export Guarantee tariff, offered by some of the main electricity suppliers.
A137: [5] | B137: Source for CPI Inflation
B138: Historical values are based on Office for National Statistics data
B139: https://www.ons.gov.uk/economy/inflationandpriceindices/bulletins/consumerpriceinflation/august2022
B140: Forecast values are based on Bank of England projections available through February 2023 Economic Outlook
B141: https://www.bankofengland.co.uk/monetary-policy-report/2023/february-2023
B142: The user should update default data and keep a record in the cell below
B143: Last update: | C143: February 2023

Sheet Lists (hidden)
A1: Dropdown selection | B1: 2 | C1: 1 | D1: 2 | E1: 2 | F1: 3 | G1: 2 | H1: 1 | I1: 3 | J1: 1 | K1: 2 | P1: Current site ref | Q1: 2
A2: Dropdown value | B2: =INDEX(B9:B38,B1) -> No | C2: =INDEX(C9:C38,C1) -> Yes | D2: =INDEX(D9:D38,D1) -> User Curve | E2: =INDEX(E9:E38,E1) -> User Curve | F2: =INDEX(F9:F38,F1) -> 2024 | G2: =INDEX(G9:G38,G1) -> No | H2: =INDEX(H9:H38,H1) -> On site self-consumption | I2: =INDEX(I9:I38,I1) -> Annuity loan | J2: =INDEX(J9:J38,J1) -> Asset Owner/Generator | K2: =INDEX(K9:K38,K1) -> No | P2: Current site name | Q2: =INDEX(Location_select,Q1) -> Example Medium-Cost Solar Farm
P3: Totals sites | Q3: =COUNTA(Q9:Q48)-COUNTIF(lists_sites,"") -> 5
A4: IMPORTANT | P4: Cost per kWp | Q4: =INDEX(Data_value,MATCH(P4,Data_field,0),MATCH(Lists_projectname,Data_sheet,0)) -> 1185.714286
A5: VBA code and cells formulas refer to the order of the items in the list (row 1). Names can be changed (e.g. Green Book --> greenbook) but the order should remain the same.
G7: Do not change order - order linked to VBA code | H7: Do not change order - order linked to VBA code | I7: Do not change order - order linked to VBA code | J7: Do not change order - order linked to VBA code | K7: Do not change order - order linked to VBA code
B8: Include Grant? | C8: Include feasibility costs? | D8: Retail Electricity Price source? | E8: Energy export price source | F8: Year zero reference | G8: Offtake based on target IRR generator? | H8: Revenue Model | I8: Project Financing | J8: Role | K8: Offtake based on target NPV off-taker? | N8: Sheets | O8: include | Q8: Short list
B9: Yes | C9: Yes | D9: Green Book | E9: 30% of Green Book retail price | F9: 2022 | G9: Yes | H9: ='Energy Calculations'!AP15 -> On site self-consumption | I9: Own fund | J9: Asset Owner/Generator | K9: Yes | M9: 1 | N9: =IFERROR(INDEX(SheetNames,M9),"") -> Cover | O9: =IF(N9="","N",IF(OR(N8="Sites->",O8="Y"),"Y","")) ->  | P9: =COUNTBLANK(O9:O48)+1 -> 17 | Q9: =IF(ISERROR(INDEX(N$9:N$48,P9)),"",INDEX(N$9:N$48,P9)) -> Template PPA Off-taker only | S9: =SheetNames -> 
B10: No | C10: No | D10: User Curve | E10: User Curve | F10: 2023 | G10: No | H10: ='Energy Calculations'!AZ15 -> Private Wire | I10: ='Financing Calculations'!C5 -> Equal Instalments of Principal Loan | J10: Off-taker | K10: No | M10: 2 | N10: =IFERROR(INDEX(SheetNames,M10),"") -> Add new site | O10: =IF(N10="","N",IF(OR(N9="Sites->",O9="Y"),"Y","")) ->  | P10: =P9+1 -> 18 | Q10: =IF(ISERROR(INDEX(N$9:N$48,P10)),"",INDEX(N$9:N$48,P10)) -> Example Medium-Cost Solar Farm
F11: 2024 | H11: ='Energy Calculations'!BN15 -> Sleeved PPA | I11: ='Financing Calculations'!Y5 -> Annuity loan | J11: Both Asset Owner and Off-taker | M11: 3 | N11: =IFERROR(INDEX(SheetNames,M11),"") -> Input settings | P11: =P10+1 -> 19 | Q11: =IF(ISERROR(INDEX(N$9:N$48,P11)),"",INDEX(N$9:N$48,P11)) -> Example High-Cost Solar Farm
F12: 2025 | I12: ='Financing Calculations'!AP5 -> Maturity loan | M12: 4 | N12: =IFERROR(INDEX(SheetNames,M12),"") -> User Curve | P12: 20 | Q12: =IF(ISERROR(INDEX(N$9:N$48,P12)),"",INDEX(N$9:N$48,P12)) -> Example Rooftop Solar | BC12: 0
F13: 2026 | I13: ='Financing Calculations'!BL5 -> Salix & Annuity Loan after year 5 | M13: 5 | N13: =IFERROR(INDEX(SheetNames,M13),"") -> Lists | P13: 21 | Q13: =IF(ISERROR(INDEX(N$9:N$48,P13)),"",INDEX(N$9:N$48,P13)) -> Example Rooftop Solar 2 | BC13: 0
F14: 2027 | M14: 6 | N14: =IFERROR(INDEX(SheetNames,M14),"") -> Energy Calculations | P14: 22 | Q14: =IF(ISERROR(INDEX(N$9:N$48,P14)),"",INDEX(N$9:N$48,P14)) -> 
F15: 2028 | M15: 7 | N15: =IFERROR(INDEX(SheetNames,M15),"") -> Financing Calculations | P15: 23 | Q15: =IF(ISERROR(INDEX(N$9:N$48,P15)),"",INDEX(N$9:N$48,P15)) -> 
F16: 2029 | M16: 8 | N16: =IFERROR(INDEX(SheetNames,M16),"") -> Sensitivity Calculations | P16: 24 | Q16: =IF(ISERROR(INDEX(N$9:N$48,P16)),"",INDEX(N$9:N$48,P16)) -> 
F17: 2030 | M17: 9 | N17: =IFERROR(INDEX(SheetNames,M17),"") -> Print Input | P17: 25 | Q17: =IF(ISERROR(INDEX(N$9:N$48,P17)),"",INDEX(N$9:N$48,P17)) -> 
F18: 2031 | M18: 10 | N18: =IFERROR(INDEX(SheetNames,M18),"") -> Dashboard | P18: 26 | Q18: =IF(ISERROR(INDEX(N$9:N$48,P18)),"",INDEX(N$9:N$48,P18)) -> 
F19: 2032 | M19: 11 | N19: =IFERROR(INDEX(SheetNames,M19),"") -> Sensitivity Analyses Results | P19: 27 | Q19: =IF(ISERROR(INDEX(N$9:N$48,P19)),"",INDEX(N$9:N$48,P19)) -> 
F20: 2033 | M20: 12 | N20: =IFERROR(INDEX(SheetNames,M20),"") -> Result Tables | P20: 28 | Q20: =IF(ISERROR(INDEX(N$9:N$48,P20)),"",INDEX(N$9:N$48,P20)) -> 
F21: 2034 | M21: 13 | N21: =IFERROR(INDEX(SheetNames,M21),"") -> Results Legend | P21: 29 | Q21: =IF(ISERROR(INDEX(N$9:N$48,P21)),"",INDEX(N$9:N$48,P21)) -> 
F22: 2035 | M22: 14 | N22: =IFERROR(INDEX(SheetNames,M22),"") -> Data_value | P22: 30 | Q22: =IF(ISERROR(INDEX(N$9:N$48,P22)),"",INDEX(N$9:N$48,P22)) -> 
M23: 15 | N23: =IFERROR(INDEX(SheetNames,M23),"") -> Green Book Tables | P23: 31 | Q23: =IF(ISERROR(INDEX(N$9:N$48,P23)),"",INDEX(N$9:N$48,P23)) -> 
M24: 16 | N24: =IFERROR(INDEX(SheetNames,M24),"") -> Sites-> | P24: 32 | Q24: =IF(ISERROR(INDEX(N$9:N$48,P24)),"",INDEX(N$9:N$48,P24)) -> 
M25: 17 | N25: =IFERROR(INDEX(SheetNames,M25),"") -> Template PPA Off-taker only | O25: Y | P25: 33 | Q25: =IF(ISERROR(INDEX(N$9:N$48,P25)),"",INDEX(N$9:N$48,P25)) -> 
M26: 18 | N26: =IFERROR(INDEX(SheetNames,M26),"") -> Example Medium-Cost Solar Farm | O26: Y | P26: 34 | Q26: =IF(ISERROR(INDEX(N$9:N$48,P26)),"",INDEX(N$9:N$48,P26)) -> 
M27: 19 | N27: =IFERROR(INDEX(SheetNames,M27),"") -> Example High-Cost Solar Farm | O27: Y | P27: 35 | Q27: =IF(ISERROR(INDEX(N$9:N$48,P27)),"",INDEX(N$9:N$48,P27)) -> 
M28: 20 | N28: =IFERROR(INDEX(SheetNames,M28),"") -> Example Rooftop Solar | O28: Y | P28: 36 | Q28: =IF(ISERROR(INDEX(N$9:N$48,P28)),"",INDEX(N$9:N$48,P28)) -> 
M29: 21 | N29: =IFERROR(INDEX(SheetNames,M29),"") -> Example Rooftop Solar 2 | O29: Y | P29: 37 | Q29: =IF(ISERROR(INDEX(N$9:N$48,P29)),"",INDEX(N$9:N$48,P29)) -> 
M30: 22 | N30: =IFERROR(INDEX(SheetNames,M30),"") ->  | O30: N | P30: 38 | Q30: =IF(ISERROR(INDEX(N$9:N$48,P30)),"",INDEX(N$9:N$48,P30)) -> 
M31: 23 | N31: =IFERROR(INDEX(SheetNames,M31),"") ->  | O31: N | P31: 39 | Q31: =IF(ISERROR(INDEX(N$9:N$48,P31)),"",INDEX(N$9:N$48,P31)) -> 
M32: 24 | N32: =IFERROR(INDEX(SheetNames,M32),"") ->  | O32: N | P32: 40 | Q32: =IF(ISERROR(INDEX(N$9:N$48,P32)),"",INDEX(N$9:N$48,P32)) -> 
M33: 25 | N33: =IFERROR(INDEX(SheetNames,M33),"") ->  | O33: N | P33: 41 | Q33: =IF(ISERROR(INDEX(N$9:N$48,P33)),"",INDEX(N$9:N$48,P33)) -> 
M34: 26 | N34: =IFERROR(INDEX(SheetNames,M34),"") ->  | O34: N | P34: 42 | Q34: =IF(ISERROR(INDEX(N$9:N$48,P34)),"",INDEX(N$9:N$48,P34)) -> 
M35: 27 | N35: =IFERROR(INDEX(SheetNames,M35),"") ->  | O35: N | P35: 43 | Q35: =IF(ISERROR(INDEX(N$9:N$48,P35)),"",INDEX(N$9:N$48,P35)) -> 
M36: 28 | N36: =IFERROR(INDEX(SheetNames,M36),"") ->  | O36: N | P36: 44 | Q36: =IF(ISERROR(INDEX(N$9:N$48,P36)),"",INDEX(N$9:N$48,P36)) -> 
M37: 29 | N37: =IFERROR(INDEX(SheetNames,M37),"") ->  | O37: N | P37: 45 | Q37: =IF(ISERROR(INDEX(N$9:N$48,P37)),"",INDEX(N$9:N$48,P37)) -> 
M38: 30 | N38: =IFERROR(INDEX(SheetNames,M38),"") ->  | O38: N | P38: 46 | Q38: =IF(ISERROR(INDEX(N$9:N$48,P38)),"",INDEX(N$9:N$48,P38)) -> 
M39: 31 | N39: =IFERROR(INDEX(SheetNames,M39),"") ->  | O39: N | P39: 47 | Q39: =IF(ISERROR(INDEX(N$9:N$48,P39)),"",INDEX(N$9:N$48,P39)) -> 
M40: 32 | N40: =IFERROR(INDEX(SheetNames,M40),"") ->  | O40: N | P40: 48 | Q40: =IF(ISERROR(INDEX(N$9:N$48,P40)),"",INDEX(N$9:N$48,P40)) -> 
M41: 33 | N41: =IFERROR(INDEX(SheetNames,M41),"") ->  | O41: N | P41: 49 | Q41: =IF(ISERROR(INDEX(N$9:N$48,P41)),"",INDEX(N$9:N$48,P41)) -> 
M42: 34 | N42: =IFERROR(INDEX(SheetNames,M42),"") ->  | O42: N | P42: 50 | Q42: =IF(ISERROR(INDEX(N$9:N$48,P42)),"",INDEX(N$9:N$48,P42)) -> 
M43: 35 | N43: =IFERROR(INDEX(SheetNames,M43),"") ->  | O43: N | P43: 51 | Q43: =IF(ISERROR(INDEX(N$9:N$48,P43)),"",INDEX(N$9:N$48,P43)) -> 
M44: 36 | N44: =IFERROR(INDEX(SheetNames,M44),"") ->  | O44: N | P44: 52 | Q44: =IF(ISERROR(INDEX(N$9:N$48,P44)),"",INDEX(N$9:N$48,P44)) -> 
M45: 37 | N45: =IFERROR(INDEX(SheetNames,M45),"") ->  | O45: N | P45: 53 | Q45: =IF(ISERROR(INDEX(N$9:N$48,P45)),"",INDEX(N$9:N$48,P45)) -> 
M46: 38 | N46: =IFERROR(INDEX(SheetNames,M46),"") ->  | O46: N | P46: 54 | Q46: =IF(ISERROR(INDEX(N$9:N$48,P46)),"",INDEX(N$9:N$48,P46)) -> 
M47: 39 | N47: =IFERROR(INDEX(SheetNames,M47),"") ->  | O47: N | P47: 55 | Q47: =IF(ISERROR(INDEX(N$9:N$48,P47)),"",INDEX(N$9:N$48,P47)) -> 
M48: 40 | N48: =IFERROR(INDEX(SheetNames,M48),"") ->  | O48: N | P48: 56 | Q48: =IF(ISERROR(INDEX(N$9:N$48,P48)),"",INDEX(N$9:N$48,P48)) -> 

Sheet Energy Calculations (hidden)
B1: Energy and emissions
B3: Input settings last calculation
B4: Include Grant? | C4: Include feasibility costs? | D4: Retail Electricity Price source? | E4: Energy export price source | F4: Year zero reference | G4: Offtake based on minimum IRR generator? | H4: Revenue Model | I4: Project Financing | J4: Role | K4: Offtake based on target NPV off-taker? | L4: Site
B5: 2 | C5: 1 | D5: 2 | E5: 2 | F5: 3 | G5: 2 | H5: 1 | I5: 3 | J5: 1 | K5: 2 | L5: 20
B6: No | C6: Yes | D6: User Curve | E6: User Curve | F6: 2024 | G6: No | H6: On site self-consumption | I6: Annuity loan | J6: Asset Owner/Generator | K6: No | L6: Example Rooftop Solar
BQ8: Solver Data
BQ9: Target IRR | BR9: 0.05 | BS9: Offtake Rate (£/kWh) | BT9: =IF(AND($G$6="yes", $J$5<>1), energy_offtake_rate,IF(AND($K$6="yes",$J$5=1),energy_offtake_rate,G95)) -> 0.07 | BU9: Target NPV Off-taker | BV9: 700000
BQ10: years | BR10: 30 | BT10: 0.1209028627 | BU10: Actual NPV off-taker | BV10: =IF($H$5=3,$BV$54,$BH$54) -> 519138.3395
BQ11: Current IRR | BR11: =IFERROR(IRR(BX20:BX50,0.03),-999.9%) -> -0.03581290215 | BS11: Target residual | BT11: =NPV(BR9,BX20:BX50) -> -213246.293 | BU11: Target Max | BV11: =IF($H$5=3,$BS$54,$BE$54) -> -197727.1067
AQ13: Revenue_model_1 | AZ13: Revenue_model_2 | BM13: Revenue_model_3
AS14: Energy_grant_1 | AV14: Energy_CF_13 | AW14: Energy_DCF_13 | BB14: Energy_grant_2 | BE14: Energy_CF_23 | BF14: Energy_DCF_23 | BG14: Energy_CF_22 | BH14: Energy_DCF_22 | BI14: Energy_CF_21 | BJ14: Energy_DCF_21 | BP14: Energy_grant_3 | BR14: Energy_CF_33 | BS14: Energy_DCF_33 | BT14: Energy_CF_32 | BU14: Energy_DCF_32 | BV14: Energy_CF_31 | BW14: Energy_DCF_31
AP15: On site self-consumption | AZ15: Private Wire | BN15: Sleeved PPA
L16: Cost of energy | Y16: Net Revenue Streams | AA16: Operational Costs | AD16: PPA revenue streams | AM16: Emissions (based on Green Book) | AP16: Cash flows
N17: Energy_PPA_gen | R17: Energy_PPA_Sleeving | AD17: Energy_cost_gen | AF17: Energy_cost_sleeving | AZ17: (Asset Owner) | BE17: (Whole Project) | BG17: (Off-taker) | BI17: (Asset Owner) | BM17: (Asset Owner) | BR17: =BE17 -> (Whole Project) | BT17: =BG17 -> (Off-taker) | BV17: =BI17 -> (Asset Owner)
B18: Year (from start) | C18: Rated power (year 0) | D18: Reduction in generation (from year 1) | E18: Electricity utilised (%) | F18: Electricity exported (%) | G18: Expected generated | H18: Electricity utilised | I18: Electricity exported | K18: ='User Curve'!J27 -> Cumulative inflation rate Reference year=1 | L18: Retail Electricity Price - Baseline | M18: Price for Electricity Exported (revenue) | N18: PPA Price Offtaker | O18: PPA price Generator (revenue) | P18: Commodity component PPA | Q18: REGO | R18: Export Imbalance fees | S18: Management fee generator | T18: Policy Costs | U18: Network Costs | V18: Management fee off-taker | W18: Sleeving Fee | Y18: Displaced energy | Z18: Exported energy | AA18: Operations & Maintenance cost | AB18: Inverter replacement cost | AC18: Electricity Production cost | AD18: Commodity cost (paid to asset owner) | AE18: REGO (paid to asset owner) | AF18: Export Imbalance fees (paid to the supplier) | AG18: Management fee generator (paid to supplier) | AH18: Policy Costs (paid to supplier) | AI18: Network Costs (paid to supplier) | AJ18: Management fee off-taker (paid to the supplier) | AK18: Sleeving fee (paid to the supplier) | AM18: Emissions from national grid | AN18: Emissions savings | AP18: Year | AQ18: Project feasibility | AR18: CAPEX | AS18: Grant or Subsides | AT18: OPEX | AU18: Revenue | AV18: Net cashflow - No financing | AW18: Discounted Cumulative Cashflow - No financing | AY18: Year | AZ18: Project feasibility | BA18: CAPEX | BB18: Grant or Subsides | BC18: OPEX | BD18: Revenue | BE18: Net cashflow - No financing | BF18: Discounted Cumulative Cashflow - No financing | BG18: Off-taker's Cumulative Savings | BH18: Discounted Cumulative Savings | BI18: Net cashflow - No financing | BJ18: Discounted Cumulative Cashflow - No financing | BL18: Year | BM18: Project feasibility | BN18: CAPEX | BO18: Grant or Subsides | BP18: OPEX | BQ18: Revenue | BR18: Net Cash Flow - No Financing | BS18: Discounted Cumulative Cash Flow - No Financing | BT18: Off-taker's Cumulative Savings | BU18: Discounted Cumulative Savings | BV18: Net cashflow - No financing | BW18: Discounted Cumulative Cashflow - No financing | BX18: Calc. Column
C19: kW | D19: % | E19: % | F19: % | G19: kWh | H19: kWh | I19: kWh | L19: £/kWh | M19: £/kWh | N19: £/kWh | O19: £/kWh | P19: £/kWh | Q19: £/kWh | R19: £/kWh | S19: £/kWh | T19: £/kWh | U19: £/kWh | V19: £/kWh | W19: £/kWh | Y19: £ | Z19: £ | AA19: £ | AB19: £ | AC19: £/kWh | AD19: £ | AE19: £ | AF19: £ | AG19: £ | AH19: £ | AI19: £ | AJ19: £ | AK19: £ | AM19: kg CO2e/kWh | AN19: kg CO2e | AQ19: £ | AR19: £ | AS19: £ | AT19: £ | AU19: £ | AV19: £ | AW19: £ | AZ19: £ | BA19: £ | BB19: £ | BC19: £ | BD19: £ | BG19: £ | BH19: £ | BI19: £ | BJ19: £ | BM19: £ | BN19: £ | BO19: £ | BP19: £ | BQ19: £ | BT19: £ | BU19: £ | BV19: £ | BW19: £
B20: 0 | C20: =$G$82 -> 200 | D20: 0 | E20: =$G$86 -> 1 | F20: =$G$87 -> 0 | G20: =$G$83/8760*365*24*C20 -> 160000 | K20: =IFERROR(INDEX('User Curve'!$J$29:$J$119,MATCH(AP20,'User Curve'!$B$29:$B$119,0)),"") -> 1 | L20: =IF($B20>$G$88,"",INDEX(IF($D$5=1,Green_book_medium,usercurve_import_medium),MATCH($AP20,'User Curve'!$B$29:$B$119,0))/100) -> 0.448954535 | M20: =IF($B20>$G$88,"",INDEX(IF($E$5=2,'User Curve'!$F$29:$F$119,'User Curve'!$G$29:$G$119),MATCH($AP20,'User Curve'!$B$29:$B$119,0))/100) -> 0.1346863605 | N20: =IF($B20<=$G$88,IF($H$5=2,SUM(P20:Q20),SUM(P20:Q20)+SUM(T20:W20)),NA()) -> 0.1459 | O20: =IF($B20<=$G$88,IF($H$5=2,SUM(P20:Q20),SUM(P20:Q20)-SUM(R20:S20)),NA()) -> 0.07085 | P20: =IF($B20<=$G$88,$BT$9*K20,"") -> 0.07 | Q20: =IF($B20<=$G$88,$G$102*$K20,"") -> 0.004 | R20: =IF($B20<=$G$88,$G$96*$K20,"") -> 0.00175 | S20: =IF($B20<=$G$88,$G$99*$K20,"") -> 0.0014 | T20: =IF($B20<=$G$88,$G$100*$K20,"") -> 0.0365 | U20: =IF($B20<=$G$88,$G$101*$K20,"") -> 0.03 | V20: =IF($B20<=$G$88,$G$98*$K20,"") -> 0.0014 | W20: =IF($B20<=$G$88,$G$97*K20,"") -> 0.004 | AD20: =IF($B20<=$G$88,P20*$H20,"") -> 0 | AE20: =IF($B20<=$G$88,Q20*$H20,"") -> 0 | AF20: =IF($B20<=$G$88,R20*H20,"") -> 0 | AG20: =IF($B20<=$G$88,S20*K20,"") -> 0.0014 | AH20: =IF($B20<=$G$88,T20*I20,"") -> 0 | AI20: =IF($B20<=$G$88,U20*J20,"") -> 0 | AJ20: =IF($B20<=$G$88,V20*$H20,"") -> 0 | AK20: =IF($B20<=$G$88,W20*$H20,"") -> 0 | AM20: =IFERROR(INDEX('Green Book Tables'!F16:F106,MATCH(AP20,'Green Book Tables'!D16:D106,0)),"") -> 0.2271563016 | AN20: =IF(B20<=$G$88,AM20*H20,"") -> 0 | AP20: =IF(B20>$G$88,"",$F$6+B20) -> 2024 | AQ20: =IF($C$5=2,0,-$G$90) -> 0 | AR20: =-$G$91 -> -334007 | AS20: =IF($B$5=1,-$AR$20*$G$93,0) -> 0 | AV20: =IF(B20>$G$88,"",SUM(AQ20:AU20)) -> -334007 | AW20: =AV20/(1+$G$94)^($B20+1) -> -322712.0773 | AY20: =AP20 -> 2024 | AZ20: =AQ20 -> 0 | BA20: =-$G$91 -> -334007 | BB20: =AS20 -> 0 | BE20: =SUM(BI20,BG20) -> -334007 | BF20: =BJ20+BH20 -> -322712.0773 | BG20: =$Y20-AD20-AE20 -> 0 | BH20: =BG20/(1+$G$94)^($B20+1) -> 0 | BI20: =SUM(AZ20:BD20) -> -334007 | BJ20: =BI20/(1+$G$94)^($B20+1) -> -322712.0773 | BL20: =AY20 -> 2024 | BM20: =AQ20 -> 0 | BN20: =AR20 -> -334007 | BO20: =AS20 -> 0 | BR20: =SUM(BV20,BT20) -> -334007 | BS20: =BW20+BU20 -> -322712.0773 | BT20: =IF(B20>$G$88,"",$Y20-$AD20-AE20-$AF20-AJ20-$AK20-AH20-AI20) -> 0 | BU20: =BT20/(1+$G$94)^($B20+1) -> 0 | BV20: =SUM(BM20:BQ20) -> -334007 | BW20: =BV20/(1+$G$94)^($B20+1) -> -322712.0773 | BX20: =IF(B20<=$BR$10,1,0)*IF($H$5=3,BV20,'Energy Calculations'!BI20) -> -334007
B21: 1 | D21: =IF(B21<=$G$88,G84,"") -> 0.026 | E21: =IF($B21<=$G$88,$G$86,"") -> 1 | F21: =IF($B21<=$G$88,$G$87,"") -> 0 | G21: =IF(B21<=$G$88,$G$20*(1-D21),"") -> 155840 | H21: =IF(B21<=$G$88,$G21*E21,"") -> 155840 | I21: =IF(B21<=$G$88,$G21*F21,"") -> 0 | K21: =IFERROR(INDEX('User Curve'!$J$29:$J$119,MATCH(AP21,'User Curve'!$B$29:$B$119,0)),"") -> 1.004 | L21: =IF($B21>$G$88,"",INDEX(IF($D$5=1,Green_book_medium,usercurve_import_medium),MATCH($AP21,'User Curve'!$B$29:$B$119,0))/100) -> 0.361951295 | M21: =IF($B21>$G$88,"",INDEX(IF($E$5=2,'User Curve'!$F$29:$F$119,'User Curve'!$G$29:$G$119),MATCH($AP21,'User Curve'!$B$29:$B$119,0))/100) -> 0.1085853885 | N21: 0.1464836 | O21: =IF($B21<=$G$88,IF($H$5=2,SUM(P21:Q21),SUM(P21:Q21)-SUM(R21:S21)),NA()) -> 0.0711334 | P21: 0.07028 | Q21: 0.004016 | R21: =IF($B21<=$G$88,$G$96*K21,"") -> 0.001757 | S21: 0.0014056 | T21: =IF($B21<=$G$88,$G$100*$K21,"") -> 0.036646 | U21: =IF($B21<=$G$88,$G$101*$K21,"") -> 0.03012 | V21: =IF($B21<=$G$88,$G$98*$K21,"") -> 0.0014056 | W21: 0.004016 | Y21: =IF($B21<=$G$88,L21*H21,"") -> 56406.48981 | Z21: =IF($B21<=$G$88,M21*I21,"") -> 0 | AA21: =IF($B21<=$G$88,$G$105*$G$82*K21,"") -> 3012 | AB21: =IF(B21<=$G$88,$G$104*$G$82*$G$103/$G$88*K21,"") -> 1285.12 | AC21: =IF($B21<=$G$88,(($AQ$20+$G$91)/$G$88+AA21+AB21)/G21,"") -> 0.1133046715 | AD21: =IF($B21<=$G$88,P21*H21,"") -> 10952.4352 | AE21: =IF($B21<=$G$88,Q21*$H21,"") -> 625.85344 | AF21: =IF($B21<=$G$88,R21*$H21,"") -> 273.81088 | AG21: =IF($B21<=$G$88,S21*$H21,"") -> 219.048704 | AH21: =IF($B21<=$G$88,T21*$H21,"") -> 5710.91264 | AI21: =IF($B21<=$G$88,U21*$H21,"") -> 4693.9008 | AJ21: 219.048704 | AK21: 625.85344 | AM21: =IFERROR(INDEX('Green Book Tables'!F17:F107,MATCH(AP21,'Green Book Tables'!D17:D107,0)),"") -> 0.2091680411 | AN21: 32596.74752 | AP21: 2025 | AT21: =-SUM($AA21:$AB21) -> -4297.12 | AU21: =SUM($Y21,$Z21) -> 56406.48981 | AV21: 52109.36981 | AW21: =IF($B21<=$G$88,AV21/(1+$G$94)^($B21+1)+AW20,0) -> -274067.423 | AY21: 2025 | BC21: =-SUM($AA21:$AB21) -> -4297.12 | BD21: =IF(B21<=$G$88,SUM(AD21:AE21,Z21),"") -> 11578.28864 | BE21: =SUM(BI21,BG21) -> 52109.36981 | BF21: =BJ21+BH21 -> -274067.423 | BG21: =IF(B21>$G$88,"",$Y21-AD21-AE21) -> 44828.20117 | BH21: =IF($B21<=$G$88,BG21/(1+$G$94)^($B21+1)+BH20,0) -> 41847.60547 | BI21: =SUM(AZ21:BD21) -> 7281.16864 | BJ21: =IF($B21<=$G$88,BI21/(1+$G$94)^($B21+1)+BJ20,0) -> -315915.0285 | BL21: =AY21 -> 2025 | BP21: =-SUM(AA21:AB21) -> -4297.12 | BQ21: =IF(B21<=$G$88,SUM($AD21,Z21,AE21,-AF21-AG21),"") -> 11085.42906 | BR21: =SUM(BV21,BT21) -> 40092.98376 | BS21: -285284.8479 | BT21: 33304.6747 | BU21: =IF($B21<=$G$88,BT21/(1+$G$94)^($B21+1)+BU20,0) -> 31090.27021 | BV21: =SUM(BM21:BQ21) -> 6788.309056 | BW21: =IF($B21<=$G$88,BV21/(1+$G$94)^($B21+1)+BW20,0) -> -316375.1182 | BX21: =IF(B21<=$BR$10,1,0)*IF($H$5=3,BV21,'Energy Calculations'!BI21) -> 7281.16864
B22: 2 | D22: =IF($B22<=$G$88,D21+$G$85,"") -> 0.033 | E22: =IF($B22<=$G$88,$G$86,"") -> 1 | F22: =IF($B22<=$G$88,$G$87,"") -> 0 | G22: =IF(B22<=$G$88,$G$20*(1-D22),"") -> 154720 | H22: =IF(B22<=$G$88,$G22*E22,"") -> 154720 | I22: =IF(B22<=$G$88,$G22*F22,"") -> 0 | K22: =IFERROR(INDEX('User Curve'!$J$29:$J$119,MATCH(AP22,'User Curve'!$B$29:$B$119,0)),"") -> 1.02408 | L22: =IF($B22>$G$88,"",INDEX(IF($D$5=1,Green_book_medium,usercurve_import_medium),MATCH($AP22,'User Curve'!$B$29:$B$119,0))/100) -> 0.3182315298 | M22: =IF($B22>$G$88,"",INDEX(IF($E$5=2,'User Curve'!$F$29:$F$119,'User Curve'!$G$29:$G$119),MATCH($AP22,'User Curve'!$B$29:$B$119,0))/100) -> 0.09546945893 | N22: 0.149413272 | O22: =IF($B22<=$G$88,IF($H$5=2,SUM(P22:Q22),SUM(P22:Q22)-SUM(R22:S22)),NA()) -> 0.072556068 | P22: 0.0716856 | Q22: 0.00409632 | R22: 0.00179214 | S22: 0.001433712 | T22: 0.03737892 | U22: 0.0307224 | V22: 0.001433712 | W22: 0.00409632 | Y22: 49236.78228 | Z22: 0 | AA22: 3072.24 | AB22: 1310.8224 | AC22: 0.1146803413 | AD22: 11091.19603 | AE22: =IF($B22<=$G$88,Q22*$H22,"") -> 633.7826304 | AF22: =IF($B22<=$G$88,R22*H22,"") -> 277.2799008 | AG22: =IF($B22<=$G$88,S22*$H22,"") -> 221.8239206 | AH22: =IF($B22<=$G$88,T22*$H22,"") -> 5783.266502 | AI22: =IF($B22<=$G$88,U22*$H22,"") -> 4753.369728 | AJ22: 221.8239206 | AK22: 633.7826304 | AM22: =IFERROR(INDEX('Green Book Tables'!F18:F108,MATCH(AP22,'Green Book Tables'!D18:D108,0)),"") -> 0.1899116943 | AN22: 29383.13734 | AP22: 2026 | AT22: -4383.0624 | AU22: 49236.78228 | AV22: 44853.71988 | AW22: -233611.9375 | AY22: 2026 | BC22: -4383.0624 | BD22: 11724.97866 | BE22: =SUM(BI22,BG22) -> 44853.71988 | BF22: -233611.9375 | BG22: 37511.80362 | BH22: =IF($B22<=$G$88,BG22/(1+$G$94)^($B22+1)+BH21,0) -> 75681.10312 | BI22: =SUM(AZ22:BD22) -> 7341.916262 | BJ22: =IF($B22<=$G$88,BI22/(1+$G$94)^($B22+1)+BJ21,0) -> -309293.0406 | BL22: =AY22 -> 2026 | BP22: -4383.0624 | BQ22: 11225.87484 | BR22: =SUM(BV22,BT22) -> 32685.09338 | BS22: -255804.7664 | BT22: 25842.28094 | BU22: =IF($B22<=$G$88,BT22/(1+$G$94)^($B22+1)+BU21,0) -> 54398.527 | BV22: =SUM(BM22:BQ22) -> 6842.812441 | BW22: -310203.2934 | BX22: =IF(B22<=$BR$10,1,0)*IF($H$5=3,BV22,'Energy Calculations'!BI22) -> 7341.916262
B23: 3 | D23: =IF($B23<=$G$88,D22+$G$85,"") -> 0.04 | E23: 1 | F23: 0 | G23: 153600 | H23: 153600 | I23: 0 | K23: =IFERROR(INDEX('User Curve'!$J$29:$J$119,MATCH(AP23,'User Curve'!$B$29:$B$119,0)),"") -> 1.0445616 | L23: =IF($B23>$G$88,"",INDEX(IF($D$5=1,Green_book_medium,usercurve_import_medium),MATCH($AP23,'User Curve'!$B$29:$B$119,0))/100) -> 0.2901253757 | M23: =IF($B23>$G$88,"",INDEX(IF($E$5=2,'User Curve'!$F$29:$F$119,'User Curve'!$G$29:$G$119),MATCH($AP23,'User Curve'!$B$29:$B$119,0))/100) -> 0.08703761272 | N23: 0.1524015374 | O23: 0.07400718936 | P23: 0.073119312 | Q23: 0.0041782464 | R23: 0.0018279828 | S23: 0.00146238624 | T23: 0.0381264984 | U23: 0.031336848 | V23: 0.00146238624 | W23: 0.0041782464 | Y23: 44563.25771 | Z23: 0 | AA23: 3133.6848 | AB23: 1337.038848 | AC23: 0.1160872633 | AD23: 11231.12632 | AE23: 641.778647 | AF23: 280.7781581 | AG23: 224.6225265 | AH23: 5856.230154 | AI23: 4813.339853 | AJ23: 224.6225265 | AK23: 641.778647 | AM23: =IFERROR(INDEX('Green Book Tables'!F19:F109,MATCH(AP23,'Green Book Tables'!D19:D109,0)),"") -> 0.1692978674 | AN23: 26004.15243 | AP23: 2027 | AT23: -4470.723648 | AU23: 44563.25771 | AV23: 40092.53406 | AW23: -198673.6103 | AY23: 2027 | BC23: -4470.723648 | BD23: 11872.90497 | BE23: 40092.53406 | BF23: -198673.6103 | BG23: 32690.35274 | BH23: 104168.8569 | BI23: 7402.181322 | BJ23: -302842.4673 | BL23: 2027 | BP23: -4470.723648 | BQ23: 11367.50429 | BR23: 27770.38404 | BS23: -231604.4811 | BT23: 20873.6034 | BU23: 72588.66645 | BV23: 6896.780638 | BW23: -304193.1475 | BX23: =IF(B23<=$BR$10,1,0)*IF($H$5=3,BV23,'Energy Calculations'!BI23) -> 7402.181322
B24: 4 | D24: 0.047 | E24: 1 | F24: 0 | G24: 152480 | H24: 152480 | I24: 0 | K24: =IFERROR(INDEX('User Curve'!$J$29:$J$119,MATCH(AP24,'User Curve'!$B$29:$B$119,0)),"") -> 1.065452832 | L24: =IF($B24>$G$88,"",INDEX(IF($D$5=1,Green_book_medium,usercurve_import_medium),MATCH($AP24,'User Curve'!$B$29:$B$119,0))/100) -> 0.2796027642 | M24: =IF($B24>$G$88,"",INDEX(IF($E$5=2,'User Curve'!$F$29:$F$119,'User Curve'!$G$29:$G$119),MATCH($AP24,'User Curve'!$B$29:$B$119,0))/100) -> 0.08388082925 | N24: 0.1554495682 | O24: 0.07548733315 | P24: 0.07458169824 | Q24: 0.004261811328 | R24: 0.001864542456 | S24: 0.001491633965 | T24: 0.03888902837 | U24: 0.03196358496 | V24: 0.001491633965 | W24: 0.004261811328 | Y24: 42633.82948 | Z24: 0 | AA24: 3196.358496 | AB24: 1363.779625 | AC24: 0.1175263518 | AD24: 11372.21735 | AE24: 649.8409913 | AF24: 284.3054337 | AG24: 227.444347 | AH24: 5929.799046 | AI24: 4873.807435 | AJ24: 227.444347 | AK24: 649.8409913 | AM24: =IFERROR(INDEX('Green Book Tables'!F20:F110,MATCH(AP24,'Green Book Tables'!D20:D110,0)),"") -> 0.1472308644 | AN24: 22449.7622 | AP24: 2028 | AT24: -4560.138121 | AU24: 42633.82948 | AV24: 38073.69136 | AW24: -166616.5838 | AY24: 2028 | BC24: -4560.138121 | BD24: 12022.05834 | BE24: 38073.69136 | BF24: -166616.5838 | BG24: 30611.77114 | BH24: 129943.1468 | BI24: 7461.920218 | BJ24: -296559.7307 | BL24: 2028 | BP24: -4560.138121 | BQ24: 11510.30856 | BR24: 25596.74433 | BS24: -210052.7092 | BT24: 18646.57389 | BU24: 88288.58132 | BV24: 6950.170437 | BW24: -298341.2905 | BX24: =IF(B24<=$BR$10,1,0)*IF($H$5=3,BV24,'Energy Calculations'!BI24) -> 7461.920218
B25: 5 | D25: 0.054 | E25: 1 | F25: 0 | G25: 151360 | H25: 151360 | I25: 0 | K25: =IFERROR(INDEX('User Curve'!$J$29:$J$119,MATCH(AP25,'User Curve'!$B$29:$B$119,0)),"") -> 1.086761889 | L25: =IF($B25>$G$88,"",INDEX(IF($D$5=1,Green_book_medium,usercurve_import_medium),MATCH($AP25,'User Curve'!$B$29:$B$119,0))/100) -> 0.2773375613 | M25: =IF($B25>$G$88,"",INDEX(IF($E$5=2,'User Curve'!$F$29:$F$119,'User Curve'!$G$29:$G$119),MATCH($AP25,'User Curve'!$B$29:$B$119,0))/100) -> 0.08320126838 | N25: 0.1585585596 | O25: 0.07699707981 | P25: 0.0760733322 | Q25: 0.004347047555 | R25: 0.001901833305 | S25: 0.001521466644 | T25: 0.03966680894 | U25: 0.03260285666 | V25: 0.001521466644 | W25: 0.004347047555 | Y25: 41977.81327 | Z25: 0 | AA25: 3260.285666 | AB25: 1391.055217 | AC25: 0.1189985523 | AD25: 11514.45956 | AE25: 657.9691179 | AF25: 287.8614891 | AG25: 230.2891913 | AH25: 6003.9682 | AI25: 4934.768384 | AJ25: 230.2891913 | AK25: 657.9691179 | AM25: =IFERROR(INDEX('Green Book Tables'!F21:F111,MATCH(AP25,'Green Book Tables'!D21:D111,0)),"") -> 0.1236082434 | AN25: 18709.34372 | AP25: 2029 | AT25: -4651.340883 | AU25: 41977.81327 | AV25: 37326.47239 | AW25: -136251.4745 | AY25: 2029 | BC25: -4651.340883 | BD25: 12172.42868 | BE25: 37326.47239 | BF25: -136251.4745 | BG25: 29805.38459 | BH25: 154189.8464 | BI25: 7521.087797 | BJ25: -290441.3209 | BL25: 2029 | BP25: -4651.340883 | BQ25: 11654.278 | BR25: 24693.46533 | BS25: -189964.5592 | BT25: 17690.52821 | BU25: 102679.8374 | BV25: 7002.937117 | BW25: -292644.3966 | BX25: =IF(B25<=$BR$10,1,0)*IF($H$5=3,BV25,'Energy Calculations'!BI25) -> 7521.087797
B26: 6 | D26: 0.061 | E26: 1 | F26: 0 | G26: 150240 | H26: 150240 | I26: 0 | K26: =IFERROR(INDEX('User Curve'!$J$29:$J$119,MATCH(AP26,'User Curve'!$B$29:$B$119,0)),"") -> 1.108497126 | L26: =IF($B26>$G$88,"",INDEX(IF($D$5=1,Green_book_medium,usercurve_import_medium),MATCH($AP26,'User Curve'!$B$29:$B$119,0))/100) -> 0.2724887922 | M26: =IF($B26>$G$88,"",INDEX(IF($E$5=2,'User Curve'!$F$29:$F$119,'User Curve'!$G$29:$G$119),MATCH($AP26,'User Curve'!$B$29:$B$119,0))/100) -> 0.08174663765 | N26: 0.1617297307 | O26: 0.07853702141 | P26: 0.07759479885 | Q26: 0.004433988506 | R26: 0.001939869971 | S26: 0.001551895977 | T26: 0.04046014511 | U26: 0.03325491379 | V26: 0.001551895977 | W26: 0.004433988506 | Y26: 40938.71614 | Z26: 0 | AA26: 3325.491379 | AB26: 1418.876322 | AC26: 0.1205048436 | AD26: 11657.84258 | AE26: 666.1624331 | AF26: 291.4460645 | AG26: 233.1568516 | AH26: 6078.732202 | AI26: 4996.218248 | AJ26: 233.1568516 | AK26: 666.1624331 | AM26: =IFERROR(INDEX('Green Book Tables'!F22:F112,MATCH(AP26,'Green Book Tables'!D22:D112,0)),"") -> 0.09832034083 | AN26: 14771.64801 | AP26: 2030 | AT26: -4744.367701 | AU26: 40938.71614 | AV26: 36194.34843 | AW26: -107803.0438 | AY26: 2030 | BC26: -4744.367701 | BD26: 12324.00501 | BE26: 36194.34843 | BF26: -107803.0438 | BG26: 28614.71112 | BH26: 176680.7507 | BI26: 7579.637311 | BJ26: -284483.7945 | BL26: 2030 | BP26: -4744.367701 | BQ26: 11799.4021 | BR26: 23404.02972 | BS26: -171569.2034 | BT26: 16348.99532 | BU26: 115530 | BV26: 7055.034395 | BW26: -287099.2034 | BX26: =IF(B26<=$BR$10,1,0)*IF($H$5=3,BV26,'Energy Calculations'!BI26) -> 7579.637311
B27: 7 | D27: 0.068 | E27: 1 | F27: 0 | G27: 149120 | H27: 149120 | I27: 0 | K27: =IFERROR(INDEX('User Curve'!$J$29:$J$119,MATCH(AP27,'User Curve'!$B$29:$B$119,0)),"") -> 1.130667069 | L27: =IF($B27>$G$88,"",INDEX(IF($D$5=1,Green_book_medium,usercurve_import_medium),MATCH($AP27,'User Curve'!$B$29:$B$119,0))/100) -> 0.277036581 | M27: =IF($B27>$G$88,"",INDEX(IF($E$5=2,'User Curve'!$F$29:$F$119,'User Curve'!$G$29:$G$119),MATCH($AP27,'User Curve'!$B$29:$B$119,0))/100) -> 0.08311097431 | N27: 0.1649643254 | O27: 0.08010776183 | P27: 0.07914669483 | Q27: 0.004522668276 | R27: 0.001978667371 | S27: 0.001582933897 | T27: 0.04126934802 | U27: 0.03392001207 | V27: 0.001582933897 | W27: 0.004522668276 | Y27: 41311.69496 | Z27: 0 | AA27: 3392.001207 | AB27: 1447.253848 | AC27: 0.1220462383 | AD27: 11802.35513 | AE27: 674.4202933 | AF27: 295.0588783 | AG27: 236.0471026 | AH27: 6154.085176 | AI27: 5058.1522 | AJ27: 236.0471026 | AK27: 674.4202933 | AM27: =IFERROR(INDEX('Green Book Tables'!F23:F113,MATCH(AP27,'Green Book Tables'!D23:D113,0)),"") -> 0.08186101592 | AN27: 12207.11469 | AP27: 2031 | AT27: -4839.255055 | AU27: 41311.69496 | AV27: 36472.43991 | AW27: -80105.45145 | AY27: 2031 | BC27: -4839.255055 | BD27: 12476.77543 | BE27: 36472.43991 | BF27: -80105.45145 | BG27: 28834.91954 | BH27: 198578.3218 | BI27: 7637.520371 | BJ27: -278683.7733 | BL27: 2031 | BP27: -4839.255055 | BQ27: 11945.66944 | BR27: 23523.57028 | BS27: -153705.1323 | BT27: 16417.15589 | BU27: 127997.3779 | BV27: 7106.41439 | BW27: -281702.5102 | BX27: =IF(B27<=$BR$10,1,0)*IF($H$5=3,BV27,'Energy Calculations'!BI27) -> 7637.520371
B28: 8 | D28: 0.075 | E28: 1 | F28: 0 | G28: 148000 | H28: 148000 | I28: 0 | K28: =IFERROR(INDEX('User Curve'!$J$29:$J$119,MATCH(AP28,'User Curve'!$B$29:$B$119,0)),"") -> 1.15328041 | L28: =IF($B28>$G$88,"",INDEX(IF($D$5=1,Green_book_medium,usercurve_import_medium),MATCH($AP28,'User Curve'!$B$29:$B$119,0))/100) -> 0.2825773126 | M28: =IF($B28>$G$88,"",INDEX(IF($E$5=2,'User Curve'!$F$29:$F$119,'User Curve'!$G$29:$G$119),MATCH($AP28,'User Curve'!$B$29:$B$119,0))/100) -> 0.08477319379 | N28: 0.1682636119 | O28: 0.08170991707 | P28: 0.08072962872 | Q28: 0.004613121641 | R28: 0.002018240718 | S28: 0.001614592574 | T28: 0.04209473498 | U28: 0.03459841231 | V28: 0.001614592574 | W28: 0.004613121641 | Y28: 41821.44227 | Z28: 0 | AA28: 3459.841231 | AB28: 1476.198925 | AC28: 0.1236237848 | AD28: 11947.98505 | AE28: 682.7420029 | AF28: 298.6996263 | AG28: 238.959701 | AH28: 6230.020777 | AI28: 5120.565022 | AJ28: 238.959701 | AK28: 682.7420029 | AM28: =IFERROR(INDEX('Green Book Tables'!F24:F114,MATCH(AP28,'Green Book Tables'!D24:D114,0)),"") -> 0.06815706567 | AN28: 10087.24572 | AP28: 2032 | AT28: -4936.040156 | AU28: 41821.44227 | AV28: 36885.40211 | AW28: -53041.48949 | AY28: 2032 | BC28: -4936.040156 | BD28: 12630.72705 | BE28: 36885.40211 | BF28: -53041.48949 | BG28: 29190.71522 | BH28: 219996.4537 | BI28: 7694.686898 | BJ28: -273037.9432 | BL28: 2032 | BP28: -4936.040156 | BQ28: 12093.06773 | BR28: 23776.75566 | BS28: -136259.3903 | BT28: 16619.72809 | BU28: 140191.7871 | BV28: 7157.02757 | BW28: -276451.1774 | BX28: =IF(B28<=$BR$10,1,0)*IF($H$5=3,BV28,'Energy Calculations'!BI28) -> 7694.686898
B29: 9 | D29: 0.082 | E29: 1 | F29: 0 | G29: 146880 | H29: 146880 | I29: 0 | K29: =IFERROR(INDEX('User Curve'!$J$29:$J$119,MATCH(AP29,'User Curve'!$B$29:$B$119,0)),"") -> 1.176346019 | L29: =IF($B29>$G$88,"",INDEX(IF($D$5=1,Green_book_medium,usercurve_import_medium),MATCH($AP29,'User Curve'!$B$29:$B$119,0))/100) -> 0.2882288589 | M29: =IF($B29>$G$88,"",INDEX(IF($E$5=2,'User Curve'!$F$29:$F$119,'User Curve'!$G$29:$G$119),MATCH($AP29,'User Curve'!$B$29:$B$119,0))/100) -> 0.08646865767 | N29: 0.1716288841 | O29: 0.08334411541 | P29: 0.0823442213 | Q29: 0.004705384074 | R29: 0.002058605532 | S29: 0.001646884426 | T29: 0.04293662968 | U29: 0.03529038056 | V29: 0.001646884426 | W29: 0.004705384074 | Y29: 42335.05479 | Z29: 0 | AA29: 3529.038056 | AB29: 1505.722904 | AC29: 0.1252385686 | AD29: 12094.71922 | AE29: 691.1268128 | AF29: 302.3679806 | AG29: 241.8943845 | AH29: 6306.532167 | AI29: 5183.451096 | AJ29: 241.8943845 | AK29: 691.1268128 | AM29: =IFERROR(INDEX('Green Book Tables'!F25:F115,MATCH(AP29,'Green Book Tables'!D25:D115,0)),"") -> 0.05674722637 | AN29: 8335.032609 | AP29: 2033 | AT29: -5034.760959 | AU29: 42335.05479 | AV29: 37300.29383 | AW29: -26598.60944 | AY29: 2033 | BC29: -5034.760959 | BD29: 12785.84604 | BE29: 37300.29383 | BF29: -26598.60944 | BG29: 29549.20876 | BH29: 240944.4437 | BI29: 7751.085078 | BJ29: -267543.0531 | BL29: 2033 | BP29: -5034.760959 | BQ29: 12241.58367 | BR29: 24030.65903 | BS29: -119223.604 | BT29: 16823.83632 | BU29: 152118.5212 | BV29: 7206.822713 | BW29: -271342.1252 | BX29: =IF(B29<=$BR$10,1,0)*IF($H$5=3,BV29,'Energy Calculations'!BI29) -> 7751.085078
B30: 10 | D30: 0.089 | E30: 1 | F30: 0 | G30: 145760 | H30: 145760 | I30: 0 | K30: =IFERROR(INDEX('User Curve'!$J$29:$J$119,MATCH(AP30,'User Curve'!$B$29:$B$119,0)),"") -> 1.199872939 | L30: =IF($B30>$G$88,"",INDEX(IF($D$5=1,Green_book_medium,usercurve_import_medium),MATCH($AP30,'User Curve'!$B$29:$B$119,0))/100) -> 0.2939934361 | M30: =IF($B30>$G$88,"",INDEX(IF($E$5=2,'User Curve'!$F$29:$F$119,'User Curve'!$G$29:$G$119),MATCH($AP30,'User Curve'!$B$29:$B$119,0))/100) -> 0.08819803082 | N30: 0.1750614618 | O30: 0.08501099772 | P30: 0.08399110572 | Q30: 0.004799491756 | R30: 0.002099777643 | S30: 0.001679822114 | T30: 0.04379536227 | U30: 0.03599618817 | V30: 0.001679822114 | W30: 0.004799491756 | Y30: 42852.48324 | Z30: 0 | AA30: 3599.618817 | AB30: 1535.837362 | AC30: 0.1268917136 | AD30: 12242.54357 | AE30: 699.5739183 | AF30: 306.0635893 | AG30: 244.8508714 | AH30: 6383.612004 | AI30: 5246.804387 | AJ30: 244.8508714 | AK30: 699.5739183 | AM30: =IFERROR(INDEX('Green Book Tables'!F26:F116,MATCH(AP30,'Green Book Tables'!D26:D116,0)),"") -> 0.04724745217 | AN30: 6886.788628 | AP30: 2034 | AT30: -5135.456178 | AU30: 42852.48324 | AV30: 37717.02706 | AW30: -764.4934163 | AY30: 2034 | BC30: -5135.456178 | BD30: 12942.11749 | BE30: 37717.02706 | BF30: -764.4934163 | BG30: 29910.36575 | BH30: 261431.4205 | BI30: 7806.66131 | BJ30: -262195.9139 | BL30: 2034 | BP30: -5135.456178 | BQ30: 12391.20303 | BR30: 24285.20783 | BS30: -102589.555 | BT30: 17029.46098 | BU30: 163782.7775 | BV30: 7255.746849 | BW30: -266372.3325 | BX30: =IF(B30<=$BR$10,1,0)*IF($H$5=3,BV30,'Energy Calculations'!BI30) -> 7806.66131
B31: 11 | D31: 0.096 | E31: 1 | F31: 0 | G31: 144640 | H31: 144640 | I31: 0 | K31: =IFERROR(INDEX('User Curve'!$J$29:$J$119,MATCH(AP31,'User Curve'!$B$29:$B$119,0)),"") -> 1.223870398 | L31: =IF($B31>$G$88,"",INDEX(IF($D$5=1,Green_book_medium,usercurve_import_medium),MATCH($AP31,'User Curve'!$B$29:$B$119,0))/100) -> 0.2998733048 | M31: =IF($B31>$G$88,"",INDEX(IF($E$5=2,'User Curve'!$F$29:$F$119,'User Curve'!$G$29:$G$119),MATCH($AP31,'User Curve'!$B$29:$B$119,0))/100) -> 0.08996199144 | N31: 0.178562691 | O31: 0.08671121768 | P31: 0.08567092784 | Q31: 0.004895481591 | R31: 0.002141773196 | S31: 0.001713418557 | T31: 0.04467126952 | U31: 0.03671611193 | V31: 0.001713418557 | W31: 0.004895481591 | Y31: 43373.6748 | Z31: 0 | AA31: 3671.611193 | AB31: 1566.554109 | AC31: 0.128584384 | AD31: 12391.443 | AE31: 708.0824573 | AF31: 309.7860751 | AG31: 247.82886 | AH31: 6461.252423 | AI31: 5310.61843 | AJ31: 247.82886 | AK31: 708.0824573 | AM31: =IFERROR(INDEX('Green Book Tables'!F27:F117,MATCH(AP31,'Green Book Tables'!D27:D117,0)),"") -> 0.03933798847 | AN31: 5689.846652 | AP31: 2035 | AT31: -5238.165302 | AU31: 43373.6748 | AV31: 38135.5095 | AW31: 24472.94984 | AY31: 2035 | BC31: -5238.165302 | BD31: 13099.52546 | BE31: 38135.5095 | BF31: 24472.94984 | BG31: 30274.14935 | BH31: 281466.3469 | BI31: 7861.360158 | BJ31: -256993.3971 | BL31: 2035 | BP31: -5238.165302 | BQ31: 12541.91052 | BR31: 24540.32632 | BS31: -86349.17686 | BT31: 17236.5811 | BU31: 175189.659 | BV31: 7303.745223 | BW31: -261538.8358 | BX31: =IF(B31<=$BR$10,1,0)*IF($H$5=3,BV31,'Energy Calculations'!BI31) -> 7861.360158
B32: 12 | D32: 0.103 | E32: 1 | F32: 0 | G32: 143520 | H32: 143520 | I32: 0 | K32: =IFERROR(INDEX('User Curve'!$J$29:$J$119,MATCH(AP32,'User Curve'!$B$29:$B$119,0)),"") -> 1.248347806 | L32: =IF($B32>$G$88,"",INDEX(IF($D$5=1,Green_book_medium,usercurve_import_medium),MATCH($AP32,'User Curve'!$B$29:$B$119,0))/100) -> 0.3058707709 | M32: =IF($B32>$G$88,"",INDEX(IF($E$5=2,'User Curve'!$F$29:$F$119,'User Curve'!$G$29:$G$119),MATCH($AP32,'User Curve'!$B$29:$B$119,0))/100) -> 0.09176123127 | N32: 0.1821339448 | O32: 0.08844544203 | P32: 0.08738434639 | Q32: 0.004993391223 | R32: 0.00218460866 | S32: 0.001747686928 | T32: 0.04556469491 | U32: 0.03745043417 | V32: 0.001747686928 | W32: 0.004993391223 | Y32: 43898.57304 | Z32: 0 | AA32: 3745.043417 | AB32: 1597.885191 | AC32: 0.1303177857 | AD32: 12541.40139 | AE32: 716.6515083 | AF32: 313.5350349 | AG32: 250.8280279 | AH32: 6539.445013 | AI32: 5374.886312 | AJ32: 250.8280279 | AK32: 716.6515083 | AM32: =IFERROR(INDEX('Green Book Tables'!F28:F118,MATCH(AP32,'Green Book Tables'!D28:D118,0)),"") -> 0.0327526092 | AN32: 4700.654473 | AP32: 2036 | AT32: -5342.928608 | AU32: 43898.57304 | AV32: 38555.64443 | AW32: 49125.58901 | AY32: 2036 | BC32: -5342.928608 | BD32: 13258.0529 | BE32: 38555.64443 | BF32: 49125.58901 | BG32: 30640.52013 | BH32: 301058.0227 | BI32: 7915.124295 | BJ32: -251932.4337 | BL32: 2036 | BP32: -5342.928608 | BQ32: 12693.68984 | BR32: 24795.93547 | BS32: -70494.55275 | BT32: 17445.17424 | BU32: 186344.1758 | BV32: 7350.761232 | BW32: -256838.7286 | BX32: =IF(B32<=$BR$10,1,0)*IF($H$5=3,BV32,'Energy Calculations'!BI32) -> 7915.124295
B33: 13 | D33: 0.11 | E33: 1 | F33: 0 | G33: 142400 | H33: 142400 | I33: 0 | K33: =IFERROR(INDEX('User Curve'!$J$29:$J$119,MATCH(AP33,'User Curve'!$B$29:$B$119,0)),"") -> 1.273314762 | L33: =IF($B33>$G$88,"",INDEX(IF($D$5=1,Green_book_medium,usercurve_import_medium),MATCH($AP33,'User Curve'!$B$29:$B$119,0))/100) -> 0.3119881863 | M33: =IF($B33>$G$88,"",INDEX(IF($E$5=2,'User Curve'!$F$29:$F$119,'User Curve'!$G$29:$G$119),MATCH($AP33,'User Curve'!$B$29:$B$119,0))/100) -> 0.09359645589 | N33: 0.1857766237 | O33: 0.09021435087 | P33: 0.08913203332 | Q33: 0.005093259047 | R33: 0.002228300833 | S33: 0.001782640666 | T33: 0.0464759888 | U33: 0.03819944285 | V33: 0.001782640666 | W33: 0.005093259047 | Y33: 44427.11773 | Z33: 0 | AA33: 3819.944285 | AB33: 1629.842895 | AC33: 0.1320931684 | AD33: 12692.40155 | AE33: 725.2800883 | AF33: 317.3100386 | AG33: 253.8480309 | AH33: 6618.180806 | AI33: 5439.600662 | AJ33: 253.8480309 | AK33: 725.2800883 | AM33: =IFERROR(INDEX('Green Book Tables'!F29:F119,MATCH(AP33,'Green Book Tables'!D29:D119,0)),"") -> 0.02726965591 | AN33: 3883.199001 | AP33: 2037 | AT33: -5449.78718 | AU33: 44427.11773 | AV33: 38977.33055 | AW33: 73205.07406 | AY33: 2037 | BC33: -5449.78718 | BD33: 13417.68163 | BE33: 38977.33055 | BF33: 73205.07406 | BG33: 31009.4361 | BH33: 320215.0877 | BI33: 7967.894453 | BJ33: -247010.0136 | BL33: 2037 | BP33: -5449.78718 | BQ33: 12846.52356 | BR33: 25051.95285 | BS33: -55017.91246 | BT33: 17655.21647 | BU33: 197251.2471 | BV33: 7396.736384 | BW33: -252269.1595 | BX33: =IF(B33<=$BR$10,1,0)*IF($H$5=3,BV33,'Energy Calculations'!BI33) -> 7967.894453
B34: 14 | D34: 0.117 | E34: 1 | F34: 0 | G34: 141280 | H34: 141280 | I34: 0 | K34: =IFERROR(INDEX('User Curve'!$J$29:$J$119,MATCH(AP34,'User Curve'!$B$29:$B$119,0)),"") -> 1.298781057 | L34: =IF($B34>$G$88,"",INDEX(IF($D$5=1,Green_book_medium,usercurve_import_medium),MATCH($AP34,'User Curve'!$B$29:$B$119,0))/100) -> 0.31822795 | M34: =IF($B34>$G$88,"",INDEX(IF($E$5=2,'User Curve'!$F$29:$F$119,'User Curve'!$G$29:$G$119),MATCH($AP34,'User Curve'!$B$29:$B$119,0))/100) -> 0.09546838501 | N34: 0.1894921562 | O34: 0.09201863789 | P34: 0.09091467399 | Q34: 0.005195124228 | R34: 0.00227286685 | S34: 0.00181829348 | T34: 0.04740550858 | U34: 0.03896343171 | V34: 0.00181829348 | W34: 0.005195124228 | Y34: 44959.24478 | Z34: 0 | AA34: 3896.343171 | AB34: 1662.439753 | AC34: 0.133911827 | AD34: 12844.42514 | AE34: 733.9671509 | AF34: 321.1106285 | AG34: 256.8885028 | AH34: 6697.450252 | AI34: 5504.753632 | AJ34: 256.8885028 | AK34: 733.9671509 | AM34: =IFERROR(INDEX('Green Book Tables'!F30:F120,MATCH(AP34,'Green Book Tables'!D30:D120,0)),"") -> 0.02270457687 | AN34: 3207.70262 | AP34: 2038 | AT34: -5558.782924 | AU34: 44959.24478 | AV34: 39400.46186 | AW34: 96722.84011 | AY34: 2038 | BC34: -5558.782924 | BD34: 13578.39229 | BE34: 39400.46186 | BF34: 96722.84011 | BG34: 31380.85249 | BH34: 338946.0241 | BI34: 8019.609368 | BJ34: -242223.184 | BL34: 2038 | BP34: -5558.782924 | BQ34: 13000.39316 | BR34: 25308.29256 | BS34: -39911.63006 | BT34: 17866.68232 | BU34: 207915.7021 | BV34: 7441.610237 | BW34: -247827.3322 | BX34: =IF(B34<=$BR$10,1,0)*IF($H$5=3,BV34,'Energy Calculations'!BI34) -> 8019.609368
B35: 15 | D35: 0.124 | E35: 1 | F35: 0 | G35: 140160 | H35: 140160 | I35: 0 | K35: =IFERROR(INDEX('User Curve'!$J$29:$J$119,MATCH(AP35,'User Curve'!$B$29:$B$119,0)),"") -> 1.324756678 | L35: =IF($B35>$G$88,"",INDEX(IF($D$5=1,Green_book_medium,usercurve_import_medium),MATCH($AP35,'User Curve'!$B$29:$B$119,0))/100) -> 0.324592509 | M35: =IF($B35>$G$88,"",INDEX(IF($E$5=2,'User Curve'!$F$29:$F$119,'User Curve'!$G$29:$G$119),MATCH($AP35,'User Curve'!$B$29:$B$119,0))/100) -> 0.09737775271 | N35: 0.1932819993 | O35: 0.09385901064 | P35: 0.09273296747 | Q35: 0.005299026712 | R35: 0.002318324187 | S35: 0.001854659349 | T35: 0.04835361875 | U35: 0.03974270034 | V35: 0.001854659349 | W35: 0.005299026712 | Y35: 45494.88607 | Z35: 0 | AA35: 3974.270034 | AB35: 1695.688548 | AC35: 0.135775104 | AD35: 12997.45272 | AE35: 742.711584 | AF35: 324.936318 | AG35: 259.9490544 | AH35: 6777.243204 | AI35: 5570.33688 | AJ35: 259.9490544 | AK35: 742.711584 | AM35: =IFERROR(INDEX('Green Book Tables'!F31:F121,MATCH(AP35,'Green Book Tables'!D31:D121,0)),"") -> 0.01890371527 | AN35: 2649.544732 | AP35: 2039 | AT35: -5669.958582 | AU35: 45494.88607 | AV35: 39824.92748 | AW35: 119690.1112 | AY35: 2039 | BC35: -5669.958582 | BD35: 13740.1643 | BE35: 39824.92748 | BF35: 119690.1112 | BG35: 31754.72176 | BH35: 357259.1599 | BI35: 8070.205722 | BJ35: -237569.0487 | BL35: 2039 | BP35: -5669.958582 | BQ35: 13155.27893 | BR35: 25564.86507 | BS35: -25168.22124 | BT35: 18079.54472 | BU35: 218342.2825 | BV35: 7485.32035 | BW35: -243510.5037 | BX35: =IF(B35<=$BR$10,1,0)*IF($H$5=3,BV35,'Energy Calculations'!BI35) -> 8070.205722
B36: 16 | D36: 0.131 | E36: 1 | F36: 0 | G36: 139040 | H36: 139040 | I36: 0 | K36: =IFERROR(INDEX('User Curve'!$J$29:$J$119,MATCH(AP36,'User Curve'!$B$29:$B$119,0)),"") -> 1.351251812 | L36: =IF($B36>$G$88,"",INDEX(IF($D$5=1,Green_book_medium,usercurve_import_medium),MATCH($AP36,'User Curve'!$B$29:$B$119,0))/100) -> 0.3310843592 | M36: =IF($B36>$G$88,"",INDEX(IF($E$5=2,'User Curve'!$F$29:$F$119,'User Curve'!$G$29:$G$119),MATCH($AP36,'User Curve'!$B$29:$B$119,0))/100) -> 0.09932530776 | N36: 0.1971476393 | O36: 0.09573619086 | P36: 0.09458762682 | Q36: 0.005405007247 | R36: 0.00236469067 | S36: 0.001891752536 | T36: 0.04932069113 | U36: 0.04053755435 | V36: 0.001891752536 | W36: 0.005405007247 | Y36: 46033.9693 | Z36: 0 | AA36: 4053.755435 | AB36: 1729.602319 | AC36: 0.1376843912 | AD36: 13151.46363 | AE36: 751.5122076 | AF36: 328.7865908 | AG36: 263.0292727 | AH36: 6857.548894 | AI36: 5636.341557 | AJ36: 263.0292727 | AK36: 751.5122076 | AM36: =IFERROR(INDEX('Green Book Tables'!F32:F122,MATCH(AP36,'Green Book Tables'!D32:D122,0)),"") -> 0.01573913723 | AN36: 2188.36964 | AP36: 2040 | AT36: -5783.357754 | AU36: 46033.9693 | AV36: 40250.61155 | AW36: 142117.9041 | AY36: 2040 | BC36: -5783.357754 | BD36: 13902.97584 | BE36: 40250.61155 | BF36: 142117.9041 | BG36: 32130.99346 | BH36: 375162.6709 | BI36: 8119.618086 | BJ36: -233044.7668 | BL36: 2040 | BP36: -5783.357754 | BQ36: 13311.15998 | BR36: 25821.57717 | BS36: -10780.34085 | BT36: 18293.77494 | BU36: 228535.643 | BV36: 7527.802223 | BW36: -239315.9839 | BX36: =IF(B36<=$BR$10,1,0)*IF($H$5=3,BV36,'Energy Calculations'!BI36) -> 8119.618086
B37: 17 | D37: 0.138 | E37: 1 | F37: 0 | G37: 137920 | H37: 137920 | I37: 0 | K37: =IFERROR(INDEX('User Curve'!$J$29:$J$119,MATCH(AP37,'User Curve'!$B$29:$B$119,0)),"") -> 1.378276848 | L37: =IF($B37>$G$88,"",INDEX(IF($D$5=1,Green_book_medium,usercurve_import_medium),MATCH($AP37,'User Curve'!$B$29:$B$119,0))/100) -> 0.3377060464 | M37: =IF($B37>$G$88,"",INDEX(IF($E$5=2,'User Curve'!$F$29:$F$119,'User Curve'!$G$29:$G$119),MATCH($AP37,'User Curve'!$B$29:$B$119,0))/100) -> 0.1013118139 | N37: 0.2010905921 | O37: 0.09765091467 | P37: 0.09647937935 | Q37: 0.005513107392 | R37: 0.002411984484 | S37: 0.001929587587 | T37: 0.05030710495 | U37: 0.04134830544 | V37: 0.001929587587 | W37: 0.005513107392 | Y37: 46576.41792 | Z37: 0 | AA37: 4134.830544 | AB37: 1764.194365 | AC37: 0.1396411319 | AD37: 13306.436 | AE37: 760.3677715 | AF37: 332.6609 | AG37: 266.12872 | AH37: 6938.355915 | AI37: 5702.758286 | AJ37: 266.12872 | AK37: 760.3677715 | AM37: =IFERROR(INDEX('Green Book Tables'!F33:F123,MATCH(AP37,'Green Book Tables'!D33:D123,0)),"") -> 0.01500387242 | AN37: 2069.334084 | AP37: 2041 | AT37: -5899.024909 | AU37: 46576.41792 | AV37: 40677.39301 | AW37: 164017.0318 | AY37: 2041 | BC37: -5899.024909 | BD37: 14066.80377 | BE37: 40677.39301 | BF37: 164017.0318 | BG37: 32509.61415 | BH37: 392664.5838 | BI37: 8167.778863 | BJ37: -228647.552 | BL37: 2041 | BP37: -5899.024909 | BQ37: 13468.01415 | BR37: 26078.3318 | BS37: 3259.21957 | BT37: 18509.34256 | BU37: 238500.3538 | BV37: 7568.989243 | BW37: -235241.1342 | BX37: =IF(B37<=$BR$10,1,0)*IF($H$5=3,BV37,'Energy Calculations'!BI37) -> 8167.778863
B38: 18 | D38: 0.145 | E38: 1 | F38: 0 | G38: 136800 | H38: 136800 | I38: 0 | K38: =IFERROR(INDEX('User Curve'!$J$29:$J$119,MATCH(AP38,'User Curve'!$B$29:$B$119,0)),"") -> 1.405842385 | L38: =IF($B38>$G$88,"",INDEX(IF($D$5=1,Green_book_medium,usercurve_import_medium),MATCH($AP38,'User Curve'!$B$29:$B$119,0))/100) -> 0.3444601673 | M38: =IF($B38>$G$88,"",INDEX(IF($E$5=2,'User Curve'!$F$29:$F$119,'User Curve'!$G$29:$G$119),MATCH($AP38,'User Curve'!$B$29:$B$119,0))/100) -> 0.1033380502 | N38: 0.205112404 | O38: 0.09960393297 | P38: 0.09840896694 | Q38: 0.005623369539 | R38: 0.002460224174 | S38: 0.001968179339 | T38: 0.05131324705 | U38: 0.04217527155 | V38: 0.001968179339 | W38: 0.005623369539 | Y38: 47122.15089 | Z38: 0 | AA38: 4217.527155 | AB38: 1799.478253 | AC38: 0.1416468232 | AD38: 13462.34668 | AE38: 769.276953 | AF38: 336.5586669 | AG38: 269.2469336 | AH38: 7019.652196 | AI38: 5769.577148 | AJ38: 269.2469336 | AK38: 769.276953 | AM38: =IFERROR(INDEX('Green Book Tables'!F34:F124,MATCH(AP38,'Green Book Tables'!D34:D124,0)),"") -> 0.01424444837 | AN38: 1948.640536 | AP38: 2042 | AT38: -6017.005407 | AU38: 47122.15089 | AV38: 41105.14548 | AW38: 185398.1071 | AY38: 2042 | BC38: -6017.005407 | BD38: 14231.62363 | BE38: 41105.14548 | BF38: 185398.1071 | BG38: 32890.52726 | BH38: 409772.7787 | BI38: 8214.618223 | BJ38: -224374.6716 | BL38: 2042 | BP38: -6017.005407 | BQ38: 13625.81803 | BR38: 26335.02799 | BS38: 16957.53423 | BT38: 18726.21536 | BU38: 248240.9012 | BV38: 7608.812623 | BW38: -231283.367 | BX38: =IF(B38<=$BR$10,1,0)*IF($H$5=3,BV38,'Energy Calculations'!BI38) -> 8214.618223
B39: 19 | D39: 0.152 | E39: 1 | F39: 0 | G39: 135680 | H39: 135680 | I39: 0 | K39: =IFERROR(INDEX('User Curve'!$J$29:$J$119,MATCH(AP39,'User Curve'!$B$29:$B$119,0)),"") -> 1.433959233 | L39: =IF($B39>$G$88,"",INDEX(IF($D$5=1,Green_book_medium,usercurve_import_medium),MATCH($AP39,'User Curve'!$B$29:$B$119,0))/100) -> 0.3513493707 | M39: =IF($B39>$G$88,"",INDEX(IF($E$5=2,'User Curve'!$F$29:$F$119,'User Curve'!$G$29:$G$119),MATCH($AP39,'User Curve'!$B$29:$B$119,0))/100) -> 0.1054048112 | N39: 0.209214652 | O39: 0.1015960116 | P39: 0.1003771463 | Q39: 0.00573583693 | R39: 0.002509428657 | S39: 0.002007542926 | T39: 0.05233951199 | U39: 0.04301877698 | V39: 0.002007542926 | W39: 0.00573583693 | Y39: 47671.08261 | Z39: 0 | AA39: 4301.877698 | AB39: 1835.467818 | AC39: 0.1437030182 | AD39: 13619.17121 | AE39: 778.2383547 | AF39: 340.4792802 | AG39: 272.3834241 | AH39: 7101.424987 | AI39: 5836.78766 | AJ39: 272.3834241 | AK39: 778.2383547 | AM39: =IFERROR(INDEX('Green Book Tables'!F35:F125,MATCH(AP39,'Green Book Tables'!D35:D125,0)),"") -> 0.008964067865 | AN39: 1216.244728 | AP39: 2043 | AT39: -6137.345515 | AU39: 47671.08261 | AV39: 41533.7371 | AW39: 206271.5464 | AY39: 2043 | BC39: -6137.345515 | BD39: 14397.40956 | BE39: 41533.7371 | BF39: 206271.5464 | BG39: 33273.67305 | BH39: 426494.9916 | BI39: 8260.064047 | BJ39: -220223.4452 | BL39: 2043 | BP39: -6137.345515 | BQ39: 13784.54686 | BR39: 26591.56069 | BS39: 30321.54545 | BT39: 18944.35934 | BU39: 257761.6899 | BV39: 7647.201342 | BW39: -227440.1445 | BX39: =IF(B39<=$BR$10,1,0)*IF($H$5=3,BV39,'Energy Calculations'!BI39) -> 8260.064047
B40: 20 | D40: 0.159 | E40: 1 | F40: 0 | G40: 134560 | H40: 134560 | I40: 0 | K40: =IFERROR(INDEX('User Curve'!$J$29:$J$119,MATCH(AP40,'User Curve'!$B$29:$B$119,0)),"") -> 1.462638417 | L40: =IF($B40>$G$88,"",INDEX(IF($D$5=1,Green_book_medium,usercurve_import_medium),MATCH($AP40,'User Curve'!$B$29:$B$119,0))/100) -> 0.3583763581 | M40: =IF($B40>$G$88,"",INDEX(IF($E$5=2,'User Curve'!$F$29:$F$119,'User Curve'!$G$29:$G$119),MATCH($AP40,'User Curve'!$B$29:$B$119,0))/100) -> 0.1075129074 | N40: 0.2133989451 | O40: 0.1036279319 | P40: 0.1023846892 | Q40: 0.005850553669 | R40: 0.00255961723 | S40: 0.002047693784 | T40: 0.05338630223 | U40: 0.04387915252 | V40: 0.002047693784 | W40: 0.005850553669 | Y40: 48223.12274 | Z40: 0 | AA40: 4387.915252 | AB40: 1872.177174 | AC40: 0.145811329 | AD40: 13776.88378 | AE40: 787.2505017 | AF40: 344.4220945 | AG40: 275.5376756 | AH40: 7183.660828 | AI40: 5904.378763 | AJ40: 275.5376756 | AK40: 787.2505017 | AM40: =IFERROR(INDEX('Green Book Tables'!F36:F126,MATCH(AP40,'Green Book Tables'!D36:D126,0)),"") -> 0.008331569767 | AN40: 1121.096028 | AP40: 2044 | AT40: -6260.092426 | AU40: 48223.12274 | AV40: 41963.03032 | AW40: 226647.5729 | AY40: 2044 | BC40: -6260.092426 | BD40: 14564.13428 | BE40: 41963.03032 | BF40: 226647.5729 | BG40: 33658.98846 | BH40: 442838.8171 | BI40: 8304.041855 | BJ40: -216191.2441 | BL40: 2044 | BP40: -6260.092426 | BQ40: 13944.17451 | BR40: 26847.82069 | BS40: 43358.06598 | BT40: 19163.7386 | BU40: 267067.0438 | BV40: 7684.082085 | BW40: -223708.9778 | BX40: =IF(B40<=$BR$10,1,0)*IF($H$5=3,BV40,'Energy Calculations'!BI40) -> 8304.041855
B41: 21 | D41: 0.166 | E41: 1 | F41: 0 | G41: 133440 | H41: 133440 | I41: 0 | K41: =IFERROR(INDEX('User Curve'!$J$29:$J$119,MATCH(AP41,'User Curve'!$B$29:$B$119,0)),"") -> 1.491891186 | L41: =IF($B41>$G$88,"",INDEX(IF($D$5=1,Green_book_medium,usercurve_import_medium),MATCH($AP41,'User Curve'!$B$29:$B$119,0))/100) -> 0.3655438852 | M41: =IF($B41>$G$88,"",INDEX(IF($E$5=2,'User Curve'!$F$29:$F$119,'User Curve'!$G$29:$G$119),MATCH($AP41,'User Curve'!$B$29:$B$119,0))/100) -> 0.1096631656 | N41: 0.217666924 | O41: 0.1057004905 | P41: 0.104432383 | Q41: 0.005967564742 | R41: 0.002610809575 | S41: 0.00208864766 | T41: 0.05445402827 | U41: 0.04475673557 | V41: 0.00208864766 | W41: 0.005967564742 | Y41: 48778.17605 | Z41: 0 | AA41: 4475.673557 | AB41: 1909.620718 | AC41: 0.1479734283 | AD41: 13935.45719 | AE41: 796.3118392 | AF41: 348.3864297 | AG41: 278.7091437 | AH41: 7266.345533 | AI41: 5972.338794 | AJ41: 278.7091437 | AK41: 796.3118392 | AM41: =IFERROR(INDEX('Green Book Tables'!F37:F127,MATCH(AP41,'Green Book Tables'!D37:D127,0)),"") -> 0.007745135906 | AN41: 1033.510935 | AP41: 2045 | AT41: -6385.294274 | AU41: 48778.17605 | AV41: 42392.88177 | AW41: 246536.2201 | AY41: 2045 | BC41: -6385.294274 | BD41: 14731.76903 | BE41: 42392.88177 | BF41: 246536.2201 | BG41: 34046.40702 | BH41: 458811.7104 | BI41: 8346.474751 | BJ41: -212275.4902 | BL41: 2045 | BP41: -6385.294274 | BQ41: 14104.67345 | BR41: 27103.69446 | BS41: 56073.78133 | BT41: 19384.31528 | BU41: 276161.2075 | BV41: 7719.379178 | BW41: -220087.4262 | BX41: =IF(B41<=$BR$10,1,0)*IF($H$5=3,BV41,'Energy Calculations'!BI41) -> 8346.474751
B42: 22 | D42: 0.173 | E42: 1 | F42: 0 | G42: 132320 | H42: 132320 | I42: 0 | K42: =IFERROR(INDEX('User Curve'!$J$29:$J$119,MATCH(AP42,'User Curve'!$B$29:$B$119,0)),"") -> 1.521729009 | L42: =IF($B42>$G$88,"",INDEX(IF($D$5=1,Green_book_medium,usercurve_import_medium),MATCH($AP42,'User Curve'!$B$29:$B$119,0))/100) -> 0.372854763 | M42: =IF($B42>$G$88,"",INDEX(IF($E$5=2,'User Curve'!$F$29:$F$119,'User Curve'!$G$29:$G$119),MATCH($AP42,'User Curve'!$B$29:$B$119,0))/100) -> 0.1118564289 | N42: 0.2220202625 | O42: 0.1078145003 | P42: 0.1065210306 | Q42: 0.006086916037 | R42: 0.002663025766 | S42: 0.002130420613 | T42: 0.05554310884 | U42: 0.04565187028 | V42: 0.002130420613 | W42: 0.006086916037 | Y42: 49336.14223 | Z42: 0 | AA42: 4565.187028 | AB42: 1947.813132 | AC42: 0.1501910532 | AD42: 14094.86278 | AE42: 805.42073 | AF42: 352.3715694 | AG42: 281.8972555 | AH42: 7349.464162 | AI42: 6040.655475 | AJ42: 281.8972555 | AK42: 805.42073 | AM42: =IFERROR(INDEX('Green Book Tables'!F38:F128,MATCH(AP42,'Green Book Tables'!D38:D128,0)),"") -> 0.007573948099 | AN42: 1002.184813 | AP42: 2046 | AT42: -6513.00016 | AU42: 49336.14223 | AV42: 42823.14207 | AW42: 265947.3352 | AY42: 2046 | BC42: -6513.00016 | BD42: 14900.28351 | BE42: 42823.14207 | BF42: 265947.3352 | BG42: 34435.85873 | BH42: 474420.9904 | BI42: 8387.283346 | BJ42: -208473.6552 | BL42: 2046 | BP42: -6513.00016 | BQ42: 14266.01468 | BR42: 27359.06406 | BS42: 68475.25201 | BT42: 19606.04954 | BU42: 285048.3481 | BV42: 7753.014521 | BW42: -216573.0961 | BX42: =IF(B42<=$BR$10,1,0)*IF($H$5=3,BV42,'Energy Calculations'!BI42) -> 8387.283346
B43: 23 | D43: 0.18 | E43: 1 | F43: 0 | G43: 131200 | H43: 131200 | I43: 0 | K43: =IFERROR(INDEX('User Curve'!$J$29:$J$119,MATCH(AP43,'User Curve'!$B$29:$B$119,0)),"") -> 1.552163589 | L43: =IF($B43>$G$88,"",INDEX(IF($D$5=1,Green_book_medium,usercurve_import_medium),MATCH($AP43,'User Curve'!$B$29:$B$119,0))/100) -> 0.3803118582 | M43: =IF($B43>$G$88,"",INDEX(IF($E$5=2,'User Curve'!$F$29:$F$119,'User Curve'!$G$29:$G$119),MATCH($AP43,'User Curve'!$B$29:$B$119,0))/100) -> 0.1140935575 | N43: 0.2264606677 | O43: 0.1099707903 | P43: 0.1086514513 | Q43: 0.006208654358 | R43: 0.002716286282 | S43: 0.002173029025 | T43: 0.05665397102 | U43: 0.04656490768 | V43: 0.002173029025 | W43: 0.006208654358 | Y43: 49896.9158 | Z43: 0 | AA43: 4656.490768 | AB43: 1986.769395 | AC43: 0.1524660073 | AD43: 14255.07041 | AE43: 814.5754517 | AF43: 356.3767601 | AG43: 285.1014081 | AH43: 7433.000997 | AI43: 6109.315888 | AJ43: 285.1014081 | AK43: 814.5754517 | AM43: =IFERROR(INDEX('Green Book Tables'!F39:F129,MATCH(AP43,'Green Book Tables'!D39:D129,0)),"") -> 0.005233889452 | AN43: 686.6862961 | AP43: 2047 | AT43: -6643.260163 | AU43: 49896.9158 | AV43: 43253.65563 | AW43: 284890.5823 | AY43: 2047 | BC43: -6643.260163 | BD43: 15069.64586 | BE43: 43253.65563 | BF43: 284890.5823 | BG43: 34827.26994 | BH43: 489673.8418 | BI43: 8426.385694 | BJ43: -204783.2595 | BL43: 2047 | BP43: -6643.260163 | BQ43: 14428.16769 | BR43: 27613.80696 | BS43: 80568.91577 | BT43: 19828.89943 | BU43: 293732.5561 | BV43: 7784.907526 | BW43: -213163.6403 | BX43: =IF(B43<=$BR$10,1,0)*IF($H$5=3,BV43,'Energy Calculations'!BI43) -> 8426.385694
B44: 24 | D44: 0.187 | E44: 1 | F44: 0 | G44: 130080 | H44: 130080 | I44: 0 | K44: =IFERROR(INDEX('User Curve'!$J$29:$J$119,MATCH(AP44,'User Curve'!$B$29:$B$119,0)),"") -> 1.583206861 | L44: =IF($B44>$G$88,"",INDEX(IF($D$5=1,Green_book_medium,usercurve_import_medium),MATCH($AP44,'User Curve'!$B$29:$B$119,0))/100) -> 0.3879180954 | M44: =IF($B44>$G$88,"",INDEX(IF($E$5=2,'User Curve'!$F$29:$F$119,'User Curve'!$G$29:$G$119),MATCH($AP44,'User Curve'!$B$29:$B$119,0))/100) -> 0.1163754286 | N44: 0.2309898811 | O44: 0.1121702061 | P44: 0.1108244803 | Q44: 0.006332827445 | R44: 0.002770612007 | S44: 0.002216489606 | T44: 0.05778705044 | U44: 0.04749620584 | V44: 0.002216489606 | W44: 0.006332827445 | Y44: 50460.38585 | Z44: 0 | AA44: 4749.620584 | AB44: 2026.504782 | AC44: 0.1548001643 | AD44: 14416.0484 | AE44: 823.774194 | AF44: 360.4012099 | AG44: 288.3209679 | AH44: 7516.939521 | AI44: 6178.306455 | AJ44: 288.3209679 | AK44: 823.774194 | AM44: =IFERROR(INDEX('Green Book Tables'!F40:F130,MATCH(AP44,'Green Book Tables'!D40:D130,0)),"") -> 0.00508756104 | AN44: 661.7899401 | AP44: 2048 | AT44: -6776.125366 | AU44: 50460.38585 | AV44: 43684.26048 | AW44: 303375.4456 | AY44: 2048 | BC44: -6776.125366 | BD44: 15239.82259 | BE44: 43684.26048 | BF44: 303375.4456 | BG44: 35220.56326 | BH44: 504577.3171 | BI44: 8463.697224 | BJ44: -201201.8715 | BL44: 2048 | BP44: -6776.125366 | BQ44: 14591.10041 | BR44: 27867.79595 | BS44: 92361.08972 | BT44: 20052.82091 | BU44: 302217.8469 | BV44: 7814.975046 | BW44: -209856.7572 | BX44: =IF(B44<=$BR$10,1,0)*IF($H$5=3,BV44,'Energy Calculations'!BI44) -> 8463.697224
B45: 25 | D45: 0.194 | E45: 1 | F45: 0 | G45: 128960 | H45: 128960 | I45: 0 | K45: =IFERROR(INDEX('User Curve'!$J$29:$J$119,MATCH(AP45,'User Curve'!$B$29:$B$119,0)),"") -> 1.614870998 | L45: =IF($B45>$G$88,"",INDEX(IF($D$5=1,Green_book_medium,usercurve_import_medium),MATCH($AP45,'User Curve'!$B$29:$B$119,0))/100) -> 0.3956764573 | M45: =IF($B45>$G$88,"",INDEX(IF($E$5=2,'User Curve'!$F$29:$F$119,'User Curve'!$G$29:$G$119),MATCH($AP45,'User Curve'!$B$29:$B$119,0))/100) -> 0.1187029372 | N45: 0.2356096787 | O45: 0.1144136102 | P45: 0.1130409699 | Q45: 0.006459483994 | R45: 0.002826024247 | S45: 0.002260819398 | T45: 0.05894279144 | U45: 0.04844612995 | V45: 0.002260819398 | W45: 0.006459483994 | Y45: 51026.43593 | Z45: 0 | AA45: 4844.612995 | AB45: 2067.034878 | AC45: 0.1571954705 | AD45: 14577.76348 | AE45: 833.0150559 | AF45: 364.4440869 | AG45: 291.5552695 | AH45: 7601.262385 | AI45: 6247.612919 | AJ45: 291.5552695 | AK45: 833.0150559 | AM45: =IFERROR(INDEX('Green Book Tables'!F41:F131,MATCH(AP45,'Green Book Tables'!D41:D131,0)),"") -> 0.003225142956 | AN45: 415.9144356 | AP45: 2049 | AT45: -6911.647873 | AU45: 51026.43593 | AV45: 44114.78806 | AW45: 321411.2328 | AY45: 2049 | BC45: -6911.647873 | BD45: 15410.77853 | BE45: 44114.78806 | BF45: 321411.2328 | BG45: 35615.6574 | BH45: 519138.3395 | BI45: 8499.13066 | BJ45: -197727.1067 | BL45: 2049 | BP45: -6911.647873 | BQ45: 14754.77918 | BR45: 28120.89899 | BS45: 103857.9726 | BT45: 20277.76768 | BU45: 310508.1622 | BV45: 7843.131303 | BW45: -206650.1896 | BX45: =IF(B45<=$BR$10,1,0)*IF($H$5=3,BV45,'Energy Calculations'!BI45) -> 8499.13066
B46: 26 | K46: =IFERROR(INDEX('User Curve'!$J$29:$J$119,MATCH(AP46,'User Curve'!$B$29:$B$119,0)),"") ->  | L46: =IF($B46>$G$88,"",INDEX(IF($D$5=1,Green_book_medium,usercurve_import_medium),MATCH($AP46,'User Curve'!$B$29:$B$119,0))/100) ->  | M46: =IF($B46>$G$88,"",INDEX(IF($E$5=2,'User Curve'!$F$29:$F$119,'User Curve'!$G$29:$G$119),MATCH($AP46,'User Curve'!$B$29:$B$119,0))/100) ->  | AM46: =IFERROR(INDEX('Green Book Tables'!F42:F132,MATCH(AP46,'Green Book Tables'!D42:D132,0)),"") ->  | AT46: 0 | AU46: 0 | AW46: 0 | BC46: 0 | BE46: 0 | BF46: 0 | BH46: 0 | BI46: 0 | BJ46: 0 | BP46: 0 | BR46: 0 | BS46: 0 | BU46: 0 | BV46: 0 | BW46: 0 | BX46: =IF(B46<=$BR$10,1,0)*IF($H$5=3,BV46,'Energy Calculations'!BI46) -> 0
B47: 27 | K47: =IFERROR(INDEX('User Curve'!$J$29:$J$119,MATCH(AP47,'User Curve'!$B$29:$B$119,0)),"") ->  | L47: =IF($B47>$G$88,"",INDEX(IF($D$5=1,Green_book_medium,usercurve_import_medium),MATCH($AP47,'User Curve'!$B$29:$B$119,0))/100) ->  | M47: =IF($B47>$G$88,"",INDEX(IF($E$5=2,'User Curve'!$F$29:$F$119,'User Curve'!$G$29:$G$119),MATCH($AP47,'User Curve'!$B$29:$B$119,0))/100) ->  | AM47: =IFERROR(INDEX('Green Book Tables'!F43:F133,MATCH(AP47,'Green Book Tables'!D43:D133,0)),"") ->  | AT47: 0 | AU47: 0 | AW47: 0 | BC47: 0 | BE47: 0 | BF47: 0 | BH47: 0 | BI47: 0 | BJ47: 0 | BP47: 0 | BR47: 0 | BS47: 0 | BU47: 0 | BV47: 0 | BW47: 0 | BX47: =IF(B47<=$BR$10,1,0)*IF($H$5=3,BV47,'Energy Calculations'!BI47) -> 0
B48: 28 | K48: =IFERROR(INDEX('User Curve'!$J$29:$J$119,MATCH(AP48,'User Curve'!$B$29:$B$119,0)),"") ->  | L48: =IF($B48>$G$88,"",INDEX(IF($D$5=1,Green_book_medium,usercurve_import_medium),MATCH($AP48,'User Curve'!$B$29:$B$119,0))/100) ->  | M48: =IF($B48>$G$88,"",INDEX(IF($E$5=2,'User Curve'!$F$29:$F$119,'User Curve'!$G$29:$G$119),MATCH($AP48,'User Curve'!$B$29:$B$119,0))/100) ->  | AM48: =IFERROR(INDEX('Green Book Tables'!F44:F134,MATCH(AP48,'Green Book Tables'!D44:D134,0)),"") ->  | AT48: 0 | AU48: 0 | AW48: 0 | BC48: 0 | BE48: 0 | BF48: 0 | BH48: 0 | BI48: 0 | BJ48: 0 | BP48: 0 | BR48: 0 | BS48: 0 | BU48: 0 | BV48: 0 | BW48: 0 | BX48: =IF(B48<=$BR$10,1,0)*IF($H$5=3,BV48,'Energy Calculations'!BI48) -> 0
B49: 29 | K49: =IFERROR(INDEX('User Curve'!$J$29:$J$119,MATCH(AP49,'User Curve'!$B$29:$B$119,0)),"") ->  | L49: =IF($B49>$G$88,"",INDEX(IF($D$5=1,Green_book_medium,usercurve_import_medium),MATCH($AP49,'User Curve'!$B$29:$B$119,0))/100) ->  | M49: =IF($B49>$G$88,"",INDEX(IF($E$5=2,'User Curve'!$F$29:$F$119,'User Curve'!$G$29:$G$119),MATCH($AP49,'User Curve'!$B$29:$B$119,0))/100) ->  | AM49: =IFERROR(INDEX('Green Book Tables'!F45:F135,MATCH(AP49,'Green Book Tables'!D45:D135,0)),"") ->  | AT49: 0 | AU49: 0 | AW49: 0 | BC49: 0 | BE49: 0 | BF49: 0 | BH49: 0 | BI49: 0 | BJ49: 0 | BP49: 0 | BR49: 0 | BS49: 0 | BU49: 0 | BV49: 0 | BW49: 0 | BX49: =IF(B49<=$BR$10,1,0)*IF($H$5=3,BV49,'Energy Calculations'!BI49) -> 0
B50: 30 | K50: =IFERROR(INDEX('User Curve'!$J$29:$J$119,MATCH(AP50,'User Curve'!$B$29:$B$119,0)),"") ->  | L50: =IF($B50>$G$88,"",INDEX(IF($D$5=1,Green_book_medium,usercurve_import_medium),MATCH($AP50,'User Curve'!$B$29:$B$119,0))/100) ->  | M50: =IF($B50>$G$88,"",INDEX(IF($E$5=2,'User Curve'!$F$29:$F$119,'User Curve'!$G$29:$G$119),MATCH($AP50,'User Curve'!$B$29:$B$119,0))/100) ->  | AM50: =IFERROR(INDEX('Green Book Tables'!F46:F136,MATCH(AP50,'Green Book Tables'!D46:D136,0)),"") ->  | AT50: 0 | AU50: 0 | AW50: 0 | BC50: 0 | BE50: 0 | BF50: 0 | BH50: 0 | BI50: 0 | BJ50: 0 | BP50: 0 | BR50: 0 | BS50: 0 | BU50: 0 | BV50: 0 | BW50: 0 | BX50: =IF(B50<=$BR$10,1,0)*IF($H$5=3,BV50,'Energy Calculations'!BI50) -> 0
B51: Total | E51: =AVERAGE(E20:E50) -> 1 | F51: =AVERAGE(F20:F50) -> 0 | G51: =SUM(G21:G50) -> 3560000 | H51: =SUM(H21:H50) -> 3560000 | I51: =SUM(I20:I50) -> 0 | Y51: =SUM(Y20:Y50) -> 1151355.86 | Z51: =SUM(Z20:Z50) -> 0 | AA51: =SUM(AA20:AA50) -> 96475.26277 | AB51: =SUM(AB20:AB50) -> 41162.77878 | AC51: =AVERAGE(AC21:AC50) -> 0.1332278966 | AD51: =SUM(AD20:AD50) -> 317969.5074 | AE51: =SUM(AE20:AE50) -> 18169.68614 | AF51: =SUM(AF20:AF50) -> 7949.237684 | AG51: =SUM(AG20:AG50) -> 6359.391547 | AH51: =SUM(AH20:AH50) -> 165798.386 | AI51: =SUM(AI20:AI50) -> 136272.646 | AJ51: =SUM(AJ20:AJ50) -> 6359.390147 | AK51: =SUM(AK20:AK50) -> 18169.68614 | AN51: =SUM(AN20:AN50) -> 213905.6918 | AP51: Total | AQ51: =SUM(AQ20:AQ50) -> 0 | AR51: =SUM(AR20:AR50) -> -334007 | AS51: =SUM(AS20:AS50) -> 0 | AT51: -137638.0415 | AU51: 1151355.86 | AV51: 679710.8182 | AY51: Total | AZ51: =SUM(AZ20:AZ50) -> 0 | BA51: -334007 | BB51: 0 | BC51: -137638.0415 | BD51: =SUM(BD20:BD50) -> 336139.1935 | BE51: =SUM(BE20:BE50) -> 679710.8182 | BG51: =SUM(BG20:BG50) -> 815216.6662 | BI51: -135505.848 | BL51: =AY51 -> Total | BM51: =SUM(BM20:BM50) -> 0 | BN51: -334007 | BO51: 0 | BP51: -137638.0415 | BQ51: =SUM(BQ20:BQ50) -> 321830.5657 | BR51: 330852.8444 | BT51: =SUM(BT20:BT50) -> 480667.3202 | BV51: =SUM(BV20:BV50) -> -149814.4759
AV53: =AP15&" "&AV17 -> On site self-consumption | BE53: =AZ15&" "&BI17 -> Private Wire (Asset Owner) | BH53: =AZ15&" "&BG17 -> Private Wire (Off-taker) | BJ53: =AZ15&" "&BE17 -> Private Wire (Whole Project) | BS53: =BN15&" "&BV17 -> Sleeved PPA (Asset Owner) | BV53: =BN15&" "&BT17 -> Sleeved PPA (Off-taker) | BX53: =BN15&" "&BR17 -> Sleeved PPA (Whole Project)
AM54: GHG abatement | AN54: ='Energy Calculations'!AN51/1000 -> 213.9056918 | AO54: tCO2e | AT54: No Financing | AU54: NPV | AV54: =NPV($G$94,AV20:AV50) -> 321411.2328 | BC54: No Financing | BD54: NPV | BE54: =NPV($G$94,BI20:BI50) -> -197727.1067 | BH54: =NPV($G$94,BG20:BG50) -> 519138.3395 | BJ54: =NPV($G$94,BE20:BE50) -> 321411.2328 | BQ54: No Financing | BR54: NPV | BS54: =NPV($G$94,BV20:BV50) -> -206650.1896 | BV54: =NPV($G$94,BT20:BT50) -> 310508.1622 | BX54: =NPV($G$94,BR20:BR50) -> 103857.9726
AM55: Abatement cost | AN55: =-AR51/AN54 -> 1561.468501 | AO55: (£/tCO2) | AU55: IRR | AV55: =IFERROR(IRR(AV20:AV50,0.03),-999.9%) -> 0.1136705152 | BD55: IRR | BE55: =IFERROR(IRR(BI20:BI50,0.03),-999.9%) -> -0.03581290215 | BJ55: =IFERROR(IRR(BE20:BE50,0.03),-999.9%) -> 0.1136705152 | BR55: IRR | BS55: =IFERROR(IRR(BV20:BV50,0.03),-999.9%) -> -0.04057082665 | BX55: =IFERROR(IRR(BR20:BR50,0.03),-999.9%) -> 0.06361602849
AM56: Capex per kWp | AN56: =$F$92 -> 1670.035 | AO56: £/kWp | AU56: Discounted Payback Period | AV56: =COUNTIF(AW20:AW50,"<0") -> 11 | BD56: Discounted Payback Period | BE56: =COUNTIF(BJ20:BJ50,"<0") -> 26 | BJ56: =COUNTIF(BF20:BF50,"<0") -> 11 | BR56: Discounted Payback Period | BS56: =COUNTIF(BW20:BW50,"<0") -> 26 | BX56: =COUNTIF(BS20:BS50,"<0") -> 17
AT59: With financing | BC59: With financing | BQ59: With financing
AT60: ='Financing Calculations'!$C$5 -> Equal Instalments of Principal Loan | AU60: NPV | AV60: ='Financing Calculations'!F42 -> 269886.7788 | BC60: ='Financing Calculations'!$C$5 -> Equal Instalments of Principal Loan | BD60: NPV | BE60: ='Financing Calculations'!J42 -> -249251.5606 | BH60: ='Financing Calculations'!$C$5 -> Equal Instalments of Principal Loan | BI60: NPV | BJ60: ='Financing Calculations'!N42 -> 269886.7788 | BQ60: ='Financing Calculations'!$C$5 -> Equal Instalments of Principal Loan | BR60: NPV | BS60: ='Financing Calculations'!R42 -> -258174.6436 | BV60: ='Financing Calculations'!$C$5 -> Equal Instalments of Principal Loan | BW60: NPV | BX60: ='Financing Calculations'!V42 -> 52333.51863
AU61: Interest rate | AV61: ='Financing Calculations'!$C$6 -> 0.0514 | BD61: Interest rate | BE61: ='Financing Calculations'!$C$6 -> 0.0514 | BI61: Interest rate | BJ61: ='Financing Calculations'!$C$6 -> 0.0514 | BR61: Interest rate | BS61: ='Financing Calculations'!$C$6 -> 0.0514 | BW61: Interest rate | BX61: ='Financing Calculations'!$C$6 -> 0.0514
AT64: ='Financing Calculations'!$Y$5 -> Annuity loan | AU64: NPV | AV64: ='Financing Calculations'!AA42 -> 261429.8902 | BC64: ='Financing Calculations'!$Y$5 -> Annuity loan | BD64: NPV | BE64: ='Financing Calculations'!AD42 -> -257708.4493 | BH64: ='Financing Calculations'!$Y$5 -> Annuity loan | BI64: NPV | BJ64: ='Financing Calculations'!AG42 -> 261429.8902 | BQ64: ='Financing Calculations'!$Y$5 -> Annuity loan | BR64: NPV | BS64: ='Financing Calculations'!AJ42 -> -266631.5322 | BV64: ='Financing Calculations'!$Y$5 -> Annuity loan | BW64: NPV | BX64: ='Financing Calculations'!AM42 -> 43876.63
AU65: Interest rate | AV65: ='Financing Calculations'!$Y$6 -> 0.0514 | BD65: Interest rate | BE65: ='Financing Calculations'!$Y$6 -> 0.0514 | BI65: Interest rate | BJ65: ='Financing Calculations'!$Y$6 -> 0.0514 | BR65: Interest rate | BS65: ='Financing Calculations'!$Y$6 -> 0.0514 | BW65: Interest rate | BX65: ='Financing Calculations'!$Y$6 -> 0.0514
AT68: ='Financing Calculations'!$AP$5 -> Maturity loan | AU68: NPV | AV68: ='Financing Calculations'!AS42 -> 243225.1108 | BC68: ='Financing Calculations'!$AP$5 -> Maturity loan | BD68: NPV | BE68: ='Financing Calculations'!AW42 -> -275913.2287 | BH68: ='Financing Calculations'!$AP$5 -> Maturity loan | BI68: NPV | BJ68: ='Financing Calculations'!BA42 -> 243225.1108 | BQ68: ='Financing Calculations'!$AP$5 -> Maturity loan | BR68: NPV | BS68: ='Financing Calculations'!BE42 -> -284836.3117 | BV68: ='Financing Calculations'!$AP$5 -> Maturity loan | BW68: NPV | BX68: ='Financing Calculations'!BI42 -> 25671.85054
AU69: Interest rate | AV69: ='Financing Calculations'!$AP$6 -> 0.0497 | BD69: Interest rate | BE69: ='Financing Calculations'!$AP$6 -> 0.0497 | BI69: Interest rate | BJ69: ='Financing Calculations'!$AP$6 -> 0.0497 | BR69: Interest rate | BS69: ='Financing Calculations'!$AP$6 -> 0.0497 | BW69: Interest rate | BX69: ='Financing Calculations'!$AP$6 -> 0.0497
AT72: ='Financing Calculations'!$BL$5 -> Salix & Annuity Loan after year 5 | AU72: NPV | AV72: ='Financing Calculations'!BP42 -> 336045.9256 | BC72: ='Financing Calculations'!$BL$5 -> Salix & Annuity Loan after year 5 | BD72: NPV | BE72: ='Financing Calculations'!BU42 -> -183092.4138 | BH72: ='Financing Calculations'!$BL$5 -> Salix & Annuity Loan after year 5 | BI72: NPV | BJ72: ='Financing Calculations'!BZ42 -> 336045.9256 | BQ72: ='Financing Calculations'!$BL$5 -> Salix & Annuity Loan after year 5 | BR72: NPV | BS72: ='Financing Calculations'!CE42 -> -192015.4968 | BV72: ='Financing Calculations'!$BL$5 -> Salix & Annuity Loan after year 5 | BW72: NPV | BX72: ='Financing Calculations'!CJ42 -> 118492.6654
AU73: Interest rate | AV73: ='Financing Calculations'!$BL$6 -> 0.0509 | BD73: Interest rate | BE73: ='Financing Calculations'!$BL$6 -> 0.0509 | BI73: Interest rate | BJ73: ='Financing Calculations'!$BL$6 -> 0.0509 | BR73: Interest rate | BS73: ='Financing Calculations'!$BL$6 -> 0.0509 | BW73: Interest rate | BX73: ='Financing Calculations'!$BL$6 -> 0.0509
B80: Input | I80: RESULTS | M80: investment_results | R80: financing_results
F81: energy_values_lookup | G81: energy_values_static | I81: VBA CODE LINKED TO row numbers | J81: Ownership Model | L81: Key Parameter | M81: No Financing | N81: VBA CODE LINKED TO row numbers | R81: =AT60 -> Equal Instalments of Principal Loan | S81: =AT64 -> Annuity loan | T81: =AT68 -> Maturity loan | U81: =AT72 -> Salix & Annuity Loan after year 5
B82: Size / capacity* | F82: =INDEX(Data_value,MATCH($B82,Data_field,0),MATCH($L$6,Data_sheet,0)) -> 200 | G82: 200 | I82: 1 | J82: ='Energy Calculations'!$AP$15 -> On site self-consumption | L82: NPV | M82: =Energy_NPV_1P -> 321411.2328 | N82: £ | P82: =L82 -> NPV | R82: =AV60 -> 269886.7788 | S82: =AV64 -> 261429.8902 | T82: =AV68 -> 243225.1108 | U82: =AV72 -> 336045.9256
B83: Specific yield (curtailment included) | F83: 800 | G83: 800 | I83: 2 | L83: IRR | M83: =Energy_IRR_1P -> 0.1136705152 | P83: Finance Interest rate | R83: ='Financing Calculations'!$G$61 -> 0.0514 | S83: ='Financing Calculations'!$G$62 -> 0.0514 | T83: ='Financing Calculations'!$G$63 -> 0.0497 | U83: ='Financing Calculations'!$G$64 -> 0.0509
B84: PV performance degradation (Year 1) | F84: 0.026 | G84: 0.026 | I84: 3 | L84: DPT | M84: =IF(Energy_DPT_1P>G88,"Payback > "&G88,Energy_DPT_1P) -> 11 | N84: years
B85: PV performance degradation (Year 2 and beyond) | F85: 0.007 | G85: 0.007 | I85: 4
B86: Electricity self-consumed or exported through PPA* | F86: 1 | G86: 1 | I86: 5
B87: Electricity Exported to the grid (e.g. SEG) | F87: 0 | G87: 0 | I87: 6 | J87: ='Energy Calculations'!$AZ$15 -> Private Wire | L87: Off-Taker's Cumulative Savings (discounted) | M87: =Energy_NPV_2OT -> 519138.3395 | N87: £
B88: Economic Life* | F88: 25 | G88: 25 | I88: 7
B89: Description | F89: 200kWp with no batteries or EV | G89: 200kWp with no batteries or EV | I89: 8 | L89: NPV (Asset Owner) | M89: =Energy_NPV_2AO -> -197727.1067 | N89: £ | P89: =L89 -> NPV (Asset Owner) | R89: =BE60 -> -249251.5606 | S89: =BE64 -> -257708.4493 | T89: =BE68 -> -275913.2287 | U89: =BE72 -> -183092.4138
B90: Preperation Costs Total | F90: 0 | G90: 0 | I90: 9 | L90: IRR (Asset Owner) | M90: =Energy_IRR_2AO -> -0.03581290215 | P90: Finance Interest rate | R90: ='Financing Calculations'!$G$61 -> 0.0514 | S90: ='Financing Calculations'!$G$62 -> 0.0514 | T90: ='Financing Calculations'!$G$63 -> 0.0497 | U90: ='Financing Calculations'!$G$64 -> 0.0509
B91: Capital Costs Total* | F91: 334007 | G91: 334007 | I91: 10 | L91: DPT (Asset Owner) | M91: =IF(Energy_DPT_2AO>G88,"Payback > "&G88,Energy_DPT_2AO) -> Payback > 25 | N91: years
B92: Cost per kWp | F92: 1670.035 | G92: 1670.035 | I92: 11
B93: Grant* | F93: 0.4595 | G93: 0.4595 | I93: 12 | L93: NPV (Whole Project) | M93: =Energy_NPV_2P -> 321411.2328 | N93: £ | P93: =L93 -> NPV (Whole Project) | R93: =BJ60 -> 269886.7788 | S93: =BJ64 -> 261429.8902 | T93: =BJ68 -> 243225.1108 | U93: =BJ72 -> 336045.9256
B94: Discount rate* | F94: 0.035 | G94: 0.035 | I94: 13 | L94: IRR (Whole Project) | M94: =Energy_IRR_2P -> 0.1136705152 | P94: Finance Interest rate | R94: ='Financing Calculations'!$G$61 -> 0.0514 | S94: ='Financing Calculations'!$G$62 -> 0.0514 | T94: ='Financing Calculations'!$G$63 -> 0.0497 | U94: ='Financing Calculations'!$G$64 -> 0.0509
B95: Commodity component PPA price | F95: 0.07 | G95: 0.07 | I95: 14 | L95: DPT (Whole Project) | M95: =IF(Energy_DPT_2P>G88,"Payback > "&G88,Energy_DPT_2P) -> 11 | N95: years
B96: Export Imbalance fees | F96: 0.00175 | G96: 0.00175 | I96: 15
B97: Sleeving fee | F97: 0.004 | G97: 0.004 | I97: 16
B98: Management fee off-taker | F98: 0.0014 | G98: 0.0014 | I98: 17 | J98: ='Energy Calculations'!$BN$15 -> Sleeved PPA | L98: Off-Taker's Cumulative Savings (discounted) | M98: =Energy_NPV_3OT -> 310508.1622 | N98: £
B99: Management fee generator | F99: 0.0014 | G99: 0.0014 | I99: 18
B100: Policy costs | F100: 0.0365 | G100: 0.0365 | I100: 19 | L100: NPV (Asset Owner) | M100: =Energy_NPV_3AO -> -206650.1896 | N100: £ | P100: =L100 -> NPV (Asset Owner) | R100: =BS60 -> -258174.6436 | S100: =BS64 -> -266631.5322 | T100: =BS68 -> -284836.3117 | U100: =BS72 -> -192015.4968
B101: Network costs | F101: 0.03 | G101: 0.03 | I101: 20 | L101: IRR (Asset Owner) | M101: =Energy_IRR_3AO -> -0.04057082665 | P101: Finance Interest rate | R101: ='Financing Calculations'!$G$61 -> 0.0514 | S101: ='Financing Calculations'!$G$62 -> 0.0514 | T101: ='Financing Calculations'!$G$63 -> 0.0497 | U101: ='Financing Calculations'!$G$64 -> 0.0509
B102: REGO Price | F102: 0.004 | G102: 0.004 | I102: 21 | L102: DPT (Asset Owner) | M102: =IF(Energy_DPT_3AO>G88,"Payback > "&G88,Energy_DPT_3AO) -> Payback > 25 | N102: years
B103: Invertor replacements required* | F103: 2 | G103: 2 | I103: 22
B104: Replacement inverter cost* | F104: 80 | G104: 80 | I104: 23 | L104: NPV (Whole Project) | M104: =Energy_NPV_3P -> 103857.9726 | N104: £ | P104: =L104 -> NPV (Whole Project) | R104: =BX60 -> 52333.51863 | S104: =BX64 -> 43876.63 | T104: =BX68 -> 25671.85054 | U104: =BX72 -> 118492.6654
B105: Maintenance cost (Capacity based)* | F105: 15 | G105: 15 | I105: 24 | L105: IRR (Whole Project) | M105: =Energy_IRR_3P -> 0.06361602849 | P105: Finance Interest rate | R105: ='Financing Calculations'!$G$61 -> 0.0514 | S105: ='Financing Calculations'!$G$62 -> 0.0514 | T105: ='Financing Calculations'!$G$63 -> 0.0497 | U105: ='Financing Calculations'!$G$64 -> 0.0509
B106: Rated annual production (curtailment included) | F106: 160000 | G106: 160000 | I106: 25 | L106: DPT (Whole Project) | M106: =IF(Energy_DPT_3P>G88,"Payback > "&G88,Energy_DPT_3P) -> 17 | N106: years
I107: 26
I108: 27
I109: 28 | L109: All-in PPA rate ( Off-taker price) year 1 | M109: =N20 -> 0.1459 | N109: £/kWp
I110: 29 | L110: PPA rate (generator price) year 1 | M110: ='Energy Calculations'!$P$20+Q20 -> 0.074 | N110: £/kWp

Sheet Financing Calculations (hidden)
B1: Financial Flows
D3: Finance_113 | H3: Finance_121 | L3: Finance_123 | P3: Finance_131 | T3: Finance_133 | Z3: Finance_213 | AC3: Finance_221 | AF3: Finance_223 | AI3: Finance_231 | AL3: Finance_233 | AQ3: Finance_313 | AU3: Finance_321 | AY3: Finance_323 | BC3: Finance_331 | BG3: Finance_333 | BM3: Finance_413 | BR3: Finance_421 | BW3: Finance_423 | CB3: Finance_431 | CG3: Finance_433
F4: Finance_CF_113 | G4: Finance_DCF_113 | J4: Finance_CF_121 | K4: Finance_DCF_121 | N4: Finance_CF_123 | O4: Finance_DCF_123 | R4: Finance_CF_131 | S4: Finance_DCF_131 | V4: Finance_CF_133 | W4: Finance_DCF_133 | AA4: Finance_CF_213 | AB4: Finance_DCF_213 | AD4: Finance_CF_221 | AE4: Finance_DCF_221 | AG4: Finance_CF_223 | AH4: Finance_DCF_223 | AJ4: Finance_CF_231 | AK4: Finance_DCF_231 | AM4: Finance_CF_233 | AN4: Finance_DCF_233 | AS4: Finance_CF_313 | AT4: Finance_DCF_313 | AW4: Finance_CF_321 | AX4: Finance_DCF_321 | BA4: Finance_CF_323 | BB4: Finance_DCF_323 | BE4: Finance_CF_331 | BF4: Finance_DCF_331 | BI4: Finance_CF_333 | BJ4: Finance_DCF_333 | BP4: Finance_CF_413 | BQ4: Finance_DCF_413 | BU4: Finance_CF_421 | BV4: Finance_DCF_421 | BZ4: Finance_CF_423 | CA4: Finance_DCF_423 | CE4: Finance_CF_431 | CF4: Finance_DCF_431 | CJ4: Finance_CF_433 | CK4: Finance_DCF_433
C5: Equal Instalments of Principal Loan | D5: ='Energy Calculations'!$AP$15&" "&'Energy Calculations'!$AV$17 -> On site self-consumption | H5: ='Energy Calculations'!$AZ$15&" "&'Energy Calculations'!$BI$17 -> Private Wire (Asset Owner) | L5: ='Energy Calculations'!$AZ$15&" "&'Energy Calculations'!$BE$17 -> Private Wire (Whole Project) | P5: ='Energy Calculations'!$BN$15&" "&'Energy Calculations'!$BV$17 -> Sleeved PPA (Asset Owner) | T5: ='Energy Calculations'!$BN$15&" "&'Energy Calculations'!$BR$17 -> Sleeved PPA (Whole Project) | Y5: Annuity loan | Z5: On site self-consumption (Project) | AC5: Private Wire (Asset Owner) | AF5: Private Wire (Project) | AI5: Sleeved PPA (Asset Owner) | AL5: Sleeved PPA (Project) | AP5: Maturity loan | AQ5: ='Energy Calculations'!$AP$15&" "&'Energy Calculations'!$AV$17 -> On site self-consumption | AU5: ='Energy Calculations'!$AZ$15&" "&'Energy Calculations'!$BI$17 -> Private Wire (Asset Owner) | AY5: ='Energy Calculations'!$AZ$15&" "&'Energy Calculations'!$BE$17 -> Private Wire (Whole Project) | BC5: ='Energy Calculations'!$BN$15&" "&'Energy Calculations'!$BV$17 -> Sleeved PPA (Asset Owner) | BG5: ='Energy Calculations'!$BN$15&" "&'Energy Calculations'!$BR$17 -> Sleeved PPA (Whole Project) | BL5: Salix & Annuity Loan after year 5 | BM5: ='Energy Calculations'!$AP$15&" "&'Energy Calculations'!$AV$17 -> On site self-consumption | BR5: ='Energy Calculations'!$AZ$15&" "&'Energy Calculations'!$BI$17 -> Private Wire (Asset Owner) | BW5: ='Energy Calculations'!$AZ$15&" "&'Energy Calculations'!$BE$17 -> Private Wire (Whole Project) | CB5: ='Energy Calculations'!$BN$15&" "&'Energy Calculations'!$BV$17 -> Sleeved PPA (Asset Owner) | CG5: ='Energy Calculations'!$BN$15&" "&'Energy Calculations'!$BR$17 -> Sleeved PPA (Whole Project)
C6: =G61 -> 0.0514 | Y6: =G62 -> 0.0514 | AP6: =G63 -> 0.0497 | BL6: =G64 -> 0.0509
B7: Year | C7: Year | D7: Principal Repayments | E7: Interest | F7: Total Cash Flow (Loan and Revenue) | G7: Discounted Cumulative Cash Flow - Including Finance | H7: Principal Repayments | I7: Interest | J7: Total Cash Flow (Loan and Revenue) | K7: Discounted Cumulative Cash Flow - Including Finance | L7: Principal Repayments | M7: Interest | N7: Total Cash Flow (Loan and Revenue) | O7: Discounted Cumulative Cash Flow - Including Finance | P7: Principal Repayments | Q7: Interest | R7: Total Cash Flow (Loan and Revenue) | S7: Discounted Cumulative Cash Flow - Including Finance | T7: Principal Repayments | U7: Interest | V7: Total Cash Flow (Loan and Revenue) | W7: Discounted Cumulative Cash Flow - Including Finance | Y7: Year | Z7: Loan Repayment | AA7: Total Cash Flow (Loan and Revenue) | AB7: Discounted Cumulative Cash Flow - Including Finance | AC7: Loan Repayment | AD7: Total Cash Flow (Loan and Revenue) | AE7: Discounted Cumulative Cash Flow - Including Finance | AF7: Loan Repayment | AG7: Total Cash Flow (Loan and Revenue) | AH7: Discounted Cumulative Cash Flow - Including Finance | AI7: Loan Repayment | AJ7: Total Cash Flow (Loan and Revenue) | AK7: Discounted Cumulative Cash Flow - Including Finance | AL7: Loan Repayment | AM7: Total Cash Flow (Loan and Revenue) | AN7: Discounted Cumulative Cash Flow - Including Finance | AP7: Year | AQ7: Principal Repayments | AR7: Interest | AS7: Total Cash Flow (Loan and Revenue) | AT7: Discounted Cumulative Cash Flow - Including Finance | AU7: Principal Repayments | AV7: Interest | AW7: Total Cash Flow (Loan and Revenue) | AX7: Discounted Cumulative Cash Flow - Including Finance | AY7: Principal Repayments | AZ7: Interest | BA7: Total Cash Flow (Loan and Revenue) | BB7: Discounted Cumulative Cash Flow - Including Finance | BC7: Principal Repayments | BD7: Interest | BE7: Total Cash Flow (Loan and Revenue) | BF7: Discounted Cumulative Cash Flow - Including Finance | BG7: Principal Repayments | BH7: Interest | BI7: Total Cash Flow (Loan and Revenue) | BJ7: Discounted Cumulative Cash Flow - Including Finance | BL7: Year | BM7: Principal Repayments | BN7: Annuity loan | BO7: Annuity Loan Repayment | BP7: Total Cash Flow (Loan and Revenue) | BQ7: Discounted Cumulative Cash Flow - Including Finance | BR7: Principal Repayments | BS7: Annuity loan | BT7: Annuity Loan Repayment | BU7: Total Cash Flow (Loan and Revenue) | BV7: Discounted Cumulative Cash Flow - Including Finance | BW7: Principal Repayments | BX7: Annuity loan | BY7: Annuity Loan Repayment | BZ7: Total Cash Flow (Loan and Revenue) | CA7: Discounted Cumulative Cash Flow - Including Finance | CB7: Principal Repayments | CC7: Annuity loan | CD7: Annuity Loan Repayment | CE7: Total Cash Flow (Loan and Revenue) | CF7: Discounted Cumulative Cash Flow - Including Finance | CG7: Principal Repayments | CH7: Annuity loan | CI7: Annuity Loan Repayment | CJ7: Total Cash Flow (Loan and Revenue) | CK7: Discounted Cumulative Cash Flow - Including Finance
D8: £ | E8: £ | F8: £ | G8: £ | H8: £ | I8: £ | J8: £ | K8: £ | L8: £ | M8: £ | N8: £ | O8: £ | P8: £ | Q8: £ | R8: £ | S8: £ | T8: £ | U8: £ | V8: £ | W8: £ | Z8: £ | AA8: £ | AB8: £ | AC8: £ | AD8: £ | AE8: £ | AF8: £ | AG8: £ | AH8: £ | AI8: £ | AJ8: £ | AK8: £ | AL8: £ | AM8: £ | AN8: £ | AQ8: £ | AR8: £ | AS8: £ | AT8: £ | AU8: £ | AV8: £ | AW8: £ | AX8: £ | AY8: £ | AZ8: £ | BA8: £ | BB8: £ | BC8: £ | BD8: £ | BE8: £ | BF8: £ | BG8: £ | BH8: £ | BI8: £ | BJ8: £ | BM8: £ | BN8: £ | BO8: £ | BP8: £ | BQ8: £ | BR8: £ | BS8: £ | BT8: £ | BU8: £ | BV8: £ | BW8: £ | BX8: £ | BY8: £ | BZ8: £ | CA8: £ | CB8: £ | CC8: £ | CD8: £ | CE8: £ | CF8: £ | CG8: £ | CH8: £ | CI8: £ | CJ8: £ | CK8: £
B9: ='Energy Calculations'!BL20 -> 2024 | C9: 0 | F9: 0 | J9: 0 | N9: 0 | R9: 0 | T9: 0 | U9: 0 | V9: 0 | Y9: 0 | AA9: 0 | AD9: 0 | AG9: 0 | AJ9: 0 | AL9: 0 | AM9: 0 | AP9: 0 | AS9: 0 | AW9: 0 | BA9: 0 | BE9: 0 | BG9: 0 | BH9: 0 | BI9: 0 | BL9: 0 | BM9: 0 | BN9: 0 | BO9: 0 | BP9: 0 | BR9: 0 | BS9: 0 | BT9: 0 | BU9: 0 | BW9: 0 | BX9: 0 | BY9: 0 | BZ9: 0 | CB9: 0 | CC9: 0 | CD9: 0 | CE9: 0 | CG9: 0 | CH9: 0 | CI9: 0 | CJ9: 0
B10: ='Energy Calculations'!BL21 -> 2025 | C10: 1 | D10: =IF(AND($C10<=$G$60,$G$61<>0),('Energy Calculations'!$AV$20)/$G$60,0) -> -13360.28 | E10: =IF($C10<=$G$60,$G$61*(('Energy Calculations'!$AV$20)-D10*$C9),0) -> -17167.9598 | F10: =IF(AND($C10<=$G$60,$G$61<>0),'Energy Calculations'!$AV21+E10+D10,0) -> 21581.13001 | G10: =IF($C10<=$G$60,F10/(1+$G$57)^($C10+1)+G9,0) -> 20146.21579 | H10: =IF(AND($C10<=$G$60,$G$61<>0),('Energy Calculations'!$BI$20)/$G$60,0) -> -13360.28 | I10: =IF($C10<=$G$60,$G$61*(('Energy Calculations'!$BI$20)-H10*$C9),0) -> -17167.9598 | J10: =IF(AND($C10<=$G$60,$G$61<>0),'Energy Calculations'!$BI21+I10+H10,0) -> -23247.07116 | K10: =IF($C10<=$G$60,J10/(1+$G$57)^($C10+1)+K9,0) -> -21701.38968 | L10: =IF(AND($C10<=$G$60,$G$61<>0),('Energy Calculations'!$BE$20)/$G$60,0) -> -13360.28 | M10: =IF($C10<=$G$60,$G$61*(('Energy Calculations'!$BE$20)-L10*$C9),0) -> -17167.9598 | N10: =IF(AND($C10<=$G$60,$G$61<>0),'Energy Calculations'!$BE21+M10+L10,0) -> 21581.13001 | O10: =IF($C10<=$G$60,N10/(1+$G$57)^($C10+1)+O9,0) -> 20146.21579 | P10: =IF(AND($C10<=$G$60,$G$61<>0),('Energy Calculations'!$BV$20)/$G$60,0) -> -13360.28 | Q10: =IF($C10<=$G$60,$G$61*(('Energy Calculations'!$BV$20)-P10*$C9),0) -> -17167.9598 | R10: =IF(AND($C10<=$G$60,$G$61<>0),'Energy Calculations'!$BV21+Q10+P10,0) -> -23739.93074 | S10: =IF($C10<=$G$60,R10/(1+$G$57)^($C10+1)+S9,0) -> -22161.47938 | T10: =IF(AND($C10<=$G$60,$G$61<>0),('Energy Calculations'!$BR$20)/$G$60,0) -> -13360.28 | U10: =IF($C10<=$G$60,$G$61*(('Energy Calculations'!$BR$20)-T10*$C9),0) -> -17167.9598 | V10: =IF(AND($C10<=$G$60,$G$61<>0),'Energy Calculations'!$BR21+U10+T10,0) -> 9564.74396 | W10: =IF($C10<=$G$60,V10/(1+$G$57)^($C10+1)+W9,0) -> 8928.790833 | Y10: 1 | Z10: =IF(AND($Y10<=$G$60,$G$62<>0),PMT($G$62,$G$60,-('Energy Calculations'!$AV$20)),0) -> -24032.2385 | AA10: =IF($Y10<=$G$60,'Energy Calculations'!$AV21+Z10,0) -> 28077.13131 | AB10: =IF($Y10<=$G$60,AA10/(1+$G$57)^($Y10+1)+AB9,0) -> 26210.30251 | AC10: =IF(AND($Y10<=$G$60,$G$62<>0),PMT($G$62,$G$60,-('Energy Calculations'!$BI$20)),0) -> -24032.2385 | AD10: =IF($Y10<=$G$60,'Energy Calculations'!$BI21+AC10,0) -> -16751.06986 | AE10: =IF($Y10<=$G$60,AD10/(1+$G$57)^($Y10+1)+AE9,0) -> -15637.30296 | AF10: =IF(AND($Y10<=$G$60,$G$62<>0),PMT($G$62,$G$60,-('Energy Calculations'!$BE$20)),0) -> -24032.2385 | AG10: =IF($Y10<=$G$60,'Energy Calculations'!$BE21+AF10,0) -> 28077.13131 | AH10: =IF($Y10<=$G$60,AG10/(1+$G$57)^($Y10+1)+AH9,0) -> 26210.30251 | AI10: =IF(AND($Y10<=$G$60,$G$62<>0),PMT($G$62,$G$60,-('Energy Calculations'!$BV$20)),0) -> -24032.2385 | AJ10: =IF($Y10<=$G$60,'Energy Calculations'!$BV21+AI10,0) -> -17243.92945 | AK10: =IF($Y10<=$G$60,AJ10/(1+$G$57)^($Y10+1)+AK9,0) -> -16097.39265 | AL10: =IF(AND($Y10<=$G$60,$G$62<>0),PMT($G$62,$G$60,-('Energy Calculations'!$BR$20)),0) -> -24032.2385 | AM10: =IF($Y10<=$G$60,'Energy Calculations'!$BR21+AL10,0) -> 16060.74526 | AN10: =IF($Y10<=$G$60,AM10/(1+$G$57)^($Y10+1)+AN9,0) -> 14992.87755 | AP10: 1 | AQ10: =IF(AND($AP10=$G$60,$G$63<>0),'Energy Calculations'!$AV$20,0) -> 0 | AR10: =IF(AND($AP10<=$G$60,$G$63<>0),('Energy Calculations'!$AV$20)*$G$63,0) -> -16600.1479 | AS10: =IF(AND($AP10<=$G$60,$G$63<>0),'Energy Calculations'!$AV21+AQ10+AR10,0) -> 35509.22191 | AT10: =IF($AP10<=$G$60,AS10/(1+$G$57)^($AP10+1)+AT9,0) -> 33148.23861 | AU10: =IF(AND($AP10=$G$60,$G$63<>0),'Energy Calculations'!$BI$20,0) -> 0 | AV10: =IF(AND($AP10<=$G$60,$G$63<>0),('Energy Calculations'!$BI$20)*$G$63,0) -> -16600.1479 | AW10: =IF(AND($AP10<=$G$60,$G$63<>0),'Energy Calculations'!$BI21+AU10+AV10,0) -> -9318.97926 | AX10: =IF($AP10<=$G$60,AW10/(1+$G$57)^($AP10+1)+AX9,0) -> -8699.366856 | AY10: =IF(AND($AP10=$G$60,$G$63<>0),'Energy Calculations'!$BE$20,0) -> 0 | AZ10: =IF(AND($AP10<=$G$60,$G$63<>0),('Energy Calculations'!$BE$20)*$G$63,0) -> -16600.1479 | BA10: =IF(AND($AP10<=$G$60,$G$63<>0),'Energy Calculations'!$BE21+AY10+AZ10,0) -> 35509.22191 | BB10: =IF($AP10<=$G$60,BA10/(1+$G$57)^($AP10+1)+BB9,0) -> 33148.23861 | BC10: =IF(AND($AP10=$G$60,$G$63<>0),'Energy Calculations'!$BV$20,0) -> 0 | BD10: =IF(AND($AP10<=$G$60,$G$63<>0),('Energy Calculations'!$BV$20)*$G$63,0) -> -16600.1479 | BE10: =IF(AND($AP10<=$G$60,$G$63<>0),'Energy Calculations'!$BV21+BC10+BD10,0) -> -9811.838844 | BF10: =IF($AP10<=$G$60,BE10/(1+$G$57)^($AP10+1)+BF9,0) -> -9159.456551 | BG10: =IF(AND($AP10=$G$60,$G$63<>0),'Energy Calculations'!$BR$20,0) -> 0 | BH10: =IF(AND($AP10<=$G$60,$G$63<>0),('Energy Calculations'!$BR$20)*$G$63,0) -> -16600.1479 | BI10: =IF(AND($AP10<=$G$60,$G$63<>0),'Energy Calculations'!$BR21+BG10+BH10,0) -> 23492.83586 | BJ10: =IF($AP10<=$G$60,BI10/(1+$G$57)^($AP10+1)+BJ9,0) -> 21930.81366 | BL10: 1 | BM10: ='Energy Calculations'!$AV$20/$G$60 -> -13360.28 | BP10: =IF($AP10<=$G$60,'Energy Calculations'!$AV21+BM10+BO10+BN10,0) -> 38749.08981 | BQ10: =IF($AP10<=$G$60,BP10/(1+$G$57)^($AP10+1)+BQ9,0) -> 36172.68997 | BR10: ='Energy Calculations'!$BI$20/$G$60 -> -13360.28 | BU10: =IF($AP10<=$G$60,'Energy Calculations'!$BI21+BR10+BT10+BS10,0) -> -6079.11136 | BV10: =IF($AP10<=$G$60,BU10/(1+$G$57)^($AP10+1)+BV9,0) -> -5674.915503 | BW10: ='Energy Calculations'!$BE$20/$G$60 -> -13360.28 | BZ10: =IF($AP10<=$G$60,'Energy Calculations'!$BE21+BW10+BY10+BX10,0) -> 38749.08981 | CA10: =IF($AP10<=$G$60,BZ10/(1+$G$57)^($AP10+1)+CA9,0) -> 36172.68997 | CB10: ='Energy Calculations'!$BV$20/$G$60 -> -13360.28 | CE10: =IF($AP10<=$G$60,'Energy Calculations'!$BV21+CB10+CD10+CC10,0) -> -6571.970944 | CF10: =IF($BL10<=$G$60,CE10/(1+$G$57)^($BL10+1)+CF9,0) -> -6135.005199 | CG10: ='Energy Calculations'!$BR$20/$G$60 -> -13360.28 | CJ10: =IF($AP10<=$G$60,'Energy Calculations'!$BR21+CG10+CI10+CH10,0) -> 26732.70376 | CK10: =IF($AP10<=$G$60,CJ10/(1+$G$57)^($AP10+1)+CK9,0) -> 24955.26501
B11: ='Energy Calculations'!BL22 -> 2026 | C11: 2 | D11: =IF(AND($C11<=$G$60,$G$61<>0),('Energy Calculations'!$AV$20)/$G$60,0) -> -13360.28 | E11: =IF($C11<=$G$60,$G$61*(('Energy Calculations'!$AV$20)-D11*$C10),0) -> -16481.24141 | F11: =IF(AND($C11<=$G$60,$G$61<>0),'Energy Calculations'!$AV22+E11+D11,0) -> 15012.19848 | G11: =IF($C11<=$G$60,F11/(1+$G$57)^($C11+1)+G10,0) -> 33686.3587 | H11: =IF(AND($C11<=$G$60,$G$61<>0),('Energy Calculations'!$BI$20)/$G$60,0) -> -13360.28 | I11: =IF($C11<=$G$60,$G$61*(('Energy Calculations'!$BI$20)-H11*$C10),0) -> -16481.24141 | J11: =IF(AND($C11<=$G$60,$G$61<>0),'Energy Calculations'!$BI22+I11+H11,0) -> -22499.60515 | K11: -41994.74442 | L11: =IF(AND($C11<=$G$60,$G$61<>0),('Energy Calculations'!$BE$20)/$G$60,0) -> -13360.28 | M11: =IF($C11<=$G$60,$G$61*(('Energy Calculations'!$BE$20)-L11*$C10),0) -> -16481.24141 | N11: =IF(AND($C11<=$G$60,$G$61<>0),'Energy Calculations'!$BE22+M11+L11,0) -> 15012.19848 | O11: 33686.3587 | P11: =IF(AND($C11<=$G$60,$G$61<>0),('Energy Calculations'!$BV$20)/$G$60,0) -> -13360.28 | Q11: =IF($C11<=$G$60,$G$61*(('Energy Calculations'!$BV$20)-P11*$C10),0) -> -16481.24141 | R11: =IF(AND($C11<=$G$60,$G$61<>0),'Energy Calculations'!$BV22+Q11+P11,0) -> -22998.70897 | S11: -42904.99717 | T11: =IF(AND($C11<=$G$60,$G$61<>0),('Energy Calculations'!$BR$20)/$G$60,0) -> -13360.28 | U11: =IF($C11<=$G$60,$G$61*(('Energy Calculations'!$BR$20)-T11*$C10),0) -> -16481.24141 | V11: =IF(AND($C11<=$G$60,$G$61<>0),'Energy Calculations'!BR22+U11+T11,0) -> 2843.571972 | W11: 11493.52983 | Y11: 2 | Z11: =IF(AND($Y11<=$G$60,$G$62<>0),PMT($G$62,$G$60,-('Energy Calculations'!$AV$20)),0) -> -24032.2385 | AA11: =IF($Y11<=$G$60,'Energy Calculations'!$AV22+Z11,0) -> 20821.48138 | AB11: =IF($Y11<=$G$60,AA11/(1+$G$57)^($Y11+1)+AB10,0) -> 44990.08576 | AC11: =IF(AND($Y11<=$G$60,$G$62<>0),PMT($G$62,$G$60,-('Energy Calculations'!$BI$20)),0) -> -24032.2385 | AD11: =IF($Y11<=$G$60,'Energy Calculations'!$BI22+AC11,0) -> -16690.32224 | AE11: =IF($Y11<=$G$60,AD11/(1+$G$57)^($Y11+1)+AE10,0) -> -30691.01736 | AF11: =IF(AND($Y11<=$G$60,$G$62<>0),PMT($G$62,$G$60,-('Energy Calculations'!$BE$20)),0) -> -24032.2385 | AG11: =IF($Y11<=$G$60,'Energy Calculations'!$BE22+AF11,0) -> 20821.48138 | AH11: =IF($Y11<=$G$60,AG11/(1+$G$57)^($Y11+1)+AH10,0) -> 44990.08576 | AI11: =IF(AND($Y11<=$G$60,$G$62<>0),PMT($G$62,$G$60,-('Energy Calculations'!$BV$20)),0) -> -24032.2385 | AJ11: =IF($Y11<=$G$60,'Energy Calculations'!$BV22+AI11,0) -> -17189.42606 | AK11: -31601.2701 | AL11: =IF(AND($Y11<=$G$60,$G$62<>0),PMT($G$62,$G$60,-('Energy Calculations'!$BR$20)),0) -> -24032.2385 | AM11: =IF($Y11<=$G$60,'Energy Calculations'!$BR22+AL11,0) -> 8652.854878 | AN11: =IF($Y11<=$G$60,AM11/(1+$G$57)^($Y11+1)+AN10,0) -> 22797.25689 | AP11: 2 | AQ11: =IF(AND($AP11=$G$60,$G$63<>0),'Energy Calculations'!$AV$20,0) -> 0 | AR11: =IF(AND($AP11<=$G$60,$G$63<>0),('Energy Calculations'!$AV$20)*$G$63,0) -> -16600.1479 | AS11: =IF(AND($AP11<=$G$60,$G$63<>0),'Energy Calculations'!$AV22+AQ11+AR11,0) -> 28253.57198 | AT11: =IF($AP11<=$G$60,AS11/(1+$G$57)^($AP11+1)+AT10,0) -> 58631.34177 | AU11: =IF(AND($AP11=$G$60,$G$63<>0),'Energy Calculations'!$BI$20,0) -> 0 | AV11: =IF(AND($AP11<=$G$60,$G$63<>0),('Energy Calculations'!$BI$20)*$G$63,0) -> -16600.1479 | AW11: =IF(AND($AP11<=$G$60,$G$63<>0),'Energy Calculations'!$BI22+AU11+AV11,0) -> -9258.231638 | AX11: -17049.76135 | AY11: =IF(AND($AP11=$G$60,$G$63<>0),'Energy Calculations'!$BE$20,0) -> 0 | AZ11: =IF(AND($AP11<=$G$60,$G$63<>0),('Energy Calculations'!$BE$20)*$G$63,0) -> -16600.1479 | BA11: =IF(AND($AP11<=$G$60,$G$63<>0),'Energy Calculations'!$BE22+AY11+AZ11,0) -> 28253.57198 | BB11: 58631.34177 | BC11: =IF(AND($AP11=$G$60,$G$63<>0),'Energy Calculations'!$BV$20,0) -> 0 | BD11: =IF(AND($AP11<=$G$60,$G$63<>0),('Energy Calculations'!$BV$20)*$G$63,0) -> -16600.1479 | BE11: =IF(AND($AP11<=$G$60,$G$63<>0),'Energy Calculations'!$BV22+BC11+BD11,0) -> -9757.335459 | BF11: -17960.0141 | BG11: =IF(AND($AP11=$G$60,$G$63<>0),'Energy Calculations'!$BR$20,0) -> 0 | BH11: =IF(AND($AP11<=$G$60,$G$63<>0),('Energy Calculations'!$BR$20)*$G$63,0) -> -16600.1479 | BI11: =IF(AND($AP11<=$G$60,$G$63<>0),'Energy Calculations'!$BR22+BG11+BH11,0) -> 16084.94548 | BJ11: 36438.5129 | BL11: 2 | BM11: ='Energy Calculations'!$AV$20/$G$60 -> -13360.28 | BP11: =IF($AP11<=$G$60,'Energy Calculations'!$AV22+BM11+BO11+BN11,0) -> 31493.43988 | BQ11: 64577.96834 | BR11: ='Energy Calculations'!$BI$20/$G$60 -> -13360.28 | BU11: =IF($AP11<=$G$60,'Energy Calculations'!$BI22+BR11+BT11+BS11,0) -> -6018.363738 | BV11: -11103.13478 | BW11: ='Energy Calculations'!$BE$20/$G$60 -> -13360.28 | BZ11: =IF($AP11<=$G$60,'Energy Calculations'!$BE22+BW11+BY11+BX11,0) -> 31493.43988 | CA11: 64577.96834 | CB11: ='Energy Calculations'!$BV$20/$G$60 -> -13360.28 | CE11: =IF($AP11<=$G$60,'Energy Calculations'!$BV22+CB11+CD11+CC11,0) -> -6517.467559 | CF11: =IF($AP11<=$G$60,CE11/(1+$G$57)^($AP11+1)+CF10,0) -> -12013.38752 | CG11: ='Energy Calculations'!$BR$20/$G$60 -> -13360.28 | CJ11: =IF($AP11<=$G$60,'Energy Calculations'!$BR22+CG11+CI11+CH11,0) -> 19324.81338 | CK11: 42385.13948
B12: ='Energy Calculations'!BL23 -> 2027 | C12: 3 | D12: =IF(AND($C12<=$G$60,$G$61<>0),('Energy Calculations'!$AV$20)/$G$60,0) -> -13360.28 | E12: =IF($C12<=$G$60,$G$61*(('Energy Calculations'!$AV$20)-D12*$C11),0) -> -15794.52302 | F12: =IF(AND($C12<=$G$60,$G$61<>0),'Energy Calculations'!$AV23+E12+D12,0) -> 10937.73105 | G12: 43217.95941 | H12: =IF(AND($C12<=$G$60,$G$61<>0),('Energy Calculations'!$BI$20)/$G$60,0) -> -13360.28 | I12: =IF($C12<=$G$60,$G$61*(('Energy Calculations'!$BI$20)-H12*$C11),0) -> -15794.52302 | J12: =IF(AND($C12<=$G$60,$G$61<>0),'Energy Calculations'!$BI23+I12+H12,0) -> -21752.62169 | K12: -60950.89753 | L12: =IF(AND($C12<=$G$60,$G$61<>0),('Energy Calculations'!$BE$20)/$G$60,0) -> -13360.28 | M12: =IF($C12<=$G$60,$G$61*(('Energy Calculations'!$BE$20)-L12*$C11),0) -> -15794.52302 | N12: =IF(AND($C12<=$G$60,$G$61<>0),'Energy Calculations'!$BE23+M12+L12,0) -> 10937.73105 | O12: 43217.95941 | P12: =IF(AND($C12<=$G$60,$G$61<>0),('Energy Calculations'!$BV$20)/$G$60,0) -> -13360.28 | Q12: =IF($C12<=$G$60,$G$61*(('Energy Calculations'!$BV$20)-P12*$C11),0) -> -15794.52302 | R12: =IF(AND($C12<=$G$60,$G$61<>0),'Energy Calculations'!$BV23+Q12+P12,0) -> -22258.02238 | S12: -62301.57777 | T12: =IF(AND($C12<=$G$60,$G$61<>0),('Energy Calculations'!$BR$20)/$G$60,0) -> -13360.28 | U12: =IF($C12<=$G$60,$G$61*(('Energy Calculations'!$BR$20)-T12*$C11),0) -> -15794.52302 | V12: =IF(AND($C12<=$G$60,$G$61<>0),'Energy Calculations'!BR23+U12+T12,0) -> -1384.418976 | W12: 10287.08867 | Y12: 3 | Z12: =IF(AND($Y12<=$G$60,$G$62<>0),PMT($G$62,$G$60,-('Energy Calculations'!$AV$20)),0) -> -24032.2385 | AA12: =IF($Y12<=$G$60,'Energy Calculations'!$AV23+Z12,0) -> 16060.29556 | AB12: 58985.7055 | AC12: =IF(AND($Y12<=$G$60,$G$62<>0),PMT($G$62,$G$60,-('Energy Calculations'!$BI$20)),0) -> -24032.2385 | AD12: =IF($Y12<=$G$60,'Energy Calculations'!$BI23+AC12,0) -> -16630.05718 | AE12: -45183.15143 | AF12: =IF(AND($Y12<=$G$60,$G$62<>0),PMT($G$62,$G$60,-('Energy Calculations'!$BE$20)),0) -> -24032.2385 | AG12: =IF($Y12<=$G$60,'Energy Calculations'!$BE23+AF12,0) -> 16060.29556 | AH12: 58985.7055 | AI12: =IF(AND($Y12<=$G$60,$G$62<>0),PMT($G$62,$G$60,-('Energy Calculations'!$BV$20)),0) -> -24032.2385 | AJ12: =IF($Y12<=$G$60,'Energy Calculations'!$BV23+AI12,0) -> -17135.45786 | AK12: -46533.83168 | AL12: =IF(AND($Y12<=$G$60,$G$62<>0),PMT($G$62,$G$60,-('Energy Calculations'!$BR$20)),0) -> -24032.2385 | AM12: =IF($Y12<=$G$60,'Energy Calculations'!$BR23+AL12,0) -> 3738.145538 | AN12: 26054.83477 | AP12: 3 | AQ12: =IF(AND($AP12=$G$60,$G$63<>0),'Energy Calculations'!$AV$20,0) -> 0 | AR12: =IF(AND($AP12<=$G$60,$G$63<>0),('Energy Calculations'!$AV$20)*$G$63,0) -> -16600.1479 | AS12: =IF(AND($AP12<=$G$60,$G$63<>0),'Energy Calculations'!$AV23+AQ12+AR12,0) -> 23492.38616 | AT12: 79103.5991 | AU12: =IF(AND($AP12=$G$60,$G$63<>0),'Energy Calculations'!$BI$20,0) -> 0 | AV12: =IF(AND($AP12<=$G$60,$G$63<>0),('Energy Calculations'!$BI$20)*$G$63,0) -> -16600.1479 | AW12: =IF(AND($AP12<=$G$60,$G$63<>0),'Energy Calculations'!$BI23+AU12+AV12,0) -> -9197.966578 | AX12: -25065.25783 | AY12: =IF(AND($AP12=$G$60,$G$63<>0),'Energy Calculations'!$BE$20,0) -> 0 | AZ12: =IF(AND($AP12<=$G$60,$G$63<>0),('Energy Calculations'!$BE$20)*$G$63,0) -> -16600.1479 | BA12: =IF(AND($AP12<=$G$60,$G$63<>0),'Energy Calculations'!$BE23+AY12+AZ12,0) -> 23492.38616 | BB12: 79103.5991 | BC12: =IF(AND($AP12=$G$60,$G$63<>0),'Energy Calculations'!$BV$20,0) -> 0 | BD12: =IF(AND($AP12<=$G$60,$G$63<>0),('Energy Calculations'!$BV$20)*$G$63,0) -> -16600.1479 | BE12: =IF(AND($AP12<=$G$60,$G$63<>0),'Energy Calculations'!$BV23+BC12+BD12,0) -> -9703.367262 | BF12: -26415.93808 | BG12: =IF(AND($AP12=$G$60,$G$63<>0),'Energy Calculations'!$BR$20,0) -> 0 | BH12: =IF(AND($AP12<=$G$60,$G$63<>0),('Energy Calculations'!$BR$20)*$G$63,0) -> -16600.1479 | BI12: =IF(AND($AP12<=$G$60,$G$63<>0),'Energy Calculations'!$BR23+BG12+BH12,0) -> 11170.23614 | BJ12: 46172.72837 | BL12: 3 | BM12: ='Energy Calculations'!$AV$20/$G$60 -> -13360.28 | BP12: =IF($AP12<=$G$60,'Energy Calculations'!$AV23+BM12+BO12+BN12,0) -> 26732.25406 | BQ12: 87873.58338 | BR12: ='Energy Calculations'!$BI$20/$G$60 -> -13360.28 | BU12: =IF($AP12<=$G$60,'Energy Calculations'!$BI23+BR12+BT12+BS12,0) -> -5958.098678 | BV12: -16295.27356 | BW12: ='Energy Calculations'!$BE$20/$G$60 -> -13360.28 | BZ12: =IF($AP12<=$G$60,'Energy Calculations'!$BE23+BW12+BY12+BX12,0) -> 26732.25406 | CA12: 87873.58338 | CB12: ='Energy Calculations'!$BV$20/$G$60 -> -13360.28 | CE12: =IF($AP12<=$G$60,'Energy Calculations'!$BV23+CB12+CD12+CC12,0) -> -6463.499362 | CF12: -17645.95381 | CG12: ='Energy Calculations'!$BR$20/$G$60 -> -13360.28 | CJ12: =IF($AP12<=$G$60,'Energy Calculations'!$BR23+CG12+CI12+CH12,0) -> 14410.10404 | CK12: 54942.71264
B13: ='Energy Calculations'!BL24 -> 2028 | C13: 4 | D13: =IF(AND($C13<=$G$60,$G$61<>0),('Energy Calculations'!$AV$20)/$G$60,0) -> -13360.28 | E13: =IF($C13<=$G$60,$G$61*(('Energy Calculations'!$AV$20)-D13*$C12),0) -> -15107.80462 | F13: =IF(AND($C13<=$G$60,$G$61<>0),'Energy Calculations'!$AV24+E13+D13,0) -> 9605.606736 | G13: 51305.62253 | H13: =IF(AND($C13<=$G$60,$G$61<>0),('Energy Calculations'!$BI$20)/$G$60,0) -> -13360.28 | I13: =IF($C13<=$G$60,$G$61*(('Energy Calculations'!$BI$20)-H13*$C12),0) -> -15107.80462 | J13: =IF(AND($C13<=$G$60,$G$61<>0),'Energy Calculations'!$BI24+I13+H13,0) -> -21006.16441 | K13: -78637.5243 | L13: =IF(AND($C13<=$G$60,$G$61<>0),('Energy Calculations'!$BE$20)/$G$60,0) -> -13360.28 | M13: =IF($C13<=$G$60,$G$61*(('Energy Calculations'!$BE$20)-L13*$C12),0) -> -15107.80462 | N13: =IF(AND($C13<=$G$60,$G$61<>0),'Energy Calculations'!$BE24+M13+L13,0) -> 9605.606736 | O13: 51305.62253 | P13: =IF(AND($C13<=$G$60,$G$61<>0),('Energy Calculations'!$BV$20)/$G$60,0) -> -13360.28 | Q13: =IF($C13<=$G$60,$G$61*(('Energy Calculations'!$BV$20)-P13*$C12),0) -> -15107.80462 | R13: =IF(AND($C13<=$G$60,$G$61<>0),'Energy Calculations'!$BV24+Q13+P13,0) -> -21517.91419 | S13: -80419.08413 | T13: =IF(AND($C13<=$G$60,$G$61<>0),('Energy Calculations'!$BR$20)/$G$60,0) -> -13360.28 | U13: =IF($C13<=$G$60,$G$61*(('Energy Calculations'!$BR$20)-T13*$C12),0) -> -15107.80462 | V13: =IF(AND($C13<=$G$60,$G$61<>0),'Energy Calculations'!BR24+U13+T13,0) -> -2871.340297 | W13: 7869.497192 | Y13: 4 | Z13: =IF(AND($Y13<=$G$60,$G$62<>0),PMT($G$62,$G$60,-('Energy Calculations'!$AV$20)),0) -> -24032.2385 | AA13: =IF($Y13<=$G$60,'Energy Calculations'!$AV24+Z13,0) -> 14041.45286 | AB13: 70808.23203 | AC13: =IF(AND($Y13<=$G$60,$G$62<>0),PMT($G$62,$G$60,-('Energy Calculations'!$BI$20)),0) -> -24032.2385 | AD13: =IF($Y13<=$G$60,'Energy Calculations'!$BI24+AC13,0) -> -16570.31828 | AE13: -59134.9148 | AF13: =IF(AND($Y13<=$G$60,$G$62<>0),PMT($G$62,$G$60,-('Energy Calculations'!$BE$20)),0) -> -24032.2385 | AG13: =IF($Y13<=$G$60,'Energy Calculations'!$BE24+AF13,0) -> 14041.45286 | AH13: 70808.23203 | AI13: =IF(AND($Y13<=$G$60,$G$62<>0),PMT($G$62,$G$60,-('Energy Calculations'!$BV$20)),0) -> -24032.2385 | AJ13: =IF($Y13<=$G$60,'Energy Calculations'!$BV24+AI13,0) -> -17082.06806 | AK13: -60916.47462 | AL13: =IF(AND($Y13<=$G$60,$G$62<>0),PMT($G$62,$G$60,-('Energy Calculations'!$BR$20)),0) -> -24032.2385 | AM13: =IF($Y13<=$G$60,'Energy Calculations'!$BR24+AL13,0) -> 1564.505825 | AN13: 27372.10669 | AP13: 4 | AQ13: =IF(AND($AP13=$G$60,$G$63<>0),'Energy Calculations'!$AV$20,0) -> 0 | AR13: =IF(AND($AP13<=$G$60,$G$63<>0),('Energy Calculations'!$AV$20)*$G$63,0) -> -16600.1479 | AS13: =IF(AND($AP13<=$G$60,$G$63<>0),'Energy Calculations'!$AV24+AQ13+AR13,0) -> 21473.54346 | AT13: 97183.7465 | AU13: =IF(AND($AP13=$G$60,$G$63<>0),'Energy Calculations'!$BI$20,0) -> 0 | AV13: =IF(AND($AP13<=$G$60,$G$63<>0),('Energy Calculations'!$BI$20)*$G$63,0) -> -16600.1479 | AW13: =IF(AND($AP13<=$G$60,$G$63<>0),'Energy Calculations'!$BI24+AU13+AV13,0) -> -9138.227682 | AX13: -32759.40033 | AY13: =IF(AND($AP13=$G$60,$G$63<>0),'Energy Calculations'!$BE$20,0) -> 0 | AZ13: =IF(AND($AP13<=$G$60,$G$63<>0),('Energy Calculations'!$BE$20)*$G$63,0) -> -16600.1479 | BA13: =IF(AND($AP13<=$G$60,$G$63<>0),'Energy Calculations'!$BE24+AY13+AZ13,0) -> 21473.54346 | BB13: 97183.7465 | BC13: =IF(AND($AP13=$G$60,$G$63<>0),'Energy Calculations'!$BV$20,0) -> 0 | BD13: =IF(AND($AP13<=$G$60,$G$63<>0),('Energy Calculations'!$BV$20)*$G$63,0) -> -16600.1479 | BE13: =IF(AND($AP13<=$G$60,$G$63<>0),'Energy Calculations'!$BV24+BC13+BD13,0) -> -9649.977463 | BF13: -34540.96016 | BG13: =IF(AND($AP13=$G$60,$G$63<>0),'Energy Calculations'!$BR$20,0) -> 0 | BH13: =IF(AND($AP13<=$G$60,$G$63<>0),('Energy Calculations'!$BR$20)*$G$63,0) -> -16600.1479 | BI13: =IF(AND($AP13<=$G$60,$G$63<>0),'Energy Calculations'!$BR24+BG13+BH13,0) -> 8996.596427 | BJ13: 53747.62115 | BL13: 4 | BM13: ='Energy Calculations'!$AV$20/$G$60 -> -13360.28 | BP13: =IF($AP13<=$G$60,'Energy Calculations'!$AV24+BM13+BO13+BN13,0) -> 24713.41136 | BQ13: 108681.6126 | BR13: ='Energy Calculations'!$BI$20/$G$60 -> -13360.28 | BU13: =IF($AP13<=$G$60,'Energy Calculations'!$BI24+BR13+BT13+BS13,0) -> -5898.359782 | BV13: -21261.53423 | BW13: ='Energy Calculations'!$BE$20/$G$60 -> -13360.28 | BZ13: =IF($AP13<=$G$60,'Energy Calculations'!$BE24+BW13+BY13+BX13,0) -> 24713.41136 | CA13: 108681.6126 | CB13: ='Energy Calculations'!$BV$20/$G$60 -> -13360.28 | CE13: =IF($AP13<=$G$60,'Energy Calculations'!$BV24+CB13+CD13+CC13,0) -> -6410.109563 | CF13: -23043.09405 | CG13: ='Energy Calculations'!$BR$20/$G$60 -> -13360.28 | CJ13: =IF($AP13<=$G$60,'Energy Calculations'!$BR24+CG13+CI13+CH13,0) -> 12236.46433 | CK13: 65245.48726
B14: ='Energy Calculations'!BL25 -> 2029 | C14: 5 | D14: =IF(AND($C14<=$G$60,$G$61<>0),('Energy Calculations'!$AV$20)/$G$60,0) -> -13360.28 | E14: =IF($C14<=$G$60,$G$61*(('Energy Calculations'!$AV$20)-D14*$C13),0) -> -14421.08623 | F14: =IF(AND($C14<=$G$60,$G$61<>0),'Energy Calculations'!$AV25+E14+D14,0) -> 9545.106158 | G14: 59070.57254 | H14: =IF(AND($C14<=$G$60,$G$61<>0),('Energy Calculations'!$BI$20)/$G$60,0) -> -13360.28 | I14: =IF($C14<=$G$60,$G$61*(('Energy Calculations'!$BI$20)-H14*$C13),0) -> -14421.08623 | J14: =IF(AND($C14<=$G$60,$G$61<>0),'Energy Calculations'!$BI25+I14+H14,0) -> -20260.27844 | K14: -95119.27386 | L14: =IF(AND($C14<=$G$60,$G$61<>0),('Energy Calculations'!$BE$20)/$G$60,0) -> -13360.28 | M14: =IF($C14<=$G$60,$G$61*(('Energy Calculations'!$BE$20)-L14*$C13),0) -> -14421.08623 | N14: =IF(AND($C14<=$G$60,$G$61<>0),'Energy Calculations'!$BE25+M14+L14,0) -> 9545.106158 | O14: 59070.57254 | P14: =IF(AND($C14<=$G$60,$G$61<>0),('Energy Calculations'!$BV$20)/$G$60,0) -> -13360.28 | Q14: =IF($C14<=$G$60,$G$61*(('Energy Calculations'!$BV$20)-P14*$C13),0) -> -14421.08623 | R14: =IF(AND($C14<=$G$60,$G$61<>0),'Energy Calculations'!$BV25+Q14+P14,0) -> -20778.42912 | S14: -97322.3496 | T14: =IF(AND($C14<=$G$60,$G$61<>0),('Energy Calculations'!$BR$20)/$G$60,0) -> -13360.28 | U14: =IF($C14<=$G$60,$G$61*(('Energy Calculations'!$BR$20)-T14*$C13),0) -> -14421.08623 | V14: =IF(AND($C14<=$G$60,$G$61<>0),'Energy Calculations'!BR25+U14+T14,0) -> -3087.900904 | W14: 5357.487817 | Y14: 5 | Z14: =IF(AND($Y14<=$G$60,$G$62<>0),PMT($G$62,$G$60,-('Energy Calculations'!$AV$20)),0) -> -24032.2385 | AA14: =IF($Y14<=$G$60,'Energy Calculations'!$AV25+Z14,0) -> 13294.23389 | AB14: 81623.09987 | AC14: =IF(AND($Y14<=$G$60,$G$62<>0),PMT($G$62,$G$60,-('Energy Calculations'!$BI$20)),0) -> -24032.2385 | AD14: =IF($Y14<=$G$60,'Energy Calculations'!$BI25+AC14,0) -> -16511.15071 | AE14: -72566.74653 | AF14: =IF(AND($Y14<=$G$60,$G$62<>0),PMT($G$62,$G$60,-('Energy Calculations'!$BE$20)),0) -> -24032.2385 | AG14: =IF($Y14<=$G$60,'Energy Calculations'!$BE25+AF14,0) -> 13294.23389 | AH14: 81623.09987 | AI14: =IF(AND($Y14<=$G$60,$G$62<>0),PMT($G$62,$G$60,-('Energy Calculations'!$BV$20)),0) -> -24032.2385 | AJ14: =IF($Y14<=$G$60,'Energy Calculations'!$BV25+AI14,0) -> -17029.30139 | AK14: -74769.82227 | AL14: =IF(AND($Y14<=$G$60,$G$62<>0),PMT($G$62,$G$60,-('Energy Calculations'!$BR$20)),0) -> -24032.2385 | AM14: =IF($Y14<=$G$60,'Energy Calculations'!$BR25+AL14,0) -> 661.2268256 | AN14: 27910.01514 | AP14: 5 | AQ14: =IF(AND($AP14=$G$60,$G$63<>0),'Energy Calculations'!$AV$20,0) -> 0 | AR14: =IF(AND($AP14<=$G$60,$G$63<>0),('Energy Calculations'!$AV$20)*$G$63,0) -> -16600.1479 | AS14: =IF(AND($AP14<=$G$60,$G$63<>0),'Energy Calculations'!$AV25+AQ14+AR14,0) -> 20726.32449 | AT14: 114044.6248 | AU14: =IF(AND($AP14=$G$60,$G$63<>0),'Energy Calculations'!$BI$20,0) -> 0 | AV14: =IF(AND($AP14<=$G$60,$G$63<>0),('Energy Calculations'!$BI$20)*$G$63,0) -> -16600.1479 | AW14: =IF(AND($AP14<=$G$60,$G$63<>0),'Energy Calculations'!$BI25+AU14+AV14,0) -> -9079.060103 | AX14: -40145.22158 | AY14: =IF(AND($AP14=$G$60,$G$63<>0),'Energy Calculations'!$BE$20,0) -> 0 | AZ14: =IF(AND($AP14<=$G$60,$G$63<>0),('Energy Calculations'!$BE$20)*$G$63,0) -> -16600.1479 | BA14: =IF(AND($AP14<=$G$60,$G$63<>0),'Energy Calculations'!$BE25+AY14+AZ14,0) -> 20726.32449 | BB14: 114044.6248 | BC14: =IF(AND($AP14=$G$60,$G$63<>0),'Energy Calculations'!$BV$20,0) -> 0 | BD14: =IF(AND($AP14<=$G$60,$G$63<>0),('Energy Calculations'!$BV$20)*$G$63,0) -> -16600.1479 | BE14: =IF(AND($AP14<=$G$60,$G$63<>0),'Energy Calculations'!$BV25+BC14+BD14,0) -> -9597.210783 | BF14: -42348.29732 | BG14: =IF(AND($AP14=$G$60,$G$63<>0),'Energy Calculations'!$BR$20,0) -> 0 | BH14: =IF(AND($AP14<=$G$60,$G$63<>0),('Energy Calculations'!$BR$20)*$G$63,0) -> -16600.1479 | BI14: =IF(AND($AP14<=$G$60,$G$63<>0),'Energy Calculations'!$BR25+BG14+BH14,0) -> 8093.317428 | BJ14: 60331.5401 | BL14: 5 | BM14: ='Energy Calculations'!$AV$20/$G$60 -> -13360.28 | BP14: =IF($AP14<=$G$60,'Energy Calculations'!$AV25+BM14+BO14+BN14,0) -> 23966.19239 | BQ14: 128178.1256 | BR14: ='Energy Calculations'!$BI$20/$G$60 -> -13360.28 | BU14: =IF($AP14<=$G$60,'Energy Calculations'!$BI25+BR14+BT14+BS14,0) -> -5839.192203 | BV14: -26011.72085 | BW14: ='Energy Calculations'!$BE$20/$G$60 -> -13360.28 | BZ14: =IF($AP14<=$G$60,'Energy Calculations'!$BE25+BW14+BY14+BX14,0) -> 23966.19239 | CA14: 128178.1256 | CB14: ='Energy Calculations'!$BV$20/$G$60 -> -13360.28 | CE14: =IF($AP14<=$G$60,'Energy Calculations'!$BV25+CB14+CD14+CC14,0) -> -6357.342883 | CF14: -28214.79659 | CG14: ='Energy Calculations'!$BR$20/$G$60 -> -13360.28 | CJ14: =IF($AP14<=$G$60,'Energy Calculations'!$BR25+CG14+CI14+CH14,0) -> 11333.18533 | CK14: 74465.04083
B15: ='Energy Calculations'!BL26 -> 2030 | C15: 6 | D15: =IF(AND($C15<=$G$60,$G$61<>0),('Energy Calculations'!$AV$20)/$G$60,0) -> -13360.28 | E15: =IF($C15<=$G$60,$G$61*(('Energy Calculations'!$AV$20)-D15*$C14),0) -> -13734.36784 | F15: =IF(AND($C15<=$G$60,$G$61<>0),'Energy Calculations'!$AV26+E15+D15,0) -> 9099.700594 | G15: 66222.85495 | H15: =IF(AND($C15<=$G$60,$G$61<>0),('Energy Calculations'!$BI$20)/$G$60,0) -> -13360.28 | I15: =IF($C15<=$G$60,$G$61*(('Energy Calculations'!$BI$20)-H15*$C14),0) -> -13734.36784 | J15: =IF(AND($C15<=$G$60,$G$61<>0),'Energy Calculations'!$BI26+I15+H15,0) -> -19515.01053 | K15: -110457.8957 | L15: =IF(AND($C15<=$G$60,$G$61<>0),('Energy Calculations'!$BE$20)/$G$60,0) -> -13360.28 | M15: =IF($C15<=$G$60,$G$61*(('Energy Calculations'!$BE$20)-L15*$C14),0) -> -13734.36784 | N15: =IF(AND($C15<=$G$60,$G$61<>0),'Energy Calculations'!$BE26+M15+L15,0) -> 9099.700594 | O15: 66222.85495 | P15: =IF(AND($C15<=$G$60,$G$61<>0),('Energy Calculations'!$BV$20)/$G$60,0) -> -13360.28 | Q15: =IF($C15<=$G$60,$G$61*(('Energy Calculations'!$BV$20)-P15*$C14),0) -> -13734.36784 | R15: =IF(AND($C15<=$G$60,$G$61<>0),'Energy Calculations'!$BV26+Q15+P15,0) -> -20039.61344 | S15: -113073.3046 | T15: =IF(AND($C15<=$G$60,$G$61<>0),('Energy Calculations'!$BR$20)/$G$60,0) -> -13360.28 | U15: =IF($C15<=$G$60,$G$61*(('Energy Calculations'!$BR$20)-T15*$C14),0) -> -13734.36784 | V15: =IF(AND($C15<=$G$60,$G$61<>0),'Energy Calculations'!BR26+U15+T15,0) -> -3690.618121 | W15: 2456.695334 | Y15: 6 | Z15: =IF(AND($Y15<=$G$60,$G$62<>0),PMT($G$62,$G$60,-('Energy Calculations'!$AV$20)),0) -> -24032.2385 | AA15: =IF($Y15<=$G$60,'Energy Calculations'!$AV26+Z15,0) -> 12162.10993 | AB15: 91182.40834 | AC15: =IF(AND($Y15<=$G$60,$G$62<>0),PMT($G$62,$G$60,-('Energy Calculations'!$BI$20)),0) -> -24032.2385 | AD15: =IF($Y15<=$G$60,'Energy Calculations'!$BI26+AC15,0) -> -16452.60119 | AE15: -85498.34235 | AF15: =IF(AND($Y15<=$G$60,$G$62<>0),PMT($G$62,$G$60,-('Energy Calculations'!$BE$20)),0) -> -24032.2385 | AG15: =IF($Y15<=$G$60,'Energy Calculations'!$BE26+AF15,0) -> 12162.10993 | AH15: 91182.40834 | AI15: =IF(AND($Y15<=$G$60,$G$62<>0),PMT($G$62,$G$60,-('Energy Calculations'!$BV$20)),0) -> -24032.2385 | AJ15: =IF($Y15<=$G$60,'Energy Calculations'!$BV26+AI15,0) -> -16977.20411 | AK15: -88113.75124 | AL15: =IF(AND($Y15<=$G$60,$G$62<>0),PMT($G$62,$G$60,-('Energy Calculations'!$BR$20)),0) -> -24032.2385 | AM15: =IF($Y15<=$G$60,'Energy Calculations'!$BR26+AL15,0) -> -628.2087832 | AN15: 27416.24872 | AP15: 6 | AQ15: =IF(AND($AP15=$G$60,$G$63<>0),'Energy Calculations'!$AV$20,0) -> 0 | AR15: =IF(AND($AP15<=$G$60,$G$63<>0),('Energy Calculations'!$AV$20)*$G$63,0) -> -16600.1479 | AS15: =IF(AND($AP15<=$G$60,$G$63<>0),'Energy Calculations'!$AV26+AQ15+AR15,0) -> 19594.20053 | AT15: 129445.4893 | AU15: =IF(AND($AP15=$G$60,$G$63<>0),'Energy Calculations'!$BI$20,0) -> 0 | AV15: =IF(AND($AP15<=$G$60,$G$63<>0),('Energy Calculations'!$BI$20)*$G$63,0) -> -16600.1479 | AW15: =IF(AND($AP15<=$G$60,$G$63<>0),'Energy Calculations'!$BI26+AU15+AV15,0) -> -9020.510589 | AX15: -47235.26136 | AY15: =IF(AND($AP15=$G$60,$G$63<>0),'Energy Calculations'!$BE$20,0) -> 0 | AZ15: =IF(AND($AP15<=$G$60,$G$63<>0),('Energy Calculations'!$BE$20)*$G$63,0) -> -16600.1479 | BA15: =IF(AND($AP15<=$G$60,$G$63<>0),'Energy Calculations'!$BE26+AY15+AZ15,0) -> 19594.20053 | BB15: 129445.4893 | BC15: =IF(AND($AP15=$G$60,$G$63<>0),'Energy Calculations'!$BV$20,0) -> 0 | BD15: =IF(AND($AP15<=$G$60,$G$63<>0),('Energy Calculations'!$BV$20)*$G$63,0) -> -16600.1479 | BE15: =IF(AND($AP15<=$G$60,$G$63<>0),'Energy Calculations'!$BV26+BC15+BD15,0) -> -9545.113505 | BF15: -49850.67025 | BG15: =IF(AND($AP15=$G$60,$G$63<>0),'Energy Calculations'!$BR$20,0) -> 0 | BH15: =IF(AND($AP15<=$G$60,$G$63<>0),('Energy Calculations'!$BR$20)*$G$63,0) -> -16600.1479 | BI15: =IF(AND($AP15<=$G$60,$G$63<>0),'Energy Calculations'!$BR26+BG15+BH15,0) -> 6803.881819 | BJ15: 65679.3297 | BL15: 6 | BM15: ='Energy Calculations'!$AV$20-(SUM(BM10:BM14)) -> -267205.6 | BN15: =-BM15 -> 267205.6 | BO15: =IF($AP15<=$G$60,PMT($G$64,$G$60-5,BN$15),0) -> -21605.19327 | BP15: =IF($AP15<=$G$60,'Energy Calculations'!$AV26+BM15+BO15+BN15,0) -> 14589.15517 | BQ15: 139645.0696 | BR15: ='Energy Calculations'!$BI$20-(SUM(BR10:BR14)) -> -267205.6 | BS15: =-BR15 -> 267205.6 | BT15: =IF($AP15<=$G$60,PMT($G$64,$G$60-5,BS$15),0) -> -21605.19327 | BU15: =IF($AP15<=$G$60,'Energy Calculations'!$BI26+BR15+BT15+BS15,0) -> -14025.55596 | BV15: -37035.68105 | BW15: ='Energy Calculations'!$BE$20-(SUM(BW10:BW14)) -> -267205.6 | BX15: =-BW15 -> 267205.6 | BY15: =IF($AP15<=$G$60,PMT($G$64,$G$60-5,BX$15),0) -> -21605.19327 | BZ15: =IF($AP15<=$G$60,'Energy Calculations'!$BE26+BW15+BY15+BX15,0) -> 14589.15517 | CA15: 139645.0696 | CB15: ='Energy Calculations'!$BV$20-(SUM(CB10:CB14)) -> -267205.6 | CC15: =-CB15 -> 267205.6 | CD15: =IF($AP15<=$G$60,PMT($G$64,$G$60-5,CC$15),0) -> -21605.19327 | CE15: =IF($AP15<=$G$60,'Energy Calculations'!$BV26+CB15+CD15+CC15,0) -> -14550.15887 | CF15: -39651.08994 | CG15: ='Energy Calculations'!$BR$20-(SUM(CG10:CG14)) -> -267205.6 | CH15: =-CG15 -> 267205.6 | CI15: =IF($AP15<=$G$60,PMT($G$64,$G$60-5,CH$15),0) -> -21605.19327 | CJ15: =IF($AP15<=$G$60,'Energy Calculations'!$BR26+CG15+CI15+CH15,0) -> 1798.83645 | CK15: 75878.91002
B16: ='Energy Calculations'!BL27 -> 2031 | C16: 7 | D16: =IF(AND($C16<=$G$60,$G$61<>0),('Energy Calculations'!$AV$20)/$G$60,0) -> -13360.28 | E16: =IF($C16<=$G$60,$G$61*(('Energy Calculations'!$AV$20)-D16*$C15),0) -> -13047.64945 | F16: =IF(AND($C16<=$G$60,$G$61<>0),'Energy Calculations'!$AV27+E16+D16,0) -> 10064.51046 | G16: 73865.9605 | H16: =IF(AND($C16<=$G$60,$G$61<>0),('Energy Calculations'!$BI$20)/$G$60,0) -> -13360.28 | I16: =IF($C16<=$G$60,$G$61*(('Energy Calculations'!$BI$20)-H16*$C15),0) -> -13047.64945 | J16: =IF(AND($C16<=$G$60,$G$61<>0),'Energy Calculations'!$BI27+I16+H16,0) -> -18770.40908 | K16: -124712.3613 | L16: =IF(AND($C16<=$G$60,$G$61<>0),('Energy Calculations'!$BE$20)/$G$60,0) -> -13360.28 | M16: =IF($C16<=$G$60,$G$61*(('Energy Calculations'!$BE$20)-L16*$C15),0) -> -13047.64945 | N16: =IF(AND($C16<=$G$60,$G$61<>0),'Energy Calculations'!$BE27+M16+L16,0) -> 10064.51046 | O16: 73865.9605 | P16: =IF(AND($C16<=$G$60,$G$61<>0),('Energy Calculations'!$BV$20)/$G$60,0) -> -13360.28 | Q16: =IF($C16<=$G$60,$G$61*(('Energy Calculations'!$BV$20)-P16*$C15),0) -> -13047.64945 | R16: =IF(AND($C16<=$G$60,$G$61<>0),'Energy Calculations'!$BV27+Q16+P16,0) -> -19301.51506 | S16: -127731.0982 | T16: =IF(AND($C16<=$G$60,$G$61<>0),('Energy Calculations'!$BR$20)/$G$60,0) -> -13360.28 | U16: =IF($C16<=$G$60,$G$61*(('Energy Calculations'!$BR$20)-T16*$C15),0) -> -13047.64945 | V16: =IF(AND($C16<=$G$60,$G$61<>0),'Energy Calculations'!BR27+U16+T16,0) -> -2884.359173 | W16: 266.279646 | Y16: 7 | Z16: =IF(AND($Y16<=$G$60,$G$62<>0),PMT($G$62,$G$60,-('Energy Calculations'!$AV$20)),0) -> -24032.2385 | AA16: =IF($Y16<=$G$60,'Energy Calculations'!$AV27+Z16,0) -> 12440.2014 | AB16: 100629.641 | AC16: =IF(AND($Y16<=$G$60,$G$62<>0),PMT($G$62,$G$60,-('Energy Calculations'!$BI$20)),0) -> -24032.2385 | AD16: =IF($Y16<=$G$60,'Energy Calculations'!$BI27+AC16,0) -> -16394.71813 | AE16: -97948.68076 | AF16: =IF(AND($Y16<=$G$60,$G$62<>0),PMT($G$62,$G$60,-('Energy Calculations'!$BE$20)),0) -> -24032.2385 | AG16: =IF($Y16<=$G$60,'Energy Calculations'!$BE27+AF16,0) -> 12440.2014 | AH16: 100629.641 | AI16: =IF(AND($Y16<=$G$60,$G$62<>0),PMT($G$62,$G$60,-('Energy Calculations'!$BV$20)),0) -> -24032.2385 | AJ16: =IF($Y16<=$G$60,'Energy Calculations'!$BV27+AI16,0) -> -16925.82411 | AK16: -100967.4177 | AL16: =IF(AND($Y16<=$G$60,$G$62<>0),PMT($G$62,$G$60,-('Energy Calculations'!$BR$20)),0) -> -24032.2385 | AM16: =IF($Y16<=$G$60,'Energy Calculations'!$BR27+AL16,0) -> -508.6682267 | AN16: 27029.96019 | AP16: 7 | AQ16: =IF(AND($AP16=$G$60,$G$63<>0),'Energy Calculations'!$AV$20,0) -> 0 | AR16: =IF(AND($AP16<=$G$60,$G$63<>0),('Energy Calculations'!$AV$20)*$G$63,0) -> -16600.1479 | AS16: =IF(AND($AP16<=$G$60,$G$63<>0),'Energy Calculations'!$AV27+AQ16+AR16,0) -> 19872.29201 | AT16: 144536.7375 | AU16: =IF(AND($AP16=$G$60,$G$63<>0),'Energy Calculations'!$BI$20,0) -> 0 | AV16: =IF(AND($AP16<=$G$60,$G$63<>0),('Energy Calculations'!$BI$20)*$G$63,0) -> -16600.1479 | AW16: =IF(AND($AP16<=$G$60,$G$63<>0),'Energy Calculations'!$BI27+AU16+AV16,0) -> -8962.627529 | AX16: -54041.58428 | AY16: =IF(AND($AP16=$G$60,$G$63<>0),'Energy Calculations'!$BE$20,0) -> 0 | AZ16: =IF(AND($AP16<=$G$60,$G$63<>0),('Energy Calculations'!$BE$20)*$G$63,0) -> -16600.1479 | BA16: =IF(AND($AP16<=$G$60,$G$63<>0),'Energy Calculations'!$BE27+AY16+AZ16,0) -> 19872.29201 | BB16: 144536.7375 | BC16: =IF(AND($AP16=$G$60,$G$63<>0),'Energy Calculations'!$BV$20,0) -> 0 | BD16: =IF(AND($AP16<=$G$60,$G$63<>0),('Energy Calculations'!$BV$20)*$G$63,0) -> -16600.1479 | BE16: =IF(AND($AP16<=$G$60,$G$63<>0),'Energy Calculations'!$BV27+BC16+BD16,0) -> -9493.73351 | BF16: -57060.32119 | BG16: =IF(AND($AP16=$G$60,$G$63<>0),'Energy Calculations'!$BR$20,0) -> 0 | BH16: =IF(AND($AP16<=$G$60,$G$63<>0),('Energy Calculations'!$BR$20)*$G$63,0) -> -16600.1479 | BI16: =IF(AND($AP16<=$G$60,$G$63<>0),'Energy Calculations'!$BR27+BG16+BH16,0) -> 6923.422375 | BJ16: 70937.05666 | BL16: 7 | BO16: =IF($AP16<=$G$60,PMT($G$64,$G$60-5,BN$15),0) -> -21605.19327 | BP16: =IF($AP16<=$G$60,'Energy Calculations'!$AV27+BM16+BO16+BN16,0) -> 14867.24664 | BQ16: 150935.4285 | BT16: =IF($AP16<=$G$60,PMT($G$64,$G$60-5,BS$15),0) -> -21605.19327 | BU16: =IF($AP16<=$G$60,'Energy Calculations'!$BI27+BR16+BT16+BS16,0) -> -13967.6729 | BV16: -47642.89326 | BY16: =IF($AP16<=$G$60,PMT($G$64,$G$60-5,BX$15),0) -> -21605.19327 | BZ16: =IF($AP16<=$G$60,'Energy Calculations'!$BE27+BW16+BY16+BX16,0) -> 14867.24664 | CA16: 150935.4285 | CD16: =IF($AP16<=$G$60,PMT($G$64,$G$60-5,CC$15),0) -> -21605.19327 | CE16: =IF($AP16<=$G$60,'Energy Calculations'!$BV27+CB16+CD16+CC16,0) -> -14498.77888 | CF16: -50661.63017 | CI16: =IF($AP16<=$G$60,PMT($G$64,$G$60-5,CH$15),0) -> -21605.19327 | CJ16: =IF($AP16<=$G$60,'Energy Calculations'!$BR27+CG16+CI16+CH16,0) -> 1918.377007 | CK16: 77335.74769
B17: ='Energy Calculations'!BL28 -> 2032 | C17: 8 | D17: =IF(AND($C17<=$G$60,$G$61<>0),('Energy Calculations'!$AV$20)/$G$60,0) -> -13360.28 | E17: =IF($C17<=$G$60,$G$61*(('Energy Calculations'!$AV$20)-D17*$C16),0) -> -12360.93106 | F17: =IF(AND($C17<=$G$60,$G$61<>0),'Energy Calculations'!$AV28+E17+D17,0) -> 11164.19106 | G17: 82057.47326 | H17: =IF(AND($C17<=$G$60,$G$61<>0),('Energy Calculations'!$BI$20)/$G$60,0) -> -13360.28 | I17: =IF($C17<=$G$60,$G$61*(('Energy Calculations'!$BI$20)-H17*$C16),0) -> -12360.93106 | J17: =IF(AND($C17<=$G$60,$G$61<>0),'Energy Calculations'!$BI28+I17+H17,0) -> -18026.52416 | K17: -137938.9804 | L17: =IF(AND($C17<=$G$60,$G$61<>0),('Energy Calculations'!$BE$20)/$G$60,0) -> -13360.28 | M17: =IF($C17<=$G$60,$G$61*(('Energy Calculations'!$BE$20)-L17*$C16),0) -> -12360.93106 | N17: =IF(AND($C17<=$G$60,$G$61<>0),'Energy Calculations'!$BE28+M17+L17,0) -> 11164.19106 | O17: 82057.47326 | P17: =IF(AND($C17<=$G$60,$G$61<>0),('Energy Calculations'!$BV$20)/$G$60,0) -> -13360.28 | Q17: =IF($C17<=$G$60,$G$61*(('Energy Calculations'!$BV$20)-P17*$C16),0) -> -12360.93106 | R17: =IF(AND($C17<=$G$60,$G$61<>0),'Energy Calculations'!$BV28+Q17+P17,0) -> -18564.18349 | S17: -141352.2146 | T17: =IF(AND($C17<=$G$60,$G$61<>0),('Energy Calculations'!$BR$20)/$G$60,0) -> -13360.28 | U17: =IF($C17<=$G$60,$G$61*(('Energy Calculations'!$BR$20)-T17*$C16),0) -> -12360.93106 | V17: =IF(AND($C17<=$G$60,$G$61<>0),'Energy Calculations'!BR28+U17+T17,0) -> -1944.455397 | W17: -1160.427503 | Y17: 8 | Z17: =IF(AND($Y17<=$G$60,$G$62<>0),PMT($G$62,$G$60,-('Energy Calculations'!$AV$20)),0) -> -24032.2385 | AA17: =IF($Y17<=$G$60,'Energy Calculations'!$AV28+Z17,0) -> 12853.16361 | AB17: 110060.4053 | AC17: =IF(AND($Y17<=$G$60,$G$62<>0),PMT($G$62,$G$60,-('Energy Calculations'!$BI$20)),0) -> -24032.2385 | AD17: =IF($Y17<=$G$60,'Energy Calculations'!$BI28+AC17,0) -> -16337.5516 | AE17: -109936.0484 | AF17: =IF(AND($Y17<=$G$60,$G$62<>0),PMT($G$62,$G$60,-('Energy Calculations'!$BE$20)),0) -> -24032.2385 | AG17: =IF($Y17<=$G$60,'Energy Calculations'!$BE28+AF17,0) -> 12853.16361 | AH17: 110060.4053 | AI17: =IF(AND($Y17<=$G$60,$G$62<>0),PMT($G$62,$G$60,-('Energy Calculations'!$BV$20)),0) -> -24032.2385 | AJ17: =IF($Y17<=$G$60,'Energy Calculations'!$BV28+AI17,0) -> -16875.21093 | AK17: -113349.2826 | AL17: =IF(AND($Y17<=$G$60,$G$62<>0),PMT($G$62,$G$60,-('Energy Calculations'!$BR$20)),0) -> -24032.2385 | AM17: =IF($Y17<=$G$60,'Energy Calculations'!$BR28+AL17,0) -> -255.4828435 | AN17: 26842.50451 | AP17: 8 | AQ17: =IF(AND($AP17=$G$60,$G$63<>0),'Energy Calculations'!$AV$20,0) -> 0 | AR17: =IF(AND($AP17<=$G$60,$G$63<>0),('Energy Calculations'!$AV$20)*$G$63,0) -> -16600.1479 | AS17: =IF(AND($AP17<=$G$60,$G$63<>0),'Energy Calculations'!$AV28+AQ17+AR17,0) -> 20285.25421 | AT17: 159420.6568 | AU17: =IF(AND($AP17=$G$60,$G$63<>0),'Energy Calculations'!$BI$20,0) -> 0 | AV17: =IF(AND($AP17<=$G$60,$G$63<>0),('Energy Calculations'!$BI$20)*$G$63,0) -> -16600.1479 | AW17: =IF(AND($AP17<=$G$60,$G$63<>0),'Energy Calculations'!$BI28+AU17+AV17,0) -> -8905.461002 | AX17: -60575.79684 | AY17: =IF(AND($AP17=$G$60,$G$63<>0),'Energy Calculations'!$BE$20,0) -> 0 | AZ17: =IF(AND($AP17<=$G$60,$G$63<>0),('Energy Calculations'!$BE$20)*$G$63,0) -> -16600.1479 | BA17: =IF(AND($AP17<=$G$60,$G$63<>0),'Energy Calculations'!$BE28+AY17+AZ17,0) -> 20285.25421 | BB17: 159420.6568 | BC17: =IF(AND($AP17=$G$60,$G$63<>0),'Energy Calculations'!$BV$20,0) -> 0 | BD17: =IF(AND($AP17<=$G$60,$G$63<>0),('Energy Calculations'!$BV$20)*$G$63,0) -> -16600.1479 | BE17: =IF(AND($AP17<=$G$60,$G$63<>0),'Energy Calculations'!$BV28+BC17+BD17,0) -> -9443.12033 | BF17: -63989.03105 | BG17: =IF(AND($AP17=$G$60,$G$63<>0),'Energy Calculations'!$BR$20,0) -> 0 | BH17: =IF(AND($AP17<=$G$60,$G$63<>0),('Energy Calculations'!$BR$20)*$G$63,0) -> -16600.1479 | BI17: =IF(AND($AP17<=$G$60,$G$63<>0),'Energy Calculations'!$BR28+BG17+BH17,0) -> 7176.607759 | BJ17: 76202.75605 | BL17: 8 | BO17: -21605.19327 | BP17: =IF($AP17<=$G$60,'Energy Calculations'!$AV28+BM17+BO17+BN17,0) -> 15280.20885 | BQ17: 162146.991 | BT17: -21605.19327 | BU17: =IF($AP17<=$G$60,'Energy Calculations'!$BI28+BR17+BT17+BS17,0) -> -13910.50637 | BV17: -57849.46262 | BY17: -21605.19327 | BZ17: =IF($AP17<=$G$60,'Energy Calculations'!$BE28+BW17+BY17+BX17,0) -> 15280.20885 | CA17: 162146.991 | CD17: -21605.19327 | CE17: =IF($AP17<=$G$60,'Energy Calculations'!$BV28+CB17+CD17+CC17,0) -> -14448.1657 | CF17: -61262.69683 | CI17: -21605.19327 | CJ17: =IF($AP17<=$G$60,'Energy Calculations'!$BR28+CG17+CI17+CH17,0) -> 2171.56239 | CK17: 78929.09027
B18: ='Energy Calculations'!BL29 -> 2033 | C18: 9 | D18: =IF(AND($C18<=$G$60,$G$61<>0),('Energy Calculations'!$AV$20)/$G$60,0) -> -13360.28 | E18: =IF($C18<=$G$60,$G$61*(('Energy Calculations'!$AV$20)-D18*$C17),0) -> -11674.21266 | F18: =IF(AND($C18<=$G$60,$G$61<>0),'Energy Calculations'!$AV29+E18+D18,0) -> 12265.80117 | G18: 90752.93048 | H18: =IF(AND($C18<=$G$60,$G$61<>0),('Energy Calculations'!$BI$20)/$G$60,0) -> -13360.28 | I18: =IF($C18<=$G$60,$G$61*(('Energy Calculations'!$BI$20)-H18*$C17),0) -> -11674.21266 | J18: =IF(AND($C18<=$G$60,$G$61<>0),'Energy Calculations'!$BI29+I18+H18,0) -> -17283.40759 | K18: -150191.5132 | L18: =IF(AND($C18<=$G$60,$G$61<>0),('Energy Calculations'!$BE$20)/$G$60,0) -> -13360.28 | M18: =IF($C18<=$G$60,$G$61*(('Energy Calculations'!$BE$20)-L18*$C17),0) -> -11674.21266 | N18: =IF(AND($C18<=$G$60,$G$61<>0),'Energy Calculations'!$BE29+M18+L18,0) -> 12265.80117 | O18: 90752.93048 | P18: =IF(AND($C18<=$G$60,$G$61<>0),('Energy Calculations'!$BV$20)/$G$60,0) -> -13360.28 | Q18: =IF($C18<=$G$60,$G$61*(('Energy Calculations'!$BV$20)-P18*$C17),0) -> -11674.21266 | R18: =IF(AND($C18<=$G$60,$G$61<>0),'Energy Calculations'!$BV29+Q18+P18,0) -> -17827.66995 | S18: -153990.5852 | T18: =IF(AND($C18<=$G$60,$G$61<>0),('Energy Calculations'!$BR$20)/$G$60,0) -> -13360.28 | U18: =IF($C18<=$G$60,$G$61*(('Energy Calculations'!$BR$20)-T18*$C17),0) -> -11674.21266 | V18: =IF(AND($C18<=$G$60,$G$61<>0),'Energy Calculations'!BR29+U18+T18,0) -> -1003.833635 | W18: -1872.064053 | Y18: 9 | Z18: =IF(AND($Y18<=$G$60,$G$62<>0),PMT($G$62,$G$60,-('Energy Calculations'!$AV$20)),0) -> -24032.2385 | AA18: =IF($Y18<=$G$60,'Energy Calculations'!$AV29+Z18,0) -> 13268.05533 | AB18: 119466.3793 | AC18: =IF(AND($Y18<=$G$60,$G$62<>0),PMT($G$62,$G$60,-('Energy Calculations'!$BI$20)),0) -> -24032.2385 | AD18: =IF($Y18<=$G$60,'Energy Calculations'!$BI29+AC18,0) -> -16281.15342 | AE18: -121478.0644 | AF18: =IF(AND($Y18<=$G$60,$G$62<>0),PMT($G$62,$G$60,-('Energy Calculations'!$BE$20)),0) -> -24032.2385 | AG18: =IF($Y18<=$G$60,'Energy Calculations'!$BE29+AF18,0) -> 13268.05533 | AH18: 119466.3793 | AI18: =IF(AND($Y18<=$G$60,$G$62<>0),PMT($G$62,$G$60,-('Energy Calculations'!$BV$20)),0) -> -24032.2385 | AJ18: =IF($Y18<=$G$60,'Energy Calculations'!$BV29+AI18,0) -> -16825.41579 | AK18: -125277.1364 | AL18: =IF(AND($Y18<=$G$60,$G$62<>0),PMT($G$62,$G$60,-('Energy Calculations'!$BR$20)),0) -> -24032.2385 | AM18: =IF($Y18<=$G$60,'Energy Calculations'!$BR29+AL18,0) -> -1.579473183 | AN18: 26841.38479 | AP18: 9 | AQ18: =IF(AND($AP18=$G$60,$G$63<>0),'Energy Calculations'!$AV$20,0) -> 0 | AR18: =IF(AND($AP18<=$G$60,$G$63<>0),('Energy Calculations'!$AV$20)*$G$63,0) -> -16600.1479 | AS18: =IF(AND($AP18<=$G$60,$G$63<>0),'Energy Calculations'!$AV29+AQ18+AR18,0) -> 20700.14593 | AT18: 174095.3797 | AU18: =IF(AND($AP18=$G$60,$G$63<>0),'Energy Calculations'!$BI$20,0) -> 0 | AV18: =IF(AND($AP18<=$G$60,$G$63<>0),('Energy Calculations'!$BI$20)*$G$63,0) -> -16600.1479 | AW18: =IF(AND($AP18<=$G$60,$G$63<>0),'Energy Calculations'!$BI29+AU18+AV18,0) -> -8849.062822 | AX18: -66849.06396 | AY18: =IF(AND($AP18=$G$60,$G$63<>0),'Energy Calculations'!$BE$20,0) -> 0 | AZ18: =IF(AND($AP18<=$G$60,$G$63<>0),('Energy Calculations'!$BE$20)*$G$63,0) -> -16600.1479 | BA18: =IF(AND($AP18<=$G$60,$G$63<>0),'Energy Calculations'!$BE29+AY18+AZ18,0) -> 20700.14593 | BB18: 174095.3797 | BC18: =IF(AND($AP18=$G$60,$G$63<>0),'Energy Calculations'!$BV$20,0) -> 0 | BD18: =IF(AND($AP18<=$G$60,$G$63<>0),('Energy Calculations'!$BV$20)*$G$63,0) -> -16600.1479 | BE18: =IF(AND($AP18<=$G$60,$G$63<>0),'Energy Calculations'!$BV29+BC18+BD18,0) -> -9393.325187 | BF18: -70648.136 | BG18: =IF(AND($AP18=$G$60,$G$63<>0),'Energy Calculations'!$BR$20,0) -> 0 | BH18: =IF(AND($AP18<=$G$60,$G$63<>0),('Energy Calculations'!$BR$20)*$G$63,0) -> -16600.1479 | BI18: =IF(AND($AP18<=$G$60,$G$63<>0),'Energy Calculations'!$BR29+BG18+BH18,0) -> 7430.511129 | BJ18: 81470.38519 | BL18: 9 | BO18: -21605.19327 | BP18: =IF($AP18<=$G$60,'Energy Calculations'!$AV29+BM18+BO18+BN18,0) -> 15695.10057 | BQ18: 173273.5431 | BT18: -21605.19327 | BU18: =IF($AP18<=$G$60,'Energy Calculations'!$BI29+BR18+BT18+BS18,0) -> -13854.10819 | BV18: -67670.90057 | BY18: -21605.19327 | BZ18: =IF($AP18<=$G$60,'Energy Calculations'!$BE29+BW18+BY18+BX18,0) -> 15695.10057 | CA18: 173273.5431 | CD18: -21605.19327 | CE18: =IF($AP18<=$G$60,'Energy Calculations'!$BV29+CB18+CD18+CC18,0) -> -14398.37056 | CF18: -71469.97261 | CI18: -21605.19327 | CJ18: =IF($AP18<=$G$60,'Energy Calculations'!$BR29+CG18+CI18+CH18,0) -> 2425.46576 | CK18: 80648.54858
B19: ='Energy Calculations'!BL30 -> 2034 | C19: 10 | D19: =IF(AND($C19<=$G$60,$G$61<>0),('Energy Calculations'!$AV$20)/$G$60,0) -> -13360.28 | E19: =IF($C19<=$G$60,$G$61*(('Energy Calculations'!$AV$20)-D19*$C18),0) -> -10987.49427 | F19: =IF(AND($C19<=$G$60,$G$61<>0),'Energy Calculations'!$AV30+E19+D19,0) -> 13369.25279 | G19: 99910.14287 | H19: =IF(AND($C19<=$G$60,$G$61<>0),('Energy Calculations'!$BI$20)/$G$60,0) -> -13360.28 | I19: =IF($C19<=$G$60,$G$61*(('Energy Calculations'!$BI$20)-H19*$C18),0) -> -10987.49427 | J19: =IF(AND($C19<=$G$60,$G$61<>0),'Energy Calculations'!$BI30+I19+H19,0) -> -16541.11296 | K19: -161521.2776 | L19: =IF(AND($C19<=$G$60,$G$61<>0),('Energy Calculations'!$BE$20)/$G$60,0) -> -13360.28 | M19: =IF($C19<=$G$60,$G$61*(('Energy Calculations'!$BE$20)-L19*$C18),0) -> -10987.49427 | N19: =IF(AND($C19<=$G$60,$G$61<>0),'Energy Calculations'!$BE30+M19+L19,0) -> 13369.25279 | O19: 99910.14287 | P19: =IF(AND($C19<=$G$60,$G$61<>0),('Energy Calculations'!$BV$20)/$G$60,0) -> -13360.28 | Q19: =IF($C19<=$G$60,$G$61*(('Energy Calculations'!$BV$20)-P19*$C18),0) -> -10987.49427 | R19: =IF(AND($C19<=$G$60,$G$61<>0),'Energy Calculations'!$BV30+Q19+P19,0) -> -17092.02742 | S19: -165697.6962 | T19: =IF(AND($C19<=$G$60,$G$61<>0),('Energy Calculations'!$BR$20)/$G$60,0) -> -13360.28 | U19: =IF($C19<=$G$60,$G$61*(('Energy Calculations'!$BR$20)-T19*$C18),0) -> -10987.49427 | V19: =IF(AND($C19<=$G$60,$G$61<>0),'Energy Calculations'!BR30+U19+T19,0) -> -62.56644026 | W19: -1914.918668 | Y19: 10 | Z19: =IF(AND($Y19<=$G$60,$G$62<>0),PMT($G$62,$G$60,-('Energy Calculations'!$AV$20)),0) -> -24032.2385 | AA19: =IF($Y19<=$G$60,'Energy Calculations'!$AV30+Z19,0) -> 13684.78856 | AB19: 128839.7166 | AC19: =IF(AND($Y19<=$G$60,$G$62<>0),PMT($G$62,$G$60,-('Energy Calculations'!$BI$20)),0) -> -24032.2385 | AD19: =IF($Y19<=$G$60,'Energy Calculations'!$BI30+AC19,0) -> -16225.57719 | AE19: -132591.7039 | AF19: =IF(AND($Y19<=$G$60,$G$62<>0),PMT($G$62,$G$60,-('Energy Calculations'!$BE$20)),0) -> -24032.2385 | AG19: =IF($Y19<=$G$60,'Energy Calculations'!$BE30+AF19,0) -> 13684.78856 | AH19: 128839.7166 | AI19: =IF(AND($Y19<=$G$60,$G$62<>0),PMT($G$62,$G$60,-('Energy Calculations'!$BV$20)),0) -> -24032.2385 | AJ19: =IF($Y19<=$G$60,'Energy Calculations'!$BV30+AI19,0) -> -16776.49165 | AK19: -136768.1224 | AL19: =IF(AND($Y19<=$G$60,$G$62<>0),PMT($G$62,$G$60,-('Energy Calculations'!$BR$20)),0) -> -24032.2385 | AM19: =IF($Y19<=$G$60,'Energy Calculations'!$BR30+AL19,0) -> 252.9693297 | AN19: 27014.65505 | AP19: 10 | AQ19: =IF(AND($AP19=$G$60,$G$63<>0),'Energy Calculations'!$AV$20,0) -> 0 | AR19: =IF(AND($AP19<=$G$60,$G$63<>0),('Energy Calculations'!$AV$20)*$G$63,0) -> -16600.1479 | AS19: =IF(AND($AP19<=$G$60,$G$63<>0),'Energy Calculations'!$AV30+AQ19+AR19,0) -> 21116.87916 | AT19: 188559.2956 | AU19: =IF(AND($AP19=$G$60,$G$63<>0),'Energy Calculations'!$BI$20,0) -> 0 | AV19: =IF(AND($AP19<=$G$60,$G$63<>0),('Energy Calculations'!$BI$20)*$G$63,0) -> -16600.1479 | AW19: =IF(AND($AP19<=$G$60,$G$63<>0),'Energy Calculations'!$BI30+AU19+AV19,0) -> -8793.48659 | AX19: -72872.12491 | AY19: =IF(AND($AP19=$G$60,$G$63<>0),'Energy Calculations'!$BE$20,0) -> 0 | AZ19: =IF(AND($AP19<=$G$60,$G$63<>0),('Energy Calculations'!$BE$20)*$G$63,0) -> -16600.1479 | BA19: =IF(AND($AP19<=$G$60,$G$63<>0),'Energy Calculations'!$BE30+AY19+AZ19,0) -> 21116.87916 | BB19: 188559.2956 | BC19: =IF(AND($AP19=$G$60,$G$63<>0),'Energy Calculations'!$BV$20,0) -> 0 | BD19: =IF(AND($AP19<=$G$60,$G$63<>0),('Energy Calculations'!$BV$20)*$G$63,0) -> -16600.1479 | BE19: =IF(AND($AP19<=$G$60,$G$63<>0),'Energy Calculations'!$BV30+BC19+BD19,0) -> -9344.401051 | BF19: -77048.54345 | BG19: =IF(AND($AP19=$G$60,$G$63<>0),'Energy Calculations'!$BR$20,0) -> 0 | BH19: =IF(AND($AP19<=$G$60,$G$63<>0),('Energy Calculations'!$BR$20)*$G$63,0) -> -16600.1479 | BI19: =IF(AND($AP19<=$G$60,$G$63<>0),'Energy Calculations'!$BR30+BG19+BH19,0) -> 7685.059932 | BJ19: 86734.23405 | BL19: 10 | BO19: -21605.19327 | BP19: =IF($AP19<=$G$60,'Energy Calculations'!$AV30+BM19+BO19+BN19,0) -> 16111.83379 | BQ19: 184309.2746 | BT19: -21605.19327 | BU19: =IF($AP19<=$G$60,'Energy Calculations'!$BI30+BR19+BT19+BS19,0) -> -13798.53196 | BV19: -77122.14589 | BY19: -21605.19327 | BZ19: =IF($AP19<=$G$60,'Energy Calculations'!$BE30+BW19+BY19+BX19,0) -> 16111.83379 | CA19: 184309.2746 | CD19: -21605.19327 | CE19: =IF($AP19<=$G$60,'Energy Calculations'!$BV30+CB19+CD19+CC19,0) -> -14349.44642 | CF19: -81298.56443 | CI19: -21605.19327 | CJ19: =IF($AP19<=$G$60,'Energy Calculations'!$BR30+CG19+CI19+CH19,0) -> 2680.014563 | CK19: 82484.21307
B20: ='Energy Calculations'!BL31 -> 2035 | C20: 11 | D20: =IF(AND($C20<=$G$60,$G$61<>0),('Energy Calculations'!$AV$20)/$G$60,0) -> -13360.28 | E20: =IF($C20<=$G$60,$G$61*(('Energy Calculations'!$AV$20)-D20*$C19),0) -> -10300.77588 | F20: =IF(AND($C20<=$G$60,$G$61<>0),'Energy Calculations'!$AV31+E20+D20,0) -> 14474.45362 | G20: 109489.0945 | H20: =IF(AND($C20<=$G$60,$G$61<>0),('Energy Calculations'!$BI$20)/$G$60,0) -> -13360.28 | I20: =IF($C20<=$G$60,$G$61*(('Energy Calculations'!$BI$20)-H20*$C19),0) -> -10300.77588 | J20: =IF(AND($C20<=$G$60,$G$61<>0),'Energy Calculations'!$BI31+I20+H20,0) -> -15799.69572 | K20: -171977.2524 | L20: =IF(AND($C20<=$G$60,$G$61<>0),('Energy Calculations'!$BE$20)/$G$60,0) -> -13360.28 | M20: =IF($C20<=$G$60,$G$61*(('Energy Calculations'!$BE$20)-L20*$C19),0) -> -10300.77588 | N20: =IF(AND($C20<=$G$60,$G$61<>0),'Energy Calculations'!$BE31+M20+L20,0) -> 14474.45362 | O20: 109489.0945 | P20: =IF(AND($C20<=$G$60,$G$61<>0),('Energy Calculations'!$BV$20)/$G$60,0) -> -13360.28 | Q20: =IF($C20<=$G$60,$G$61*(('Energy Calculations'!$BV$20)-P20*$C19),0) -> -10300.77588 | R20: =IF(AND($C20<=$G$60,$G$61<>0),'Energy Calculations'!$BV31+Q20+P20,0) -> -16357.31066 | S20: -176522.6912 | T20: =IF(AND($C20<=$G$60,$G$61<>0),('Energy Calculations'!$BR$20)/$G$60,0) -> -13360.28 | U20: =IF($C20<=$G$60,$G$61*(('Energy Calculations'!$BR$20)-T20*$C19),0) -> -10300.77588 | V20: =IF(AND($C20<=$G$60,$G$61<>0),'Energy Calculations'!BR31+U20+T20,0) -> 879.2704431 | W20: -1333.032174 | Y20: 11 | Z20: =IF(AND($Y20<=$G$60,$G$62<>0),PMT($G$62,$G$60,-('Energy Calculations'!$AV$20)),0) -> -24032.2385 | AA20: =IF($Y20<=$G$60,'Energy Calculations'!$AV31+Z20,0) -> 14103.271 | AB20: 138173.0258 | AC20: =IF(AND($Y20<=$G$60,$G$62<>0),PMT($G$62,$G$60,-('Energy Calculations'!$BI$20)),0) -> -24032.2385 | AD20: =IF($Y20<=$G$60,'Energy Calculations'!$BI31+AC20,0) -> -16170.87834 | AE20: -143293.3211 | AF20: =IF(AND($Y20<=$G$60,$G$62<>0),PMT($G$62,$G$60,-('Energy Calculations'!$BE$20)),0) -> -24032.2385 | AG20: =IF($Y20<=$G$60,'Energy Calculations'!$BE31+AF20,0) -> 14103.271 | AH20: 138173.0258 | AI20: =IF(AND($Y20<=$G$60,$G$62<>0),PMT($G$62,$G$60,-('Energy Calculations'!$BV$20)),0) -> -24032.2385 | AJ20: =IF($Y20<=$G$60,'Energy Calculations'!$BV31+AI20,0) -> -16728.49328 | AK20: -147838.7599 | AL20: =IF(AND($Y20<=$G$60,$G$62<>0),PMT($G$62,$G$60,-('Energy Calculations'!$BR$20)),0) -> -24032.2385 | AM20: =IF($Y20<=$G$60,'Energy Calculations'!$BR31+AL20,0) -> 508.0878211 | AN20: 27350.89909 | AP20: 11 | AQ20: =IF(AND($AP20=$G$60,$G$63<>0),'Energy Calculations'!$AV$20,0) -> 0 | AR20: =IF(AND($AP20<=$G$60,$G$63<>0),('Energy Calculations'!$AV$20)*$G$63,0) -> -16600.1479 | AS20: =IF(AND($AP20<=$G$60,$G$63<>0),'Energy Calculations'!$AV31+AQ20+AR20,0) -> 21535.3616 | AT20: 202811.0382 | AU20: =IF(AND($AP20=$G$60,$G$63<>0),'Energy Calculations'!$BI$20,0) -> 0 | AV20: =IF(AND($AP20<=$G$60,$G$63<>0),('Energy Calculations'!$BI$20)*$G$63,0) -> -16600.1479 | AW20: =IF(AND($AP20<=$G$60,$G$63<>0),'Energy Calculations'!$BI31+AU20+AV20,0) -> -8738.787742 | AX20: -78655.30868 | AY20: =IF(AND($AP20=$G$60,$G$63<>0),'Energy Calculations'!$BE$20,0) -> 0 | AZ20: =IF(AND($AP20<=$G$60,$G$63<>0),('Energy Calculations'!$BE$20)*$G$63,0) -> -16600.1479 | BA20: =IF(AND($AP20<=$G$60,$G$63<>0),'Energy Calculations'!$BE31+AY20+AZ20,0) -> 21535.3616 | BB20: 202811.0382 | BC20: =IF(AND($AP20=$G$60,$G$63<>0),'Energy Calculations'!$BV$20,0) -> 0 | BD20: =IF(AND($AP20<=$G$60,$G$63<>0),('Energy Calculations'!$BV$20)*$G$63,0) -> -16600.1479 | BE20: =IF(AND($AP20<=$G$60,$G$63<>0),'Energy Calculations'!$BV31+BC20+BD20,0) -> -9296.402677 | BF20: -83200.74747 | BG20: =IF(AND($AP20=$G$60,$G$63<>0),'Energy Calculations'!$BR$20,0) -> 0 | BH20: =IF(AND($AP20<=$G$60,$G$63<>0),('Energy Calculations'!$BR$20)*$G$63,0) -> -16600.1479 | BI20: =IF(AND($AP20<=$G$60,$G$63<>0),'Energy Calculations'!$BR31+BG20+BH20,0) -> 7940.178423 | BJ20: 91988.91151 | BL20: 11 | BO20: -21605.19327 | BP20: =IF($AP20<=$G$60,'Energy Calculations'!$AV31+BM20+BO20+BN20,0) -> 16530.31623 | BQ20: 195248.7618 | BT20: -21605.19327 | BU20: =IF($AP20<=$G$60,'Energy Calculations'!$BI31+BR20+BT20+BS20,0) -> -13743.83311 | BV20: -86217.58509 | BY20: -21605.19327 | BZ20: =IF($AP20<=$G$60,'Energy Calculations'!$BE31+BW20+BY20+BX20,0) -> 16530.31623 | CA20: 195248.7618 | CD20: -21605.19327 | CE20: =IF($AP20<=$G$60,'Energy Calculations'!$BV31+CB20+CD20+CC20,0) -> -14301.44805 | CF20: -90763.02388 | CI20: -21605.19327 | CJ20: =IF($AP20<=$G$60,'Energy Calculations'!$BR31+CG20+CI20+CH20,0) -> 2935.133055 | CK20: 84426.6351
B21: ='Energy Calculations'!BL32 -> 2036 | C21: 12 | D21: =IF(AND($C21<=$G$60,$G$61<>0),('Energy Calculations'!$AV$20)/$G$60,0) -> -13360.28 | E21: =IF($C21<=$G$60,$G$61*(('Energy Calculations'!$AV$20)-D21*$C20),0) -> -9614.057488 | F21: =IF(AND($C21<=$G$60,$G$61<>0),'Energy Calculations'!$AV32+E21+D21,0) -> 15581.30694 | G21: 119451.8469 | H21: =IF(AND($C21<=$G$60,$G$61<>0),('Energy Calculations'!$BI$20)/$G$60,0) -> -13360.28 | I21: =IF($C21<=$G$60,$G$61*(('Energy Calculations'!$BI$20)-H21*$C20),0) -> -9614.057488 | J21: =IF(AND($C21<=$G$60,$G$61<>0),'Energy Calculations'!$BI32+I21+H21,0) -> -15059.21319 | K21: -181606.1758 | L21: =IF(AND($C21<=$G$60,$G$61<>0),('Energy Calculations'!$BE$20)/$G$60,0) -> -13360.28 | M21: =IF($C21<=$G$60,$G$61*(('Energy Calculations'!$BE$20)-L21*$C20),0) -> -9614.057488 | N21: =IF(AND($C21<=$G$60,$G$61<>0),'Energy Calculations'!$BE32+M21+L21,0) -> 15581.30694 | O21: 119451.8469 | P21: =IF(AND($C21<=$G$60,$G$61<>0),('Energy Calculations'!$BV$20)/$G$60,0) -> -13360.28 | Q21: =IF($C21<=$G$60,$G$61*(('Energy Calculations'!$BV$20)-P21*$C20),0) -> -9614.057488 | R21: =IF(AND($C21<=$G$60,$G$61<>0),'Energy Calculations'!$BV32+Q21+P21,0) -> -15623.57626 | S21: -186512.4707 | T21: =IF(AND($C21<=$G$60,$G$61<>0),('Energy Calculations'!$BR$20)/$G$60,0) -> -13360.28 | U21: =IF($C21<=$G$60,$G$61*(('Energy Calculations'!$BR$20)-T21*$C20),0) -> -9614.057488 | V21: =IF(AND($C21<=$G$60,$G$61<>0),'Energy Calculations'!BR32+U21+T21,0) -> 1821.597983 | W21: -168.2948587 | Y21: 12 | Z21: =IF(AND($Y21<=$G$60,$G$62<>0),PMT($G$62,$G$60,-('Energy Calculations'!$AV$20)),0) -> -24032.2385 | AA21: =IF($Y21<=$G$60,'Energy Calculations'!$AV32+Z21,0) -> 14523.40593 | AB21: =IF($Y21<=$G$60,AA21/(1+$G$57)^($Y21+1)+AB20,0) -> 147459.3519 | AC21: =IF(AND($Y21<=$G$60,$G$62<>0),PMT($G$62,$G$60,-('Energy Calculations'!$BI$20)),0) -> -24032.2385 | AD21: =IF($Y21<=$G$60,'Energy Calculations'!$BI32+AC21,0) -> -16117.11421 | AE21: -153598.6709 | AF21: =IF(AND($Y21<=$G$60,$G$62<>0),PMT($G$62,$G$60,-('Energy Calculations'!$BE$20)),0) -> -24032.2385 | AG21: =IF($Y21<=$G$60,'Energy Calculations'!$BE32+AF21,0) -> 14523.40593 | AH21: 147459.3519 | AI21: =IF(AND($Y21<=$G$60,$G$62<>0),PMT($G$62,$G$60,-('Energy Calculations'!$BV$20)),0) -> -24032.2385 | AJ21: =IF($Y21<=$G$60,'Energy Calculations'!$BV32+AI21,0) -> -16681.47727 | AK21: -158504.9657 | AL21: =IF(AND($Y21<=$G$60,$G$62<>0),PMT($G$62,$G$60,-('Energy Calculations'!$BR$20)),0) -> -24032.2385 | AM21: =IF($Y21<=$G$60,'Energy Calculations'!$BR32+AL21,0) -> 763.696969 | AN21: 27839.2101 | AP21: 12 | AQ21: =IF(AND($AP21=$G$60,$G$63<>0),'Energy Calculations'!$AV$20,0) -> 0 | AR21: =IF(AND($AP21<=$G$60,$G$63<>0),('Energy Calculations'!$AV$20)*$G$63,0) -> -16600.1479 | AS21: =IF(AND($AP21<=$G$60,$G$63<>0),'Energy Calculations'!$AV32+AQ21+AR21,0) -> 21955.49653 | AT21: 216849.4739 | AU21: =IF(AND($AP21=$G$60,$G$63<>0),'Energy Calculations'!$BI$20,0) -> 0 | AV21: =IF(AND($AP21<=$G$60,$G$63<>0),('Energy Calculations'!$BI$20)*$G$63,0) -> -16600.1479 | AW21: =IF(AND($AP21<=$G$60,$G$63<>0),'Energy Calculations'!$BI32+AU21+AV21,0) -> -8685.023605 | AX21: -84208.54884 | AY21: =IF(AND($AP21=$G$60,$G$63<>0),'Energy Calculations'!$BE$20,0) -> 0 | AZ21: =IF(AND($AP21<=$G$60,$G$63<>0),('Energy Calculations'!$BE$20)*$G$63,0) -> -16600.1479 | BA21: =IF(AND($AP21<=$G$60,$G$63<>0),'Energy Calculations'!$BE32+AY21+AZ21,0) -> 21955.49653 | BB21: 216849.4739 | BC21: =IF(AND($AP21=$G$60,$G$63<>0),'Energy Calculations'!$BV$20,0) -> 0 | BD21: =IF(AND($AP21<=$G$60,$G$63<>0),('Energy Calculations'!$BV$20)*$G$63,0) -> -16600.1479 | BE21: =IF(AND($AP21<=$G$60,$G$63<>0),'Energy Calculations'!$BV32+BC21+BD21,0) -> -9249.386668 | BF21: -89114.84372 | BG21: =IF(AND($AP21=$G$60,$G$63<>0),'Energy Calculations'!$BR$20,0) -> 0 | BH21: =IF(AND($AP21<=$G$60,$G$63<>0),('Energy Calculations'!$BR$20)*$G$63,0) -> -16600.1479 | BI21: =IF(AND($AP21<=$G$60,$G$63<>0),'Energy Calculations'!$BR32+BG21+BH21,0) -> 8195.787571 | BJ21: 97229.33212 | BL21: 12 | BO21: -21605.19327 | BP21: =IF($AP21<=$G$60,'Energy Calculations'!$AV32+BM21+BO21+BN21,0) -> 16950.45116 | BQ21: 206086.9507 | BT21: -21605.19327 | BU21: =IF($AP21<=$G$60,'Energy Calculations'!$BI32+BR21+BT21+BS21,0) -> -13690.06897 | BV21: -94971.07205 | BY21: -21605.19327 | BZ21: =IF($AP21<=$G$60,'Energy Calculations'!$BE32+BW21+BY21+BX21,0) -> 16950.45116 | CA21: 206086.9507 | CD21: -21605.19327 | CE21: =IF($AP21<=$G$60,'Energy Calculations'!$BV32+CB21+CD21+CC21,0) -> -14254.43204 | CF21: -99877.36693 | CI21: -21605.19327 | CJ21: =IF($AP21<=$G$60,'Energy Calculations'!$BR32+CG21+CI21+CH21,0) -> 3190.742203 | CK21: 86466.80892
B22: ='Energy Calculations'!BL33 -> 2037 | C22: 13 | D22: =IF(AND($C22<=$G$60,$G$61<>0),('Energy Calculations'!$AV$20)/$G$60,0) -> -13360.28 | E22: =IF($C22<=$G$60,$G$61*(('Energy Calculations'!$AV$20)-D22*$C21),0) -> -8927.339096 | F22: =IF(AND($C22<=$G$60,$G$61<>0),'Energy Calculations'!$AV33+E22+D22,0) -> 16689.71145 | G22: 129762.4467 | H22: =IF(AND($C22<=$G$60,$G$61<>0),('Energy Calculations'!$BI$20)/$G$60,0) -> -13360.28 | I22: =IF($C22<=$G$60,$G$61*(('Energy Calculations'!$BI$20)-H22*$C21),0) -> -8927.339096 | J22: =IF(AND($C22<=$G$60,$G$61<>0),'Energy Calculations'!$BI33+I22+H22,0) -> -14319.72464 | K22: -190452.641 | L22: =IF(AND($C22<=$G$60,$G$61<>0),('Energy Calculations'!$BE$20)/$G$60,0) -> -13360.28 | M22: =IF($C22<=$G$60,$G$61*(('Energy Calculations'!$BE$20)-L22*$C21),0) -> -8927.339096 | N22: =IF(AND($C22<=$G$60,$G$61<>0),'Energy Calculations'!$BE33+M22+L22,0) -> 16689.71145 | O22: 129762.4467 | P22: =IF(AND($C22<=$G$60,$G$61<>0),('Energy Calculations'!$BV$20)/$G$60,0) -> -13360.28 | Q22: =IF($C22<=$G$60,$G$61*(('Energy Calculations'!$BV$20)-P22*$C21),0) -> -8927.339096 | R22: =IF(AND($C22<=$G$60,$G$61<>0),'Energy Calculations'!$BV33+Q22+P22,0) -> -14890.88271 | S22: -195711.7869 | T22: =IF(AND($C22<=$G$60,$G$61<>0),('Energy Calculations'!$BR$20)/$G$60,0) -> -13360.28 | U22: =IF($C22<=$G$60,$G$61*(('Energy Calculations'!$BR$20)-T22*$C21),0) -> -8927.339096 | V22: =IF(AND($C22<=$G$60,$G$61<>0),'Energy Calculations'!BR33+U22+T22,0) -> 2764.333758 | W22: 1539.460199 | Y22: 13 | Z22: =IF(AND($Y22<=$G$60,$G$62<>0),PMT($G$62,$G$60,-('Energy Calculations'!$AV$20)),0) -> -24032.2385 | AA22: =IF($Y22<=$G$60,'Energy Calculations'!$AV33+Z22,0) -> 14945.09205 | AB22: 156692.1576 | AC22: =IF(AND($Y22<=$G$60,$G$62<>0),PMT($G$62,$G$60,-('Energy Calculations'!$BI$20)),0) -> -24032.2385 | AD22: =IF($Y22<=$G$60,'Energy Calculations'!$BI33+AC22,0) -> -16064.34405 | AE22: -163522.9301 | AF22: =IF(AND($Y22<=$G$60,$G$62<>0),PMT($G$62,$G$60,-('Energy Calculations'!$BE$20)),0) -> -24032.2385 | AG22: =IF($Y22<=$G$60,'Energy Calculations'!$BE33+AF22,0) -> 14945.09205 | AH22: 156692.1576 | AI22: =IF(AND($Y22<=$G$60,$G$62<>0),PMT($G$62,$G$60,-('Energy Calculations'!$BV$20)),0) -> -24032.2385 | AJ22: =IF($Y22<=$G$60,'Energy Calculations'!$BV33+AI22,0) -> -16635.50212 | AK22: -168782.076 | AL22: =IF(AND($Y22<=$G$60,$G$62<>0),PMT($G$62,$G$60,-('Energy Calculations'!$BR$20)),0) -> -24032.2385 | AM22: =IF($Y22<=$G$60,'Energy Calculations'!$BR33+AL22,0) -> 1019.714352 | AN22: 28469.17106 | AP22: 13 | AQ22: =IF(AND($AP22=$G$60,$G$63<>0),'Energy Calculations'!$AV$20,0) -> 0 | AR22: =IF(AND($AP22<=$G$60,$G$63<>0),('Energy Calculations'!$AV$20)*$G$63,0) -> -16600.1479 | AS22: =IF(AND($AP22<=$G$60,$G$63<>0),'Energy Calculations'!$AV33+AQ22+AR22,0) -> 22377.18265 | AT22: 230673.6898 | AU22: =IF(AND($AP22=$G$60,$G$63<>0),'Energy Calculations'!$BI$20,0) -> 0 | AV22: =IF(AND($AP22<=$G$60,$G$63<>0),('Energy Calculations'!$BI$20)*$G$63,0) -> -16600.1479 | AW22: =IF(AND($AP22<=$G$60,$G$63<>0),'Energy Calculations'!$BI33+AU22+AV22,0) -> -8632.253447 | AX22: -89541.39783 | AY22: =IF(AND($AP22=$G$60,$G$63<>0),'Energy Calculations'!$BE$20,0) -> 0 | AZ22: =IF(AND($AP22<=$G$60,$G$63<>0),('Energy Calculations'!$BE$20)*$G$63,0) -> -16600.1479 | BA22: =IF(AND($AP22<=$G$60,$G$63<>0),'Energy Calculations'!$BE33+AY22+AZ22,0) -> 22377.18265 | BB22: 230673.6898 | BC22: =IF(AND($AP22=$G$60,$G$63<>0),'Energy Calculations'!$BV$20,0) -> 0 | BD22: =IF(AND($AP22<=$G$60,$G$63<>0),('Energy Calculations'!$BV$20)*$G$63,0) -> -16600.1479 | BE22: =IF(AND($AP22<=$G$60,$G$63<>0),'Energy Calculations'!$BV33+BC22+BD22,0) -> -9203.411516 | BF22: -94800.54376 | BG22: =IF(AND($AP22=$G$60,$G$63<>0),'Energy Calculations'!$BR$20,0) -> 0 | BH22: =IF(AND($AP22<=$G$60,$G$63<>0),('Energy Calculations'!$BR$20)*$G$63,0) -> -16600.1479 | BI22: =IF(AND($AP22<=$G$60,$G$63<>0),'Energy Calculations'!$BR33+BG22+BH22,0) -> 8451.804954 | BJ22: 102450.7033 | BL22: 13 | BO22: -21605.19327 | BP22: =IF($AP22<=$G$60,'Energy Calculations'!$AV33+BM22+BO22+BN22,0) -> 17372.13728 | BQ22: 216819.1407 | BT22: -21605.19327 | BU22: =IF($AP22<=$G$60,'Energy Calculations'!$BI33+BR22+BT22+BS22,0) -> -13637.29882 | BV22: -103395.9469 | BY22: -21605.19327 | BZ22: =IF($AP22<=$G$60,'Energy Calculations'!$BE33+BW22+BY22+BX22,0) -> 17372.13728 | CA22: 216819.1407 | CD22: -21605.19327 | CE22: =IF($AP22<=$G$60,'Energy Calculations'!$BV33+CB22+CD22+CC22,0) -> -14208.45688 | CF22: -108655.0929 | CI22: -21605.19327 | CJ22: =IF($AP22<=$G$60,'Energy Calculations'!$BR33+CG22+CI22+CH22,0) -> 3446.759586 | CK22: 88596.15422
B23: ='Energy Calculations'!BL34 -> 2038 | C23: 14 | D23: =IF(AND($C23<=$G$60,$G$61<>0),('Energy Calculations'!$AV$20)/$G$60,0) -> -13360.28 | E23: =IF($C23<=$G$60,$G$61*(('Energy Calculations'!$AV$20)-D23*$C22),0) -> -8240.620704 | F23: =IF(AND($C23<=$G$60,$G$61<>0),'Energy Calculations'!$AV34+E23+D23,0) -> 17799.56115 | G23: 140386.8378 | H23: =IF(AND($C23<=$G$60,$G$61<>0),('Energy Calculations'!$BI$20)/$G$60,0) -> -13360.28 | I23: =IF($C23<=$G$60,$G$61*(('Energy Calculations'!$BI$20)-H23*$C22),0) -> -8240.620704 | J23: =IF(AND($C23<=$G$60,$G$61<>0),'Energy Calculations'!$BI34+I23+H23,0) -> -13581.29134 | K23: -198559.1863 | L23: =IF(AND($C23<=$G$60,$G$61<>0),('Energy Calculations'!$BE$20)/$G$60,0) -> -13360.28 | M23: =IF($C23<=$G$60,$G$61*(('Energy Calculations'!$BE$20)-L23*$C22),0) -> -8240.620704 | N23: =IF(AND($C23<=$G$60,$G$61<>0),'Energy Calculations'!$BE34+M23+L23,0) -> 17799.56115 | O23: 140386.8378 | P23: =IF(AND($C23<=$G$60,$G$61<>0),('Energy Calculations'!$BV$20)/$G$60,0) -> -13360.28 | Q23: =IF($C23<=$G$60,$G$61*(('Energy Calculations'!$BV$20)-P23*$C22),0) -> -8240.620704 | R23: =IF(AND($C23<=$G$60,$G$61<>0),'Energy Calculations'!$BV34+Q23+P23,0) -> -14159.29047 | S23: -204163.3345 | T23: =IF(AND($C23<=$G$60,$G$61<>0),('Energy Calculations'!$BR$20)/$G$60,0) -> -13360.28 | U23: =IF($C23<=$G$60,$G$61*(('Energy Calculations'!$BR$20)-T23*$C22),0) -> -8240.620704 | V23: =IF(AND($C23<=$G$60,$G$61<>0),'Energy Calculations'!BR34+U23+T23,0) -> 3707.391855 | W23: 3752.367617 | Y23: 14 | Z23: =IF(AND($Y23<=$G$60,$G$62<>0),PMT($G$62,$G$60,-('Energy Calculations'!$AV$20)),0) -> -24032.2385 | AA23: =IF($Y23<=$G$60,'Energy Calculations'!$AV34+Z23,0) -> 15368.22335 | AB23: 165865.3059 | AC23: =IF(AND($Y23<=$G$60,$G$62<>0),PMT($G$62,$G$60,-('Energy Calculations'!$BI$20)),0) -> -24032.2385 | AD23: =IF($Y23<=$G$60,'Energy Calculations'!$BI34+AC23,0) -> -16012.62913 | AE23: -173080.7182 | AF23: =IF(AND($Y23<=$G$60,$G$62<>0),PMT($G$62,$G$60,-('Energy Calculations'!$BE$20)),0) -> -24032.2385 | AG23: =IF($Y23<=$G$60,'Energy Calculations'!$BE34+AF23,0) -> 15368.22335 | AH23: 165865.3059 | AI23: =IF(AND($Y23<=$G$60,$G$62<>0),PMT($G$62,$G$60,-('Energy Calculations'!$BV$20)),0) -> -24032.2385 | AJ23: =IF($Y23<=$G$60,'Energy Calculations'!$BV34+AI23,0) -> -16590.62827 | AK23: -178684.8664 | AL23: =IF(AND($Y23<=$G$60,$G$62<>0),PMT($G$62,$G$60,-('Energy Calculations'!$BR$20)),0) -> -24032.2385 | AM23: =IF($Y23<=$G$60,'Energy Calculations'!$BR34+AL23,0) -> 1276.054057 | AN23: 29230.83575 | AP23: 14 | AQ23: =IF(AND($AP23=$G$60,$G$63<>0),'Energy Calculations'!$AV$20,0) -> 0 | AR23: =IF(AND($AP23<=$G$60,$G$63<>0),('Energy Calculations'!$AV$20)*$G$63,0) -> -16600.1479 | AS23: =IF(AND($AP23<=$G$60,$G$63<>0),'Energy Calculations'!$AV34+AQ23+AR23,0) -> 22800.31396 | AT23: 244282.9833 | AU23: =IF(AND($AP23=$G$60,$G$63<>0),'Energy Calculations'!$BI$20,0) -> 0 | AV23: =IF(AND($AP23<=$G$60,$G$63<>0),('Energy Calculations'!$BI$20)*$G$63,0) -> -16600.1479 | AW23: =IF(AND($AP23<=$G$60,$G$63<>0),'Energy Calculations'!$BI34+AU23+AV23,0) -> -8580.538532 | AX23: -94663.04079 | AY23: =IF(AND($AP23=$G$60,$G$63<>0),'Energy Calculations'!$BE$20,0) -> 0 | AZ23: =IF(AND($AP23<=$G$60,$G$63<>0),('Energy Calculations'!$BE$20)*$G$63,0) -> -16600.1479 | BA23: =IF(AND($AP23<=$G$60,$G$63<>0),'Energy Calculations'!$BE34+AY23+AZ23,0) -> 22800.31396 | BB23: 244282.9833 | BC23: =IF(AND($AP23=$G$60,$G$63<>0),'Energy Calculations'!$BV$20,0) -> 0 | BD23: =IF(AND($AP23<=$G$60,$G$63<>0),('Energy Calculations'!$BV$20)*$G$63,0) -> -16600.1479 | BE23: =IF(AND($AP23<=$G$60,$G$63<>0),'Energy Calculations'!$BV34+BC23+BD23,0) -> -9158.537663 | BF23: -100267.189 | BG23: =IF(AND($AP23=$G$60,$G$63<>0),'Energy Calculations'!$BR$20,0) -> 0 | BH23: =IF(AND($AP23<=$G$60,$G$63<>0),('Energy Calculations'!$BR$20)*$G$63,0) -> -16600.1479 | BI23: =IF(AND($AP23<=$G$60,$G$63<>0),'Energy Calculations'!$BR34+BG23+BH23,0) -> 8708.144659 | BJ23: 107648.5132 | BL23: 14 | BO23: -21605.19327 | BP23: =IF($AP23<=$G$60,'Energy Calculations'!$AV34+BM23+BO23+BN23,0) -> 17795.26859 | BQ23: 227440.9696 | BT23: -21605.19327 | BU23: =IF($AP23<=$G$60,'Energy Calculations'!$BI34+BR23+BT23+BS23,0) -> -13585.5839 | BV23: -111505.0545 | BY23: -21605.19327 | BZ23: =IF($AP23<=$G$60,'Energy Calculations'!$BE34+BW23+BY23+BX23,0) -> 17795.26859 | CA23: 227440.9696 | CD23: -21605.19327 | CE23: =IF($AP23<=$G$60,'Energy Calculations'!$BV34+CB23+CD23+CC23,0) -> -14163.58303 | CF23: -117109.2027 | CI23: -21605.19327 | CJ23: =IF($AP23<=$G$60,'Energy Calculations'!$BR34+CG23+CI23+CH23,0) -> 3703.09929 | CK23: 90806.49945
B24: ='Energy Calculations'!BL35 -> 2039 | C24: 15 | D24: =IF(AND($C24<=$G$60,$G$61<>0),('Energy Calculations'!$AV$20)/$G$60,0) -> -13360.28 | E24: =IF($C24<=$G$60,$G$61*(('Energy Calculations'!$AV$20)-D24*$C23),0) -> -7553.902312 | F24: =IF(AND($C24<=$G$60,$G$61<>0),'Energy Calculations'!$AV35+E24+D24,0) -> 18910.74517 | G24: 151292.7763 | H24: =IF(AND($C24<=$G$60,$G$61<>0),('Energy Calculations'!$BI$20)/$G$60,0) -> -13360.28 | I24: =IF($C24<=$G$60,$G$61*(('Energy Calculations'!$BI$20)-H24*$C23),0) -> -7553.902312 | J24: =IF(AND($C24<=$G$60,$G$61<>0),'Energy Calculations'!$BI35+I24+H24,0) -> -12843.97659 | K24: -205966.3836 | L24: =IF(AND($C24<=$G$60,$G$61<>0),('Energy Calculations'!$BE$20)/$G$60,0) -> -13360.28 | M24: =IF($C24<=$G$60,$G$61*(('Energy Calculations'!$BE$20)-L24*$C23),0) -> -7553.902312 | N24: =IF(AND($C24<=$G$60,$G$61<>0),'Energy Calculations'!$BE35+M24+L24,0) -> 18910.74517 | O24: 151292.7763 | P24: =IF(AND($C24<=$G$60,$G$61<>0),('Energy Calculations'!$BV$20)/$G$60,0) -> -13360.28 | Q24: =IF($C24<=$G$60,$G$61*(('Energy Calculations'!$BV$20)-P24*$C23),0) -> -7553.902312 | R24: =IF(AND($C24<=$G$60,$G$61<>0),'Energy Calculations'!$BV35+Q24+P24,0) -> -13428.86196 | S24: -211907.8386 | T24: =IF(AND($C24<=$G$60,$G$61<>0),('Energy Calculations'!$BR$20)/$G$60,0) -> -13360.28 | U24: =IF($C24<=$G$60,$G$61*(('Energy Calculations'!$BR$20)-T24*$C23),0) -> -7553.902312 | V24: =IF(AND($C24<=$G$60,$G$61<>0),'Energy Calculations'!BR35+U24+T24,0) -> 4650.682758 | W24: 6434.443857 | Y24: 15 | Z24: =IF(AND($Y24<=$G$60,$G$62<>0),PMT($G$62,$G$60,-('Energy Calculations'!$AV$20)),0) -> -24032.2385 | AA24: =IF($Y24<=$G$60,'Energy Calculations'!$AV35+Z24,0) -> 15792.68898 | AB24: 174973.043 | AC24: =IF(AND($Y24<=$G$60,$G$62<>0),PMT($G$62,$G$60,-('Energy Calculations'!$BI$20)),0) -> -24032.2385 | AD24: =IF($Y24<=$G$60,'Energy Calculations'!$BI35+AC24,0) -> -15962.03278 | AE24: -182286.1169 | AF24: =IF(AND($Y24<=$G$60,$G$62<>0),PMT($G$62,$G$60,-('Energy Calculations'!$BE$20)),0) -> -24032.2385 | AG24: =IF($Y24<=$G$60,'Energy Calculations'!$BE35+AF24,0) -> 15792.68898 | AH24: 174973.043 | AI24: =IF(AND($Y24<=$G$60,$G$62<>0),PMT($G$62,$G$60,-('Energy Calculations'!$BV$20)),0) -> -24032.2385 | AJ24: =IF($Y24<=$G$60,'Energy Calculations'!$BV35+AI24,0) -> -16546.91815 | AK24: -188227.5719 | AL24: =IF(AND($Y24<=$G$60,$G$62<>0),PMT($G$62,$G$60,-('Energy Calculations'!$BR$20)),0) -> -24032.2385 | AM24: =IF($Y24<=$G$60,'Energy Calculations'!$BR35+AL24,0) -> 1532.626568 | AN24: 30114.71056 | AP24: 15 | AQ24: =IF(AND($AP24=$G$60,$G$63<>0),'Energy Calculations'!$AV$20,0) -> 0 | AR24: =IF(AND($AP24<=$G$60,$G$63<>0),('Energy Calculations'!$AV$20)*$G$63,0) -> -16600.1479 | AS24: =IF(AND($AP24<=$G$60,$G$63<>0),'Energy Calculations'!$AV35+AQ24+AR24,0) -> 23224.77958 | AT24: 257676.851 | AU24: =IF(AND($AP24=$G$60,$G$63<>0),'Energy Calculations'!$BI$20,0) -> 0 | AV24: =IF(AND($AP24<=$G$60,$G$63<>0),('Energy Calculations'!$BI$20)*$G$63,0) -> -16600.1479 | AW24: =IF(AND($AP24<=$G$60,$G$63<>0),'Energy Calculations'!$BI35+AU24+AV24,0) -> -8529.942178 | AX24: -99582.30887 | AY24: =IF(AND($AP24=$G$60,$G$63<>0),'Energy Calculations'!$BE$20,0) -> 0 | AZ24: =IF(AND($AP24<=$G$60,$G$63<>0),('Energy Calculations'!$BE$20)*$G$63,0) -> -16600.1479 | BA24: =IF(AND($AP24<=$G$60,$G$63<>0),'Energy Calculations'!$BE35+AY24+AZ24,0) -> 23224.77958 | BB24: 257676.851 | BC24: =IF(AND($AP24=$G$60,$G$63<>0),'Energy Calculations'!$BV$20,0) -> 0 | BD24: =IF(AND($AP24<=$G$60,$G$63<>0),('Energy Calculations'!$BV$20)*$G$63,0) -> -16600.1479 | BE24: =IF(AND($AP24<=$G$60,$G$63<>0),'Energy Calculations'!$BV35+BC24+BD24,0) -> -9114.82755 | BF24: -105523.7639 | BG24: =IF(AND($AP24=$G$60,$G$63<>0),'Energy Calculations'!$BR$20,0) -> 0 | BH24: =IF(AND($AP24<=$G$60,$G$63<>0),('Energy Calculations'!$BR$20)*$G$63,0) -> -16600.1479 | BI24: =IF(AND($AP24<=$G$60,$G$63<>0),'Energy Calculations'!$BR35+BG24+BH24,0) -> 8964.71717 | BJ24: 112818.5186 | BL24: 15 | BO24: -21605.19327 | BP24: =IF($AP24<=$G$60,'Energy Calculations'!$AV35+BM24+BO24+BN24,0) -> 18219.73421 | BQ24: 237948.3981 | BT24: -21605.19327 | BU24: =IF($AP24<=$G$60,'Energy Calculations'!$BI35+BR24+BT24+BS24,0) -> -13534.98755 | BV24: -119310.7618 | BY24: -21605.19327 | BZ24: =IF($AP24<=$G$60,'Energy Calculations'!$BE35+BW24+BY24+BX24,0) -> 18219.73421 | CA24: 237948.3981 | CD24: -21605.19327 | CE24: =IF($AP24<=$G$60,'Energy Calculations'!$BV35+CB24+CD24+CC24,0) -> -14119.87292 | CF24: -125252.2169 | CI24: -21605.19327 | CJ24: =IF($AP24<=$G$60,'Energy Calculations'!$BR35+CG24+CI24+CH24,0) -> 3959.671802 | CK24: 93090.06559
B25: ='Energy Calculations'!BL36 -> 2040 | C25: 16 | D25: =IF(AND($C25<=$G$60,$G$61<>0),('Energy Calculations'!$AV$20)/$G$60,0) -> -13360.28 | E25: =IF($C25<=$G$60,$G$61*(('Energy Calculations'!$AV$20)-D25*$C24),0) -> -6867.18392 | F25: =IF(AND($C25<=$G$60,$G$61<>0),'Energy Calculations'!$AV36+E25+D25,0) -> 20023.14763 | G25: 162449.7499 | H25: =IF(AND($C25<=$G$60,$G$61<>0),('Energy Calculations'!$BI$20)/$G$60,0) -> -13360.28 | I25: =IF($C25<=$G$60,$G$61*(('Energy Calculations'!$BI$20)-H25*$C24),0) -> -6867.18392 | J25: =IF(AND($C25<=$G$60,$G$61<>0),'Energy Calculations'!$BI36+I25+H25,0) -> -12107.84583 | K25: -212712.921 | L25: =IF(AND($C25<=$G$60,$G$61<>0),('Energy Calculations'!$BE$20)/$G$60,0) -> -13360.28 | M25: =IF($C25<=$G$60,$G$61*(('Energy Calculations'!$BE$20)-L25*$C24),0) -> -6867.18392 | N25: =IF(AND($C25<=$G$60,$G$61<>0),'Energy Calculations'!$BE36+M25+L25,0) -> 20023.14763 | O25: 162449.7499 | P25: =IF(AND($C25<=$G$60,$G$61<>0),('Energy Calculations'!$BV$20)/$G$60,0) -> -13360.28 | Q25: =IF($C25<=$G$60,$G$61*(('Energy Calculations'!$BV$20)-P25*$C24),0) -> -6867.18392 | R25: =IF(AND($C25<=$G$60,$G$61<>0),'Energy Calculations'!$BV36+Q25+P25,0) -> -12699.6617 | S25: -218984.1381 | T25: =IF(AND($C25<=$G$60,$G$61<>0),('Energy Calculations'!$BR$20)/$G$60,0) -> -13360.28 | U25: =IF($C25<=$G$60,$G$61*(('Energy Calculations'!$BR$20)-T25*$C24),0) -> -6867.18392 | V25: =IF(AND($C25<=$G$60,$G$61<>0),'Energy Calculations'!BR36+U25+T25,0) -> 5594.113245 | W25: 9551.5049 | Y25: 16 | Z25: =IF(AND($Y25<=$G$60,$G$62<>0),PMT($G$62,$G$60,-('Energy Calculations'!$AV$20)),0) -> -24032.2385 | AA25: =IF($Y25<=$G$60,'Energy Calculations'!$AV36+Z25,0) -> 16218.37305 | AB25: 184009.9818 | AC25: =IF(AND($Y25<=$G$60,$G$62<>0),PMT($G$62,$G$60,-('Energy Calculations'!$BI$20)),0) -> -24032.2385 | AD25: =IF($Y25<=$G$60,'Energy Calculations'!$BI36+AC25,0) -> -15912.62042 | AE25: -191152.6891 | AF25: =IF(AND($Y25<=$G$60,$G$62<>0),PMT($G$62,$G$60,-('Energy Calculations'!$BE$20)),0) -> -24032.2385 | AG25: =IF($Y25<=$G$60,'Energy Calculations'!$BE36+AF25,0) -> 16218.37305 | AH25: 184009.9818 | AI25: =IF(AND($Y25<=$G$60,$G$62<>0),PMT($G$62,$G$60,-('Energy Calculations'!$BV$20)),0) -> -24032.2385 | AJ25: =IF($Y25<=$G$60,'Energy Calculations'!$BV36+AI25,0) -> -16504.43628 | AK25: -197423.9062 | AL25: =IF(AND($Y25<=$G$60,$G$62<>0),PMT($G$62,$G$60,-('Energy Calculations'!$BR$20)),0) -> -24032.2385 | AM25: =IF($Y25<=$G$60,'Energy Calculations'!$BR36+AL25,0) -> 1789.338663 | AN25: 31111.73682 | AP25: 16 | AQ25: =IF(AND($AP25=$G$60,$G$63<>0),'Energy Calculations'!$AV$20,0) -> 0 | AR25: =IF(AND($AP25<=$G$60,$G$63<>0),('Energy Calculations'!$AV$20)*$G$63,0) -> -16600.1479 | AS25: =IF(AND($AP25<=$G$60,$G$63<>0),'Energy Calculations'!$AV36+AQ25+AR25,0) -> 23650.46365 | AT25: 270854.9788 | AU25: =IF(AND($AP25=$G$60,$G$63<>0),'Energy Calculations'!$BI$20,0) -> 0 | AV25: =IF(AND($AP25<=$G$60,$G$63<>0),('Energy Calculations'!$BI$20)*$G$63,0) -> -16600.1479 | AW25: =IF(AND($AP25<=$G$60,$G$63<>0),'Energy Calculations'!$BI36+AU25+AV25,0) -> -8480.529814 | AX25: -104307.6921 | AY25: =IF(AND($AP25=$G$60,$G$63<>0),'Energy Calculations'!$BE$20,0) -> 0 | AZ25: =IF(AND($AP25<=$G$60,$G$63<>0),('Energy Calculations'!$BE$20)*$G$63,0) -> -16600.1479 | BA25: =IF(AND($AP25<=$G$60,$G$63<>0),'Energy Calculations'!$BE36+AY25+AZ25,0) -> 23650.46365 | BB25: 270854.9788 | BC25: =IF(AND($AP25=$G$60,$G$63<>0),'Energy Calculations'!$BV$20,0) -> 0 | BD25: =IF(AND($AP25<=$G$60,$G$63<>0),('Energy Calculations'!$BV$20)*$G$63,0) -> -16600.1479 | BE25: =IF(AND($AP25<=$G$60,$G$63<>0),'Energy Calculations'!$BV36+BC25+BD25,0) -> -9072.345677 | BF25: -110578.9092 | BG25: =IF(AND($AP25=$G$60,$G$63<>0),'Energy Calculations'!$BR$20,0) -> 0 | BH25: =IF(AND($AP25<=$G$60,$G$63<>0),('Energy Calculations'!$BR$20)*$G$63,0) -> -16600.1479 | BI25: =IF(AND($AP25<=$G$60,$G$63<>0),'Energy Calculations'!$BR36+BG25+BH25,0) -> 9221.429265 | BJ25: 117956.7338 | BL25: 16 | BO25: -21605.19327 | BP25: =IF($AP25<=$G$60,'Energy Calculations'!$AV36+BM25+BO25+BN25,0) -> 18645.41828 | BQ25: 248337.6956 | BT25: -21605.19327 | BU25: =IF($AP25<=$G$60,'Energy Calculations'!$BI36+BR25+BT25+BS25,0) -> -13485.57518 | BV25: -126824.9753 | BY25: -21605.19327 | BZ25: =IF($AP25<=$G$60,'Energy Calculations'!$BE36+BW25+BY25+BX25,0) -> 18645.41828 | CA25: 248337.6956 | CD25: -21605.19327 | CE25: =IF($AP25<=$G$60,'Energy Calculations'!$BV36+CB25+CD25+CC25,0) -> -14077.39105 | CF25: -133096.1924 | CI25: -21605.19327 | CJ25: =IF($AP25<=$G$60,'Energy Calculations'!$BR36+CG25+CI25+CH25,0) -> 4216.383897 | CK25: 95439.45063
B26: ='Energy Calculations'!BL37 -> 2041 | C26: 17 | D26: =IF(AND($C26<=$G$60,$G$61<>0),('Energy Calculations'!$AV$20)/$G$60,0) -> -13360.28 | E26: =IF($C26<=$G$60,$G$61*(('Energy Calculations'!$AV$20)-D26*$C25),0) -> -6180.465528 | F26: =IF(AND($C26<=$G$60,$G$61<>0),'Energy Calculations'!$AV37+E26+D26,0) -> 21136.64748 | G26: 173828.8995 | H26: =IF(AND($C26<=$G$60,$G$61<>0),('Energy Calculations'!$BI$20)/$G$60,0) -> -13360.28 | I26: =IF($C26<=$G$60,$G$61*(('Energy Calculations'!$BI$20)-H26*$C25),0) -> -6180.465528 | J26: =IF(AND($C26<=$G$60,$G$61<>0),'Energy Calculations'!$BI37+I26+H26,0) -> -11372.96667 | K26: -218835.6843 | L26: =IF(AND($C26<=$G$60,$G$61<>0),('Energy Calculations'!$BE$20)/$G$60,0) -> -13360.28 | M26: =IF($C26<=$G$60,$G$61*(('Energy Calculations'!$BE$20)-L26*$C25),0) -> -6180.465528 | N26: =IF(AND($C26<=$G$60,$G$61<>0),'Energy Calculations'!$BE37+M26+L26,0) -> 21136.64748 | O26: 173828.8995 | P26: =IF(AND($C26<=$G$60,$G$61<>0),('Energy Calculations'!$BV$20)/$G$60,0) -> -13360.28 | Q26: =IF($C26<=$G$60,$G$61*(('Energy Calculations'!$BV$20)-P26*$C25),0) -> -6180.465528 | R26: =IF(AND($C26<=$G$60,$G$61<>0),'Energy Calculations'!$BV37+Q26+P26,0) -> -11971.75629 | S26: -225429.2665 | T26: =IF(AND($C26<=$G$60,$G$61<>0),('Energy Calculations'!$BR$20)/$G$60,0) -> -13360.28 | U26: =IF($C26<=$G$60,$G$61*(('Energy Calculations'!$BR$20)-T26*$C25),0) -> -6180.465528 | V26: =IF(AND($C26<=$G$60,$G$61<>0),'Energy Calculations'!BR37+U26+T26,0) -> 6537.58627 | W26: 13071.08729 | Y26: 17 | Z26: =IF(AND($Y26<=$G$60,$G$62<>0),PMT($G$62,$G$60,-('Energy Calculations'!$AV$20)),0) -> -24032.2385 | AA26: =IF($Y26<=$G$60,'Energy Calculations'!$AV37+Z26,0) -> 16645.15451 | AB26: 192971.0861 | AC26: =IF(AND($Y26<=$G$60,$G$62<>0),PMT($G$62,$G$60,-('Energy Calculations'!$BI$20)),0) -> -24032.2385 | AD26: =IF($Y26<=$G$60,'Energy Calculations'!$BI37+AC26,0) -> -15864.45964 | AE26: -199693.4977 | AF26: =IF(AND($Y26<=$G$60,$G$62<>0),PMT($G$62,$G$60,-('Energy Calculations'!$BE$20)),0) -> -24032.2385 | AG26: =IF($Y26<=$G$60,'Energy Calculations'!$BE37+AF26,0) -> 16645.15451 | AH26: 192971.0861 | AI26: =IF(AND($Y26<=$G$60,$G$62<>0),PMT($G$62,$G$60,-('Energy Calculations'!$BV$20)),0) -> -24032.2385 | AJ26: =IF($Y26<=$G$60,'Energy Calculations'!$BV37+AI26,0) -> -16463.24926 | AK26: -206287.0798 | AL26: =IF(AND($Y26<=$G$60,$G$62<>0),PMT($G$62,$G$60,-('Energy Calculations'!$BR$20)),0) -> -24032.2385 | AM26: =IF($Y26<=$G$60,'Energy Calculations'!$BR37+AL26,0) -> 2046.093296 | AN26: 32213.27394 | AP26: 17 | AQ26: =IF(AND($AP26=$G$60,$G$63<>0),'Energy Calculations'!$AV$20,0) -> 0 | AR26: =IF(AND($AP26<=$G$60,$G$63<>0),('Energy Calculations'!$AV$20)*$G$63,0) -> -16600.1479 | AS26: =IF(AND($AP26<=$G$60,$G$63<>0),'Energy Calculations'!$AV37+AQ26+AR26,0) -> 24077.24511 | AT26: 283817.2319 | AU26: =IF(AND($AP26=$G$60,$G$63<>0),'Energy Calculations'!$BI$20,0) -> 0 | AV26: =IF(AND($AP26<=$G$60,$G$63<>0),('Energy Calculations'!$BI$20)*$G$63,0) -> -16600.1479 | AW26: =IF(AND($AP26<=$G$60,$G$63<>0),'Energy Calculations'!$BI37+AU26+AV26,0) -> -8432.369037 | AX26: -108847.3519 | AY26: =IF(AND($AP26=$G$60,$G$63<>0),'Energy Calculations'!$BE$20,0) -> 0 | AZ26: =IF(AND($AP26<=$G$60,$G$63<>0),('Energy Calculations'!$BE$20)*$G$63,0) -> -16600.1479 | BA26: =IF(AND($AP26<=$G$60,$G$63<>0),'Energy Calculations'!$BE37+AY26+AZ26,0) -> 24077.24511 | BB26: 283817.2319 | BC26: =IF(AND($AP26=$G$60,$G$63<>0),'Energy Calculations'!$BV$20,0) -> 0 | BD26: =IF(AND($AP26<=$G$60,$G$63<>0),('Energy Calculations'!$BV$20)*$G$63,0) -> -16600.1479 | BE26: =IF(AND($AP26<=$G$60,$G$63<>0),'Energy Calculations'!$BV37+BC26+BD26,0) -> -9031.158657 | BF26: -115440.9341 | BG26: =IF(AND($AP26=$G$60,$G$63<>0),'Energy Calculations'!$BR$20,0) -> 0 | BH26: =IF(AND($AP26<=$G$60,$G$63<>0),('Energy Calculations'!$BR$20)*$G$63,0) -> -16600.1479 | BI26: =IF(AND($AP26<=$G$60,$G$63<>0),'Energy Calculations'!$BR37+BG26+BH26,0) -> 9478.183898 | BJ26: 123059.4197 | BL26: 17 | BO26: -21605.19327 | BP26: =IF($AP26<=$G$60,'Energy Calculations'!$AV37+BM26+BO26+BN26,0) -> 19072.19974 | BQ26: 258605.4268 | BT26: -21605.19327 | BU26: =IF($AP26<=$G$60,'Energy Calculations'!$BI37+BR26+BT26+BS26,0) -> -13437.41441 | BV26: -134059.157 | BY26: -21605.19327 | BZ26: =IF($AP26<=$G$60,'Energy Calculations'!$BE37+BW26+BY26+BX26,0) -> 19072.19974 | CA26: 258605.4268 | CD26: -21605.19327 | CE26: =IF($AP26<=$G$60,'Energy Calculations'!$BV37+CB26+CD26+CC26,0) -> -14036.20403 | CF26: -140652.7392 | CI26: -21605.19327 | CJ26: =IF($AP26<=$G$60,'Energy Calculations'!$BR37+CG26+CI26+CH26,0) -> 4473.138529 | CK26: 97847.61459
B27: ='Energy Calculations'!BL38 -> 2042 | C27: 18 | D27: =IF(AND($C27<=$G$60,$G$61<>0),('Energy Calculations'!$AV$20)/$G$60,0) -> -13360.28 | E27: =IF($C27<=$G$60,$G$61*(('Energy Calculations'!$AV$20)-D27*$C26),0) -> -5493.747136 | F27: =IF(AND($C27<=$G$60,$G$61<>0),'Energy Calculations'!$AV38+E27+D27,0) -> 22251.11835 | G27: 185402.9453 | H27: =IF(AND($C27<=$G$60,$G$61<>0),('Energy Calculations'!$BI$20)/$G$60,0) -> -13360.28 | I27: =IF($C27<=$G$60,$G$61*(('Energy Calculations'!$BI$20)-H27*$C26),0) -> -5493.747136 | J27: =IF(AND($C27<=$G$60,$G$61<>0),'Energy Calculations'!$BI38+I27+H27,0) -> -10639.40891 | K27: -224369.8334 | L27: =IF(AND($C27<=$G$60,$G$61<>0),('Energy Calculations'!$BE$20)/$G$60,0) -> -13360.28 | M27: =IF($C27<=$G$60,$G$61*(('Energy Calculations'!$BE$20)-L27*$C26),0) -> -5493.747136 | N27: =IF(AND($C27<=$G$60,$G$61<>0),'Energy Calculations'!$BE38+M27+L27,0) -> 22251.11835 | O27: 185402.9453 | P27: =IF(AND($C27<=$G$60,$G$61<>0),('Energy Calculations'!$BV$20)/$G$60,0) -> -13360.28 | Q27: =IF($C27<=$G$60,$G$61*(('Energy Calculations'!$BV$20)-P27*$C26),0) -> -5493.747136 | R27: =IF(AND($C27<=$G$60,$G$61<>0),'Energy Calculations'!$BV38+Q27+P27,0) -> -11245.21451 | S27: -231278.5288 | T27: =IF(AND($C27<=$G$60,$G$61<>0),('Energy Calculations'!$BR$20)/$G$60,0) -> -13360.28 | U27: =IF($C27<=$G$60,$G$61*(('Energy Calculations'!$BR$20)-T27*$C26),0) -> -5493.747136 | V27: =IF(AND($C27<=$G$60,$G$61<>0),'Energy Calculations'!BR38+U27+T27,0) -> 7481.000849 | W27: 16962.37246 | Y27: 18 | Z27: =IF(AND($Y27<=$G$60,$G$62<>0),PMT($G$62,$G$60,-('Energy Calculations'!$AV$20)),0) -> -24032.2385 | AA27: =IF($Y27<=$G$60,'Energy Calculations'!$AV38+Z27,0) -> 17072.90698 | AB27: 201851.6558 | AC27: =IF(AND($Y27<=$G$60,$G$62<>0),PMT($G$62,$G$60,-('Energy Calculations'!$BI$20)),0) -> -24032.2385 | AD27: =IF($Y27<=$G$60,'Energy Calculations'!$BI38+AC27,0) -> -15817.62028 | AE27: -207921.1229 | AF27: =IF(AND($Y27<=$G$60,$G$62<>0),PMT($G$62,$G$60,-('Energy Calculations'!$BE$20)),0) -> -24032.2385 | AG27: =IF($Y27<=$G$60,'Energy Calculations'!$BE38+AF27,0) -> 17072.90698 | AH27: 201851.6558 | AI27: =IF(AND($Y27<=$G$60,$G$62<>0),PMT($G$62,$G$60,-('Energy Calculations'!$BV$20)),0) -> -24032.2385 | AJ27: =IF($Y27<=$G$60,'Energy Calculations'!$BV38+AI27,0) -> -16423.42588 | AK27: -214829.8182 | AL27: =IF(AND($Y27<=$G$60,$G$62<>0),PMT($G$62,$G$60,-('Energy Calculations'!$BR$20)),0) -> -24032.2385 | AM27: =IF($Y27<=$G$60,'Energy Calculations'!$BR38+AL27,0) -> 2302.789483 | AN27: 33411.08299 | AP27: 18 | AQ27: =IF(AND($AP27=$G$60,$G$63<>0),'Energy Calculations'!$AV$20,0) -> 0 | AR27: =IF(AND($AP27<=$G$60,$G$63<>0),('Energy Calculations'!$AV$20)*$G$63,0) -> -16600.1479 | AS27: =IF(AND($AP27<=$G$60,$G$63<>0),'Energy Calculations'!$AV38+AQ27+AR27,0) -> 24504.99758 | AT27: 296563.6458 | AU27: =IF(AND($AP27=$G$60,$G$63<>0),'Energy Calculations'!$BI$20,0) -> 0 | AV27: =IF(AND($AP27<=$G$60,$G$63<>0),('Energy Calculations'!$BI$20)*$G$63,0) -> -16600.1479 | AW27: =IF(AND($AP27<=$G$60,$G$63<>0),'Energy Calculations'!$BI38+AU27+AV27,0) -> -8385.529677 | AX27: -113209.1329 | AY27: =IF(AND($AP27=$G$60,$G$63<>0),'Energy Calculations'!$BE$20,0) -> 0 | AZ27: =IF(AND($AP27<=$G$60,$G$63<>0),('Energy Calculations'!$BE$20)*$G$63,0) -> -16600.1479 | BA27: =IF(AND($AP27<=$G$60,$G$63<>0),'Energy Calculations'!$BE38+AY27+AZ27,0) -> 24504.99758 | BB27: 296563.6458 | BC27: =IF(AND($AP27=$G$60,$G$63<>0),'Energy Calculations'!$BV$20,0) -> 0 | BD27: =IF(AND($AP27<=$G$60,$G$63<>0),('Energy Calculations'!$BV$20)*$G$63,0) -> -16600.1479 | BE27: =IF(AND($AP27<=$G$60,$G$63<>0),'Energy Calculations'!$BV38+BC27+BD27,0) -> -8991.335277 | BF27: -120117.8283 | BG27: =IF(AND($AP27=$G$60,$G$63<>0),'Energy Calculations'!$BR$20,0) -> 0 | BH27: =IF(AND($AP27<=$G$60,$G$63<>0),('Energy Calculations'!$BR$20)*$G$63,0) -> -16600.1479 | BI27: =IF(AND($AP27<=$G$60,$G$63<>0),'Energy Calculations'!$BR38+BG27+BH27,0) -> 9734.880085 | BJ27: 128123.073 | BL27: 18 | BO27: -21605.19327 | BP27: =IF($AP27<=$G$60,'Energy Calculations'!$AV38+BM27+BO27+BN27,0) -> 19499.95221 | BQ27: 268748.4379 | BT27: -21605.19327 | BU27: =IF($AP27<=$G$60,'Energy Calculations'!$BI38+BR27+BT27+BS27,0) -> -13390.57505 | BV27: -141024.3408 | BY27: -21605.19327 | BZ27: =IF($AP27<=$G$60,'Energy Calculations'!$BE38+BW27+BY27+BX27,0) -> 19499.95221 | CA27: 268748.4379 | CD27: -21605.19327 | CE27: =IF($AP27<=$G$60,'Energy Calculations'!$BV38+CB27+CD27+CC27,0) -> -13996.38065 | CF27: -147933.0362 | CI27: -21605.19327 | CJ27: =IF($AP27<=$G$60,'Energy Calculations'!$BR38+CG27+CI27+CH27,0) -> 4729.834717 | CK27: 100307.865
B28: ='Energy Calculations'!BL39 -> 2043 | C28: 19 | D28: =IF(AND($C28<=$G$60,$G$61<>0),('Energy Calculations'!$AV$20)/$G$60,0) -> -13360.28 | E28: =IF($C28<=$G$60,$G$61*(('Energy Calculations'!$AV$20)-D28*$C27),0) -> -4807.028744 | F28: =IF(AND($C28<=$G$60,$G$61<>0),'Energy Calculations'!$AV39+E28+D28,0) -> 23366.42835 | G28: 197146.115 | H28: =IF(AND($C28<=$G$60,$G$61<>0),('Energy Calculations'!$BI$20)/$G$60,0) -> -13360.28 | I28: =IF($C28<=$G$60,$G$61*(('Energy Calculations'!$BI$20)-H28*$C27),0) -> -4807.028744 | J28: =IF(AND($C28<=$G$60,$G$61<>0),'Energy Calculations'!$BI39+I28+H28,0) -> -9907.244697 | K28: -229348.8766 | L28: =IF(AND($C28<=$G$60,$G$61<>0),('Energy Calculations'!$BE$20)/$G$60,0) -> -13360.28 | M28: =IF($C28<=$G$60,$G$61*(('Energy Calculations'!$BE$20)-L28*$C27),0) -> -4807.028744 | N28: =IF(AND($C28<=$G$60,$G$61<>0),'Energy Calculations'!$BE39+M28+L28,0) -> 23366.42835 | O28: 197146.115 | P28: =IF(AND($C28<=$G$60,$G$61<>0),('Energy Calculations'!$BV$20)/$G$60,0) -> -13360.28 | Q28: =IF($C28<=$G$60,$G$61*(('Energy Calculations'!$BV$20)-P28*$C27),0) -> -4807.028744 | R28: =IF(AND($C28<=$G$60,$G$61<>0),'Energy Calculations'!$BV39+Q28+P28,0) -> -10520.1074 | S28: -236565.5759 | T28: =IF(AND($C28<=$G$60,$G$61<>0),('Energy Calculations'!$BR$20)/$G$60,0) -> -13360.28 | U28: =IF($C28<=$G$60,$G$61*(('Energy Calculations'!$BR$20)-T28*$C27),0) -> -4807.028744 | V28: =IF(AND($C28<=$G$60,$G$61<>0),'Energy Calculations'!BR39+U28+T28,0) -> 8424.251943 | W28: 21196.11408 | Y28: 19 | Z28: =IF(AND($Y28<=$G$60,$G$62<>0),PMT($G$62,$G$60,-('Energy Calculations'!$AV$20)),0) -> -24032.2385 | AA28: =IF($Y28<=$G$60,'Energy Calculations'!$AV39+Z28,0) -> 17501.4986 | AB28: 210647.312 | AC28: =IF(AND($Y28<=$G$60,$G$62<>0),PMT($G$62,$G$60,-('Energy Calculations'!$BI$20)),0) -> -24032.2385 | AD28: =IF($Y28<=$G$60,'Energy Calculations'!$BI39+AC28,0) -> -15772.17446 | AE28: -215847.6797 | AF28: =IF(AND($Y28<=$G$60,$G$62<>0),PMT($G$62,$G$60,-('Energy Calculations'!$BE$20)),0) -> -24032.2385 | AG28: =IF($Y28<=$G$60,'Energy Calculations'!$BE39+AF28,0) -> 17501.4986 | AH28: 210647.312 | AI28: =IF(AND($Y28<=$G$60,$G$62<>0),PMT($G$62,$G$60,-('Energy Calculations'!$BV$20)),0) -> -24032.2385 | AJ28: =IF($Y28<=$G$60,'Energy Calculations'!$BV39+AI28,0) -> -16385.03716 | AK28: -223064.3789 | AL28: =IF(AND($Y28<=$G$60,$G$62<>0),PMT($G$62,$G$60,-('Energy Calculations'!$BR$20)),0) -> -24032.2385 | AM28: =IF($Y28<=$G$60,'Energy Calculations'!$BR39+AL28,0) -> 2559.322185 | AN28: 34697.31101 | AP28: 19 | AQ28: =IF(AND($AP28=$G$60,$G$63<>0),'Energy Calculations'!$AV$20,0) -> 0 | AR28: =IF(AND($AP28<=$G$60,$G$63<>0),('Energy Calculations'!$AV$20)*$G$63,0) -> -16600.1479 | AS28: =IF(AND($AP28<=$G$60,$G$63<>0),'Energy Calculations'!$AV39+AQ28+AR28,0) -> 24933.5892 | AT28: 309094.4171 | AU28: =IF(AND($AP28=$G$60,$G$63<>0),'Energy Calculations'!$BI$20,0) -> 0 | AV28: =IF(AND($AP28<=$G$60,$G$63<>0),('Energy Calculations'!$BI$20)*$G$63,0) -> -16600.1479 | AW28: =IF(AND($AP28<=$G$60,$G$63<>0),'Energy Calculations'!$BI39+AU28+AV28,0) -> -8340.083853 | AX28: -117400.5745 | AY28: =IF(AND($AP28=$G$60,$G$63<>0),'Energy Calculations'!$BE$20,0) -> 0 | AZ28: =IF(AND($AP28<=$G$60,$G$63<>0),('Energy Calculations'!$BE$20)*$G$63,0) -> -16600.1479 | BA28: =IF(AND($AP28<=$G$60,$G$63<>0),'Energy Calculations'!$BE39+AY28+AZ28,0) -> 24933.5892 | BB28: 309094.4171 | BC28: =IF(AND($AP28=$G$60,$G$63<>0),'Energy Calculations'!$BV$20,0) -> 0 | BD28: =IF(AND($AP28<=$G$60,$G$63<>0),('Energy Calculations'!$BV$20)*$G$63,0) -> -16600.1479 | BE28: =IF(AND($AP28<=$G$60,$G$63<>0),'Energy Calculations'!$BV39+BC28+BD28,0) -> -8952.946558 | BF28: -124617.2738 | BG28: =IF(AND($AP28=$G$60,$G$63<>0),'Energy Calculations'!$BR$20,0) -> 0 | BH28: =IF(AND($AP28<=$G$60,$G$63<>0),('Energy Calculations'!$BR$20)*$G$63,0) -> -16600.1479 | BI28: =IF(AND($AP28<=$G$60,$G$63<>0),'Energy Calculations'!$BR39+BG28+BH28,0) -> 9991.412787 | BJ28: 133144.4162 | BL28: 19 | BO28: -21605.19327 | BP28: =IF($AP28<=$G$60,'Energy Calculations'!$AV39+BM28+BO28+BN28,0) -> 19928.54383 | BQ28: 278763.8441 | BT28: -21605.19327 | BU28: =IF($AP28<=$G$60,'Energy Calculations'!$BI39+BR28+BT28+BS28,0) -> -13345.12922 | BV28: -147731.1475 | BY28: -21605.19327 | BZ28: =IF($AP28<=$G$60,'Energy Calculations'!$BE39+BW28+BY28+BX28,0) -> 19928.54383 | CA28: 278763.8441 | CD28: -21605.19327 | CE28: =IF($AP28<=$G$60,'Energy Calculations'!$BV39+CB28+CD28+CC28,0) -> -13957.99193 | CF28: -154947.8468 | CI28: -21605.19327 | CJ28: =IF($AP28<=$G$60,'Energy Calculations'!$BR39+CG28+CI28+CH28,0) -> 4986.367418 | CK28: 102813.8432
B29: ='Energy Calculations'!BL40 -> 2044 | C29: 20 | D29: =IF(AND($C29<=$G$60,$G$61<>0),('Energy Calculations'!$AV$20)/$G$60,0) -> -13360.28 | E29: =IF($C29<=$G$60,$G$61*(('Energy Calculations'!$AV$20)-D29*$C28),0) -> -4120.310352 | F29: =IF(AND($C29<=$G$60,$G$61<>0),'Energy Calculations'!$AV40+E29+D29,0) -> 24482.43997 | G29: 209034.0755 | H29: =IF(AND($C29<=$G$60,$G$61<>0),('Energy Calculations'!$BI$20)/$G$60,0) -> -13360.28 | I29: =IF($C29<=$G$60,$G$61*(('Energy Calculations'!$BI$20)-H29*$C28),0) -> -4120.310352 | J29: =IF(AND($C29<=$G$60,$G$61<>0),'Energy Calculations'!$BI40+I29+H29,0) -> -9176.548497 | K29: -233804.7415 | L29: =IF(AND($C29<=$G$60,$G$61<>0),('Energy Calculations'!$BE$20)/$G$60,0) -> -13360.28 | M29: =IF($C29<=$G$60,$G$61*(('Energy Calculations'!$BE$20)-L29*$C28),0) -> -4120.310352 | N29: =IF(AND($C29<=$G$60,$G$61<>0),'Energy Calculations'!$BE40+M29+L29,0) -> 24482.43997 | O29: 209034.0755 | P29: =IF(AND($C29<=$G$60,$G$61<>0),('Energy Calculations'!$BV$20)/$G$60,0) -> -13360.28 | Q29: =IF($C29<=$G$60,$G$61*(('Energy Calculations'!$BV$20)-P29*$C28),0) -> -4120.310352 | R29: =IF(AND($C29<=$G$60,$G$61<>0),'Energy Calculations'!$BV40+Q29+P29,0) -> -9796.508267 | S29: -241322.4752 | T29: =IF(AND($C29<=$G$60,$G$61<>0),('Energy Calculations'!$BR$20)/$G$60,0) -> -13360.28 | U29: =IF($C29<=$G$60,$G$61*(('Energy Calculations'!$BR$20)-T29*$C28),0) -> -4120.310352 | V29: =IF(AND($C29<=$G$60,$G$61<>0),'Energy Calculations'!BR40+U29+T29,0) -> 9367.230334 | W29: 25744.56857 | Y29: 20 | Z29: =IF(AND($Y29<=$G$60,$G$62<>0),PMT($G$62,$G$60,-('Energy Calculations'!$AV$20)),0) -> -24032.2385 | AA29: =IF($Y29<=$G$60,'Energy Calculations'!$AV40+Z29,0) -> 17930.79182 | AB29: 219353.9827 | AC29: =IF(AND($Y29<=$G$60,$G$62<>0),PMT($G$62,$G$60,-('Energy Calculations'!$BI$20)),0) -> -24032.2385 | AD29: =IF($Y29<=$G$60,'Energy Calculations'!$BI40+AC29,0) -> -15728.19665 | AE29: -223484.8343 | AF29: =IF(AND($Y29<=$G$60,$G$62<>0),PMT($G$62,$G$60,-('Energy Calculations'!$BE$20)),0) -> -24032.2385 | AG29: =IF($Y29<=$G$60,'Energy Calculations'!$BE40+AF29,0) -> 17930.79182 | AH29: 219353.9827 | AI29: =IF(AND($Y29<=$G$60,$G$62<>0),PMT($G$62,$G$60,-('Energy Calculations'!$BV$20)),0) -> -24032.2385 | AJ29: =IF($Y29<=$G$60,'Energy Calculations'!$BV40+AI29,0) -> -16348.15642 | AK29: -231002.568 | AL29: =IF(AND($Y29<=$G$60,$G$62<>0),PMT($G$62,$G$60,-('Energy Calculations'!$BR$20)),0) -> -24032.2385 | AM29: =IF($Y29<=$G$60,'Energy Calculations'!$BR40+AL29,0) -> 2815.582184 | AN29: 36064.47579 | AP29: 20 | AQ29: =IF(AND($AP29=$G$60,$G$63<>0),'Energy Calculations'!$AV$20,0) -> 0 | AR29: =IF(AND($AP29<=$G$60,$G$63<>0),('Energy Calculations'!$AV$20)*$G$63,0) -> -16600.1479 | AS29: =IF(AND($AP29<=$G$60,$G$63<>0),'Energy Calculations'!$AV40+AQ29+AR29,0) -> 25362.88242 | AT29: 321409.8948 | AU29: =IF(AND($AP29=$G$60,$G$63<>0),'Energy Calculations'!$BI$20,0) -> 0 | AV29: =IF(AND($AP29<=$G$60,$G$63<>0),('Energy Calculations'!$BI$20)*$G$63,0) -> -16600.1479 | AW29: =IF(AND($AP29<=$G$60,$G$63<>0),'Energy Calculations'!$BI40+AU29+AV29,0) -> -8296.106045 | AX29: -121428.9222 | AY29: =IF(AND($AP29=$G$60,$G$63<>0),'Energy Calculations'!$BE$20,0) -> 0 | AZ29: =IF(AND($AP29<=$G$60,$G$63<>0),('Energy Calculations'!$BE$20)*$G$63,0) -> -16600.1479 | BA29: =IF(AND($AP29<=$G$60,$G$63<>0),'Energy Calculations'!$BE40+AY29+AZ29,0) -> 25362.88242 | BB29: 321409.8948 | BC29: =IF(AND($AP29=$G$60,$G$63<>0),'Energy Calculations'!$BV$20,0) -> 0 | BD29: =IF(AND($AP29<=$G$60,$G$63<>0),('Energy Calculations'!$BV$20)*$G$63,0) -> -16600.1479 | BE29: =IF(AND($AP29<=$G$60,$G$63<>0),'Energy Calculations'!$BV40+BC29+BD29,0) -> -8916.065815 | BF29: -128946.6559 | BG29: =IF(AND($AP29=$G$60,$G$63<>0),'Energy Calculations'!$BR$20,0) -> 0 | BH29: =IF(AND($AP29<=$G$60,$G$63<>0),('Energy Calculations'!$BR$20)*$G$63,0) -> -16600.1479 | BI29: =IF(AND($AP29<=$G$60,$G$63<>0),'Energy Calculations'!$BR40+BG29+BH29,0) -> 10247.67279 | BJ29: 138120.3879 | BL29: 20 | BO29: -21605.19327 | BP29: =IF($AP29<=$G$60,'Energy Calculations'!$AV40+BM29+BO29+BN29,0) -> 20357.83705 | BQ29: 288649.0175 | BT29: -21605.19327 | BU29: =IF($AP29<=$G$60,'Energy Calculations'!$BI40+BR29+BT29+BS29,0) -> -13301.15141 | BV29: -154189.7996 | BY29: -21605.19327 | BZ29: =IF($AP29<=$G$60,'Energy Calculations'!$BE40+BW29+BY29+BX29,0) -> 20357.83705 | CA29: 288649.0175 | CD29: -21605.19327 | CE29: =IF($AP29<=$G$60,'Energy Calculations'!$BV40+CB29+CD29+CC29,0) -> -13921.11118 | CF29: -161707.5333 | CI29: -21605.19327 | CJ29: =IF($AP29<=$G$60,'Energy Calculations'!$BR40+CG29+CI29+CH29,0) -> 5242.627417 | CK29: 105359.5105
B30: ='Energy Calculations'!BL41 -> 2045 | C30: 21 | D30: =IF(AND($C30<=$G$60,$G$61<>0),('Energy Calculations'!$AV$20)/$G$60,0) -> -13360.28 | E30: =IF($C30<=$G$60,$G$61*(('Energy Calculations'!$AV$20)-D30*$C29),0) -> -3433.59196 | F30: =IF(AND($C30<=$G$60,$G$61<>0),'Energy Calculations'!$AV41+E30+D30,0) -> 25599.00981 | G30: 221043.8671 | H30: =IF(AND($C30<=$G$60,$G$61<>0),('Energy Calculations'!$BI$20)/$G$60,0) -> -13360.28 | I30: =IF($C30<=$G$60,$G$61*(('Energy Calculations'!$BI$20)-H30*$C29),0) -> -3433.59196 | J30: =IF(AND($C30<=$G$60,$G$61<>0),'Energy Calculations'!$BI41+I30+H30,0) -> -8447.397209 | K30: -237767.8433 | L30: =IF(AND($C30<=$G$60,$G$61<>0),('Energy Calculations'!$BE$20)/$G$60,0) -> -13360.28 | M30: =IF($C30<=$G$60,$G$61*(('Energy Calculations'!$BE$20)-L30*$C29),0) -> -3433.59196 | N30: =IF(AND($C30<=$G$60,$G$61<>0),'Energy Calculations'!$BE41+M30+L30,0) -> 25599.00981 | O30: 221043.8671 | P30: =IF(AND($C30<=$G$60,$G$61<>0),('Energy Calculations'!$BV$20)/$G$60,0) -> -13360.28 | Q30: =IF($C30<=$G$60,$G$61*(('Energy Calculations'!$BV$20)-P30*$C29),0) -> -3433.59196 | R30: =IF(AND($C30<=$G$60,$G$61<>0),'Energy Calculations'!$BV41+Q30+P30,0) -> -9074.492782 | S30: -245579.7792 | T30: =IF(AND($C30<=$G$60,$G$61<>0),('Energy Calculations'!$BR$20)/$G$60,0) -> -13360.28 | U30: =IF($C30<=$G$60,$G$61*(('Energy Calculations'!$BR$20)-T30*$C29),0) -> -3433.59196 | V30: =IF(AND($C30<=$G$60,$G$61<>0),'Energy Calculations'!BR41+U30+T30,0) -> 10309.8225 | W30: 30581.4283 | Y30: 21 | Z30: =IF(AND($Y30<=$G$60,$G$62<>0),PMT($G$62,$G$60,-('Energy Calculations'!$AV$20)),0) -> -24032.2385 | AA30: =IF($Y30<=$G$60,'Energy Calculations'!$AV41+Z30,0) -> 18360.64327 | AB30: 227967.8901 | AC30: =IF(AND($Y30<=$G$60,$G$62<>0),PMT($G$62,$G$60,-('Energy Calculations'!$BI$20)),0) -> -24032.2385 | AD30: =IF($Y30<=$G$60,'Energy Calculations'!$BI41+AC30,0) -> -15685.76375 | AE30: -230843.8203 | AF30: =IF(AND($Y30<=$G$60,$G$62<>0),PMT($G$62,$G$60,-('Energy Calculations'!$BE$20)),0) -> -24032.2385 | AG30: =IF($Y30<=$G$60,'Energy Calculations'!$BE41+AF30,0) -> 18360.64327 | AH30: 227967.8901 | AI30: =IF(AND($Y30<=$G$60,$G$62<>0),PMT($G$62,$G$60,-('Energy Calculations'!$BV$20)),0) -> -24032.2385 | AJ30: =IF($Y30<=$G$60,'Energy Calculations'!$BV41+AI30,0) -> -16312.85932 | AK30: -238655.7562 | AL30: =IF(AND($Y30<=$G$60,$G$62<>0),PMT($G$62,$G$60,-('Energy Calculations'!$BR$20)),0) -> -24032.2385 | AM30: =IF($Y30<=$G$60,'Energy Calculations'!$BR41+AL30,0) -> 3071.455958 | AN30: 37505.45129 | AP30: 21 | AQ30: =IF(AND($AP30=$G$60,$G$63<>0),'Energy Calculations'!$AV$20,0) -> 0 | AR30: =IF(AND($AP30<=$G$60,$G$63<>0),('Energy Calculations'!$AV$20)*$G$63,0) -> -16600.1479 | AS30: =IF(AND($AP30<=$G$60,$G$63<>0),'Energy Calculations'!$AV41+AQ30+AR30,0) -> 25792.73387 | AT30: 333510.5722 | AU30: =IF(AND($AP30=$G$60,$G$63<>0),'Energy Calculations'!$BI$20,0) -> 0 | AV30: =IF(AND($AP30<=$G$60,$G$63<>0),('Energy Calculations'!$BI$20)*$G$63,0) -> -16600.1479 | AW30: =IF(AND($AP30<=$G$60,$G$63<>0),'Energy Calculations'!$BI41+AU30+AV30,0) -> -8253.673149 | AX30: -125301.1382 | AY30: =IF(AND($AP30=$G$60,$G$63<>0),'Energy Calculations'!$BE$20,0) -> 0 | AZ30: =IF(AND($AP30<=$G$60,$G$63<>0),('Energy Calculations'!$BE$20)*$G$63,0) -> -16600.1479 | BA30: =IF(AND($AP30<=$G$60,$G$63<>0),'Energy Calculations'!$BE41+AY30+AZ30,0) -> 25792.73387 | BB30: 333510.5722 | BC30: =IF(AND($AP30=$G$60,$G$63<>0),'Energy Calculations'!$BV$20,0) -> 0 | BD30: =IF(AND($AP30<=$G$60,$G$63<>0),('Energy Calculations'!$BV$20)*$G$63,0) -> -16600.1479 | BE30: =IF(AND($AP30<=$G$60,$G$63<>0),'Energy Calculations'!$BV41+BC30+BD30,0) -> -8880.768722 | BF30: -133113.0742 | BG30: =IF(AND($AP30=$G$60,$G$63<>0),'Energy Calculations'!$BR$20,0) -> 0 | BH30: =IF(AND($AP30<=$G$60,$G$63<>0),('Energy Calculations'!$BR$20)*$G$63,0) -> -16600.1479 | BI30: =IF(AND($AP30<=$G$60,$G$63<>0),'Energy Calculations'!$BR41+BG30+BH30,0) -> 10503.54656 | BJ30: 143048.1334 | BL30: 21 | BO30: -21605.19327 | BP30: =IF($AP30<=$G$60,'Energy Calculations'!$AV41+BM30+BO30+BN30,0) -> 20787.6885 | BQ30: 298401.5746 | BT30: -21605.19327 | BU30: =IF($AP30<=$G$60,'Energy Calculations'!$BI41+BR30+BT30+BS30,0) -> -13258.71852 | BV30: -160410.1358 | BY30: -21605.19327 | BZ30: =IF($AP30<=$G$60,'Energy Calculations'!$BE41+BW30+BY30+BX30,0) -> 20787.6885 | CA30: 298401.5746 | CD30: -21605.19327 | CE30: =IF($AP30<=$G$60,'Energy Calculations'!$BV41+CB30+CD30+CC30,0) -> -13885.81409 | CF30: -168222.0717 | CI30: -21605.19327 | CJ30: =IF($AP30<=$G$60,'Energy Calculations'!$BR41+CG30+CI30+CH30,0) -> 5498.501192 | CK30: 107939.1358
B31: ='Energy Calculations'!BL42 -> 2046 | C31: 22 | D31: =IF(AND($C31<=$G$60,$G$61<>0),('Energy Calculations'!$AV$20)/$G$60,0) -> -13360.28 | E31: =IF($C31<=$G$60,$G$61*(('Energy Calculations'!$AV$20)-D31*$C30),0) -> -2746.873568 | F31: =IF(AND($C31<=$G$60,$G$61<>0),'Energy Calculations'!$AV42+E31+D31,0) -> 26715.98851 | G31: 233153.8409 | H31: =IF(AND($C31<=$G$60,$G$61<>0),('Energy Calculations'!$BI$20)/$G$60,0) -> -13360.28 | I31: =IF($C31<=$G$60,$G$61*(('Energy Calculations'!$BI$20)-H31*$C30),0) -> -2746.873568 | J31: =IF(AND($C31<=$G$60,$G$61<>0),'Energy Calculations'!$BI42+I31+H31,0) -> -7719.870222 | K31: -241267.1495 | L31: =IF(AND($C31<=$G$60,$G$61<>0),('Energy Calculations'!$BE$20)/$G$60,0) -> -13360.28 | M31: =IF($C31<=$G$60,$G$61*(('Energy Calculations'!$BE$20)-L31*$C30),0) -> -2746.873568 | N31: =IF(AND($C31<=$G$60,$G$61<>0),'Energy Calculations'!$BE42+M31+L31,0) -> 26715.98851 | O31: 233153.8409 | P31: =IF(AND($C31<=$G$60,$G$61<>0),('Energy Calculations'!$BV$20)/$G$60,0) -> -13360.28 | Q31: =IF($C31<=$G$60,$G$61*(('Energy Calculations'!$BV$20)-P31*$C30),0) -> -2746.873568 | R31: =IF(AND($C31<=$G$60,$G$61<>0),'Energy Calculations'!$BV42+Q31+P31,0) -> -8354.139047 | S31: -249366.5904 | T31: =IF(AND($C31<=$G$60,$G$61<>0),('Energy Calculations'!$BR$20)/$G$60,0) -> -13360.28 | U31: =IF($C31<=$G$60,$G$61*(('Energy Calculations'!$BR$20)-T31*$C30),0) -> -2746.873568 | V31: =IF(AND($C31<=$G$60,$G$61<>0),'Energy Calculations'!BR42+U31+T31,0) -> 11251.91049 | W31: 35681.75768 | Y31: 22 | Z31: =IF(AND($Y31<=$G$60,$G$62<>0),PMT($G$62,$G$60,-('Energy Calculations'!$AV$20)),0) -> -24032.2385 | AA31: =IF($Y31<=$G$60,'Energy Calculations'!$AV42+Z31,0) -> 18790.90357 | AB31: 236485.5367 | AC31: =IF(AND($Y31<=$G$60,$G$62<>0),PMT($G$62,$G$60,-('Energy Calculations'!$BI$20)),0) -> -24032.2385 | AD31: =IF($Y31<=$G$60,'Energy Calculations'!$BI42+AC31,0) -> -15644.95516 | AE31: -237935.4537 | AF31: =IF(AND($Y31<=$G$60,$G$62<>0),PMT($G$62,$G$60,-('Energy Calculations'!$BE$20)),0) -> -24032.2385 | AG31: =IF($Y31<=$G$60,'Energy Calculations'!$BE42+AF31,0) -> 18790.90357 | AH31: 236485.5367 | AI31: =IF(AND($Y31<=$G$60,$G$62<>0),PMT($G$62,$G$60,-('Energy Calculations'!$BV$20)),0) -> -24032.2385 | AJ31: =IF($Y31<=$G$60,'Energy Calculations'!$BV42+AI31,0) -> -16279.22398 | AK31: -246034.8946 | AL31: =IF(AND($Y31<=$G$60,$G$62<>0),PMT($G$62,$G$60,-('Energy Calculations'!$BR$20)),0) -> -24032.2385 | AM31: =IF($Y31<=$G$60,'Energy Calculations'!$BR42+AL31,0) -> 3326.825555 | AN31: 39013.45352 | AP31: 22 | AQ31: =IF(AND($AP31=$G$60,$G$63<>0),'Energy Calculations'!$AV$20,0) -> 0 | AR31: =IF(AND($AP31<=$G$60,$G$63<>0),('Energy Calculations'!$AV$20)*$G$63,0) -> -16600.1479 | AS31: =IF(AND($AP31<=$G$60,$G$63<>0),'Energy Calculations'!$AV42+AQ31+AR31,0) -> 26222.99417 | AT31: 345397.0787 | AU31: =IF(AND($AP31=$G$60,$G$63<>0),'Energy Calculations'!$BI$20,0) -> 0 | AV31: =IF(AND($AP31<=$G$60,$G$63<>0),('Energy Calculations'!$BI$20)*$G$63,0) -> -16600.1479 | AW31: =IF(AND($AP31<=$G$60,$G$63<>0),'Energy Calculations'!$BI42+AU31+AV31,0) -> -8212.864554 | AX31: -129023.9117 | AY31: =IF(AND($AP31=$G$60,$G$63<>0),'Energy Calculations'!$BE$20,0) -> 0 | AZ31: =IF(AND($AP31<=$G$60,$G$63<>0),('Energy Calculations'!$BE$20)*$G$63,0) -> -16600.1479 | BA31: =IF(AND($AP31<=$G$60,$G$63<>0),'Energy Calculations'!$BE42+AY31+AZ31,0) -> 26222.99417 | BB31: 345397.0787 | BC31: =IF(AND($AP31=$G$60,$G$63<>0),'Energy Calculations'!$BV$20,0) -> 0 | BD31: =IF(AND($AP31<=$G$60,$G$63<>0),('Energy Calculations'!$BV$20)*$G$63,0) -> -16600.1479 | BE31: =IF(AND($AP31<=$G$60,$G$63<>0),'Energy Calculations'!$BV42+BC31+BD31,0) -> -8847.133379 | BF31: -137123.3526 | BG31: =IF(AND($AP31=$G$60,$G$63<>0),'Energy Calculations'!$BR$20,0) -> 0 | BH31: =IF(AND($AP31<=$G$60,$G$63<>0),('Energy Calculations'!$BR$20)*$G$63,0) -> -16600.1479 | BI31: =IF(AND($AP31<=$G$60,$G$63<>0),'Energy Calculations'!$BR42+BG31+BH31,0) -> 10758.91616 | BJ31: 147924.9955 | BL31: 22 | BO31: -21605.19327 | BP31: =IF($AP31<=$G$60,'Energy Calculations'!$AV42+BM31+BO31+BN31,0) -> 21217.94881 | BQ31: 308019.366 | BT31: -21605.19327 | BU31: =IF($AP31<=$G$60,'Energy Calculations'!$BI42+BR31+BT31+BS31,0) -> -13217.90992 | BV31: -166401.6244 | BY31: -21605.19327 | BZ31: =IF($AP31<=$G$60,'Energy Calculations'!$BE42+BW31+BY31+BX31,0) -> 21217.94881 | CA31: 308019.366 | CD31: -21605.19327 | CE31: =IF($AP31<=$G$60,'Energy Calculations'!$BV42+CB31+CD31+CC31,0) -> -13852.17875 | CF31: -174501.0653 | CI31: -21605.19327 | CJ31: =IF($AP31<=$G$60,'Energy Calculations'!$BR42+CG31+CI31+CH31,0) -> 5753.870789 | CK31: 110547.2828
B32: ='Energy Calculations'!BL43 -> 2047 | C32: 23 | D32: =IF(AND($C32<=$G$60,$G$61<>0),('Energy Calculations'!$AV$20)/$G$60,0) -> -13360.28 | E32: =IF($C32<=$G$60,$G$61*(('Energy Calculations'!$AV$20)-D32*$C31),0) -> -2060.155176 | F32: =IF(AND($C32<=$G$60,$G$61<>0),'Energy Calculations'!$AV43+E32+D32,0) -> 27833.22046 | G32: 245343.5984 | H32: =IF(AND($C32<=$G$60,$G$61<>0),('Energy Calculations'!$BI$20)/$G$60,0) -> -13360.28 | I32: =IF($C32<=$G$60,$G$61*(('Energy Calculations'!$BI$20)-H32*$C31),0) -> -2060.155176 | J32: =IF(AND($C32<=$G$60,$G$61<>0),'Energy Calculations'!$BI43+I32+H32,0) -> -6994.049482 | K32: -244330.2434 | L32: =IF(AND($C32<=$G$60,$G$61<>0),('Energy Calculations'!$BE$20)/$G$60,0) -> -13360.28 | M32: =IF($C32<=$G$60,$G$61*(('Energy Calculations'!$BE$20)-L32*$C31),0) -> -2060.155176 | N32: =IF(AND($C32<=$G$60,$G$61<>0),'Energy Calculations'!$BE43+M32+L32,0) -> 27833.22046 | O32: 245343.5984 | P32: =IF(AND($C32<=$G$60,$G$61<>0),('Energy Calculations'!$BV$20)/$G$60,0) -> -13360.28 | Q32: =IF($C32<=$G$60,$G$61*(('Energy Calculations'!$BV$20)-P32*$C31),0) -> -2060.155176 | R32: =IF(AND($C32<=$G$60,$G$61<>0),'Energy Calculations'!$BV43+Q32+P32,0) -> -7635.52765 | S32: -252710.6243 | T32: =IF(AND($C32<=$G$60,$G$61<>0),('Energy Calculations'!$BR$20)/$G$60,0) -> -13360.28 | U32: =IF($C32<=$G$60,$G$61*(('Energy Calculations'!$BR$20)-T32*$C31),0) -> -2060.155176 | V32: =IF(AND($C32<=$G$60,$G$61<>0),'Energy Calculations'!BR43+U32+T32,0) -> 12193.37178 | W32: 41021.93184 | Y32: 23 | Z32: =IF(AND($Y32<=$G$60,$G$62<>0),PMT($G$62,$G$60,-('Energy Calculations'!$AV$20)),0) -> -24032.2385 | AA32: =IF($Y32<=$G$60,'Energy Calculations'!$AV43+Z32,0) -> 19221.41713 | AB32: 244903.6935 | AC32: =IF(AND($Y32<=$G$60,$G$62<>0),PMT($G$62,$G$60,-('Energy Calculations'!$BI$20)),0) -> -24032.2385 | AD32: =IF($Y32<=$G$60,'Energy Calculations'!$BI43+AC32,0) -> -15605.85281 | AE32: -244770.1483 | AF32: =IF(AND($Y32<=$G$60,$G$62<>0),PMT($G$62,$G$60,-('Energy Calculations'!$BE$20)),0) -> -24032.2385 | AG32: =IF($Y32<=$G$60,'Energy Calculations'!$BE43+AF32,0) -> 19221.41713 | AH32: 244903.6935 | AI32: =IF(AND($Y32<=$G$60,$G$62<>0),PMT($G$62,$G$60,-('Energy Calculations'!$BV$20)),0) -> -24032.2385 | AJ32: =IF($Y32<=$G$60,'Energy Calculations'!$BV43+AI32,0) -> -16247.33098 | AK32: -253150.5291 | AL32: =IF(AND($Y32<=$G$60,$G$62<>0),PMT($G$62,$G$60,-('Energy Calculations'!$BR$20)),0) -> -24032.2385 | AM32: =IF($Y32<=$G$60,'Energy Calculations'!$BR43+AL32,0) -> 3581.568459 | AN32: 40582.02698 | AP32: 23 | AQ32: =IF(AND($AP32=$G$60,$G$63<>0),'Energy Calculations'!$AV$20,0) -> 0 | AR32: =IF(AND($AP32<=$G$60,$G$63<>0),('Energy Calculations'!$AV$20)*$G$63,0) -> -16600.1479 | AS32: =IF(AND($AP32<=$G$60,$G$63<>0),'Energy Calculations'!$AV43+AQ32+AR32,0) -> 26653.50773 | AT32: 357070.1726 | AU32: =IF(AND($AP32=$G$60,$G$63<>0),'Energy Calculations'!$BI$20,0) -> 0 | AV32: =IF(AND($AP32<=$G$60,$G$63<>0),('Energy Calculations'!$BI$20)*$G$63,0) -> -16600.1479 | AW32: =IF(AND($AP32<=$G$60,$G$63<>0),'Energy Calculations'!$BI43+AU32+AV32,0) -> -8173.762206 | AX32: -132603.6692 | AY32: =IF(AND($AP32=$G$60,$G$63<>0),'Energy Calculations'!$BE$20,0) -> 0 | AZ32: =IF(AND($AP32<=$G$60,$G$63<>0),('Energy Calculations'!$BE$20)*$G$63,0) -> -16600.1479 | BA32: =IF(AND($AP32<=$G$60,$G$63<>0),'Energy Calculations'!$BE43+AY32+AZ32,0) -> 26653.50773 | BB32: 357070.1726 | BC32: =IF(AND($AP32=$G$60,$G$63<>0),'Energy Calculations'!$BV$20,0) -> 0 | BD32: =IF(AND($AP32<=$G$60,$G$63<>0),('Energy Calculations'!$BV$20)*$G$63,0) -> -16600.1479 | BE32: =IF(AND($AP32<=$G$60,$G$63<>0),'Energy Calculations'!$BV43+BC32+BD32,0) -> -8815.240374 | BF32: -140984.05 | BG32: =IF(AND($AP32=$G$60,$G$63<>0),'Energy Calculations'!$BR$20,0) -> 0 | BH32: =IF(AND($AP32<=$G$60,$G$63<>0),('Energy Calculations'!$BR$20)*$G$63,0) -> -16600.1479 | BI32: =IF(AND($AP32<=$G$60,$G$63<>0),'Energy Calculations'!$BR43+BG32+BH32,0) -> 11013.65906 | BJ32: 152748.5061 | BL32: 23 | BO32: -21605.19327 | BP32: =IF($AP32<=$G$60,'Energy Calculations'!$AV43+BM32+BO32+BN32,0) -> 21648.46237 | BQ32: 317500.4645 | BT32: -21605.19327 | BU32: =IF($AP32<=$G$60,'Energy Calculations'!$BI43+BR32+BT32+BS32,0) -> -13178.80757 | BV32: -172173.3772 | BY32: -21605.19327 | BZ32: =IF($AP32<=$G$60,'Energy Calculations'!$BE43+BW32+BY32+BX32,0) -> 21648.46237 | CA32: 317500.4645 | CD32: -21605.19327 | CE32: =IF($AP32<=$G$60,'Energy Calculations'!$BV43+CB32+CD32+CC32,0) -> -13820.28574 | CF32: -180553.7581 | CI32: -21605.19327 | CJ32: =IF($AP32<=$G$60,'Energy Calculations'!$BR43+CG32+CI32+CH32,0) -> 6008.613692 | CK32: 113178.798
B33: ='Energy Calculations'!BL44 -> 2048 | C33: 24 | D33: =IF(AND($C33<=$G$60,$G$61<>0),('Energy Calculations'!$AV$20)/$G$60,0) -> -13360.28 | E33: =IF($C33<=$G$60,$G$61*(('Energy Calculations'!$AV$20)-D33*$C32),0) -> -1373.436784 | F33: =IF(AND($C33<=$G$60,$G$61<>0),'Energy Calculations'!$AV44+E33+D33,0) -> 28950.5437 | G33: 257593.9338 | H33: =IF(AND($C33<=$G$60,$G$61<>0),('Energy Calculations'!$BI$20)/$G$60,0) -> -13360.28 | I33: =IF($C33<=$G$60,$G$61*(('Energy Calculations'!$BI$20)-H33*$C32),0) -> -1373.436784 | J33: =IF(AND($C33<=$G$60,$G$61<>0),'Energy Calculations'!$BI44+I33+H33,0) -> -6270.01956 | K33: -246983.3833 | L33: =IF(AND($C33<=$G$60,$G$61<>0),('Energy Calculations'!$BE$20)/$G$60,0) -> -13360.28 | M33: =IF($C33<=$G$60,$G$61*(('Energy Calculations'!$BE$20)-L33*$C32),0) -> -1373.436784 | N33: =IF(AND($C33<=$G$60,$G$61<>0),'Energy Calculations'!$BE44+M33+L33,0) -> 28950.5437 | O33: 257593.9338 | P33: =IF(AND($C33<=$G$60,$G$61<>0),('Energy Calculations'!$BV$20)/$G$60,0) -> -13360.28 | Q33: =IF($C33<=$G$60,$G$61*(('Energy Calculations'!$BV$20)-P33*$C32),0) -> -1373.436784 | R33: =IF(AND($C33<=$G$60,$G$61<>0),'Energy Calculations'!$BV44+Q33+P33,0) -> -6918.741738 | S33: -255638.269 | T33: =IF(AND($C33<=$G$60,$G$61<>0),('Energy Calculations'!$BR$20)/$G$60,0) -> -13360.28 | U33: =IF($C33<=$G$60,$G$61*(('Energy Calculations'!$BR$20)-T33*$C32),0) -> -1373.436784 | V33: =IF(AND($C33<=$G$60,$G$61<>0),'Energy Calculations'!BR44+U33+T33,0) -> 13134.07917 | W33: 46579.5779 | Y33: 24 | Z33: =IF(AND($Y33<=$G$60,$G$62<>0),PMT($G$62,$G$60,-('Energy Calculations'!$AV$20)),0) -> -24032.2385 | AA33: =IF($Y33<=$G$60,'Energy Calculations'!$AV44+Z33,0) -> 19652.02198 | AB33: 253219.3874 | AC33: =IF(AND($Y33<=$G$60,$G$62<>0),PMT($G$62,$G$60,-('Energy Calculations'!$BI$20)),0) -> -24032.2385 | AD33: =IF($Y33<=$G$60,'Energy Calculations'!$BI44+AC33,0) -> -15568.54128 | AE33: -251357.9296 | AF33: =IF(AND($Y33<=$G$60,$G$62<>0),PMT($G$62,$G$60,-('Energy Calculations'!$BE$20)),0) -> -24032.2385 | AG33: =IF($Y33<=$G$60,'Energy Calculations'!$BE44+AF33,0) -> 19652.02198 | AH33: 253219.3874 | AI33: =IF(AND($Y33<=$G$60,$G$62<>0),PMT($G$62,$G$60,-('Energy Calculations'!$BV$20)),0) -> -24032.2385 | AJ33: =IF($Y33<=$G$60,'Energy Calculations'!$BV44+AI33,0) -> -16217.26346 | AK33: -260012.8153 | AL33: =IF(AND($Y33<=$G$60,$G$62<>0),PMT($G$62,$G$60,-('Energy Calculations'!$BR$20)),0) -> -24032.2385 | AM33: =IF($Y33<=$G$60,'Energy Calculations'!$BR44+AL33,0) -> 3835.557452 | AN33: 42205.03157 | AP33: 24 | AQ33: =IF(AND($AP33=$G$60,$G$63<>0),'Energy Calculations'!$AV$20,0) -> 0 | AR33: =IF(AND($AP33<=$G$60,$G$63<>0),('Energy Calculations'!$AV$20)*$G$63,0) -> -16600.1479 | AS33: =IF(AND($AP33<=$G$60,$G$63<>0),'Energy Calculations'!$AV44+AQ33+AR33,0) -> 27084.11258 | AT33: 368530.7333 | AU33: =IF(AND($AP33=$G$60,$G$63<>0),'Energy Calculations'!$BI$20,0) -> 0 | AV33: =IF(AND($AP33<=$G$60,$G$63<>0),('Energy Calculations'!$BI$20)*$G$63,0) -> -16600.1479 | AW33: =IF(AND($AP33<=$G$60,$G$63<>0),'Energy Calculations'!$BI44+AU33+AV33,0) -> -8136.450676 | AX33: -136046.5838 | AY33: =IF(AND($AP33=$G$60,$G$63<>0),'Energy Calculations'!$BE$20,0) -> 0 | AZ33: =IF(AND($AP33<=$G$60,$G$63<>0),('Energy Calculations'!$BE$20)*$G$63,0) -> -16600.1479 | BA33: =IF(AND($AP33<=$G$60,$G$63<>0),'Energy Calculations'!$BE44+AY33+AZ33,0) -> 27084.11258 | BB33: 368530.7333 | BC33: =IF(AND($AP33=$G$60,$G$63<>0),'Energy Calculations'!$BV$20,0) -> 0 | BD33: =IF(AND($AP33<=$G$60,$G$63<>0),('Energy Calculations'!$BV$20)*$G$63,0) -> -16600.1479 | BE33: =IF(AND($AP33<=$G$60,$G$63<>0),'Energy Calculations'!$BV44+BC33+BD33,0) -> -8785.172854 | BF33: -144701.4695 | BG33: =IF(AND($AP33=$G$60,$G$63<>0),'Energy Calculations'!$BR$20,0) -> 0 | BH33: =IF(AND($AP33<=$G$60,$G$63<>0),('Energy Calculations'!$BR$20)*$G$63,0) -> -16600.1479 | BI33: =IF(AND($AP33<=$G$60,$G$63<>0),'Energy Calculations'!$BR44+BG33+BH33,0) -> 11267.64805 | BJ33: 157516.3774 | BL33: 24 | BO33: -21605.19327 | BP33: =IF($AP33<=$G$60,'Energy Calculations'!$AV44+BM33+BO33+BN33,0) -> 22079.06721 | BQ33: 326843.1553 | BT33: -21605.19327 | BU33: =IF($AP33<=$G$60,'Energy Calculations'!$BI44+BR33+BT33+BS33,0) -> -13141.49604 | BV33: -177734.1617 | BY33: -21605.19327 | BZ33: =IF($AP33<=$G$60,'Energy Calculations'!$BE44+BW33+BY33+BX33,0) -> 22079.06721 | CA33: 326843.1553 | CD33: -21605.19327 | CE33: =IF($AP33<=$G$60,'Energy Calculations'!$BV44+CB33+CD33+CC33,0) -> -13790.21822 | CF33: -186389.0474 | CI33: -21605.19327 | CJ33: =IF($AP33<=$G$60,'Energy Calculations'!$BR44+CG33+CI33+CH33,0) -> 6262.602686 | CK33: 115828.7995
B34: ='Energy Calculations'!BL45 -> 2049 | C34: 25 | D34: =IF(AND($C34<=$G$60,$G$61<>0),('Energy Calculations'!$AV$20)/$G$60,0) -> -13360.28 | E34: =IF($C34<=$G$60,$G$61*(('Energy Calculations'!$AV$20)-D34*$C33),0) -> -686.718392 | F34: =IF(AND($C34<=$G$60,$G$61<>0),'Energy Calculations'!$AV45+E34+D34,0) -> 30067.78967 | G34: 269886.7788 | H34: =IF(AND($C34<=$G$60,$G$61<>0),('Energy Calculations'!$BI$20)/$G$60,0) -> -13360.28 | I34: =IF($C34<=$G$60,$G$61*(('Energy Calculations'!$BI$20)-H34*$C33),0) -> -686.718392 | J34: =IF(AND($C34<=$G$60,$G$61<>0),'Energy Calculations'!$BI45+I34+H34,0) -> -5547.867732 | K34: -249251.5606 | L34: =IF(AND($C34<=$G$60,$G$61<>0),('Energy Calculations'!$BE$20)/$G$60,0) -> -13360.28 | M34: =IF($C34<=$G$60,$G$61*(('Energy Calculations'!$BE$20)-L34*$C33),0) -> -686.718392 | N34: =IF(AND($C34<=$G$60,$G$61<>0),'Energy Calculations'!$BE45+M34+L34,0) -> 30067.78967 | O34: 269886.7788 | P34: =IF(AND($C34<=$G$60,$G$61<>0),('Energy Calculations'!$BV$20)/$G$60,0) -> -13360.28 | Q34: =IF($C34<=$G$60,$G$61*(('Energy Calculations'!$BV$20)-P34*$C33),0) -> -686.718392 | R34: =IF(AND($C34<=$G$60,$G$61<>0),'Energy Calculations'!$BV45+Q34+P34,0) -> -6203.867089 | S34: -258174.6436 | T34: =IF(AND($C34<=$G$60,$G$61<>0),('Energy Calculations'!$BR$20)/$G$60,0) -> -13360.28 | U34: =IF($C34<=$G$60,$G$61*(('Energy Calculations'!$BR$20)-T34*$C33),0) -> -686.718392 | V34: =IF(AND($C34<=$G$60,$G$61<>0),'Energy Calculations'!BR45+U34+T34,0) -> 14073.90059 | W34: 52333.51863 | Y34: 25 | Z34: =IF(AND($Y34<=$G$60,$G$62<>0),PMT($G$62,$G$60,-('Energy Calculations'!$AV$20)),0) -> -24032.2385 | AA34: =IF($Y34<=$G$60,'Energy Calculations'!$AV45+Z34,0) -> 20082.54956 | AB34: 261429.8902 | AC34: =IF(AND($Y34<=$G$60,$G$62<>0),PMT($G$62,$G$60,-('Energy Calculations'!$BI$20)),0) -> -24032.2385 | AD34: =IF($Y34<=$G$60,'Energy Calculations'!$BI45+AC34,0) -> -15533.10784 | AE34: -257708.4493 | AF34: =IF(AND($Y34<=$G$60,$G$62<>0),PMT($G$62,$G$60,-('Energy Calculations'!$BE$20)),0) -> -24032.2385 | AG34: =IF($Y34<=$G$60,'Energy Calculations'!$BE45+AF34,0) -> 20082.54956 | AH34: 261429.8902 | AI34: =IF(AND($Y34<=$G$60,$G$62<>0),PMT($G$62,$G$60,-('Energy Calculations'!$BV$20)),0) -> -24032.2385 | AJ34: =IF($Y34<=$G$60,'Energy Calculations'!$BV45+AI34,0) -> -16189.1072 | AK34: -266631.5322 | AL34: =IF(AND($Y34<=$G$60,$G$62<>0),PMT($G$62,$G$60,-('Energy Calculations'!$BR$20)),0) -> -24032.2385 | AM34: =IF($Y34<=$G$60,'Energy Calculations'!$BR45+AL34,0) -> 4088.660483 | AN34: 43876.63 | AP34: 25 | AQ34: =IF(AND($AP34=$G$60,$G$63<>0),'Energy Calculations'!$AV$20,0) -> -334007 | AR34: =IF(AND($AP34<=$G$60,$G$63<>0),('Energy Calculations'!$AV$20)*$G$63,0) -> -16600.1479 | AS34: =IF(AND($AP34<=$G$60,$G$63<>0),'Energy Calculations'!$AV45+AQ34+AR34,0) -> -306492.3598 | AT34: 243225.1108 | AU34: =IF(AND($AP34=$G$60,$G$63<>0),'Energy Calculations'!$BI$20,0) -> -334007 | AV34: =IF(AND($AP34<=$G$60,$G$63<>0),('Energy Calculations'!$BI$20)*$G$63,0) -> -16600.1479 | AW34: =IF(AND($AP34<=$G$60,$G$63<>0),'Energy Calculations'!$BI45+AU34+AV34,0) -> -342108.0172 | AX34: -275913.2287 | AY34: =IF(AND($AP34=$G$60,$G$63<>0),'Energy Calculations'!$BE$20,0) -> -334007 | AZ34: =IF(AND($AP34<=$G$60,$G$63<>0),('Energy Calculations'!$BE$20)*$G$63,0) -> -16600.1479 | BA34: =IF(AND($AP34<=$G$60,$G$63<>0),'Energy Calculations'!$BE45+AY34+AZ34,0) -> -306492.3598 | BB34: 243225.1108 | BC34: =IF(AND($AP34=$G$60,$G$63<>0),'Energy Calculations'!$BV$20,0) -> -334007 | BD34: =IF(AND($AP34<=$G$60,$G$63<>0),('Energy Calculations'!$BV$20)*$G$63,0) -> -16600.1479 | BE34: =IF(AND($AP34<=$G$60,$G$63<>0),'Energy Calculations'!$BV45+BC34+BD34,0) -> -342764.0166 | BF34: -284836.3117 | BG34: =IF(AND($AP34=$G$60,$G$63<>0),'Energy Calculations'!$BR$20,0) -> -334007 | BH34: =IF(AND($AP34<=$G$60,$G$63<>0),('Energy Calculations'!$BR$20)*$G$63,0) -> -16600.1479 | BI34: =IF(AND($AP34<=$G$60,$G$63<>0),'Energy Calculations'!$BR45+BG34+BH34,0) -> -322486.2489 | BJ34: 25671.85054 | BL34: 25 | BO34: -21605.19327 | BP34: =IF($AP34<=$G$60,'Energy Calculations'!$AV45+BM34+BO34+BN34,0) -> 22509.59479 | BQ34: 336045.9256 | BT34: -21605.19327 | BU34: =IF($AP34<=$G$60,'Energy Calculations'!$BI45+BR34+BT34+BS34,0) -> -13106.06261 | BV34: -183092.4138 | BY34: -21605.19327 | BZ34: =IF($AP34<=$G$60,'Energy Calculations'!$BE45+BW34+BY34+BX34,0) -> 22509.59479 | CA34: 336045.9256 | CD34: -21605.19327 | CE34: =IF($AP34<=$G$60,'Energy Calculations'!$BV45+CB34+CD34+CC34,0) -> -13762.06197 | CF34: -192015.4968 | CI34: -21605.19327 | CJ34: =IF($AP34<=$G$60,'Energy Calculations'!$BR45+CG34+CI34+CH34,0) -> 6515.705717 | CK34: 118492.6654
B35: ='Energy Calculations'!BL46 ->  | C35: 26 | D35: =IF(AND($C35<=$G$60,$G$61<>0),('Energy Calculations'!$AV$20)/$G$60,0) -> 0 | E35: =IF($C35<=$G$60,$G$61*(('Energy Calculations'!$AV$20)-D35*$C34),0) -> 0 | F35: =IF(AND($C35<=$G$60,$G$61<>0),'Energy Calculations'!$AV46+E35+D35,0) -> 0 | G35: 0 | H35: =IF(AND($C35<=$G$60,$G$61<>0),('Energy Calculations'!$BI$20)/$G$60,0) -> 0 | I35: =IF($C35<=$G$60,$G$61*(('Energy Calculations'!$BI$20)-H35*$C34),0) -> 0 | J35: =IF(AND($C35<=$G$60,$G$61<>0),'Energy Calculations'!$BI46+I35+H35,0) -> 0 | K35: 0 | L35: =IF(AND($C35<=$G$60,$G$61<>0),('Energy Calculations'!$BE$20)/$G$60,0) -> 0 | M35: =IF($C35<=$G$60,$G$61*(('Energy Calculations'!$BE$20)-L35*$C34),0) -> 0 | N35: =IF(AND($C35<=$G$60,$G$61<>0),'Energy Calculations'!$BE46+M35+L35,0) -> 0 | O35: 0 | P35: =IF(AND($C35<=$G$60,$G$61<>0),('Energy Calculations'!$BV$20)/$G$60,0) -> 0 | Q35: =IF($C35<=$G$60,$G$61*(('Energy Calculations'!$BV$20)-P35*$C34),0) -> 0 | R35: =IF(AND($C35<=$G$60,$G$61<>0),'Energy Calculations'!$BV46+Q35+P35,0) -> 0 | S35: 0 | T35: =IF(AND($C35<=$G$60,$G$61<>0),('Energy Calculations'!$BR$20)/$G$60,0) -> 0 | U35: =IF($C35<=$G$60,$G$61*(('Energy Calculations'!$BR$20)-T35*$C34),0) -> 0 | V35: =IF(AND($C35<=$G$60,$G$61<>0),'Energy Calculations'!BR46+U35+T35,0) -> 0 | W35: 0 | Y35: 26 | Z35: =IF(AND($Y35<=$G$60,$G$62<>0),PMT($G$62,$G$60,-('Energy Calculations'!$AV$20)),0) -> 0 | AA35: =IF($Y35<=$G$60,'Energy Calculations'!$AV46+Z35,0) -> 0 | AB35: 0 | AC35: =IF(AND($Y35<=$G$60,$G$62<>0),PMT($G$62,$G$60,-('Energy Calculations'!$BI$20)),0) -> 0 | AD35: =IF($Y35<=$G$60,'Energy Calculations'!$BI46+AC35,0) -> 0 | AE35: 0 | AF35: =IF(AND($Y35<=$G$60,$G$62<>0),PMT($G$62,$G$60,-('Energy Calculations'!$BE$20)),0) -> 0 | AG35: =IF($Y35<=$G$60,'Energy Calculations'!$BE46+AF35,0) -> 0 | AH35: 0 | AI35: =IF(AND($Y35<=$G$60,$G$62<>0),PMT($G$62,$G$60,-('Energy Calculations'!$BV$20)),0) -> 0 | AJ35: =IF($Y35<=$G$60,'Energy Calculations'!$BV46+AI35,0) -> 0 | AK35: 0 | AL35: =IF(AND($Y35<=$G$60,$G$62<>0),PMT($G$62,$G$60,-('Energy Calculations'!$BR$20)),0) -> 0 | AM35: =IF($Y35<=$G$60,'Energy Calculations'!$BR46+AL35,0) -> 0 | AN35: 0 | AP35: 26 | AQ35: =IF(AND($AP35=$G$60,$G$63<>0),'Energy Calculations'!$AV$20,0) -> 0 | AR35: =IF(AND($AP35<=$G$60,$G$63<>0),('Energy Calculations'!$AV$20)*$G$63,0) -> 0 | AS35: =IF(AND($AP35<=$G$60,$G$63<>0),'Energy Calculations'!$AV46+AQ35+AR35,0) -> 0 | AT35: 0 | AU35: =IF(AND($AP35=$G$60,$G$63<>0),'Energy Calculations'!$BI$20,0) -> 0 | AV35: =IF(AND($AP35<=$G$60,$G$63<>0),('Energy Calculations'!$BI$20)*$G$63,0) -> 0 | AW35: =IF(AND($AP35<=$G$60,$G$63<>0),'Energy Calculations'!$BI46+AU35+AV35,0) -> 0 | AX35: 0 | AY35: =IF(AND($AP35=$G$60,$G$63<>0),'Energy Calculations'!$BE$20,0) -> 0 | AZ35: =IF(AND($AP35<=$G$60,$G$63<>0),('Energy Calculations'!$BE$20)*$G$63,0) -> 0 | BA35: =IF(AND($AP35<=$G$60,$G$63<>0),'Energy Calculations'!$BE46+AY35+AZ35,0) -> 0 | BB35: 0 | BC35: =IF(AND($AP35=$G$60,$G$63<>0),'Energy Calculations'!$BV$20,0) -> 0 | BD35: =IF(AND($AP35<=$G$60,$G$63<>0),('Energy Calculations'!$BV$20)*$G$63,0) -> 0 | BE35: =IF(AND($AP35<=$G$60,$G$63<>0),'Energy Calculations'!$BV46+BC35+BD35,0) -> 0 | BF35: 0 | BG35: =IF(AND($AP35=$G$60,$G$63<>0),'Energy Calculations'!$BR$20,0) -> 0 | BH35: =IF(AND($AP35<=$G$60,$G$63<>0),('Energy Calculations'!$BR$20)*$G$63,0) -> 0 | BI35: =IF(AND($AP35<=$G$60,$G$63<>0),'Energy Calculations'!$BR46+BG35+BH35,0) -> 0 | BJ35: 0 | BL35: 26 | BO35: 0 | BP35: =IF($AP35<=$G$60,'Energy Calculations'!$AV46+BM35+BO35+BN35,0) -> 0 | BQ35: 0 | BT35: =IF($AP35<=$G$60,PMT($G$64,$G$60-5,BS$15),0) -> 0 | BU35: =IF($AP35<=$G$60,'Energy Calculations'!$BI46+BR35+BT35+BS35,0) -> 0 | BV35: 0 | BY35: 0 | BZ35: =IF($AP35<=$G$60,'Energy Calculations'!$BE46+BW35+BY35+BX35,0) -> 0 | CA35: 0 | CD35: 0 | CE35: =IF($AP35<=$G$60,'Energy Calculations'!$BV46+CB35+CD35+CC35,0) -> 0 | CF35: 0 | CI35: 0 | CJ35: =IF($AP35<=$G$60,'Energy Calculations'!$BR46+CG35+CI35+CH35,0) -> 0 | CK35: 0
B36: ='Energy Calculations'!BL47 ->  | C36: 27 | D36: =IF(AND($C36<=$G$60,$G$61<>0),('Energy Calculations'!$AV$20)/$G$60,0) -> 0 | E36: =IF($C36<=$G$60,$G$61*(('Energy Calculations'!$AV$20)-D36*$C35),0) -> 0 | F36: =IF(AND($C36<=$G$60,$G$61<>0),'Energy Calculations'!$AV47+E36+D36,0) -> 0 | G36: 0 | H36: =IF(AND($C36<=$G$60,$G$61<>0),('Energy Calculations'!$BI$20)/$G$60,0) -> 0 | I36: =IF($C36<=$G$60,$G$61*(('Energy Calculations'!$BI$20)-H36*$C35),0) -> 0 | J36: =IF(AND($C36<=$G$60,$G$61<>0),'Energy Calculations'!$BI47+I36+H36,0) -> 0 | K36: 0 | L36: =IF(AND($C36<=$G$60,$G$61<>0),('Energy Calculations'!$BE$20)/$G$60,0) -> 0 | M36: =IF($C36<=$G$60,$G$61*(('Energy Calculations'!$BE$20)-L36*$C35),0) -> 0 | N36: =IF(AND($C36<=$G$60,$G$61<>0),'Energy Calculations'!$BE47+M36+L36,0) -> 0 | O36: 0 | P36: =IF(AND($C36<=$G$60,$G$61<>0),('Energy Calculations'!$BV$20)/$G$60,0) -> 0 | Q36: =IF($C36<=$G$60,$G$61*(('Energy Calculations'!$BV$20)-P36*$C35),0) -> 0 | R36: =IF(AND($C36<=$G$60,$G$61<>0),'Energy Calculations'!$BV47+Q36+P36,0) -> 0 | S36: 0 | T36: =IF(AND($C36<=$G$60,$G$61<>0),('Energy Calculations'!$BR$20)/$G$60,0) -> 0 | U36: =IF($C36<=$G$60,$G$61*(('Energy Calculations'!$BR$20)-T36*$C35),0) -> 0 | V36: =IF(AND($C36<=$G$60,$G$61<>0),'Energy Calculations'!BR47+U36+T36,0) -> 0 | W36: 0 | Y36: 27 | Z36: =IF(AND($Y36<=$G$60,$G$62<>0),PMT($G$62,$G$60,-('Energy Calculations'!$AV$20)),0) -> 0 | AA36: =IF($Y36<=$G$60,'Energy Calculations'!$AV47+Z36,0) -> 0 | AB36: 0 | AC36: =IF(AND($Y36<=$G$60,$G$62<>0),PMT($G$62,$G$60,-('Energy Calculations'!$BI$20)),0) -> 0 | AD36: =IF($Y36<=$G$60,'Energy Calculations'!$BI47+AC36,0) -> 0 | AE36: 0 | AF36: =IF(AND($Y36<=$G$60,$G$62<>0),PMT($G$62,$G$60,-('Energy Calculations'!$BE$20)),0) -> 0 | AG36: =IF($Y36<=$G$60,'Energy Calculations'!$BE47+AF36,0) -> 0 | AH36: 0 | AI36: =IF(AND($Y36<=$G$60,$G$62<>0),PMT($G$62,$G$60,-('Energy Calculations'!$BV$20)),0) -> 0 | AJ36: =IF($Y36<=$G$60,'Energy Calculations'!$BV47+AI36,0) -> 0 | AK36: 0 | AL36: =IF(AND($Y36<=$G$60,$G$62<>0),PMT($G$62,$G$60,-('Energy Calculations'!$BR$20)),0) -> 0 | AM36: =IF($Y36<=$G$60,'Energy Calculations'!$BR47+AL36,0) -> 0 | AN36: 0 | AP36: 27 | AQ36: =IF(AND($AP36=$G$60,$G$63<>0),'Energy Calculations'!$AV$20,0) -> 0 | AR36: =IF(AND($AP36<=$G$60,$G$63<>0),('Energy Calculations'!$AV$20)*$G$63,0) -> 0 | AS36: =IF(AND($AP36<=$G$60,$G$63<>0),'Energy Calculations'!$AV47+AQ36+AR36,0) -> 0 | AT36: 0 | AU36: =IF(AND($AP36=$G$60,$G$63<>0),'Energy Calculations'!$BI$20,0) -> 0 | AV36: =IF(AND($AP36<=$G$60,$G$63<>0),('Energy Calculations'!$BI$20)*$G$63,0) -> 0 | AW36: =IF(AND($AP36<=$G$60,$G$63<>0),'Energy Calculations'!$BI47+AU36+AV36,0) -> 0 | AX36: 0 | AY36: =IF(AND($AP36=$G$60,$G$63<>0),'Energy Calculations'!$BE$20,0) -> 0 | AZ36: =IF(AND($AP36<=$G$60,$G$63<>0),('Energy Calculations'!$BE$20)*$G$63,0) -> 0 | BA36: =IF(AND($AP36<=$G$60,$G$63<>0),'Energy Calculations'!$BE47+AY36+AZ36,0) -> 0 | BB36: 0 | BC36: =IF(AND($AP36=$G$60,$G$63<>0),'Energy Calculations'!$BV$20,0) -> 0 | BD36: =IF(AND($AP36<=$G$60,$G$63<>0),('Energy Calculations'!$BV$20)*$G$63,0) -> 0 | BE36: =IF(AND($AP36<=$G$60,$G$63<>0),'Energy Calculations'!$BV47+BC36+BD36,0) -> 0 | BF36: 0 | BG36: =IF(AND($AP36=$G$60,$G$63<>0),'Energy Calculations'!$BR$20,0) -> 0 | BH36: =IF(AND($AP36<=$G$60,$G$63<>0),('Energy Calculations'!$BR$20)*$G$63,0) -> 0 | BI36: =IF(AND($AP36<=$G$60,$G$63<>0),'Energy Calculations'!$BR47+BG36+BH36,0) -> 0 | BJ36: 0 | BL36: 27 | BO36: 0 | BP36: =IF($AP36<=$G$60,'Energy Calculations'!$AV47+BM36+BO36+BN36,0) -> 0 | BQ36: 0 | BT36: 0 | BU36: =IF($AP36<=$G$60,'Energy Calculations'!$BI47+BR36+BT36+BS36,0) -> 0 | BV36: 0 | BY36: 0 | BZ36: =IF($AP36<=$G$60,'Energy Calculations'!$BE47+BW36+BY36+BX36,0) -> 0 | CA36: 0 | CD36: 0 | CE36: =IF($AP36<=$G$60,'Energy Calculations'!$BV47+CB36+CD36+CC36,0) -> 0 | CF36: 0 | CI36: 0 | CJ36: =IF($AP36<=$G$60,'Energy Calculations'!$BR47+CG36+CI36+CH36,0) -> 0 | CK36: 0
B37: ='Energy Calculations'!BL48 ->  | C37: 28 | D37: =IF(AND($C37<=$G$60,$G$61<>0),('Energy Calculations'!$AV$20)/$G$60,0) -> 0 | E37: =IF($C37<=$G$60,$G$61*(('Energy Calculations'!$AV$20)-D37*$C36),0) -> 0 | F37: =IF(AND($C37<=$G$60,$G$61<>0),'Energy Calculations'!$AV48+E37+D37,0) -> 0 | G37: 0 | H37: =IF(AND($C37<=$G$60,$G$61<>0),('Energy Calculations'!$BI$20)/$G$60,0) -> 0 | I37: =IF($C37<=$G$60,$G$61*(('Energy Calculations'!$BI$20)-H37*$C36),0) -> 0 | J37: =IF(AND($C37<=$G$60,$G$61<>0),'Energy Calculations'!$BI48+I37+H37,0) -> 0 | K37: 0 | L37: =IF(AND($C37<=$G$60,$G$61<>0),('Energy Calculations'!$BE$20)/$G$60,0) -> 0 | M37: =IF($C37<=$G$60,$G$61*(('Energy Calculations'!$BE$20)-L37*$C36),0) -> 0 | N37: =IF(AND($C37<=$G$60,$G$61<>0),'Energy Calculations'!$BE48+M37+L37,0) -> 0 | O37: 0 | P37: =IF(AND($C37<=$G$60,$G$61<>0),('Energy Calculations'!$BV$20)/$G$60,0) -> 0 | Q37: =IF($C37<=$G$60,$G$61*(('Energy Calculations'!$BV$20)-P37*$C36),0) -> 0 | R37: =IF(AND($C37<=$G$60,$G$61<>0),'Energy Calculations'!$BV48+Q37+P37,0) -> 0 | S37: 0 | T37: =IF(AND($C37<=$G$60,$G$61<>0),('Energy Calculations'!$BR$20)/$G$60,0) -> 0 | U37: =IF($C37<=$G$60,$G$61*(('Energy Calculations'!$BR$20)-T37*$C36),0) -> 0 | V37: =IF(AND($C37<=$G$60,$G$61<>0),'Energy Calculations'!BR48+U37+T37,0) -> 0 | W37: 0 | Y37: 28 | Z37: =IF(AND($Y37<=$G$60,$G$62<>0),PMT($G$62,$G$60,-('Energy Calculations'!$AV$20)),0) -> 0 | AA37: =IF($Y37<=$G$60,'Energy Calculations'!$AV48+Z37,0) -> 0 | AB37: 0 | AC37: =IF(AND($Y37<=$G$60,$G$62<>0),PMT($G$62,$G$60,-('Energy Calculations'!$BI$20)),0) -> 0 | AD37: =IF($Y37<=$G$60,'Energy Calculations'!$BI48+AC37,0) -> 0 | AE37: 0 | AF37: =IF(AND($Y37<=$G$60,$G$62<>0),PMT($G$62,$G$60,-('Energy Calculations'!$BE$20)),0) -> 0 | AG37: =IF($Y37<=$G$60,'Energy Calculations'!$BE48+AF37,0) -> 0 | AH37: 0 | AI37: =IF(AND($Y37<=$G$60,$G$62<>0),PMT($G$62,$G$60,-('Energy Calculations'!$BV$20)),0) -> 0 | AJ37: =IF($Y37<=$G$60,'Energy Calculations'!$BV48+AI37,0) -> 0 | AK37: 0 | AL37: =IF(AND($Y37<=$G$60,$G$62<>0),PMT($G$62,$G$60,-('Energy Calculations'!$BR$20)),0) -> 0 | AM37: =IF($Y37<=$G$60,'Energy Calculations'!$BR48+AL37,0) -> 0 | AN37: 0 | AP37: 28 | AQ37: =IF(AND($AP37=$G$60,$G$63<>0),'Energy Calculations'!$AV$20,0) -> 0 | AR37: =IF(AND($AP37<=$G$60,$G$63<>0),('Energy Calculations'!$AV$20)*$G$63,0) -> 0 | AS37: =IF(AND($AP37<=$G$60,$G$63<>0),'Energy Calculations'!$AV48+AQ37+AR37,0) -> 0 | AT37: 0 | AU37: =IF(AND($AP37=$G$60,$G$63<>0),'Energy Calculations'!$BI$20,0) -> 0 | AV37: =IF(AND($AP37<=$G$60,$G$63<>0),('Energy Calculations'!$BI$20)*$G$63,0) -> 0 | AW37: =IF(AND($AP37<=$G$60,$G$63<>0),'Energy Calculations'!$BI48+AU37+AV37,0) -> 0 | AX37: 0 | AY37: =IF(AND($AP37=$G$60,$G$63<>0),'Energy Calculations'!$BE$20,0) -> 0 | AZ37: =IF(AND($AP37<=$G$60,$G$63<>0),('Energy Calculations'!$BE$20)*$G$63,0) -> 0 | BA37: =IF(AND($AP37<=$G$60,$G$63<>0),'Energy Calculations'!$BE48+AY37+AZ37,0) -> 0 | BB37: 0 | BC37: =IF(AND($AP37=$G$60,$G$63<>0),'Energy Calculations'!$BV$20,0) -> 0 | BD37: =IF(AND($AP37<=$G$60,$G$63<>0),('Energy Calculations'!$BV$20)*$G$63,0) -> 0 | BE37: =IF(AND($AP37<=$G$60,$G$63<>0),'Energy Calculations'!$BV48+BC37+BD37,0) -> 0 | BF37: 0 | BG37: =IF(AND($AP37=$G$60,$G$63<>0),'Energy Calculations'!$BR$20,0) -> 0 | BH37: =IF(AND($AP37<=$G$60,$G$63<>0),('Energy Calculations'!$BR$20)*$G$63,0) -> 0 | BI37: =IF(AND($AP37<=$G$60,$G$63<>0),'Energy Calculations'!$BR48+BG37+BH37,0) -> 0 | BJ37: 0 | BL37: 28 | BO37: 0 | BP37: =IF($AP37<=$G$60,'Energy Calculations'!$AV48+BM37+BO37+BN37,0) -> 0 | BQ37: 0 | BT37: 0 | BU37: =IF($AP37<=$G$60,'Energy Calculations'!$BI48+BR37+BT37+BS37,0) -> 0 | BV37: 0 | BY37: 0 | BZ37: =IF($AP37<=$G$60,'Energy Calculations'!$BE48+BW37+BY37+BX37,0) -> 0 | CA37: 0 | CD37: 0 | CE37: =IF($AP37<=$G$60,'Energy Calculations'!$BV48+CB37+CD37+CC37,0) -> 0 | CF37: 0 | CI37: 0 | CJ37: =IF($AP37<=$G$60,'Energy Calculations'!$BR48+CG37+CI37+CH37,0) -> 0 | CK37: 0
B38: ='Energy Calculations'!BL49 ->  | C38: 29 | D38: =IF(AND($C38<=$G$60,$G$61<>0),('Energy Calculations'!$AV$20)/$G$60,0) -> 0 | E38: =IF($C38<=$G$60,$G$61*(('Energy Calculations'!$AV$20)-D38*$C37),0) -> 0 | F38: =IF(AND($C38<=$G$60,$G$61<>0),'Energy Calculations'!$AV49+E38+D38,0) -> 0 | G38: 0 | H38: =IF(AND($C38<=$G$60,$G$61<>0),('Energy Calculations'!$BI$20)/$G$60,0) -> 0 | I38: =IF($C38<=$G$60,$G$61*(('Energy Calculations'!$BI$20)-H38*$C37),0) -> 0 | J38: =IF(AND($C38<=$G$60,$G$61<>0),'Energy Calculations'!$BI49+I38+H38,0) -> 0 | K38: 0 | L38: =IF(AND($C38<=$G$60,$G$61<>0),('Energy Calculations'!$BE$20)/$G$60,0) -> 0 | M38: =IF($C38<=$G$60,$G$61*(('Energy Calculations'!$BE$20)-L38*$C37),0) -> 0 | N38: =IF(AND($C38<=$G$60,$G$61<>0),'Energy Calculations'!$BE49+M38+L38,0) -> 0 | O38: 0 | P38: =IF(AND($C38<=$G$60,$G$61<>0),('Energy Calculations'!$BV$20)/$G$60,0) -> 0 | Q38: =IF($C38<=$G$60,$G$61*(('Energy Calculations'!$BV$20)-P38*$C37),0) -> 0 | R38: =IF(AND($C38<=$G$60,$G$61<>0),'Energy Calculations'!$BV49+Q38+P38,0) -> 0 | S38: 0 | T38: =IF(AND($C38<=$G$60,$G$61<>0),('Energy Calculations'!$BR$20)/$G$60,0) -> 0 | U38: =IF($C38<=$G$60,$G$61*(('Energy Calculations'!$BR$20)-T38*$C37),0) -> 0 | V38: =IF(AND($C38<=$G$60,$G$61<>0),'Energy Calculations'!BR49+U38+T38,0) -> 0 | W38: 0 | Y38: 29 | Z38: =IF(AND($Y38<=$G$60,$G$62<>0),PMT($G$62,$G$60,-('Energy Calculations'!$AV$20)),0) -> 0 | AA38: =IF($Y38<=$G$60,'Energy Calculations'!$AV49+Z38,0) -> 0 | AB38: 0 | AC38: =IF(AND($Y38<=$G$60,$G$62<>0),PMT($G$62,$G$60,-('Energy Calculations'!$BI$20)),0) -> 0 | AD38: =IF($Y38<=$G$60,'Energy Calculations'!$BI49+AC38,0) -> 0 | AE38: 0 | AF38: =IF(AND($Y38<=$G$60,$G$62<>0),PMT($G$62,$G$60,-('Energy Calculations'!$BE$20)),0) -> 0 | AG38: =IF($Y38<=$G$60,'Energy Calculations'!$BE49+AF38,0) -> 0 | AH38: 0 | AI38: =IF(AND($Y38<=$G$60,$G$62<>0),PMT($G$62,$G$60,-('Energy Calculations'!$BV$20)),0) -> 0 | AJ38: =IF($Y38<=$G$60,'Energy Calculations'!$BV49+AI38,0) -> 0 | AK38: 0 | AL38: =IF(AND($Y38<=$G$60,$G$62<>0),PMT($G$62,$G$60,-('Energy Calculations'!$BR$20)),0) -> 0 | AM38: =IF($Y38<=$G$60,'Energy Calculations'!$BR49+AL38,0) -> 0 | AN38: 0 | AP38: 29 | AQ38: =IF(AND($AP38=$G$60,$G$63<>0),'Energy Calculations'!$AV$20,0) -> 0 | AR38: =IF(AND($AP38<=$G$60,$G$63<>0),('Energy Calculations'!$AV$20)*$G$63,0) -> 0 | AS38: =IF(AND($AP38<=$G$60,$G$63<>0),'Energy Calculations'!$AV49+AQ38+AR38,0) -> 0 | AT38: 0 | AU38: =IF(AND($AP38=$G$60,$G$63<>0),'Energy Calculations'!$BI$20,0) -> 0 | AV38: =IF(AND($AP38<=$G$60,$G$63<>0),('Energy Calculations'!$BI$20)*$G$63,0) -> 0 | AW38: =IF(AND($AP38<=$G$60,$G$63<>0),'Energy Calculations'!$BI49+AU38+AV38,0) -> 0 | AX38: 0 | AY38: =IF(AND($AP38=$G$60,$G$63<>0),'Energy Calculations'!$BE$20,0) -> 0 | AZ38: =IF(AND($AP38<=$G$60,$G$63<>0),('Energy Calculations'!$BE$20)*$G$63,0) -> 0 | BA38: =IF(AND($AP38<=$G$60,$G$63<>0),'Energy Calculations'!$BE49+AY38+AZ38,0) -> 0 | BB38: 0 | BC38: =IF(AND($AP38=$G$60,$G$63<>0),'Energy Calculations'!$BV$20,0) -> 0 | BD38: =IF(AND($AP38<=$G$60,$G$63<>0),('Energy Calculations'!$BV$20)*$G$63,0) -> 0 | BE38: =IF(AND($AP38<=$G$60,$G$63<>0),'Energy Calculations'!$BV49+BC38+BD38,0) -> 0 | BF38: 0 | BG38: =IF(AND($AP38=$G$60,$G$63<>0),'Energy Calculations'!$BR$20,0) -> 0 | BH38: =IF(AND($AP38<=$G$60,$G$63<>0),('Energy Calculations'!$BR$20)*$G$63,0) -> 0 | BI38: =IF(AND($AP38<=$G$60,$G$63<>0),'Energy Calculations'!$BR49+BG38+BH38,0) -> 0 | BJ38: 0 | BL38: 29 | BO38: 0 | BP38: =IF($AP38<=$G$60,'Energy Calculations'!$AV49+BM38+BO38+BN38,0) -> 0 | BQ38: 0 | BT38: 0 | BU38: =IF($AP38<=$G$60,'Energy Calculations'!$BI49+BR38+BT38+BS38,0) -> 0 | BV38: 0 | BY38: 0 | BZ38: =IF($AP38<=$G$60,'Energy Calculations'!$BE49+BW38+BY38+BX38,0) -> 0 | CA38: 0 | CD38: 0 | CE38: =IF($AP38<=$G$60,'Energy Calculations'!$BV49+CB38+CD38+CC38,0) -> 0 | CF38: 0 | CI38: 0 | CJ38: =IF($AP38<=$G$60,'Energy Calculations'!$BR49+CG38+CI38+CH38,0) -> 0 | CK38: 0
B39: ='Energy Calculations'!BL50 ->  | C39: 30 | D39: =IF(AND($C39<=$G$60,$G$61<>0),('Energy Calculations'!$AV$20)/$G$60,0) -> 0 | E39: =IF($C39<=$G$60,$G$61*(('Energy Calculations'!$AV$20)-D39*$C38),0) -> 0 | F39: =IF(AND($C39<=$G$60,$G$61<>0),'Energy Calculations'!$AV50+E39+D39,0) -> 0 | G39: 0 | H39: =IF(AND($C39<=$G$60,$G$61<>0),('Energy Calculations'!$BI$20)/$G$60,0) -> 0 | I39: =IF($C39<=$G$60,$G$61*(('Energy Calculations'!$BI$20)-H39*$C38),0) -> 0 | J39: =IF(AND($C39<=$G$60,$G$61<>0),'Energy Calculations'!$BI50+I39+H39,0) -> 0 | K39: 0 | L39: =IF(AND($C39<=$G$60,$G$61<>0),('Energy Calculations'!$BE$20)/$G$60,0) -> 0 | M39: =IF($C39<=$G$60,$G$61*(('Energy Calculations'!$BE$20)-L39*$C38),0) -> 0 | N39: =IF(AND($C39<=$G$60,$G$61<>0),'Energy Calculations'!$BE50+M39+L39,0) -> 0 | O39: 0 | P39: =IF(AND($C39<=$G$60,$G$61<>0),('Energy Calculations'!$BV$20)/$G$60,0) -> 0 | Q39: =IF($C39<=$G$60,$G$61*(('Energy Calculations'!$BV$20)-P39*$C38),0) -> 0 | R39: =IF(AND($C39<=$G$60,$G$61<>0),'Energy Calculations'!$BV50+Q39+P39,0) -> 0 | S39: 0 | T39: =IF(AND($C39<=$G$60,$G$61<>0),('Energy Calculations'!$BR$20)/$G$60,0) -> 0 | U39: =IF($C39<=$G$60,$G$61*(('Energy Calculations'!$BR$20)-T39*$C38),0) -> 0 | V39: =IF(AND($C39<=$G$60,$G$61<>0),'Energy Calculations'!BR50+U39+T39,0) -> 0 | W39: 0 | Y39: 30 | Z39: =IF(AND($Y39<=$G$60,$G$62<>0),PMT($G$62,$G$60,-('Energy Calculations'!$AV$20)),0) -> 0 | AA39: =IF($Y39<=$G$60,'Energy Calculations'!$AV50+Z39,0) -> 0 | AB39: 0 | AC39: =IF(AND($Y39<=$G$60,$G$62<>0),PMT($G$62,$G$60,-('Energy Calculations'!$BI$20)),0) -> 0 | AD39: =IF($Y39<=$G$60,'Energy Calculations'!$BI50+AC39,0) -> 0 | AE39: 0 | AF39: =IF(AND($Y39<=$G$60,$G$62<>0),PMT($G$62,$G$60,-('Energy Calculations'!$BE$20)),0) -> 0 | AG39: =IF($Y39<=$G$60,'Energy Calculations'!$BE50+AF39,0) -> 0 | AH39: 0 | AI39: =IF(AND($Y39<=$G$60,$G$62<>0),PMT($G$62,$G$60,-('Energy Calculations'!$BV$20)),0) -> 0 | AJ39: =IF($Y39<=$G$60,'Energy Calculations'!$BV50+AI39,0) -> 0 | AK39: 0 | AL39: =IF(AND($Y39<=$G$60,$G$62<>0),PMT($G$62,$G$60,-('Energy Calculations'!$BR$20)),0) -> 0 | AM39: =IF($Y39<=$G$60,'Energy Calculations'!$BR50+AL39,0) -> 0 | AN39: 0 | AP39: 30 | AQ39: =IF(AND($AP39=$G$60,$G$63<>0),'Energy Calculations'!$AV$20,0) -> 0 | AR39: =IF(AND($AP39<=$G$60,$G$63<>0),('Energy Calculations'!$AV$20)*$G$63,0) -> 0 | AS39: =IF(AND($AP39<=$G$60,$G$63<>0),'Energy Calculations'!$AV50+AQ39+AR39,0) -> 0 | AT39: 0 | AU39: =IF(AND($AP39=$G$60,$G$63<>0),'Energy Calculations'!$BI$20,0) -> 0 | AV39: =IF(AND($AP39<=$G$60,$G$63<>0),('Energy Calculations'!$BI$20)*$G$63,0) -> 0 | AW39: =IF(AND($AP39<=$G$60,$G$63<>0),'Energy Calculations'!$BI50+AU39+AV39,0) -> 0 | AX39: 0 | AY39: =IF(AND($AP39=$G$60,$G$63<>0),'Energy Calculations'!$BE$20,0) -> 0 | AZ39: =IF(AND($AP39<=$G$60,$G$63<>0),('Energy Calculations'!$BE$20)*$G$63,0) -> 0 | BA39: =IF(AND($AP39<=$G$60,$G$63<>0),'Energy Calculations'!$BE50+AY39+AZ39,0) -> 0 | BB39: 0 | BC39: =IF(AND($AP39=$G$60,$G$63<>0),'Energy Calculations'!$BV$20,0) -> 0 | BD39: =IF(AND($AP39<=$G$60,$G$63<>0),('Energy Calculations'!$BV$20)*$G$63,0) -> 0 | BE39: =IF(AND($AP39<=$G$60,$G$63<>0),'Energy Calculations'!$BV50+BC39+BD39,0) -> 0 | BF39: 0 | BG39: =IF(AND($AP39=$G$60,$G$63<>0),'Energy Calculations'!$BR$20,0) -> 0 | BH39: =IF(AND($AP39<=$G$60,$G$63<>0),('Energy Calculations'!$BR$20)*$G$63,0) -> 0 | BI39: =IF(AND($AP39<=$G$60,$G$63<>0),'Energy Calculations'!$BR50+BG39+BH39,0) -> 0 | BJ39: 0 | BL39: 30 | BO39: 0 | BP39: =IF($AP39<=$G$60,'Energy Calculations'!$AV50+BM39+BO39+BN39,0) -> 0 | BQ39: 0 | BT39: 0 | BU39: =IF($AP39<=$G$60,'Energy Calculations'!$BI50+BR39+BT39+BS39,0) -> 0 | BV39: 0 | BY39: 0 | BZ39: =IF($AP39<=$G$60,'Energy Calculations'!$BE50+BW39+BY39+BX39,0) -> 0 | CA39: 0 | CD39: 0 | CE39: =IF($AP39<=$G$60,'Energy Calculations'!$BV50+CB39+CD39+CC39,0) -> 0 | CF39: 0 | CI39: 0 | CJ39: =IF($AP39<=$G$60,'Energy Calculations'!$BR50+CG39+CI39+CH39,0) -> 0 | CK39: 0
